Workbook

Sheet Info

Sheet Trial (hidden)

Sheet Instructions (hidden)
A1: Excel Skills | Trade Based Accounting Template
A2: Instructions
A3: www.excel-skills.com
A5: Our trade based accounting template enables users to record income & expenses and automatically produces a trial balance, income statement, cash flow statement and balance sheet. The template also includes automated calculations of gross profit amounts & percentages, inventory on hand, invoices, customer statements and customer ageing. The default accounts can be customized and an unlimited number of additional accounts can be added. It also accommodates sales tax calculations and multiple bank accounts. After completing the initial template setup, the template can be rolled forward or back by simply changing the reporting year in a single input cell.
A7: Note: The main difference between this template and our Service Based accounting template is that this template includes inventory. You can create stock codes and allocate sales & purchases to these stock codes. Sales, cost of sales, gross profit amounts & percentages, inventory on hand and average costs are automatically calculated.
A9: Note: This template has been designed mainly for relatively simple trade based businesses. Although the template technically accommodates an unlimited number of stock codes and transactions, the template is not really suitable for businesses with hundreds of stock codes and thousands of inventory transactions.
A11: The template includes the following sheets:
A12: Setup - enter your business & banking details and customize the sales tax codes and bank codes. The business & banking details are included on the automated invoice and customer statement. The sales tax codes & percentages are used to calculate sales tax on all income & expense transactions and bank codes can be used to allocate transactions to multiple bank accounts. The first financial year, reporting year and year-end input cells determine the monthly periods that are included on the trial balance, income statement, cash flow statement and balance sheet.
A13: Groups - this sheet contains the default list of account groups that are used in this template. You can customize the descriptions of the account groups but we do not recommend changing the account group keys. Additional account groups can be added and inserted in the appropriate location on the income statement, cash flow statement and balance sheet.
A14: TB - this sheet contains a full list of the accounts that are included in the template and a trial balance which is automatically calculated based on the transactions that are entered on the Income and Expenses sheets. The default accounts list can be customized by editing the existing accounts or by inserting new rows for additional accounts. The period for which the trial balance is calculated is determined by the month-end period that is selected at the top of the sheet in column G.
A15: Customers - create unique customer codes for all customers and enter their billing details. The sheet also includes an automated calculation of outstanding balances and an ageing of customer account balances which can be calculated based on any user defined date.
A16: Stock - create stock codes for all products and enter the unit of measure (UOM) and cost of sales account for each stock item. You can also include the start-up quantities & costs as at the beginning of the first financial year that is included in the template. The calculated columns contain calculations of the inventory on hand and the inventory movements for the user defined date range which can be specified at the top of the sheet.
A17: Income - all income and other receipt transactions should be entered on this sheet. The columns with yellow column headings require user input and the columns with light blue column headings contain formulas and are therefore automatically calculated.
A18: Invoice - this sheet contains an automated tax invoice. Simply enter the appropriate invoice number and the rest of the sheet is automatically populated based on the details recorded on the Setup, Income and Customers sheets.
A19: Statement - this sheet contains an automated customer statement. Select the customer code, enter the statement date and the rest of the sheet is automatically populated based on the details recorded on the Setup, Income and Customers sheets.
A20: Expenses - all expense and other payment transactions should be entered on this sheet. The columns with yellow column headings require user input and the columns with light blue column headings contain formulas and are therefore automatically calculated. We also recommend entering all journals on this sheet.
A21: IS - the monthly income statement on this sheet is automatically compiled based on the transactions that are recorded on the Income and Expenses sheets. The 12 monthly periods that are included in the report are determined based on the reporting year that is specified on the Setup sheet.
A22: CFS - the monthly cash flow statement on this sheet is automatically compiled based on the income statement and balance sheet calculations.
A23: BS - the monthly balance sheet on this sheet is automatically compiled based on the transactions that are recorded on the Income and Expenses sheets. All the line items are set to report account group totals but you can include individual accounts by changing the keys in column A.
A24: Bank - this sheet contains an analysis of bank account movements on a daily basis (for the selected month) and on a monthly basis for the current financial year. Aside from selecting the bank code and month, no user input is required on this sheet.
A25: SalesTax - this sheet contains a monthly sales tax analysis. All the calculations are automated. You can select the tax type and any of the individual sales tax codes at the top of the sheet to view the output and input values for any tax type or tax code. The template provides for two default tax types for national or federal sales tax and state sales tax.
A26: GP - this sheet contains a gross profit analysis by stock code. Aside from selecting the appropriate stock code, no user input is required. The calculations on this sheet make it easy to monitor the gross profit percentages & stock quantities for each stock item.
A28: Setup
A30: The first step in setting up the template for your business is to enter your business details at the top of the Setup sheet. Your business name is included as a heading on all the other sheets and the other business details are included on the tax invoice & customer statement. You also need to enter the first financial year & the reporting year, select a year-end month and maintain your sales tax & bank codes on the Setup sheet.
A32: The first financial year that is entered on the Setup sheet is very important because it determines the first period that will be included in the template calculations. The year that is specified in this input cell also determines the effective date for which opening balance sheet balances should be entered in column C on the TB sheet.
A34: Note: Once you have set the first financial year that needs to be included in the template, you need to use a trial balance as at the end of the previous financial year (as generated in your previous accounting solution) to enter the balance sheet opening balances in column C on the TB sheet. The total of all the balance sheet opening balances needs to be nil in order for the balance sheet to balance.
A36: This template can only be used for full financial years. The template does not make provision for entering opening balances for income statement items and you therefore need to start with data for a full financial year. If you therefore switch from another accounting solution to our template, you need to recapture all your income & expenses as from the first day of the first financial year that is included in the template.
A38: The reporting year that is entered on the Setup sheet determines the 12 monthly periods that are included on the income statement, cash flow statement and balance sheet. The IS, CFS and BS sheets include 12 monthly periods - these periods and the calculations that are automatically performed on these sheets can therefore be amended by simply changing the reporting year on the Setup sheet to include a new 12-month financial period in these reports.
A40: Note: The first financial year basically needs to be set once when you start using the template but the reporting year can be used to roll the 12-month financial period that is included in the template forward or back by simply changing the year in this cell. The template can be used for multiple financial years and all template calculations are updated automatically when you change the reporting year.
A42: You also need to select the appropriate year-end month from an input cell on the Setup sheet. This selection is used to determine the start date and the end date of each financial year and also determines the date on which opening balance sheet balances need to be included on the TB sheet.
A44: Sales Tax Codes
A46: The template accommodates an unlimited number of sales tax codes. You can include as many sales tax codes as you want by editing the default list of sales tax codes on the Setup sheet and adding additional sales tax codes by inserting the required number of additional rows, entering a sales tax code (use letters between A and Z) and entering the appropriate sales tax percentage.
A48: The sales tax codes included in the list on the Setup sheet are automatically included in the drop-down lists in the Sales Tax Code columns on the Income and Expenses sheets and the relevant percentages are automatically used to calculate the sales tax amounts on the same sheets. The template provides for two default sales tax types - national or federal sales tax and state sales tax and each sales tax type therefore has its own code selection and amount columns.
A50: When recording transactions on the Income sheet, you are required to enter a quantity and selling price for stock related transactions. Some users may want to enter selling prices which are inclusive of sales tax and others may want to enter selling prices which are exclusive of sales tax. These different requirements have been accommodated in the template design by adding a selection field below the sales tax codes which enable users to select the basis for entering selling prices on the Income sheet. Sales tax, inclusive amounts and exclusive amounts are automatically adjusted based on the selection on the Setup sheet.
A52: All the sales tax codes are available in both sales tax columns but you can use different sales tax codes and therefore different percentages for national or federal sales tax and state sales tax by simply selecting the relevant codes in the appropriate column which automatically results in the appropriate sales tax percentage being applied to the sales tax calculations. If the sales tax percentages change, you can simply create a new sales tax code for the new percentage and use it from the effective date for the new sales tax percentage.
A54: If you do not need sales tax to be calculated, you can simply leave the sales tax code columns blank or select any code with a zero percentage on the Setup sheet which will result in no sales tax being calculated.
A56: If you do not need both sales tax columns, we recommend selecting the appropriate sales tax codes in the first column and simply leaving the second sales tax code column blank or using a sales tax code with a zero percentage which would result in no sales tax being calculated in the second sales tax amount column. You can delete the second sales tax code and amount columns without affecting the sales tax calculations in the first sales tax code and amount columns but it may result in a data validation warning being displayed in the first sales tax amount column. These warnings just refer to the missing parts for the second sales tax calculations in the formulas and can safely be ignored.
A58: We have also included a SalesTax sheet which is automatically calculated and requires no user input. This sheet contains a monthly analysis of sales tax amounts and can be used to populate sales tax returns. The calculations can also be displayed for a specific sales tax code by simply selecting the appropriate code from the list box at the top of the sheet. When you then clear the contents of the list box, totals for all sales tax codes are displayed.
A60: Bank Accounts
A62: The template also accommodates an unlimited number of bank accounts. You can include as many bank accounts as you want by editing the list of bank account codes on the Setup sheet and adding additional bank account codes by inserting the required number of additional rows, entering a bank account code and entering a description of the bank account. You also then need to copy the formulas in columns D and E (indicated with light blue cell background) from one of the existing bank account codes.
A64: Note: When adding bank account codes, we recommend inserting new rows anywhere above the JC bank account code and using a two character bank code for all new bank accounts. The JC bank account code is reserved for journal entries and the default code for this bank code should not be changed. Journals do not really have a cash effect but we are using the JC code to facilitate including general ledger journal type entries in the template.
A66: All the bank codes that are added to the Setup sheet are automatically included in the drop-down list boxes on the Income and Expenses sheets and are available for selection immediately after being added to the Setup sheet. If the default number of bank account codes (four including petty cash) is not sufficient for your requirements and you have added additional bank account codes to the Setup sheet, you also need to add these bank account codes to the TB and BS sheets.
A68: Note: It is very important that you add the additional bank account codes to the TB and BS sheets otherwise your trial balance and balance sheet will not balance!
A70: The bank accounts on the TB sheet are part of the control accounts section at the bottom of the sheet. If you need to add additional bank codes, we recommend doing so above the JC bank account (BS-BJC in column A). Adding the additional bank codes is a simple exercise - insert the required number of additional rows and copy the formulas from one of the existing bank account rows. The template will automatically display your bank account codes in the same sequence as they are included on the Setup sheet.
A72: After adding the additional bank account codes to the TB sheet, you also need to add the new codes to the BS sheet. The procedure to follow is again really simple - insert the required number of additional rows above the JC bank account code (BS-BJC key in column A) and copy the formulas from one of the existing rows. You can copy the entire row to ensure that you have included the formulas in all columns. The formulas will automatically pick up the correct bank account codes.
A74: Note: If an additional bank account has been added to the Setup sheet and not included on the TB or BS sheets, the appropriate row will contain an "add!" status in column D or E. This indicates that the bank account still needs to be added to the appropriate sheet.
A76: Note: We have also included a Bank sheet in the template which enables users to analyse bank account movements in a lot more detail especially when preparing bank reconciliations. This sheet enables users to select a bank account code and month at the top of the sheet in order to display daily and monthly bank account movements. Aside from selecting the bank code and month, the sheet requires no user input.
A78: Banking Details
A80: The information that is entered in the banking details section is included on the tax invoice. If you clear the default data from the input field, no banking details will be included in the section at the bottom of the invoice. If you do enter banking details and you change the description of the input fields, these changes will also be affected on the tax invoice on the Invoice sheet.
A82: Note: The last input field provides for any text that you want to display at the bottom of the banking details section on the Invoice sheet.
A84: Input Error Codes
A86: The input error codes at the bottom of the sheet are included for information purposes only and provide users with a reason for the error codes that may be encountered when entering transactions on the Income and Expenses sheets. These error codes are covered in more detail in the Error Codes section of these instructions.
A88: Account Groups
A90: The accounts that are included on the income statement, cash flow statement and balance sheet are based on a pre-defined account structure which consists of pre-defined account groups that are used to populate the appropriate line items. A detailed list of these account groups is included on the Groups sheet.
A92: Note: Changes to the Groups sheet do not influence any of the calculations on the other sheets and only have an effect on the account group descriptions that are included on the IS, CFS and BS sheets. If you want to make changes to our default account groups, we only recommend doing so if absolutely necessary and that you customize existing account groups before considering adding new account groups. Customizing similar, existing account groups which are not required is a lot easier than adding new account groups.
A94: Note: If you do not change any of the default account groups, it is not necessary to review the rest of the instructions in the Account Groups section.
A96: The description of line items on the balance sheet can be changed quite easily by changing the description of the appropriate account group on the Groups sheet and then changing the account descriptions of the appropriate accounts which are included in the account group on the TB sheet. Account groups can accommodate up to 100 individual accounts which are linked to the account group by the same first 5 account number characters.
A98: Example: The account group key for property, plant & equipment (cost) is BS-00 and the account group is included as a group total on the balance sheet (key of BS-00G) which means that all accounts that start with BS-00 will be included in this account group total on the balance sheet. The default account number for Land & Buildings (cost) is BS-0005 which starts with BS-00 and therefore forms part of this account group.
A100: The same account integration principle is applied to most balance sheet account groups where the default integration is to report account group totals (as indicated by the "G" at the end of the account group keys). Although it is not difficult to add new account group keys to the Groups sheet and to then include the new keys in the balance sheet or income statement, there is a risk of balance sheet imbalances occurring if the cash flow statement movements are not included correctly. We therefore recommend completing the following steps if you want to add new account groups to the income statement or balance sheet:
A101: ■ Scan the Groups sheet for similar items which you are not going to use. For an item to be similar, it needs to be of the same nature as the item that you want to add. For example, current assets can only be replaced by other current assets and liabilities can only be replaced by other liabilities. If the items differ in nature, you should add a new account group instead of using an existing one.
A102: ■ If no suitable existing item can be found, insert a new row and add a new account group by entering the appropriate account group key and a description for the account group. When adding keys, you need to stick to the principle of a five character key which is unique and account numbers that need to be linked to this key, need to also start with the same five characters followed by a number between 00 and 99.
A103: ■ When adding new account groups, we suggest using the next available account group number after the "BS-". The default balance sheet account groups end after "BS-20" which means that the first available account group is "BS-21". The default income statement account groups end after "IS-10" which means that the first available account group is "IS-11".
A104: ■ After adding the appropriate account group to the Groups sheet, go to the TB sheet and add the required individual accounts which need to be included in the account group total on the balance sheet. Remember that the appropriate account numbers all need to start with the same first five characters as the account group and refer to the New Accounts section of these instructions for guidance on adding new accounts to the TB sheet.
A105: ■ Next, you need to add the new account group to the income statement or balance sheet. This is relatively simple - find a similar income statement or balance sheet item, insert a row above or below it, copy the entire row from the existing item into the new empty row and then change the account key in column A so that the new account group that you just created on the Groups sheet will be included in the calculations in the new line. For example, if your new account group has been created as BS-21, the key in column A on the balance sheet should be "BS-21G". Only similar items with a green key in column A should be used - the items with orange keys are custom formulas which cannot be copied for similar line items!
A106: ■ After adding the new account group to either the income statement or balance sheet, make sure that the total that this item is included in is correct. For most income statement or balance sheet items, this should automatically be the case but in some instances especially with regards to the income statement, you may need to edit some of the default formulas to ensure that the new account group is taken into account in the relevant totals.
A107: ■ Next, if you have added a new balance sheet account group, you will also need to make changes to the cash flow statement. Income statement items are included in a cash flow statement by including a profit or loss from the income statement and it therefore probably won't be necessary to make changes to the cash flow statement if you have added a new income statement account group.
A108: ■ If necessary, find a similar balance sheet item on the cash flow statement (CFS sheet), insert a new row above or below it, copy the entire row from the existing, similar line item and enter the new key in column A. Only similar items with a green key in column A should be used - the items with orange keys are custom formulas which cannot be copied for similar line items!
A109: ■ You also need to ensure that the appropriate total on the cash flow statement includes the new account group which has been added otherwise your balance sheet may not balance.
A111: As you can see, it becomes relatively complex when needing to add new account groups to the template and it is therefore much easier to change the descriptions of one of the existing line items in order to accommodate new or renamed account groups.
A113: Note: Refer to the Account Integration section of the instructions for guidance on how to include individual accounts on the income statement or balance sheet. This section is part of the main Trial Balance section below.
A115: Chart Of Accounts & Trial Balance
A117: The TB sheet has a dual purpose - it contains the chart of accounts which represents a detailed list of the account numbers which are available for the allocation of transactions & the reporting of transaction totals and it contains a detailed trial balance which is automatically calculated based on the transactions that are recorded on the Income and Expenses sheets and allocated to accounts in the Account Number columns.
A119: Chart of Accounts
A121: The default chart of accounts on the TB sheet includes all the individual accounts that have been created in each of the default account groups. Account groups constitute the first 5 characters of the account number and the individual account numbers are represented by the next two characters in the account numbers. Each account group can therefore accommodate up to 100 account numbers (00 to 99).
A123: Note: The template has been designed based on a fixed account number format. All account numbers start with a two character code which identifies whether an account is an income statement account (IS) or a balance sheet account (BS) followed by a hyphen, the two-digit account group (as listed on the Groups sheet) and a two-digit account number. This default account number format should not be deviated from otherwise the template calculations may not be accurate.
A125: The template can be customized for your business by reviewing the accounts that are included for each account group (as per the Groups sheet), changing the account descriptions in column B (where required) and inserting additional accounts if the number of accounts that are provided for in the default chart of accounts are not sufficient.
A127: Additional accounts can be created on the TB sheet by inserting a new row, entering the appropriate account number, entering an account description and copying the formulas in columns E to H from one of the existing rows. We also recommend inserting the new row in the appropriate location based on the account number sequence (in an ascending order). The list boxes in the Account Number columns on the Income and Expenses sheets include the accounts in the same sequence as on the TB sheet - if account numbers are therefore not added in the correct order, it may be confusing when selecting accounts.
A129: Note: All new accounts need to be created within the existing account group structure (as per the Groups sheet) otherwise the template calculations may not be accurate and your balance sheet may not balance. New account groups can be created as per the Account Groups section of the instructions.
A131: Note: You can also delete any of the default accounts that are included in the chart of accounts on the TB sheet if they are not required for your business. Just be careful when doing so - if you have allocated transactions to an account and you subsequently delete it, it may cause errors and template imbalances!
A133: Note: The default chart of accounts includes two accounts that should not be deleted because they serve a specific purpose. The Cash Transfer Control account (BS-0799) should be used when recording transfers between bank accounts on the Expenses sheet. The Direct Costs Control account (IS-0299) is used when any of the cost of sales accounts which have been assigned to individual stock codes on the Stock sheet are invalid.
A135: Account Integration
A137: The template provides for including accounts as a group total or as individual accounts on the income statement, cash flow statement and balance sheet. If an account is integrated on an account group basis on the IS, CFS or BS sheets, the key in column A should contain the account group number followed by a "G". If an account is integrated on an individual account basis, the key in column A on the IS, CFS or BS sheets should be the full account number with no additional characters at the end.
A139: Note: If the accounts in an account group are integrated on an individual account number basis, you need to manually add all the individual accounts to the appropriate sheet in order to ensure that all accounts that are included in the appropriate account group are included on the appropriate sheet. If an individual account in the appropriate account group is omitted and transactions are allocated to it, the balance sheet may not balance.
A141: If you stick to the default account numbers and do not add any new accounts, you do not need to be concerned about the integration because all accounts will be included correctly. If you make changes to the account groups or account numbers, it is important to ensure that you have added account groups or accounts where necessary otherwise the template calculations may become inaccurate.
A143: We have therefore added an account status in column H on the TB sheet where it is necessary to check the integration of an account (not necessary for control accounts). This column can have any of the following statuses:
A144: ■ Group - individual account balances will be included as a group total on the income statement or balance sheet.
A145: ■ Account - individual account balances will be included on the income statement or balance sheet.
A146: ■ Error! - this status means that an account number has been created but no integration could be found for the new account number. You should check the account number format that you have entered and correct it if necessary. If the account number is correct, the error is probably the result of the account number not being included on the income statement or balance sheet.
A147: ■ Double! - this status means that an account number integration has been added for the account number on both the individual account number and account group basis. If the integration for an account group is set up in such a way that accounts are integrated individually, you cannot also integrate the accounts on a group basis because the affected account balances will be included twice. The template calculations will be inaccurate if there is double integration. If individual account integration is applied, all the individual accounts that form part of an account group need to be included individually on the income statement or balance sheet.
A149: Note: If any row on the TB sheet contains an error or double status, the appropriate cell will be highlighted in red until the error is fixed. These errors usually result in imbalances on the balance sheet and therefore need to be fixed before the template calculations will be accurate.
A151: Note: Only the Income and Expenses account groups (excluding interest, taxation, dividends & other income and expenses) are integrated on an individual account basis by default. If you therefore add additional accounts to these account groups or change any of the default account numbers in these sections, you will need to manually make the same changes to the appropriate items on the IS sheet.
A153: Note: If you need to add a line to any section of the income statement or balance sheet, insert a new row in the appropriate location, copy the formulas in all columns from one of the existing rows and change the key in column A to the appropriate full account number. The calculations will be updated automatically and the error on the TB sheet in the Status column should be resolved.
A155: Control Accounts
A157: Control accounts are accounts that have a specific purpose in the context of the template design and can therefore not be edited or selected for the allocation of transactions. These accounts are automatically calculated based on the transactions that are recorded on the Income & Expenses sheets and are included individually on the balance sheet and cash flow statement. This is also why all the control accounts are included in a separate section below the other accounts on the TB sheet.
A159: Note: Control accounts include all the individual bank accounts, an inventory account, a trade debtors account, trade creditors account and a retained earnings account. These accounts are integral to the proper functioning of the template and should not be amended in any way (aside from adding additional bank accounts if required).
A161: Opening Balances
A163: If you are using the template for an existing business, you will need to enter the appropriate balance sheet opening balances as at the end of the year before the first financial year that is included in the template (as specified on the Setup sheet) in column C on the TB sheet. The template can only be used for full financial years and opening balances can therefore only be entered for balance sheet accounts.
A165: If you switch to our accounting template during the financial year, you need to enter the balance sheet accounts opening balances for the previous financial year as the template opening balances in column C on the TB sheet and record all transactions from the first day of the financial year on the Income and Expenses sheets.
A167: Note: The balance sheet opening balances should be based on a trial balance produced in your previous accounting solution as at the end of the financial year immediately before the first financial year that is included in the template. After entering all the opening balances, you also need to make sure that the total at the bottom of the TB sheet is nil otherwise your balance sheet will not balance.
A169: Note: The opening balances of all asset accounts should be entered as positive values and the opening balances of all liability & equity accounts should be entered as negative values. This should be exactly as they are reflected on the trial balance in your previous accounting software.
A171: All the opening balances that need to be entered on the TB sheet contain yellow cell backgrounds. The opening balances for the individual bank balances, the inventory line, the trade debtors line and the trade creditors line in the Control Accounts section however contain light blue cell backgrounds. This is because the subsequent movement in these opening balances will have an effect on the cash flow during the first financial period that is included in the template. These opening balances should therefore be entered on the Stock, Income or Expenses sheets and will be calculated automatically on the TB sheet based on the formulas which have been included in column C.
A173: Note: The total of all opening balances in column C on the TB sheet should still be nil and the formulas in the cells with light blue column headings in the control accounts section should not be amended or replaced by values otherwise the template calculations will be inaccurate. If the total in column C is not nil, it is not as a result of any formula but as a result of opening balances not being entered correctly. DO NOT change any of the formulas in the cells with light blue cell backgrounds!
A175: The opening balance for each of the bank codes that are included on the Setup sheet should be entered on the Income sheet as positive values. The month-end date of the month that precedes the first financial year which is specified on the Setup sheet should be entered in the invoice/document date and payment date columns. This approach will ensure that the opening bank balances are calculated correctly on the TB sheet.
A177: Example: If the opening B1 bank balance is $5,000 and the first day of the financial year is 1 March, an opening bank balance transaction needs to be recorded on the Income sheet with an inclusive invoice amount of $5,000, a document date & payment date of 28 February, an exempt sales tax code (with a zero sales tax percentage), a bank code of B1 and a payment amount of $5,000. This balance will then be included automatically as the opening B1 bank balance in column C on the TB sheet.
A179: The opening stock quantities and costs should be entered in the Startup columns on the Stock sheet. The opening stock valuation is automatically calculated based on the quantities and costs that are entered for each individual stock code and included on the TB sheet as the inventory control account opening balance.
A181: The opening trade debtors balance should also be entered on the Income sheet. You can enter the total in one row or enter the outstanding invoices individually (we recommend the latter because all outstanding invoices may not be paid on the same date). The invoice date that is entered in column B should be before the first day of the first financial year that is specified on the Setup sheet and the payment date should be the actual payment date (which will obviously be after the first day of the first financial year that is included in the template because the invoice is outstanding at the beginning of the first financial year).
A183: Example: If the year-end is February and the opening trade debtor balance at 28 February of the year before the first financial year which is included in the template consists of two invoices, enter the actual invoice dates in the Invoice Date column (invoices should be dated on or before 28 February). The payment date can be left blank until the invoices are paid and the actual date when the payment is received should be entered in the Payment Date column with the actual payment amount in the Payment Amount column. The opening trade debtor balance will then automatically be calculated and included on the TB sheet.
A185: The opening trade creditors balance should be entered on the Expenses sheet (as a positive amount). You can enter the total in one row or enter the outstanding invoices individually (we recommend the latter because all outstanding invoices may not be paid on the same date and will also probably be paid to different suppliers). The document date should be before the first day of the first financial year that is included in the template (as per the Setup sheet) and the payment date should be left blank until the appropriate supplier has been paid.
A187: Example: If the opening trade creditor balance at 1 March consists of two invoices, enter the actual invoice dates in the Document Date column (the invoices should be dated on or before 28 February). The payment date column can be left blank until the invoices are paid and the actual date when the invoices are paid then needs to be entered in the Payment Date column. The opening trade creditors balance will then be calculated automatically and included on the TB sheet as a negative amount because trade creditors are liabilities.
A189: Note: If the opening balances for trade debtors or trade creditors relate to stock items, the stock codes need to be left out because the opening stock quantities on hand are already included on the Stock sheet and including stock quantities with your trade debtors or trade creditors opening balances would change these start-up quantities.
A191: Note: When recording opening balances for bank accounts, trade debtors and trade creditors on the Income and Expenses sheets, we recommend assigning these entries to a balance sheet account and using a sales tax code which does not result in the calculation of sales tax (code E in the standard template). Any balance sheet account can be used but we recommend using account BS-0799 which is the Cash Transfer Control account.
A193: Trial Balance
A195: The TB sheet effectively combines the chart of accounts and trial balance features. The trial balance consists of the opening balances at the start of the reporting period (which is specified on the Setup sheet), the account movement for the appropriate financial year and the closing balance at the end of the selected monthly period during the current financial year. All of these trial balance calculations are automatically calculated and included in columns E to G on the TB sheet.
A197: Note: The closing balances in column G are calculated based on the monthly period which is selected at the top of the sheet in the cell with the yellow cell background. If the reporting year on the Setup sheet is amended in such a way that the selected monthly period does not fall within the current financial year, this cell will be highlighted in red. You then need to select a valid month in order for the red highlighting to be removed.
A199: The monthly periods that are available for selection are the same as the monthly periods that are included on the monthly income statement, cash flow statement and balance sheet. You are therefore able to view a trial balance for any of the monthly periods in the current financial year by simply selecting the appropriate monthly period from the list box at the top of column G.
A201: A trail balance for any previous financial period which has been included in the template can also be viewed by simply changing the reporting year on the Setup sheet and then selecting the appropriate monthly period from the list box at the top of column G on the TB sheet.
A203: Adding new bank accounts
A205: The template includes five default bank codes but you can add an unlimited number of additional bank codes (or accounts) by adding the appropriate bank account codes & descriptions to the Setup sheet. The new bank codes then also need to be added manually to the control accounts section on the TB sheet.
A207: This is actually a very simple exercise - simply insert the required number of new rows anywhere between the existing bank accounts in the control account section and copy the entire row from one of the existing bank account rows. All the formulas are automatically calculated & updated with the correct bank codes.
A209: Note: Also remember that opening balances for all bank accounts need to be recorded on the Income sheet. If you add additional bank accounts to the TB sheet, the opening balances also need to be added to the Income sheet.
A211: Customer Accounts
A213: The Customers sheet can be used to create unique customer codes and enter the billing details of all customers. The customer codes created on the Customers sheet are included in a list box in the Customer column on the Income sheet. We recommend using an abbreviated version of the customer name when creating customer codes because you will not need to refer back to the Customers sheet in order to select the appropriate customer code when recording transactions on the Income sheet.
A215: Note: All the columns on the Customers sheet have been included in an Excel table. This feature is extremely useful when entering data in a table format because the formulas that are included in the calculated columns (the columns with light blue column headings) are automatically copied when new rows are inserted into the table or when data is entered into the first blank row below the table. You can therefore add a new customer code by simply entering a new code in column A - the table will then automatically extend to include the new customer code.
A217: The other user input columns on the Customers sheet consist of the billing name, billing address and the customer's sales tax reference number. These details are included on the invoice and customer statement by linking the customer details on the Customers sheet to the customer code which is selected on the Income sheet.
A219: Note: You are required to select a customer code when recording all income transactions. If you therefore have a lot of cash customers, it may be pointless to create individual customer codes for all of these customers. We therefore recommend setting up a default customer code that can be used when entering any transaction where a customer code is not required. The customer information that is entered for this code on the Customers sheet will however be included on the tax invoices for the transactions that are allocated to the default customer code. The customer information should therefore be left blank if you don't want to include it on the tax invoice or you can include a general description like "Cash" instead.
A221: Note: The Income sheet contains invoices and all other receipt transactions. For some of these transactions there may not be a specific customer and you may therefore want to create a default customer code that can be used to record all transactions where an individual customer code may not be applicable.
A223: The Customers sheet also contains a number of calculated columns that contain formulas which are automatically copied when adding new customer codes to the sheet. These columns contain a calculation of the outstanding balances of customers which can be calculated for any user defined date by simply entering the appropriate balance date at the top of the sheet.
A225: The sheet also contains an ageing of the outstanding customer balances. The ageing on this sheet is calculated based on calendar months and also based on the balance date that is specified. If no balance date is specified, the current system date is used.
A227: Stock
A229: The Stock sheet can be used to create unique stock codes for all stock items and to enter a description and unit of measure (UOM) for each stock item. The stock codes that are created on the Stock sheet are included in a list box in the Stock Code columns on the Income and Expenses sheets. We recommend using alpha numeric stock codes which start with a letter followed by at least four numbers for all stock codes.
A231: Note: All the columns on the Stock sheet have been included in an Excel table. This feature is extremely useful when entering data in a table format because the formulas that are included in the calculated columns (the columns with light blue column headings) are automatically copied when new rows are inserted into the table or when data is entered into the first blank row below the table. You can therefore add a new stock code by simply entering a new code in column A - the table will then automatically extend to include the new stock code.
A233: The unit of measure (UOM) column can be used to specify the unit of measure for each stock item. Examples are units, kilograms, litres, bags, drums, etc. It is important that the quantity and selling price or inclusive invoice value on the Income and Expenses sheets are entered in the same unit of measure otherwise the cost calculations may not be accurate.
A235: You are also required to specify the cost of sales account for each stock item. The account that is specified in this column determines into which cost of sales line the stock item will be included on the income statement. Only accounts that are included in the IS-02 account group for cost of sales should be included in this column. If you include any account which is not part of this account group, the appropriate cost of sales account entries will be reallocated to the IS-0299 direct costs account.
A237: Note: The IS-0299 direct costs account is an important default account for inventory entries and should therefore not be removed from the chart of accounts on the TB sheet even if you do not need to record any direct costs as part of cost of sales.
A239: If you are using the template for an existing business, you also need to include the opening stock quantities and costs on for all stock items on the Stock sheet in columns E and F. These quantities and costs are used to calculate the opening stock valuation in column J which is included on the trial balance as the template opening balance for the inventory control account.
A241: Note: The opening stock balances which need to be included in the Startup columns on the Stock sheet should be the quantities and costs as at the end of the financial year before the first financial year that is included in the template. When you select the first financial year on the Setup sheet, the first day of the appropriate financial year is displayed next to the year selection - the opening stock quantities and costs should basically be the balances that are on hand at the start of that day.
A243: Inventory Valuation & Movement
A245: The Stock sheet also includes a number of calculated columns with light blue column headings. The first three calculated columns reflect the inventory valuation, unit cost and quantity on hand. All three of these columns are based on the "To Date" which is specified at the top of the sheet. You can therefore determine the inventory valuation at the end of any user defined date by entering the appropriate date in the "To Date" input cell at the top of the sheet.
A247: All the calculated columns after the Startup Valuation column represent inventory movements for the user defined period which is defined by entering the appropriate "From Date" and "To Date" at the top of the sheet. These columns are reflected both in quantity and value terms and also include calculations of gross profit amounts and percentages. You can therefore display inventory movements for any user defined date range by specifying the appropriate date range at the top of the Stock sheet.
A249: Note: We have also included a GP sheet in the template which makes it easy to analyse monthly gross profit percentages and stock quantities on hand for any individual stock code.
A251: Recording Sales & Purchases
A253: All stock sales & purchases should be recorded on the Income and Expenses sheets by selecting the appropriate stock code from the list boxes in the Stock Code columns. These sheets also accommodate entering non-stock related income and expenses - the difference between a stock and non-stock entry is simply that a stock code needs to be selected when entering stock related entries and the stock code needs to be left blank if the transaction does not relate to inventory.
A255: All the stock codes that are added to the Stock sheet will be available for selection. If a stock code that is included in the Stock Code columns is not a valid stock code, an error will be reflected in the Error Code column. Only valid codes will be included in the list boxes but invalid codes may be encountered when copying data into the Stock Code columns or deleting or changing stock codes on the Stock sheet which were previously used for the allocation of transactions on the Income or Expenses sheets.
A257: All stock sales need to be recorded on the Income sheet by selecting the appropriate stock code and entering a quantity and selling price per unit. The selling prices can be entered inclusive or exclusive of sales tax depending on the selection in the Sales Tax section on the Setup sheet. All sales transactions need to be allocated to the appropriate sales account which forms part of the IS-10 account group. The cost of sales account that will be used for transaction is determined by the account which is specified for the appropriate stock item on the Stock sheet.
A259: All stock purchases need to be recorded on the Expenses sheet by selecting the appropriate stock code and entering a quantity and tax inclusive invoice amount. Note that the method of entering purchases therefore differs from the method of entering sales in that you do not enter a purchase price but the full tax inclusive value on the supplier's invoice. This method is used to ensure that supplier invoices agree to payment amounts.
A261: Recording Stock Adjustments
A263: Stock adjustments as a result of a stock takes or other reasons need to be entered on the Income sheet by entering the quantities and entering a zero selling price. This will ensure that the stock adjustments are removed from the stock on hand and allocated to cost of sales on the income statement which results in the stock effectively being written off. A general customer code can be used for these transactions and they can be allocated to the appropriate sales accounts because the sales values will be nil.
A265: Recording Direct Costs
A267: The template also accommodates recording direct costs with the option of including these costs in the inventory valuation & cost of sales or including them as a separate line item under cost of sales in the income statement. An example of direct costs which you may want to include in inventory valuations and cost of sales is transport costs.
A269: Direct costs need to be added to the Expenses sheet as separate line items and the treatment of these costs is determined by whether a stock code is selected or not. If you select a stock code, the costs that are entered will be added to your inventory costs and included in cost of sales. It is important to note that a zero quantity needs to be entered because the increase in stock quantities will have been recorded when the initial stock purchase transaction was recorded. If a quantity is entered, the stock on hand will therefore be inflated. The inclusive amount of the direct costs which are entered is however added to the stock valuation and will therefore also form part of any subsequent cost of sales transactions.
A271: If direct costs should not be added to stock items, you do not need to select a stock code and the transaction can simply be allocated to the IS-0299 direct cost control account which is included as a separate line item under cost of sales on the income statement. The direct costs will therefore not form part of the cost of sales and margin calculations of individual stock items but will still form part of the overall cost of sales and margin calculations as per the income statement.
A273: Recording of credit notes & supplier claims
A275: Credit notes and supplier claims are recorded in exactly the same way as stock sales or purchases but the values that are entered in the selling price or tax inclusive amount columns on the Income or Expenses sheets should be negative values.
A277: Stock codes should be selected if the credit note or claim has a stock effect. If the credit note or claim is price related and therefore does not have a stock effect, no stock code should be selected, the quantity entered should be zero and you simply need to select the appropriate account for allocation of the transaction. These non-stock entries are therefore entered in the same way as any non-stock transaction.
A279: Average Costing
A281: The templates automatically calculates the unit costs of all stock on hand and cost of sales values based on an average costing system. When stock purchases are recorded, the stock items purchased are automatically added to the inventory valuation based on the actual purchase prices. When stock sales are recorded, the calculation is a bit more complicated.
A283: For stock sales purposes, stock items are valued based on the quantity on hand at the time of the sale and the cost of sales value of all previous sales. What this effectively comes down to is that the average cost for stock valuation purposes is not calculated based on all previous stock purchases and sales but based only on the stock quantity on hand at the time of the next stock purchase. This method of valuation is therefore a much closer reflection of actual costs than valuing stock on overall average costs would be!
A285: Note: The average cost calculation as described above is the only method of valuation which is practical for the purpose of this template and cannot be changed to any other basis. We will not be able to customize the template for any other basis like first-in-first-out (FIFO) or last-in-first-out (LIFO) which requires the use of a database in order to ensure accurate calculations. You will however find that our average cost approach is a quite accurate approach especially for businesses which have a reasonably high rate of stock turnover.
A287: Example: You purchase 1,000 units of a stock item at $1 per item, sell 800 units and then purchase another 1,000 units at $2 per unit. Some users' understanding of average cost would be that stock and cost of sales would be valued at $1.50 per unit ($3,000 divided by 2,000 units). This is however not the case. The cost of sales of the 800 units sold would be $800 which means that the value of the remaining stock would be $200. When the subsequent purchase of another 1,000 units occurs, the stock on hand would be 1,200 units at a cost of $2,200 which means that the average cost per unit would be $1.83. The average cost valuation is therefore only affected by previous purchases to the extent of the stock that is still on hand.
A289: Inaccuracies
A291: If you enter a sales transaction on the Income sheet and there is not sufficient stock on hand based on the quantity that you have entered, the cost of sales amount may be inaccurate. This is especially the case where there is no stock on hand for a particular stock item and a sale is recorded because the cost of sales amount will be nil as a result of zero stock on hand.
A293: These types of inaccuracies are usually the result of previous transactions that have been recorded incorrectly or not recorded at all for the affected stock item. There is no quick fix in such circumstances - you need to review all previous transactions for the particular stock code and fix the entries or omissions which resulted in the inaccurate calculation of stock on hand.
A295: Note: We have included an error code on the Income sheet which highlights transactions that are recorded with insufficient stock on hand. If you therefore see error code E6 in the Error Code column, it indicates that your stock on hand is inaccurate and needs to be investigated.
A297: Recording Transactions - Income
A299: All income and other receipt transactions should be recorded on the Income sheet. User input is only required in the columns with yellow column headings. All the columns with light blue column headings contain formulas which are automatically copied when adding new transactions to the sheet.
A301: Note: All the columns on the Income sheet have been included in an Excel table. This feature is extremely useful when entering data in a table format because the formulas that are included in calculated columns (the columns with light blue column headings) are automatically copied when new rows are inserted into the table or when data is entered into the first blank row below the table. You can therefore enter a new transaction by simply entering an invoice number in column A - the table will then automatically extend to include the new transaction.
A303: The Income sheet contains the following user input columns:
A304: Invoice Number - enter your invoice number or the appropriate transaction reference for cash receipt transactions. This column should always contain a value - if you do not issue document numbers for all your invoices & receipts, any unique transaction reference can be used.
A305: Invoice Date - enter the date of the tax invoice or the bank statement date for cash receipt transactions. We've added data validation to this column to ensure that only valid dates are entered - you therefore need to ensure that you enter dates in accordance with the regional date settings that are specified in the System Control Panel.
A306: Customer - select a customer code from the drop-down list in this column. All customer codes that have been added to the Customers sheet will be available for selection. A generic customer code can be added to the Customers sheet and used for all transactions where a customer code is not applicable.
A307: Stock Code - select a stock code from the drop-down list in this column if the transaction that you are recording is stock related. If the transaction is not stock related, leave the cell blank. All stock codes that have been added to the Stock sheet will be available for selection.
A308: Description - enter a transaction description in this column.
A309: Quantity - if the transaction is stock related, enter the stock quantity in this column. If the transaction is not stock related, enter a nil value.
A310: Selling Price - if the transaction is stock related enter the selling price in this column. Stock transactions can be entered inclusive or exclusive of sales tax depending on your selection in the Sales Tax section of the Setup sheet. If your transaction is not stock related, enter the inclusive or exclusive invoice amount in this column.
A311: Tax 1 Code - this column contains a drop-down list which enables you to select one of the tax codes on to the Setup sheet and should be used for national or federal sales tax. The sales tax percentage applied to the transaction is determined based on the selected sales tax code. If your business is not registered for sales tax purposes, all transactions should be recorded by using a sales tax code with a zero percentage. If no sales tax code is selected, no sales tax will be calculated.
A312: Tax 2 Code - this column contains a drop-down list which enables you to select one of the tax codes on to the Setup sheet and should be used for state sales tax. The sales tax percentage applied to the transaction is determined based on the selected sales tax code. If your business is not registered for sales tax purposes, all transactions should be recorded by using a sales tax code with a zero percentage. If no sales tax code is selected, no sales tax will be calculated.
A313: Bank Code - this column contains a drop-down list which includes all the bank codes that have been added to the Setup sheet. Select the bank code of the bank account that will be affected by the particular transaction. Note that it is imperative that a bank code is assigned to each transaction.
A314: Account Number - the drop-down list in this column contains all the account codes (and descriptions) that have been created on the TB sheet. You therefore need to create the appropriate account on the TB sheet before transactions can be allocated to the account. An account number should be selected for every transaction otherwise template imbalances may be encountered.
A315: Payment Amount - when a customer pays an invoice, the payment amount should be entered into this column.
A316: Payment Date - enter the actual payment date in this column. The date that should be entered in this column should be the date on which the payment was received from the customer. The payment date and payment amount should be left blank if payment has not been received from the customer - the outstanding amount will then be included in trade debtors. Note that the payment date should always be greater than or equal to the invoice date.
A318: The Income sheet contains the following calculated columns:
A319: Inclusive Amount - this column is based on the quantities and selling prices that are entered by the user. The inclusive amount is calculated based on the selection on the Setup sheet in the Sales Tax section.
A320: Exclusive Amount - the formula in this column deducts the sales tax amount from the inclusive invoice amount in order to calculate an amount excluding sales tax. For accounting purposes, the exclusive amounts are allocated to the income statement, the sales tax amounts are allocated to the sales tax control account and the inclusive amounts are allocated to trade debtors or bank (depending on whether the amounts have been paid or not).
A321: Sales Tax 1 Amount - this column contains a formula which calculates the national or federal sales tax amount based on the tax code selected in column H. Sales tax will only be calculated if a sales tax code has been selected in column H. The calculation is based on the sales tax percentages specified on the Setup sheet.
A322: Sales Tax 1 Amount - this column contains a formula which calculates the state sales tax amount based on the tax code selected in column I. Sales tax will only be calculated if a sales tax code has been selected in column I. The calculation is based on the sales tax percentages specified on the Setup sheet.
A323: Outstanding Balance - if an invoice has not been paid in full, the outstanding balance will be reflected in this column. The outstanding balance is determined based on the balance date that is entered in cell R2 at the top of the sheet. If the balance date contains no value, the current system date will be used to determine which invoices are currently outstanding. You can therefore use the balance date input cell to calculate the trade debtors balance as at any user defined date.
A324: Transaction Type - this column will reflect "STOCK" if the transaction is stock related and nothing if the transaction is not stock related.
A325: Previous Quantity - if the transaction is stock related, the quantity on hand before taking the quantity entered for the transaction into account will be reflected in this column. Note that if there is no stock on hand and a sale is recorded, the cost of sales value would be nil because there cannot be cost related to no stock on hand. An insufficient stock error will then be reflected in the Error Code column.
A326: Previous Cost - if the transaction is stock related, the unit cost before taking the transaction into account will be included in this column.
A327: Transaction Cost - if the transaction is stock related, the cost of the transaction will be included in this column. The cost is calculated by multiplying the quantity entered and the previous cost on hand.
A328: Cost of Sales Amount - if the transaction is stock related, the cost of sales amount will be included in this column. The cost of sales amount will be the same as the transaction cost for all stock related transactions.
A329: Gross Profit Amount - if the transaction is stock related, the gross profit amount is calculated by deducting the cost of sales amount from the tax exclusive sales amount.
A330: Gross Profit Percentage - the gross profit percentage is calculated by dividing the gross profit amount by the tax exclusive sales amount. If the transaction is not stock related, a zero percentage will be reflected.
A331: Cost of Sales Account - the cost of sales account is determined based on the account linked to each stock code on the Stock sheet. If no account has been linked to a particular stock code or an account has been linked which is not part of the cost of sales (IS-02) account group, the direct costs control account (IS-0299) will be included instead of the user input on the Stock sheet.
A332: Unique Invoice Date - this column converts the invoice date in column B to a unique invoice date which uses the row number as a time of day.
A333: Unique INV - the formula in this column is used to determine whether the invoice number is unique. Invoices can be entered in multiple lines and this formula is used to prevent the duplication of the calculation of outstanding invoice balances.
A334: ST1 - the formula in this column is used to identify the appropriate list of outstanding invoices which needs to be included on the customer statement.
A335: Error Code - this column will contain an error code if there is a problem with the input in any of the previous columns. All the error codes that are displayed in this column should therefore be corrected in order to ensure that all the template calculations remain accurate. Refer to the Error Codes section of these instructions for more information about the reasons for an error code and how to resolve it.
A337: Note: The drop-down lists in the Account Number column contains both the account number and description but only the account number should be selected when allocating transactions. Excel doesn't actually allow the inclusion of two columns in a drop-down list but we have implemented a work around to provide the account description together with the account number in the drop-down list. The disadvantage of this work around is that you will not be able to enter account numbers - you either need to select the account number from the list or copy a similar transaction that you have entered before. The column will also contain an error indicator which refers to a data validation error - this is to be expected because of the work around that we implemented and can safely be ignored.
A339: All the transactions that are entered on the Income sheet are automatically updated to the other sheets in this template. It is therefore imperative that all transactions are entered according to the guidance that is outlined in this section of the instructions otherwise it could result in imbalances in the template.
... 162 more rows

Sheet Setup (hidden)
A1: =IF(ISBLANK($C$5),"Example Limited",$C$5) -> Example (Pty) Limited
A2: Setup
A3: © www.excel-skills.com
A4: Business Details
A5: Business Name | C5: Example (Pty) Limited
A6: Business Address | C6: Building Name, Street Address, Suburb, City, 9999
A7: Contact Number | C7: +27 21 999 9999
A8: Fax Number | C8: +27 21 999 0000
A9: Website | C9: www.example.com
A10: E-mail | C10: info@example.com
A11: Sales Tax Number | C11: 9999 999 9999
A12: Registration Number | C12: 2011 000000 00
A14: Report Setup
D15: First Day:
A16: First Financial Year * | C16: 2021 | D16: =IF(ISBLANK(C16),IF(MONTH(TODAY())>MONTH($C$20),DATE(YEAR(TODAY()),MONTH($C$20)+1,1),DATE(YEAR(TODAY())-1,MONTH($C$20)+1,1)),DATE(C16-1,MONTH($C$20)+1,1)) -> 2020-03-01 | E16: * Should be set once when you start using the template
D17: First Day:
A18: Reporting Year ** | C18: 2021 | D18: =IF(ISBLANK(C18),IF(MONTH(TODAY())>MONTH($C$20),DATE(YEAR(TODAY()),MONTH($C$20)+1,1),DATE(YEAR(TODAY())-1,MONTH($C$20)+1,1)),DATE(C18-1,MONTH($C$20)+1,1)) -> 2020-03-01 | E18: ** Change annually to roll reporting periods forward or back
A20: Year End Month | C20: 2018-02-01
A22: Sales Tax
A23: Code | B23: Description | D23: Percentage
A24: A | B24: Standard Sales Tax 1 | D24: 0.15
A25: B | B25: Standard Sales Tax 2 | D25: 0
A26: C | B26: Standard Sales Tax 3 | D26: 0.1
A27: E | B27: Exempt | D27: 0
A28: Z | B28: Zero Rated | D28: 0
A29: End of list
A31: Selling Price Input | C31: Exclusive | D31: =IF(ISBLANK(C31),"Inclusive",C31) -> Exclusive
A33: Bank Accounts
A34: Code | B34: Description | D34: TB Status | E34: BS Status
A35: B1 | B35: B1 Bank Account | D35: =IF(ISNA(MATCH($A35,TB!$H$76:$H$87,0)),"add!","ok") -> ok | E35: =IF(ISNA(MATCH("BS-B"&$A35,BS!$A$4:$A$25,0)),"add!","ok") -> ok
A36: B2 | B36: B2 Bank Account | D36: =IF(ISNA(MATCH($A36,TB!$H$76:$H$87,0)),"add!","ok") -> ok | E36: =IF(ISNA(MATCH("BS-B"&$A36,BS!$A$4:$A$25,0)),"add!","ok") -> ok
A37: B3 | B37: B3 Bank Account | D37: =IF(ISNA(MATCH($A37,TB!$H$76:$H$87,0)),"add!","ok") -> ok | E37: =IF(ISNA(MATCH("BS-B"&$A37,BS!$A$4:$A$25,0)),"add!","ok") -> ok
A38: PC | B38: PC Petty Cash | D38: =IF(ISNA(MATCH($A38,TB!$H$76:$H$87,0)),"add!","ok") -> ok | E38: =IF(ISNA(MATCH("BS-B"&$A38,BS!$A$4:$A$25,0)),"add!","ok") -> ok
A39: JC | B39: GL Journal Control | D39: =IF(ISNA(MATCH($A39,TB!$H$76:$H$87,0)),"add!","ok") -> ok | E39: =IF(ISNA(MATCH("BS-B"&$A39,BS!$A$4:$A$25,0)),"add!","ok") -> ok
A40: End of list
A42: Banking Details
A43: Bank Name | C43: Example Bank
A44: Account Type | C44: Current Account
A45: Bank Code | C45: 999-999
A46: Account Number | C46: 1111 999 888
A47: Text | C47: Please use your customer code as your payment reference.
A49: Input Error Codes
A50: Code | B50: Reason
A51: E1 | B51: Payment date is before the invoice / document date
A52: E2 | B52: Account number is invalid
A53: E3 | B53: Bank code is invalid
A54: E4 | B54: Customer code is invalid
A55: E5 | B55: Stock code is invalid
A56: E6 | B56: Insufficient stock
B57: =DATE(YEAR(TODAY()),1,1) -> 2021-01-01
B58: =DATE(YEAR(TODAY()),2,1) -> 2021-02-01
B59: =DATE(YEAR(TODAY()),3,1) -> 2021-03-01
B60: =DATE(YEAR(TODAY()),4,1) -> 2021-04-01
B61: =DATE(YEAR(TODAY()),5,1) -> 2021-05-01
B62: =DATE(YEAR(TODAY()),6,1) -> 2021-06-01
B63: =DATE(YEAR(TODAY()),7,1) -> 2021-07-01
B64: =DATE(YEAR(TODAY()),8,1) -> 2021-08-01
B65: =DATE(YEAR(TODAY()),9,1) -> 2021-09-01
B66: =DATE(YEAR(TODAY()),10,1) -> 2021-10-01
B67: =DATE(YEAR(TODAY()),11,1) -> 2021-11-01
B68: =DATE(YEAR(TODAY()),12,1) -> 2021-12-01

Sheet Groups (hidden)
A1: =IF(ISBLANK(Setup!$C$5),"Example Limited",Setup!$C$5) -> Example (Pty) Limited
A2: Account Group Setup
A3: © www.excel-skills.com
A4: Group Key | B4: Group Description
A5: BS-00 | B5: Property, Plant & Equipment - Cost
A6: BS-01 | B6: Property, Plant & Equipment - Accum Dep
A7: BS-02 | B7: Intangible Assets - Cost
A8: BS-03 | B8: Intangible Assets - Amortization
A9: BS-04 | B9: Investments
A10: BS-05 | B10: Loans & Advances
A11: BS-07 | B11: Cash On Hand
A12: BS-09 | B12: Other Debtors
A13: BS-13 | B13: Accruals
A14: BS-14 | B14: Dividends Payable
A15: BS-15 | B15: Provision for Taxation
A16: BS-16 | B16: Other Provisions
A17: BS-17 | B17: Sales Tax
A18: BS-18 | B18: Long Term Liabilities
A19: BS-19 | B19: Reserves
A20: BS-20 | B20: Shareholders' Contributions
A21: IS-01 | B21: Turnover
A22: IS-02 | B22: Cost of Sales
A23: IS-03 | B23: Operating Expenses
A24: IS-04 | B24: Staff Costs
A25: IS-05 | B25: Depreciation & Amortization
A26: IS-06 | B26: Interest Paid
A27: IS-07 | B27: Taxation Paid
A28: IS-08 | B28: Other Expenses
A29: IS-09 | B29: Other Income
A30: IS-10 | B30: Dividends Paid
A32: Control Accounts
A33: BS-B | B33: Bank Accounts
A34: BS-ST | B34: Inventory
A35: BS-RC | B35: Trade Debtors
A36: BS-PA | B36: Trade Creditors
A37: BS-RT | B37: Retained Earnings - Opening
A38: BS-IN | B38: Retained Earnings - Current

Sheet TB (hidden)
A1: =IF(ISBLANK(Setup!$C$5),"Example Limited",Setup!$C$5) -> Example (Pty) Limited
A2: Trial Balance & Chart of Accounts | E2: =IF(MONTH(Setup!$D$18)>MONTH(Setup!$C$20),DATE(YEAR(Setup!$D$18),MONTH(Setup!$C$20)+1,0),DATE(YEAR(Setup!$D$18)-1,MONTH(Setup!$C$20)+1,0)) -> 2020-02-29 | G2: =IF(MONTH($G$3)>MONTH(Setup!$C$20),DATE(YEAR($G$3),MONTH(Setup!$C$20)+1,0),DATE(YEAR($G$3)-1,MONTH(Setup!$C$20)+1,0)) -> 2020-02-29
A3: © www.excel-skills.com | C3: =DATE(YEAR(Setup!$D$16),MONTH(Setup!$D$16),0) -> 2020-02-29 | E3: =DATE(YEAR(Setup!$D$18),MONTH(Setup!$D$18),0) -> 2020-02-29 | G3: 2021-02-28
A4: Account Number | B4: Account Description | C4: Template: Opening Balance | E4: Trial Balance: Opening Balance | F4: Account Movement | G4: Trial Balance: Closing Balance | H4: Status
A5: BS-0005 | B5: Land & Buildings - Cost | C5: 0 | E5: =IF(LEFT($A5,2)="IS",-SUMIFS(IncExcl,IncDocDate,"<="&$E$3,IncDocDate,">"&$E$2,IncAccount,$A5)+SUMIFS(IncCOS,IncDocDate,"<="&$E$3,IncDocDate,">"&$E$2,IncAccountCOS,$A5)+SUMIFS(ExpExcl,ExpDocDate,"<="&$E$3,ExpDocDate,">"&$E$2,ExpAccount,$A5),$C5-SUMIFS(IncExcl,IncDocDate,"<="&$E$3,IncDocDate,">"&$C$3,IncAccount,$A5)+SUMIFS(ExpExcl,ExpDocDate,"<="&$E$3,ExpDocDate,">"&$C$3,ExpAccount,$A5)+IF($A5="BS-1700",-SUMIFS(IncTax1,IncDocDate,"<="&$E$3,IncDocDate,">"&$C$3)+SUMIFS(ExpTax1,ExpDocDate,"<="&$E$3,ExpDocDate,">"&$C$3),0)+IF($A5="BS-1710",-IF(IncTaxCount=2,SUMIFS(IncTax2,IncDocDate,"<="&$E$3,IncDocDate,">"&$C$3),0)+IF(ExpTaxCount=2,SUMIFS(ExpTax2,ExpDocDate,"<="&$E$3,ExpDocDate,">"&$C$3),0),0)) -> 0 | F5: =G5-E5 -> 0 | G5: =IF(LEFT($A5,2)="IS",-SUMIFS(IncExcl,IncDocDate,"<="&$G$3,IncDocDate,">"&$G$2,IncAccount,$A5)+SUMIFS(IncCOS,IncDocDate,"<="&$G$3,IncDocDate,">"&$G$2,IncAccountCOS,$A5)+SUMIFS(ExpExcl,ExpDocDate,"<="&$G$3,ExpDocDate,">"&$G$2,ExpAccount,$A5),$C5-SUMIFS(IncExcl,IncDocDate,"<="&$G$3,IncDocDate,">"&$C$3,IncAccount,$A5)+SUMIFS(ExpExcl,ExpDocDate,"<="&$G$3,ExpDocDate,">"&$C$3,ExpAccount,$A5)+IF($A5="BS-1700",-SUMIFS(IncTax1,IncDocDate,"<="&$G$3,IncDocDate,">"&$C$3)+SUMIFS(ExpTax1,ExpDocDate,"<="&$G$3,ExpDocDate,">"&$C$3),0)+IF($A5="BS-1710",-IF(IncTaxCount=2,SUMIFS(IncTax2,IncDocDate,"<="&$G$3,IncDocDate,">"&$C$3),0)+IF(ExpTaxCount=2,SUMIFS(ExpTax2,ExpDocDate,"<="&$G$3,ExpDocDate,">"&$C$3),0),0)) -> 0 | H5: =IF(LEFT($A5,2)="BS",IF(ISNA(MATCH(LEFT($A5,5)&"G",KeyBS,0)),IF(ISNA(MATCH($A5,KeyBS,0)),"Error!","Account"),IF(ISNA(MATCH($A5,KeyBS,0)),"Group","Double!")),IF(ISNA(MATCH(LEFT($A5,5)&"G",KeyIS,0)),IF(ISNA(MATCH($A5,KeyIS,0)),"Error!","Account"),IF(ISNA(MATCH($A5,KeyIS,0)),"Group","Double!"))) -> Group
A6: BS-0010 | B6: Plant & Equipment - Cost | C6: 0 | E6: =IF(LEFT($A6,2)="IS",-SUMIFS(IncExcl,IncDocDate,"<="&$E$3,IncDocDate,">"&$E$2,IncAccount,$A6)+SUMIFS(IncCOS,IncDocDate,"<="&$E$3,IncDocDate,">"&$E$2,IncAccountCOS,$A6)+SUMIFS(ExpExcl,ExpDocDate,"<="&$E$3,ExpDocDate,">"&$E$2,ExpAccount,$A6),$C6-SUMIFS(IncExcl,IncDocDate,"<="&$E$3,IncDocDate,">"&$C$3,IncAccount,$A6)+SUMIFS(ExpExcl,ExpDocDate,"<="&$E$3,ExpDocDate,">"&$C$3,ExpAccount,$A6)+IF($A6="BS-1700",-SUMIFS(IncTax1,IncDocDate,"<="&$E$3,IncDocDate,">"&$C$3)+SUMIFS(ExpTax1,ExpDocDate,"<="&$E$3,ExpDocDate,">"&$C$3),0)+IF($A6="BS-1710",-IF(IncTaxCount=2,SUMIFS(IncTax2,IncDocDate,"<="&$E$3,IncDocDate,">"&$C$3),0)+IF(ExpTaxCount=2,SUMIFS(ExpTax2,ExpDocDate,"<="&$E$3,ExpDocDate,">"&$C$3),0),0)) -> 0 | F6: =G6-E6 -> 0 | G6: =IF(LEFT($A6,2)="IS",-SUMIFS(IncExcl,IncDocDate,"<="&$G$3,IncDocDate,">"&$G$2,IncAccount,$A6)+SUMIFS(IncCOS,IncDocDate,"<="&$G$3,IncDocDate,">"&$G$2,IncAccountCOS,$A6)+SUMIFS(ExpExcl,ExpDocDate,"<="&$G$3,ExpDocDate,">"&$G$2,ExpAccount,$A6),$C6-SUMIFS(IncExcl,IncDocDate,"<="&$G$3,IncDocDate,">"&$C$3,IncAccount,$A6)+SUMIFS(ExpExcl,ExpDocDate,"<="&$G$3,ExpDocDate,">"&$C$3,ExpAccount,$A6)+IF($A6="BS-1700",-SUMIFS(IncTax1,IncDocDate,"<="&$G$3,IncDocDate,">"&$C$3)+SUMIFS(ExpTax1,ExpDocDate,"<="&$G$3,ExpDocDate,">"&$C$3),0)+IF($A6="BS-1710",-IF(IncTaxCount=2,SUMIFS(IncTax2,IncDocDate,"<="&$G$3,IncDocDate,">"&$C$3),0)+IF(ExpTaxCount=2,SUMIFS(ExpTax2,ExpDocDate,"<="&$G$3,ExpDocDate,">"&$C$3),0),0)) -> 0 | H6: Group
A7: BS-0015 | B7: Furniture & Fittings - Cost | C7: 120500 | E7: =IF(LEFT($A7,2)="IS",-SUMIFS(IncExcl,IncDocDate,"<="&$E$3,IncDocDate,">"&$E$2,IncAccount,$A7)+SUMIFS(IncCOS,IncDocDate,"<="&$E$3,IncDocDate,">"&$E$2,IncAccountCOS,$A7)+SUMIFS(ExpExcl,ExpDocDate,"<="&$E$3,ExpDocDate,">"&$E$2,ExpAccount,$A7),$C7-SUMIFS(IncExcl,IncDocDate,"<="&$E$3,IncDocDate,">"&$C$3,IncAccount,$A7)+SUMIFS(ExpExcl,ExpDocDate,"<="&$E$3,ExpDocDate,">"&$C$3,ExpAccount,$A7)+IF($A7="BS-1700",-SUMIFS(IncTax1,IncDocDate,"<="&$E$3,IncDocDate,">"&$C$3)+SUMIFS(ExpTax1,ExpDocDate,"<="&$E$3,ExpDocDate,">"&$C$3),0)+IF($A7="BS-1710",-IF(IncTaxCount=2,SUMIFS(IncTax2,IncDocDate,"<="&$E$3,IncDocDate,">"&$C$3),0)+IF(ExpTaxCount=2,SUMIFS(ExpTax2,ExpDocDate,"<="&$E$3,ExpDocDate,">"&$C$3),0),0)) -> 120500 | F7: 15450 | G7: =IF(LEFT($A7,2)="IS",-SUMIFS(IncExcl,IncDocDate,"<="&$G$3,IncDocDate,">"&$G$2,IncAccount,$A7)+SUMIFS(IncCOS,IncDocDate,"<="&$G$3,IncDocDate,">"&$G$2,IncAccountCOS,$A7)+SUMIFS(ExpExcl,ExpDocDate,"<="&$G$3,ExpDocDate,">"&$G$2,ExpAccount,$A7),$C7-SUMIFS(IncExcl,IncDocDate,"<="&$G$3,IncDocDate,">"&$C$3,IncAccount,$A7)+SUMIFS(ExpExcl,ExpDocDate,"<="&$G$3,ExpDocDate,">"&$C$3,ExpAccount,$A7)+IF($A7="BS-1700",-SUMIFS(IncTax1,IncDocDate,"<="&$G$3,IncDocDate,">"&$C$3)+SUMIFS(ExpTax1,ExpDocDate,"<="&$G$3,ExpDocDate,">"&$C$3),0)+IF($A7="BS-1710",-IF(IncTaxCount=2,SUMIFS(IncTax2,IncDocDate,"<="&$G$3,IncDocDate,">"&$C$3),0)+IF(ExpTaxCount=2,SUMIFS(ExpTax2,ExpDocDate,"<="&$G$3,ExpDocDate,">"&$C$3),0),0)) -> 135950 | H7: Group
A8: BS-0020 | B8: Office Equipment - Cost | C8: 63250 | E8: =IF(LEFT($A8,2)="IS",-SUMIFS(IncExcl,IncDocDate,"<="&$E$3,IncDocDate,">"&$E$2,IncAccount,$A8)+SUMIFS(IncCOS,IncDocDate,"<="&$E$3,IncDocDate,">"&$E$2,IncAccountCOS,$A8)+SUMIFS(ExpExcl,ExpDocDate,"<="&$E$3,ExpDocDate,">"&$E$2,ExpAccount,$A8),$C8-SUMIFS(IncExcl,IncDocDate,"<="&$E$3,IncDocDate,">"&$C$3,IncAccount,$A8)+SUMIFS(ExpExcl,ExpDocDate,"<="&$E$3,ExpDocDate,">"&$C$3,ExpAccount,$A8)+IF($A8="BS-1700",-SUMIFS(IncTax1,IncDocDate,"<="&$E$3,IncDocDate,">"&$C$3)+SUMIFS(ExpTax1,ExpDocDate,"<="&$E$3,ExpDocDate,">"&$C$3),0)+IF($A8="BS-1710",-IF(IncTaxCount=2,SUMIFS(IncTax2,IncDocDate,"<="&$E$3,IncDocDate,">"&$C$3),0)+IF(ExpTaxCount=2,SUMIFS(ExpTax2,ExpDocDate,"<="&$E$3,ExpDocDate,">"&$C$3),0),0)) -> 63250 | F8: 10200 | G8: =IF(LEFT($A8,2)="IS",-SUMIFS(IncExcl,IncDocDate,"<="&$G$3,IncDocDate,">"&$G$2,IncAccount,$A8)+SUMIFS(IncCOS,IncDocDate,"<="&$G$3,IncDocDate,">"&$G$2,IncAccountCOS,$A8)+SUMIFS(ExpExcl,ExpDocDate,"<="&$G$3,ExpDocDate,">"&$G$2,ExpAccount,$A8),$C8-SUMIFS(IncExcl,IncDocDate,"<="&$G$3,IncDocDate,">"&$C$3,IncAccount,$A8)+SUMIFS(ExpExcl,ExpDocDate,"<="&$G$3,ExpDocDate,">"&$C$3,ExpAccount,$A8)+IF($A8="BS-1700",-SUMIFS(IncTax1,IncDocDate,"<="&$G$3,IncDocDate,">"&$C$3)+SUMIFS(ExpTax1,ExpDocDate,"<="&$G$3,ExpDocDate,">"&$C$3),0)+IF($A8="BS-1710",-IF(IncTaxCount=2,SUMIFS(IncTax2,IncDocDate,"<="&$G$3,IncDocDate,">"&$C$3),0)+IF(ExpTaxCount=2,SUMIFS(ExpTax2,ExpDocDate,"<="&$G$3,ExpDocDate,">"&$C$3),0),0)) -> 73450 | H8: Group
A9: BS-0025 | B9: Computer Equipment - Cost | C9: 0 | E9: =IF(LEFT($A9,2)="IS",-SUMIFS(IncExcl,IncDocDate,"<="&$E$3,IncDocDate,">"&$E$2,IncAccount,$A9)+SUMIFS(IncCOS,IncDocDate,"<="&$E$3,IncDocDate,">"&$E$2,IncAccountCOS,$A9)+SUMIFS(ExpExcl,ExpDocDate,"<="&$E$3,ExpDocDate,">"&$E$2,ExpAccount,$A9),$C9-SUMIFS(IncExcl,IncDocDate,"<="&$E$3,IncDocDate,">"&$C$3,IncAccount,$A9)+SUMIFS(ExpExcl,ExpDocDate,"<="&$E$3,ExpDocDate,">"&$C$3,ExpAccount,$A9)+IF($A9="BS-1700",-SUMIFS(IncTax1,IncDocDate,"<="&$E$3,IncDocDate,">"&$C$3)+SUMIFS(ExpTax1,ExpDocDate,"<="&$E$3,ExpDocDate,">"&$C$3),0)+IF($A9="BS-1710",-IF(IncTaxCount=2,SUMIFS(IncTax2,IncDocDate,"<="&$E$3,IncDocDate,">"&$C$3),0)+IF(ExpTaxCount=2,SUMIFS(ExpTax2,ExpDocDate,"<="&$E$3,ExpDocDate,">"&$C$3),0),0)) -> 0 | F9: 0 | G9: =IF(LEFT($A9,2)="IS",-SUMIFS(IncExcl,IncDocDate,"<="&$G$3,IncDocDate,">"&$G$2,IncAccount,$A9)+SUMIFS(IncCOS,IncDocDate,"<="&$G$3,IncDocDate,">"&$G$2,IncAccountCOS,$A9)+SUMIFS(ExpExcl,ExpDocDate,"<="&$G$3,ExpDocDate,">"&$G$2,ExpAccount,$A9),$C9-SUMIFS(IncExcl,IncDocDate,"<="&$G$3,IncDocDate,">"&$C$3,IncAccount,$A9)+SUMIFS(ExpExcl,ExpDocDate,"<="&$G$3,ExpDocDate,">"&$C$3,ExpAccount,$A9)+IF($A9="BS-1700",-SUMIFS(IncTax1,IncDocDate,"<="&$G$3,IncDocDate,">"&$C$3)+SUMIFS(ExpTax1,ExpDocDate,"<="&$G$3,ExpDocDate,">"&$C$3),0)+IF($A9="BS-1710",-IF(IncTaxCount=2,SUMIFS(IncTax2,IncDocDate,"<="&$G$3,IncDocDate,">"&$C$3),0)+IF(ExpTaxCount=2,SUMIFS(ExpTax2,ExpDocDate,"<="&$G$3,ExpDocDate,">"&$C$3),0),0)) -> 0 | H9: Group
A10: BS-0030 | B10: Other Assets - Cost | C10: 0 | E10: =IF(LEFT($A10,2)="IS",-SUMIFS(IncExcl,IncDocDate,"<="&$E$3,IncDocDate,">"&$E$2,IncAccount,$A10)+SUMIFS(IncCOS,IncDocDate,"<="&$E$3,IncDocDate,">"&$E$2,IncAccountCOS,$A10)+SUMIFS(ExpExcl,ExpDocDate,"<="&$E$3,ExpDocDate,">"&$E$2,ExpAccount,$A10),$C10-SUMIFS(IncExcl,IncDocDate,"<="&$E$3,IncDocDate,">"&$C$3,IncAccount,$A10)+SUMIFS(ExpExcl,ExpDocDate,"<="&$E$3,ExpDocDate,">"&$C$3,ExpAccount,$A10)+IF($A10="BS-1700",-SUMIFS(IncTax1,IncDocDate,"<="&$E$3,IncDocDate,">"&$C$3)+SUMIFS(ExpTax1,ExpDocDate,"<="&$E$3,ExpDocDate,">"&$C$3),0)+IF($A10="BS-1710",-IF(IncTaxCount=2,SUMIFS(IncTax2,IncDocDate,"<="&$E$3,IncDocDate,">"&$C$3),0)+IF(ExpTaxCount=2,SUMIFS(ExpTax2,ExpDocDate,"<="&$E$3,ExpDocDate,">"&$C$3),0),0)) -> 0 | F10: 0 | G10: =IF(LEFT($A10,2)="IS",-SUMIFS(IncExcl,IncDocDate,"<="&$G$3,IncDocDate,">"&$G$2,IncAccount,$A10)+SUMIFS(IncCOS,IncDocDate,"<="&$G$3,IncDocDate,">"&$G$2,IncAccountCOS,$A10)+SUMIFS(ExpExcl,ExpDocDate,"<="&$G$3,ExpDocDate,">"&$G$2,ExpAccount,$A10),$C10-SUMIFS(IncExcl,IncDocDate,"<="&$G$3,IncDocDate,">"&$C$3,IncAccount,$A10)+SUMIFS(ExpExcl,ExpDocDate,"<="&$G$3,ExpDocDate,">"&$C$3,ExpAccount,$A10)+IF($A10="BS-1700",-SUMIFS(IncTax1,IncDocDate,"<="&$G$3,IncDocDate,">"&$C$3)+SUMIFS(ExpTax1,ExpDocDate,"<="&$G$3,ExpDocDate,">"&$C$3),0)+IF($A10="BS-1710",-IF(IncTaxCount=2,SUMIFS(IncTax2,IncDocDate,"<="&$G$3,IncDocDate,">"&$C$3),0)+IF(ExpTaxCount=2,SUMIFS(ExpTax2,ExpDocDate,"<="&$G$3,ExpDocDate,">"&$C$3),0),0)) -> 0 | H10: Group
A11: BS-0105 | B11: Land & Buildings - Accum Depreciation | C11: 0 | E11: =IF(LEFT($A11,2)="IS",-SUMIFS(IncExcl,IncDocDate,"<="&$E$3,IncDocDate,">"&$E$2,IncAccount,$A11)+SUMIFS(IncCOS,IncDocDate,"<="&$E$3,IncDocDate,">"&$E$2,IncAccountCOS,$A11)+SUMIFS(ExpExcl,ExpDocDate,"<="&$E$3,ExpDocDate,">"&$E$2,ExpAccount,$A11),$C11-SUMIFS(IncExcl,IncDocDate,"<="&$E$3,IncDocDate,">"&$C$3,IncAccount,$A11)+SUMIFS(ExpExcl,ExpDocDate,"<="&$E$3,ExpDocDate,">"&$C$3,ExpAccount,$A11)+IF($A11="BS-1700",-SUMIFS(IncTax1,IncDocDate,"<="&$E$3,IncDocDate,">"&$C$3)+SUMIFS(ExpTax1,ExpDocDate,"<="&$E$3,ExpDocDate,">"&$C$3),0)+IF($A11="BS-1710",-IF(IncTaxCount=2,SUMIFS(IncTax2,IncDocDate,"<="&$E$3,IncDocDate,">"&$C$3),0)+IF(ExpTaxCount=2,SUMIFS(ExpTax2,ExpDocDate,"<="&$E$3,ExpDocDate,">"&$C$3),0),0)) -> 0 | F11: 0 | G11: =IF(LEFT($A11,2)="IS",-SUMIFS(IncExcl,IncDocDate,"<="&$G$3,IncDocDate,">"&$G$2,IncAccount,$A11)+SUMIFS(IncCOS,IncDocDate,"<="&$G$3,IncDocDate,">"&$G$2,IncAccountCOS,$A11)+SUMIFS(ExpExcl,ExpDocDate,"<="&$G$3,ExpDocDate,">"&$G$2,ExpAccount,$A11),$C11-SUMIFS(IncExcl,IncDocDate,"<="&$G$3,IncDocDate,">"&$C$3,IncAccount,$A11)+SUMIFS(ExpExcl,ExpDocDate,"<="&$G$3,ExpDocDate,">"&$C$3,ExpAccount,$A11)+IF($A11="BS-1700",-SUMIFS(IncTax1,IncDocDate,"<="&$G$3,IncDocDate,">"&$C$3)+SUMIFS(ExpTax1,ExpDocDate,"<="&$G$3,ExpDocDate,">"&$C$3),0)+IF($A11="BS-1710",-IF(IncTaxCount=2,SUMIFS(IncTax2,IncDocDate,"<="&$G$3,IncDocDate,">"&$C$3),0)+IF(ExpTaxCount=2,SUMIFS(ExpTax2,ExpDocDate,"<="&$G$3,ExpDocDate,">"&$C$3),0),0)) -> 0 | H11: Group
A12: BS-0110 | B12: Plant & Equipment - Accum Depreciation | C12: 0 | E12: =IF(LEFT($A12,2)="IS",-SUMIFS(IncExcl,IncDocDate,"<="&$E$3,IncDocDate,">"&$E$2,IncAccount,$A12)+SUMIFS(IncCOS,IncDocDate,"<="&$E$3,IncDocDate,">"&$E$2,IncAccountCOS,$A12)+SUMIFS(ExpExcl,ExpDocDate,"<="&$E$3,ExpDocDate,">"&$E$2,ExpAccount,$A12),$C12-SUMIFS(IncExcl,IncDocDate,"<="&$E$3,IncDocDate,">"&$C$3,IncAccount,$A12)+SUMIFS(ExpExcl,ExpDocDate,"<="&$E$3,ExpDocDate,">"&$C$3,ExpAccount,$A12)+IF($A12="BS-1700",-SUMIFS(IncTax1,IncDocDate,"<="&$E$3,IncDocDate,">"&$C$3)+SUMIFS(ExpTax1,ExpDocDate,"<="&$E$3,ExpDocDate,">"&$C$3),0)+IF($A12="BS-1710",-IF(IncTaxCount=2,SUMIFS(IncTax2,IncDocDate,"<="&$E$3,IncDocDate,">"&$C$3),0)+IF(ExpTaxCount=2,SUMIFS(ExpTax2,ExpDocDate,"<="&$E$3,ExpDocDate,">"&$C$3),0),0)) -> 0 | F12: 0 | G12: =IF(LEFT($A12,2)="IS",-SUMIFS(IncExcl,IncDocDate,"<="&$G$3,IncDocDate,">"&$G$2,IncAccount,$A12)+SUMIFS(IncCOS,IncDocDate,"<="&$G$3,IncDocDate,">"&$G$2,IncAccountCOS,$A12)+SUMIFS(ExpExcl,ExpDocDate,"<="&$G$3,ExpDocDate,">"&$G$2,ExpAccount,$A12),$C12-SUMIFS(IncExcl,IncDocDate,"<="&$G$3,IncDocDate,">"&$C$3,IncAccount,$A12)+SUMIFS(ExpExcl,ExpDocDate,"<="&$G$3,ExpDocDate,">"&$C$3,ExpAccount,$A12)+IF($A12="BS-1700",-SUMIFS(IncTax1,IncDocDate,"<="&$G$3,IncDocDate,">"&$C$3)+SUMIFS(ExpTax1,ExpDocDate,"<="&$G$3,ExpDocDate,">"&$C$3),0)+IF($A12="BS-1710",-IF(IncTaxCount=2,SUMIFS(IncTax2,IncDocDate,"<="&$G$3,IncDocDate,">"&$C$3),0)+IF(ExpTaxCount=2,SUMIFS(ExpTax2,ExpDocDate,"<="&$G$3,ExpDocDate,">"&$C$3),0),0)) -> 0 | H12: Group
A13: BS-0115 | B13: Furniture & Fittings - Accum Depreciation | C13: -22000 | E13: =IF(LEFT($A13,2)="IS",-SUMIFS(IncExcl,IncDocDate,"<="&$E$3,IncDocDate,">"&$E$2,IncAccount,$A13)+SUMIFS(IncCOS,IncDocDate,"<="&$E$3,IncDocDate,">"&$E$2,IncAccountCOS,$A13)+SUMIFS(ExpExcl,ExpDocDate,"<="&$E$3,ExpDocDate,">"&$E$2,ExpAccount,$A13),$C13-SUMIFS(IncExcl,IncDocDate,"<="&$E$3,IncDocDate,">"&$C$3,IncAccount,$A13)+SUMIFS(ExpExcl,ExpDocDate,"<="&$E$3,ExpDocDate,">"&$C$3,ExpAccount,$A13)+IF($A13="BS-1700",-SUMIFS(IncTax1,IncDocDate,"<="&$E$3,IncDocDate,">"&$C$3)+SUMIFS(ExpTax1,ExpDocDate,"<="&$E$3,ExpDocDate,">"&$C$3),0)+IF($A13="BS-1710",-IF(IncTaxCount=2,SUMIFS(IncTax2,IncDocDate,"<="&$E$3,IncDocDate,">"&$C$3),0)+IF(ExpTaxCount=2,SUMIFS(ExpTax2,ExpDocDate,"<="&$E$3,ExpDocDate,">"&$C$3),0),0)) -> -22000 | F13: -18232 | G13: =IF(LEFT($A13,2)="IS",-SUMIFS(IncExcl,IncDocDate,"<="&$G$3,IncDocDate,">"&$G$2,IncAccount,$A13)+SUMIFS(IncCOS,IncDocDate,"<="&$G$3,IncDocDate,">"&$G$2,IncAccountCOS,$A13)+SUMIFS(ExpExcl,ExpDocDate,"<="&$G$3,ExpDocDate,">"&$G$2,ExpAccount,$A13),$C13-SUMIFS(IncExcl,IncDocDate,"<="&$G$3,IncDocDate,">"&$C$3,IncAccount,$A13)+SUMIFS(ExpExcl,ExpDocDate,"<="&$G$3,ExpDocDate,">"&$C$3,ExpAccount,$A13)+IF($A13="BS-1700",-SUMIFS(IncTax1,IncDocDate,"<="&$G$3,IncDocDate,">"&$C$3)+SUMIFS(ExpTax1,ExpDocDate,"<="&$G$3,ExpDocDate,">"&$C$3),0)+IF($A13="BS-1710",-IF(IncTaxCount=2,SUMIFS(IncTax2,IncDocDate,"<="&$G$3,IncDocDate,">"&$C$3),0)+IF(ExpTaxCount=2,SUMIFS(ExpTax2,ExpDocDate,"<="&$G$3,ExpDocDate,">"&$C$3),0),0)) -> -40232 | H13: Group
A14: BS-0120 | B14: Office Equipment - Accum Depreciation | C14: -12500 | E14: =IF(LEFT($A14,2)="IS",-SUMIFS(IncExcl,IncDocDate,"<="&$E$3,IncDocDate,">"&$E$2,IncAccount,$A14)+SUMIFS(IncCOS,IncDocDate,"<="&$E$3,IncDocDate,">"&$E$2,IncAccountCOS,$A14)+SUMIFS(ExpExcl,ExpDocDate,"<="&$E$3,ExpDocDate,">"&$E$2,ExpAccount,$A14),$C14-SUMIFS(IncExcl,IncDocDate,"<="&$E$3,IncDocDate,">"&$C$3,IncAccount,$A14)+SUMIFS(ExpExcl,ExpDocDate,"<="&$E$3,ExpDocDate,">"&$C$3,ExpAccount,$A14)+IF($A14="BS-1700",-SUMIFS(IncTax1,IncDocDate,"<="&$E$3,IncDocDate,">"&$C$3)+SUMIFS(ExpTax1,ExpDocDate,"<="&$E$3,ExpDocDate,">"&$C$3),0)+IF($A14="BS-1710",-IF(IncTaxCount=2,SUMIFS(IncTax2,IncDocDate,"<="&$E$3,IncDocDate,">"&$C$3),0)+IF(ExpTaxCount=2,SUMIFS(ExpTax2,ExpDocDate,"<="&$E$3,ExpDocDate,">"&$C$3),0),0)) -> -12500 | F14: -12190 | G14: =IF(LEFT($A14,2)="IS",-SUMIFS(IncExcl,IncDocDate,"<="&$G$3,IncDocDate,">"&$G$2,IncAccount,$A14)+SUMIFS(IncCOS,IncDocDate,"<="&$G$3,IncDocDate,">"&$G$2,IncAccountCOS,$A14)+SUMIFS(ExpExcl,ExpDocDate,"<="&$G$3,ExpDocDate,">"&$G$2,ExpAccount,$A14),$C14-SUMIFS(IncExcl,IncDocDate,"<="&$G$3,IncDocDate,">"&$C$3,IncAccount,$A14)+SUMIFS(ExpExcl,ExpDocDate,"<="&$G$3,ExpDocDate,">"&$C$3,ExpAccount,$A14)+IF($A14="BS-1700",-SUMIFS(IncTax1,IncDocDate,"<="&$G$3,IncDocDate,">"&$C$3)+SUMIFS(ExpTax1,ExpDocDate,"<="&$G$3,ExpDocDate,">"&$C$3),0)+IF($A14="BS-1710",-IF(IncTaxCount=2,SUMIFS(IncTax2,IncDocDate,"<="&$G$3,IncDocDate,">"&$C$3),0)+IF(ExpTaxCount=2,SUMIFS(ExpTax2,ExpDocDate,"<="&$G$3,ExpDocDate,">"&$C$3),0),0)) -> -24690 | H14: Group
A15: BS-0125 | B15: Computer Equipment - Accum Depreciation | C15: 0 | E15: =IF(LEFT($A15,2)="IS",-SUMIFS(IncExcl,IncDocDate,"<="&$E$3,IncDocDate,">"&$E$2,IncAccount,$A15)+SUMIFS(IncCOS,IncDocDate,"<="&$E$3,IncDocDate,">"&$E$2,IncAccountCOS,$A15)+SUMIFS(ExpExcl,ExpDocDate,"<="&$E$3,ExpDocDate,">"&$E$2,ExpAccount,$A15),$C15-SUMIFS(IncExcl,IncDocDate,"<="&$E$3,IncDocDate,">"&$C$3,IncAccount,$A15)+SUMIFS(ExpExcl,ExpDocDate,"<="&$E$3,ExpDocDate,">"&$C$3,ExpAccount,$A15)+IF($A15="BS-1700",-SUMIFS(IncTax1,IncDocDate,"<="&$E$3,IncDocDate,">"&$C$3)+SUMIFS(ExpTax1,ExpDocDate,"<="&$E$3,ExpDocDate,">"&$C$3),0)+IF($A15="BS-1710",-IF(IncTaxCount=2,SUMIFS(IncTax2,IncDocDate,"<="&$E$3,IncDocDate,">"&$C$3),0)+IF(ExpTaxCount=2,SUMIFS(ExpTax2,ExpDocDate,"<="&$E$3,ExpDocDate,">"&$C$3),0),0)) -> 0 | F15: 0 | G15: =IF(LEFT($A15,2)="IS",-SUMIFS(IncExcl,IncDocDate,"<="&$G$3,IncDocDate,">"&$G$2,IncAccount,$A15)+SUMIFS(IncCOS,IncDocDate,"<="&$G$3,IncDocDate,">"&$G$2,IncAccountCOS,$A15)+SUMIFS(ExpExcl,ExpDocDate,"<="&$G$3,ExpDocDate,">"&$G$2,ExpAccount,$A15),$C15-SUMIFS(IncExcl,IncDocDate,"<="&$G$3,IncDocDate,">"&$C$3,IncAccount,$A15)+SUMIFS(ExpExcl,ExpDocDate,"<="&$G$3,ExpDocDate,">"&$C$3,ExpAccount,$A15)+IF($A15="BS-1700",-SUMIFS(IncTax1,IncDocDate,"<="&$G$3,IncDocDate,">"&$C$3)+SUMIFS(ExpTax1,ExpDocDate,"<="&$G$3,ExpDocDate,">"&$C$3),0)+IF($A15="BS-1710",-IF(IncTaxCount=2,SUMIFS(IncTax2,IncDocDate,"<="&$G$3,IncDocDate,">"&$C$3),0)+IF(ExpTaxCount=2,SUMIFS(ExpTax2,ExpDocDate,"<="&$G$3,ExpDocDate,">"&$C$3),0),0)) -> 0 | H15: Group
A16: BS-0130 | B16: Other Assets - Accum Depreciation | C16: 0 | E16: =IF(LEFT($A16,2)="IS",-SUMIFS(IncExcl,IncDocDate,"<="&$E$3,IncDocDate,">"&$E$2,IncAccount,$A16)+SUMIFS(IncCOS,IncDocDate,"<="&$E$3,IncDocDate,">"&$E$2,IncAccountCOS,$A16)+SUMIFS(ExpExcl,ExpDocDate,"<="&$E$3,ExpDocDate,">"&$E$2,ExpAccount,$A16),$C16-SUMIFS(IncExcl,IncDocDate,"<="&$E$3,IncDocDate,">"&$C$3,IncAccount,$A16)+SUMIFS(ExpExcl,ExpDocDate,"<="&$E$3,ExpDocDate,">"&$C$3,ExpAccount,$A16)+IF($A16="BS-1700",-SUMIFS(IncTax1,IncDocDate,"<="&$E$3,IncDocDate,">"&$C$3)+SUMIFS(ExpTax1,ExpDocDate,"<="&$E$3,ExpDocDate,">"&$C$3),0)+IF($A16="BS-1710",-IF(IncTaxCount=2,SUMIFS(IncTax2,IncDocDate,"<="&$E$3,IncDocDate,">"&$C$3),0)+IF(ExpTaxCount=2,SUMIFS(ExpTax2,ExpDocDate,"<="&$E$3,ExpDocDate,">"&$C$3),0),0)) -> 0 | F16: 0 | G16: =IF(LEFT($A16,2)="IS",-SUMIFS(IncExcl,IncDocDate,"<="&$G$3,IncDocDate,">"&$G$2,IncAccount,$A16)+SUMIFS(IncCOS,IncDocDate,"<="&$G$3,IncDocDate,">"&$G$2,IncAccountCOS,$A16)+SUMIFS(ExpExcl,ExpDocDate,"<="&$G$3,ExpDocDate,">"&$G$2,ExpAccount,$A16),$C16-SUMIFS(IncExcl,IncDocDate,"<="&$G$3,IncDocDate,">"&$C$3,IncAccount,$A16)+SUMIFS(ExpExcl,ExpDocDate,"<="&$G$3,ExpDocDate,">"&$C$3,ExpAccount,$A16)+IF($A16="BS-1700",-SUMIFS(IncTax1,IncDocDate,"<="&$G$3,IncDocDate,">"&$C$3)+SUMIFS(ExpTax1,ExpDocDate,"<="&$G$3,ExpDocDate,">"&$C$3),0)+IF($A16="BS-1710",-IF(IncTaxCount=2,SUMIFS(IncTax2,IncDocDate,"<="&$G$3,IncDocDate,">"&$C$3),0)+IF(ExpTaxCount=2,SUMIFS(ExpTax2,ExpDocDate,"<="&$G$3,ExpDocDate,">"&$C$3),0),0)) -> 0 | H16: Group
A17: BS-0205 | B17: Goodwill - Cost | C17: 0 | E17: =IF(LEFT($A17,2)="IS",-SUMIFS(IncExcl,IncDocDate,"<="&$E$3,IncDocDate,">"&$E$2,IncAccount,$A17)+SUMIFS(IncCOS,IncDocDate,"<="&$E$3,IncDocDate,">"&$E$2,IncAccountCOS,$A17)+SUMIFS(ExpExcl,ExpDocDate,"<="&$E$3,ExpDocDate,">"&$E$2,ExpAccount,$A17),$C17-SUMIFS(IncExcl,IncDocDate,"<="&$E$3,IncDocDate,">"&$C$3,IncAccount,$A17)+SUMIFS(ExpExcl,ExpDocDate,"<="&$E$3,ExpDocDate,">"&$C$3,ExpAccount,$A17)+IF($A17="BS-1700",-SUMIFS(IncTax1,IncDocDate,"<="&$E$3,IncDocDate,">"&$C$3)+SUMIFS(ExpTax1,ExpDocDate,"<="&$E$3,ExpDocDate,">"&$C$3),0)+IF($A17="BS-1710",-IF(IncTaxCount=2,SUMIFS(IncTax2,IncDocDate,"<="&$E$3,IncDocDate,">"&$C$3),0)+IF(ExpTaxCount=2,SUMIFS(ExpTax2,ExpDocDate,"<="&$E$3,ExpDocDate,">"&$C$3),0),0)) -> 0 | F17: 0 | G17: =IF(LEFT($A17,2)="IS",-SUMIFS(IncExcl,IncDocDate,"<="&$G$3,IncDocDate,">"&$G$2,IncAccount,$A17)+SUMIFS(IncCOS,IncDocDate,"<="&$G$3,IncDocDate,">"&$G$2,IncAccountCOS,$A17)+SUMIFS(ExpExcl,ExpDocDate,"<="&$G$3,ExpDocDate,">"&$G$2,ExpAccount,$A17),$C17-SUMIFS(IncExcl,IncDocDate,"<="&$G$3,IncDocDate,">"&$C$3,IncAccount,$A17)+SUMIFS(ExpExcl,ExpDocDate,"<="&$G$3,ExpDocDate,">"&$C$3,ExpAccount,$A17)+IF($A17="BS-1700",-SUMIFS(IncTax1,IncDocDate,"<="&$G$3,IncDocDate,">"&$C$3)+SUMIFS(ExpTax1,ExpDocDate,"<="&$G$3,ExpDocDate,">"&$C$3),0)+IF($A17="BS-1710",-IF(IncTaxCount=2,SUMIFS(IncTax2,IncDocDate,"<="&$G$3,IncDocDate,">"&$C$3),0)+IF(ExpTaxCount=2,SUMIFS(ExpTax2,ExpDocDate,"<="&$G$3,ExpDocDate,">"&$C$3),0),0)) -> 0 | H17: Group
A18: BS-0210 | B18: Trademarks - Cost | C18: 0 | E18: =IF(LEFT($A18,2)="IS",-SUMIFS(IncExcl,IncDocDate,"<="&$E$3,IncDocDate,">"&$E$2,IncAccount,$A18)+SUMIFS(IncCOS,IncDocDate,"<="&$E$3,IncDocDate,">"&$E$2,IncAccountCOS,$A18)+SUMIFS(ExpExcl,ExpDocDate,"<="&$E$3,ExpDocDate,">"&$E$2,ExpAccount,$A18),$C18-SUMIFS(IncExcl,IncDocDate,"<="&$E$3,IncDocDate,">"&$C$3,IncAccount,$A18)+SUMIFS(ExpExcl,ExpDocDate,"<="&$E$3,ExpDocDate,">"&$C$3,ExpAccount,$A18)+IF($A18="BS-1700",-SUMIFS(IncTax1,IncDocDate,"<="&$E$3,IncDocDate,">"&$C$3)+SUMIFS(ExpTax1,ExpDocDate,"<="&$E$3,ExpDocDate,">"&$C$3),0)+IF($A18="BS-1710",-IF(IncTaxCount=2,SUMIFS(IncTax2,IncDocDate,"<="&$E$3,IncDocDate,">"&$C$3),0)+IF(ExpTaxCount=2,SUMIFS(ExpTax2,ExpDocDate,"<="&$E$3,ExpDocDate,">"&$C$3),0),0)) -> 0 | F18: 0 | G18: =IF(LEFT($A18,2)="IS",-SUMIFS(IncExcl,IncDocDate,"<="&$G$3,IncDocDate,">"&$G$2,IncAccount,$A18)+SUMIFS(IncCOS,IncDocDate,"<="&$G$3,IncDocDate,">"&$G$2,IncAccountCOS,$A18)+SUMIFS(ExpExcl,ExpDocDate,"<="&$G$3,ExpDocDate,">"&$G$2,ExpAccount,$A18),$C18-SUMIFS(IncExcl,IncDocDate,"<="&$G$3,IncDocDate,">"&$C$3,IncAccount,$A18)+SUMIFS(ExpExcl,ExpDocDate,"<="&$G$3,ExpDocDate,">"&$C$3,ExpAccount,$A18)+IF($A18="BS-1700",-SUMIFS(IncTax1,IncDocDate,"<="&$G$3,IncDocDate,">"&$C$3)+SUMIFS(ExpTax1,ExpDocDate,"<="&$G$3,ExpDocDate,">"&$C$3),0)+IF($A18="BS-1710",-IF(IncTaxCount=2,SUMIFS(IncTax2,IncDocDate,"<="&$G$3,IncDocDate,">"&$C$3),0)+IF(ExpTaxCount=2,SUMIFS(ExpTax2,ExpDocDate,"<="&$G$3,ExpDocDate,">"&$C$3),0),0)) -> 0 | H18: Group
A19: BS-0215 | B19: Software - Cost | C19: 0 | E19: =IF(LEFT($A19,2)="IS",-SUMIFS(IncExcl,IncDocDate,"<="&$E$3,IncDocDate,">"&$E$2,IncAccount,$A19)+SUMIFS(IncCOS,IncDocDate,"<="&$E$3,IncDocDate,">"&$E$2,IncAccountCOS,$A19)+SUMIFS(ExpExcl,ExpDocDate,"<="&$E$3,ExpDocDate,">"&$E$2,ExpAccount,$A19),$C19-SUMIFS(IncExcl,IncDocDate,"<="&$E$3,IncDocDate,">"&$C$3,IncAccount,$A19)+SUMIFS(ExpExcl,ExpDocDate,"<="&$E$3,ExpDocDate,">"&$C$3,ExpAccount,$A19)+IF($A19="BS-1700",-SUMIFS(IncTax1,IncDocDate,"<="&$E$3,IncDocDate,">"&$C$3)+SUMIFS(ExpTax1,ExpDocDate,"<="&$E$3,ExpDocDate,">"&$C$3),0)+IF($A19="BS-1710",-IF(IncTaxCount=2,SUMIFS(IncTax2,IncDocDate,"<="&$E$3,IncDocDate,">"&$C$3),0)+IF(ExpTaxCount=2,SUMIFS(ExpTax2,ExpDocDate,"<="&$E$3,ExpDocDate,">"&$C$3),0),0)) -> 0 | F19: 0 | G19: =IF(LEFT($A19,2)="IS",-SUMIFS(IncExcl,IncDocDate,"<="&$G$3,IncDocDate,">"&$G$2,IncAccount,$A19)+SUMIFS(IncCOS,IncDocDate,"<="&$G$3,IncDocDate,">"&$G$2,IncAccountCOS,$A19)+SUMIFS(ExpExcl,ExpDocDate,"<="&$G$3,ExpDocDate,">"&$G$2,ExpAccount,$A19),$C19-SUMIFS(IncExcl,IncDocDate,"<="&$G$3,IncDocDate,">"&$C$3,IncAccount,$A19)+SUMIFS(ExpExcl,ExpDocDate,"<="&$G$3,ExpDocDate,">"&$C$3,ExpAccount,$A19)+IF($A19="BS-1700",-SUMIFS(IncTax1,IncDocDate,"<="&$G$3,IncDocDate,">"&$C$3)+SUMIFS(ExpTax1,ExpDocDate,"<="&$G$3,ExpDocDate,">"&$C$3),0)+IF($A19="BS-1710",-IF(IncTaxCount=2,SUMIFS(IncTax2,IncDocDate,"<="&$G$3,IncDocDate,">"&$C$3),0)+IF(ExpTaxCount=2,SUMIFS(ExpTax2,ExpDocDate,"<="&$G$3,ExpDocDate,">"&$C$3),0),0)) -> 0 | H19: Group
A20: BS-0305 | B20: Goodwill - Accum Amortization | C20: 0 | E20: =IF(LEFT($A20,2)="IS",-SUMIFS(IncExcl,IncDocDate,"<="&$E$3,IncDocDate,">"&$E$2,IncAccount,$A20)+SUMIFS(IncCOS,IncDocDate,"<="&$E$3,IncDocDate,">"&$E$2,IncAccountCOS,$A20)+SUMIFS(ExpExcl,ExpDocDate,"<="&$E$3,ExpDocDate,">"&$E$2,ExpAccount,$A20),$C20-SUMIFS(IncExcl,IncDocDate,"<="&$E$3,IncDocDate,">"&$C$3,IncAccount,$A20)+SUMIFS(ExpExcl,ExpDocDate,"<="&$E$3,ExpDocDate,">"&$C$3,ExpAccount,$A20)+IF($A20="BS-1700",-SUMIFS(IncTax1,IncDocDate,"<="&$E$3,IncDocDate,">"&$C$3)+SUMIFS(ExpTax1,ExpDocDate,"<="&$E$3,ExpDocDate,">"&$C$3),0)+IF($A20="BS-1710",-IF(IncTaxCount=2,SUMIFS(IncTax2,IncDocDate,"<="&$E$3,IncDocDate,">"&$C$3),0)+IF(ExpTaxCount=2,SUMIFS(ExpTax2,ExpDocDate,"<="&$E$3,ExpDocDate,">"&$C$3),0),0)) -> 0 | F20: 0 | G20: =IF(LEFT($A20,2)="IS",-SUMIFS(IncExcl,IncDocDate,"<="&$G$3,IncDocDate,">"&$G$2,IncAccount,$A20)+SUMIFS(IncCOS,IncDocDate,"<="&$G$3,IncDocDate,">"&$G$2,IncAccountCOS,$A20)+SUMIFS(ExpExcl,ExpDocDate,"<="&$G$3,ExpDocDate,">"&$G$2,ExpAccount,$A20),$C20-SUMIFS(IncExcl,IncDocDate,"<="&$G$3,IncDocDate,">"&$C$3,IncAccount,$A20)+SUMIFS(ExpExcl,ExpDocDate,"<="&$G$3,ExpDocDate,">"&$C$3,ExpAccount,$A20)+IF($A20="BS-1700",-SUMIFS(IncTax1,IncDocDate,"<="&$G$3,IncDocDate,">"&$C$3)+SUMIFS(ExpTax1,ExpDocDate,"<="&$G$3,ExpDocDate,">"&$C$3),0)+IF($A20="BS-1710",-IF(IncTaxCount=2,SUMIFS(IncTax2,IncDocDate,"<="&$G$3,IncDocDate,">"&$C$3),0)+IF(ExpTaxCount=2,SUMIFS(ExpTax2,ExpDocDate,"<="&$G$3,ExpDocDate,">"&$C$3),0),0)) -> 0 | H20: Group
A21: BS-0310 | B21: Trademarks - Accum Amortization | C21: 0 | E21: =IF(LEFT($A21,2)="IS",-SUMIFS(IncExcl,IncDocDate,"<="&$E$3,IncDocDate,">"&$E$2,IncAccount,$A21)+SUMIFS(IncCOS,IncDocDate,"<="&$E$3,IncDocDate,">"&$E$2,IncAccountCOS,$A21)+SUMIFS(ExpExcl,ExpDocDate,"<="&$E$3,ExpDocDate,">"&$E$2,ExpAccount,$A21),$C21-SUMIFS(IncExcl,IncDocDate,"<="&$E$3,IncDocDate,">"&$C$3,IncAccount,$A21)+SUMIFS(ExpExcl,ExpDocDate,"<="&$E$3,ExpDocDate,">"&$C$3,ExpAccount,$A21)+IF($A21="BS-1700",-SUMIFS(IncTax1,IncDocDate,"<="&$E$3,IncDocDate,">"&$C$3)+SUMIFS(ExpTax1,ExpDocDate,"<="&$E$3,ExpDocDate,">"&$C$3),0)+IF($A21="BS-1710",-IF(IncTaxCount=2,SUMIFS(IncTax2,IncDocDate,"<="&$E$3,IncDocDate,">"&$C$3),0)+IF(ExpTaxCount=2,SUMIFS(ExpTax2,ExpDocDate,"<="&$E$3,ExpDocDate,">"&$C$3),0),0)) -> 0 | F21: 0 | G21: =IF(LEFT($A21,2)="IS",-SUMIFS(IncExcl,IncDocDate,"<="&$G$3,IncDocDate,">"&$G$2,IncAccount,$A21)+SUMIFS(IncCOS,IncDocDate,"<="&$G$3,IncDocDate,">"&$G$2,IncAccountCOS,$A21)+SUMIFS(ExpExcl,ExpDocDate,"<="&$G$3,ExpDocDate,">"&$G$2,ExpAccount,$A21),$C21-SUMIFS(IncExcl,IncDocDate,"<="&$G$3,IncDocDate,">"&$C$3,IncAccount,$A21)+SUMIFS(ExpExcl,ExpDocDate,"<="&$G$3,ExpDocDate,">"&$C$3,ExpAccount,$A21)+IF($A21="BS-1700",-SUMIFS(IncTax1,IncDocDate,"<="&$G$3,IncDocDate,">"&$C$3)+SUMIFS(ExpTax1,ExpDocDate,"<="&$G$3,ExpDocDate,">"&$C$3),0)+IF($A21="BS-1710",-IF(IncTaxCount=2,SUMIFS(IncTax2,IncDocDate,"<="&$G$3,IncDocDate,">"&$C$3),0)+IF(ExpTaxCount=2,SUMIFS(ExpTax2,ExpDocDate,"<="&$G$3,ExpDocDate,">"&$C$3),0),0)) -> 0 | H21: Group
A22: BS-0315 | B22: Software - Accum Amortization | C22: 0 | E22: =IF(LEFT($A22,2)="IS",-SUMIFS(IncExcl,IncDocDate,"<="&$E$3,IncDocDate,">"&$E$2,IncAccount,$A22)+SUMIFS(IncCOS,IncDocDate,"<="&$E$3,IncDocDate,">"&$E$2,IncAccountCOS,$A22)+SUMIFS(ExpExcl,ExpDocDate,"<="&$E$3,ExpDocDate,">"&$E$2,ExpAccount,$A22),$C22-SUMIFS(IncExcl,IncDocDate,"<="&$E$3,IncDocDate,">"&$C$3,IncAccount,$A22)+SUMIFS(ExpExcl,ExpDocDate,"<="&$E$3,ExpDocDate,">"&$C$3,ExpAccount,$A22)+IF($A22="BS-1700",-SUMIFS(IncTax1,IncDocDate,"<="&$E$3,IncDocDate,">"&$C$3)+SUMIFS(ExpTax1,ExpDocDate,"<="&$E$3,ExpDocDate,">"&$C$3),0)+IF($A22="BS-1710",-IF(IncTaxCount=2,SUMIFS(IncTax2,IncDocDate,"<="&$E$3,IncDocDate,">"&$C$3),0)+IF(ExpTaxCount=2,SUMIFS(ExpTax2,ExpDocDate,"<="&$E$3,ExpDocDate,">"&$C$3),0),0)) -> 0 | F22: 0 | G22: =IF(LEFT($A22,2)="IS",-SUMIFS(IncExcl,IncDocDate,"<="&$G$3,IncDocDate,">"&$G$2,IncAccount,$A22)+SUMIFS(IncCOS,IncDocDate,"<="&$G$3,IncDocDate,">"&$G$2,IncAccountCOS,$A22)+SUMIFS(ExpExcl,ExpDocDate,"<="&$G$3,ExpDocDate,">"&$G$2,ExpAccount,$A22),$C22-SUMIFS(IncExcl,IncDocDate,"<="&$G$3,IncDocDate,">"&$C$3,IncAccount,$A22)+SUMIFS(ExpExcl,ExpDocDate,"<="&$G$3,ExpDocDate,">"&$C$3,ExpAccount,$A22)+IF($A22="BS-1700",-SUMIFS(IncTax1,IncDocDate,"<="&$G$3,IncDocDate,">"&$C$3)+SUMIFS(ExpTax1,ExpDocDate,"<="&$G$3,ExpDocDate,">"&$C$3),0)+IF($A22="BS-1710",-IF(IncTaxCount=2,SUMIFS(IncTax2,IncDocDate,"<="&$G$3,IncDocDate,">"&$C$3),0)+IF(ExpTaxCount=2,SUMIFS(ExpTax2,ExpDocDate,"<="&$G$3,ExpDocDate,">"&$C$3),0),0)) -> 0 | H22: Group
A23: BS-0400 | B23: Investments | C23: 150000 | E23: =IF(LEFT($A23,2)="IS",-SUMIFS(IncExcl,IncDocDate,"<="&$E$3,IncDocDate,">"&$E$2,IncAccount,$A23)+SUMIFS(IncCOS,IncDocDate,"<="&$E$3,IncDocDate,">"&$E$2,IncAccountCOS,$A23)+SUMIFS(ExpExcl,ExpDocDate,"<="&$E$3,ExpDocDate,">"&$E$2,ExpAccount,$A23),$C23-SUMIFS(IncExcl,IncDocDate,"<="&$E$3,IncDocDate,">"&$C$3,IncAccount,$A23)+SUMIFS(ExpExcl,ExpDocDate,"<="&$E$3,ExpDocDate,">"&$C$3,ExpAccount,$A23)+IF($A23="BS-1700",-SUMIFS(IncTax1,IncDocDate,"<="&$E$3,IncDocDate,">"&$C$3)+SUMIFS(ExpTax1,ExpDocDate,"<="&$E$3,ExpDocDate,">"&$C$3),0)+IF($A23="BS-1710",-IF(IncTaxCount=2,SUMIFS(IncTax2,IncDocDate,"<="&$E$3,IncDocDate,">"&$C$3),0)+IF(ExpTaxCount=2,SUMIFS(ExpTax2,ExpDocDate,"<="&$E$3,ExpDocDate,">"&$C$3),0),0)) -> 150000 | F23: 30750 | G23: =IF(LEFT($A23,2)="IS",-SUMIFS(IncExcl,IncDocDate,"<="&$G$3,IncDocDate,">"&$G$2,IncAccount,$A23)+SUMIFS(IncCOS,IncDocDate,"<="&$G$3,IncDocDate,">"&$G$2,IncAccountCOS,$A23)+SUMIFS(ExpExcl,ExpDocDate,"<="&$G$3,ExpDocDate,">"&$G$2,ExpAccount,$A23),$C23-SUMIFS(IncExcl,IncDocDate,"<="&$G$3,IncDocDate,">"&$C$3,IncAccount,$A23)+SUMIFS(ExpExcl,ExpDocDate,"<="&$G$3,ExpDocDate,">"&$C$3,ExpAccount,$A23)+IF($A23="BS-1700",-SUMIFS(IncTax1,IncDocDate,"<="&$G$3,IncDocDate,">"&$C$3)+SUMIFS(ExpTax1,ExpDocDate,"<="&$G$3,ExpDocDate,">"&$C$3),0)+IF($A23="BS-1710",-IF(IncTaxCount=2,SUMIFS(IncTax2,IncDocDate,"<="&$G$3,IncDocDate,">"&$C$3),0)+IF(ExpTaxCount=2,SUMIFS(ExpTax2,ExpDocDate,"<="&$G$3,ExpDocDate,">"&$C$3),0),0)) -> 180750 | H23: Group
A24: BS-0500 | B24: Loans & Advances | C24: 12000 | E24: =IF(LEFT($A24,2)="IS",-SUMIFS(IncExcl,IncDocDate,"<="&$E$3,IncDocDate,">"&$E$2,IncAccount,$A24)+SUMIFS(IncCOS,IncDocDate,"<="&$E$3,IncDocDate,">"&$E$2,IncAccountCOS,$A24)+SUMIFS(ExpExcl,ExpDocDate,"<="&$E$3,ExpDocDate,">"&$E$2,ExpAccount,$A24),$C24-SUMIFS(IncExcl,IncDocDate,"<="&$E$3,IncDocDate,">"&$C$3,IncAccount,$A24)+SUMIFS(ExpExcl,ExpDocDate,"<="&$E$3,ExpDocDate,">"&$C$3,ExpAccount,$A24)+IF($A24="BS-1700",-SUMIFS(IncTax1,IncDocDate,"<="&$E$3,IncDocDate,">"&$C$3)+SUMIFS(ExpTax1,ExpDocDate,"<="&$E$3,ExpDocDate,">"&$C$3),0)+IF($A24="BS-1710",-IF(IncTaxCount=2,SUMIFS(IncTax2,IncDocDate,"<="&$E$3,IncDocDate,">"&$C$3),0)+IF(ExpTaxCount=2,SUMIFS(ExpTax2,ExpDocDate,"<="&$E$3,ExpDocDate,">"&$C$3),0),0)) -> 12000 | F24: -12000 | G24: =IF(LEFT($A24,2)="IS",-SUMIFS(IncExcl,IncDocDate,"<="&$G$3,IncDocDate,">"&$G$2,IncAccount,$A24)+SUMIFS(IncCOS,IncDocDate,"<="&$G$3,IncDocDate,">"&$G$2,IncAccountCOS,$A24)+SUMIFS(ExpExcl,ExpDocDate,"<="&$G$3,ExpDocDate,">"&$G$2,ExpAccount,$A24),$C24-SUMIFS(IncExcl,IncDocDate,"<="&$G$3,IncDocDate,">"&$C$3,IncAccount,$A24)+SUMIFS(ExpExcl,ExpDocDate,"<="&$G$3,ExpDocDate,">"&$C$3,ExpAccount,$A24)+IF($A24="BS-1700",-SUMIFS(IncTax1,IncDocDate,"<="&$G$3,IncDocDate,">"&$C$3)+SUMIFS(ExpTax1,ExpDocDate,"<="&$G$3,ExpDocDate,">"&$C$3),0)+IF($A24="BS-1710",-IF(IncTaxCount=2,SUMIFS(IncTax2,IncDocDate,"<="&$G$3,IncDocDate,">"&$C$3),0)+IF(ExpTaxCount=2,SUMIFS(ExpTax2,ExpDocDate,"<="&$G$3,ExpDocDate,">"&$C$3),0),0)) -> 0 | H24: Group
A25: BS-0700 | B25: Cash On Hand | C25: 0 | E25: =IF(LEFT($A25,2)="IS",-SUMIFS(IncExcl,IncDocDate,"<="&$E$3,IncDocDate,">"&$E$2,IncAccount,$A25)+SUMIFS(IncCOS,IncDocDate,"<="&$E$3,IncDocDate,">"&$E$2,IncAccountCOS,$A25)+SUMIFS(ExpExcl,ExpDocDate,"<="&$E$3,ExpDocDate,">"&$E$2,ExpAccount,$A25),$C25-SUMIFS(IncExcl,IncDocDate,"<="&$E$3,IncDocDate,">"&$C$3,IncAccount,$A25)+SUMIFS(ExpExcl,ExpDocDate,"<="&$E$3,ExpDocDate,">"&$C$3,ExpAccount,$A25)+IF($A25="BS-1700",-SUMIFS(IncTax1,IncDocDate,"<="&$E$3,IncDocDate,">"&$C$3)+SUMIFS(ExpTax1,ExpDocDate,"<="&$E$3,ExpDocDate,">"&$C$3),0)+IF($A25="BS-1710",-IF(IncTaxCount=2,SUMIFS(IncTax2,IncDocDate,"<="&$E$3,IncDocDate,">"&$C$3),0)+IF(ExpTaxCount=2,SUMIFS(ExpTax2,ExpDocDate,"<="&$E$3,ExpDocDate,">"&$C$3),0),0)) -> 0 | F25: 0 | G25: =IF(LEFT($A25,2)="IS",-SUMIFS(IncExcl,IncDocDate,"<="&$G$3,IncDocDate,">"&$G$2,IncAccount,$A25)+SUMIFS(IncCOS,IncDocDate,"<="&$G$3,IncDocDate,">"&$G$2,IncAccountCOS,$A25)+SUMIFS(ExpExcl,ExpDocDate,"<="&$G$3,ExpDocDate,">"&$G$2,ExpAccount,$A25),$C25-SUMIFS(IncExcl,IncDocDate,"<="&$G$3,IncDocDate,">"&$C$3,IncAccount,$A25)+SUMIFS(ExpExcl,ExpDocDate,"<="&$G$3,ExpDocDate,">"&$C$3,ExpAccount,$A25)+IF($A25="BS-1700",-SUMIFS(IncTax1,IncDocDate,"<="&$G$3,IncDocDate,">"&$C$3)+SUMIFS(ExpTax1,ExpDocDate,"<="&$G$3,ExpDocDate,">"&$C$3),0)+IF($A25="BS-1710",-IF(IncTaxCount=2,SUMIFS(IncTax2,IncDocDate,"<="&$G$3,IncDocDate,">"&$C$3),0)+IF(ExpTaxCount=2,SUMIFS(ExpTax2,ExpDocDate,"<="&$G$3,ExpDocDate,">"&$C$3),0),0)) -> 0 | H25: Group
A26: BS-0799 | B26: Cash Transfer Control | C26: 0 | E26: =IF(LEFT($A26,2)="IS",-SUMIFS(IncExcl,IncDocDate,"<="&$E$3,IncDocDate,">"&$E$2,IncAccount,$A26)+SUMIFS(IncCOS,IncDocDate,"<="&$E$3,IncDocDate,">"&$E$2,IncAccountCOS,$A26)+SUMIFS(ExpExcl,ExpDocDate,"<="&$E$3,ExpDocDate,">"&$E$2,ExpAccount,$A26),$C26-SUMIFS(IncExcl,IncDocDate,"<="&$E$3,IncDocDate,">"&$C$3,IncAccount,$A26)+SUMIFS(ExpExcl,ExpDocDate,"<="&$E$3,ExpDocDate,">"&$C$3,ExpAccount,$A26)+IF($A26="BS-1700",-SUMIFS(IncTax1,IncDocDate,"<="&$E$3,IncDocDate,">"&$C$3)+SUMIFS(ExpTax1,ExpDocDate,"<="&$E$3,ExpDocDate,">"&$C$3),0)+IF($A26="BS-1710",-IF(IncTaxCount=2,SUMIFS(IncTax2,IncDocDate,"<="&$E$3,IncDocDate,">"&$C$3),0)+IF(ExpTaxCount=2,SUMIFS(ExpTax2,ExpDocDate,"<="&$E$3,ExpDocDate,">"&$C$3),0),0)) -> 0 | F26: 0 | G26: =IF(LEFT($A26,2)="IS",-SUMIFS(IncExcl,IncDocDate,"<="&$G$3,IncDocDate,">"&$G$2,IncAccount,$A26)+SUMIFS(IncCOS,IncDocDate,"<="&$G$3,IncDocDate,">"&$G$2,IncAccountCOS,$A26)+SUMIFS(ExpExcl,ExpDocDate,"<="&$G$3,ExpDocDate,">"&$G$2,ExpAccount,$A26),$C26-SUMIFS(IncExcl,IncDocDate,"<="&$G$3,IncDocDate,">"&$C$3,IncAccount,$A26)+SUMIFS(ExpExcl,ExpDocDate,"<="&$G$3,ExpDocDate,">"&$C$3,ExpAccount,$A26)+IF($A26="BS-1700",-SUMIFS(IncTax1,IncDocDate,"<="&$G$3,IncDocDate,">"&$C$3)+SUMIFS(ExpTax1,ExpDocDate,"<="&$G$3,ExpDocDate,">"&$C$3),0)+IF($A26="BS-1710",-IF(IncTaxCount=2,SUMIFS(IncTax2,IncDocDate,"<="&$G$3,IncDocDate,">"&$C$3),0)+IF(ExpTaxCount=2,SUMIFS(ExpTax2,ExpDocDate,"<="&$G$3,ExpDocDate,">"&$C$3),0),0)) -> 0 | H26: Group
A27: BS-0900 | B27: Other Debtors | C27: 0 | E27: =IF(LEFT($A27,2)="IS",-SUMIFS(IncExcl,IncDocDate,"<="&$E$3,IncDocDate,">"&$E$2,IncAccount,$A27)+SUMIFS(IncCOS,IncDocDate,"<="&$E$3,IncDocDate,">"&$E$2,IncAccountCOS,$A27)+SUMIFS(ExpExcl,ExpDocDate,"<="&$E$3,ExpDocDate,">"&$E$2,ExpAccount,$A27),$C27-SUMIFS(IncExcl,IncDocDate,"<="&$E$3,IncDocDate,">"&$C$3,IncAccount,$A27)+SUMIFS(ExpExcl,ExpDocDate,"<="&$E$3,ExpDocDate,">"&$C$3,ExpAccount,$A27)+IF($A27="BS-1700",-SUMIFS(IncTax1,IncDocDate,"<="&$E$3,IncDocDate,">"&$C$3)+SUMIFS(ExpTax1,ExpDocDate,"<="&$E$3,ExpDocDate,">"&$C$3),0)+IF($A27="BS-1710",-IF(IncTaxCount=2,SUMIFS(IncTax2,IncDocDate,"<="&$E$3,IncDocDate,">"&$C$3),0)+IF(ExpTaxCount=2,SUMIFS(ExpTax2,ExpDocDate,"<="&$E$3,ExpDocDate,">"&$C$3),0),0)) -> 0 | F27: 0 | G27: =IF(LEFT($A27,2)="IS",-SUMIFS(IncExcl,IncDocDate,"<="&$G$3,IncDocDate,">"&$G$2,IncAccount,$A27)+SUMIFS(IncCOS,IncDocDate,"<="&$G$3,IncDocDate,">"&$G$2,IncAccountCOS,$A27)+SUMIFS(ExpExcl,ExpDocDate,"<="&$G$3,ExpDocDate,">"&$G$2,ExpAccount,$A27),$C27-SUMIFS(IncExcl,IncDocDate,"<="&$G$3,IncDocDate,">"&$C$3,IncAccount,$A27)+SUMIFS(ExpExcl,ExpDocDate,"<="&$G$3,ExpDocDate,">"&$C$3,ExpAccount,$A27)+IF($A27="BS-1700",-SUMIFS(IncTax1,IncDocDate,"<="&$G$3,IncDocDate,">"&$C$3)+SUMIFS(ExpTax1,ExpDocDate,"<="&$G$3,ExpDocDate,">"&$C$3),0)+IF($A27="BS-1710",-IF(IncTaxCount=2,SUMIFS(IncTax2,IncDocDate,"<="&$G$3,IncDocDate,">"&$C$3),0)+IF(ExpTaxCount=2,SUMIFS(ExpTax2,ExpDocDate,"<="&$G$3,ExpDocDate,">"&$C$3),0),0)) -> 0 | H27: Group
A28: BS-0905 | B28: Prepayments | C28: 15000 | E28: =IF(LEFT($A28,2)="IS",-SUMIFS(IncExcl,IncDocDate,"<="&$E$3,IncDocDate,">"&$E$2,IncAccount,$A28)+SUMIFS(IncCOS,IncDocDate,"<="&$E$3,IncDocDate,">"&$E$2,IncAccountCOS,$A28)+SUMIFS(ExpExcl,ExpDocDate,"<="&$E$3,ExpDocDate,">"&$E$2,ExpAccount,$A28),$C28-SUMIFS(IncExcl,IncDocDate,"<="&$E$3,IncDocDate,">"&$C$3,IncAccount,$A28)+SUMIFS(ExpExcl,ExpDocDate,"<="&$E$3,ExpDocDate,">"&$C$3,ExpAccount,$A28)+IF($A28="BS-1700",-SUMIFS(IncTax1,IncDocDate,"<="&$E$3,IncDocDate,">"&$C$3)+SUMIFS(ExpTax1,ExpDocDate,"<="&$E$3,ExpDocDate,">"&$C$3),0)+IF($A28="BS-1710",-IF(IncTaxCount=2,SUMIFS(IncTax2,IncDocDate,"<="&$E$3,IncDocDate,">"&$C$3),0)+IF(ExpTaxCount=2,SUMIFS(ExpTax2,ExpDocDate,"<="&$E$3,ExpDocDate,">"&$C$3),0),0)) -> 15000 | F28: -15000 | G28: =IF(LEFT($A28,2)="IS",-SUMIFS(IncExcl,IncDocDate,"<="&$G$3,IncDocDate,">"&$G$2,IncAccount,$A28)+SUMIFS(IncCOS,IncDocDate,"<="&$G$3,IncDocDate,">"&$G$2,IncAccountCOS,$A28)+SUMIFS(ExpExcl,ExpDocDate,"<="&$G$3,ExpDocDate,">"&$G$2,ExpAccount,$A28),$C28-SUMIFS(IncExcl,IncDocDate,"<="&$G$3,IncDocDate,">"&$C$3,IncAccount,$A28)+SUMIFS(ExpExcl,ExpDocDate,"<="&$G$3,ExpDocDate,">"&$C$3,ExpAccount,$A28)+IF($A28="BS-1700",-SUMIFS(IncTax1,IncDocDate,"<="&$G$3,IncDocDate,">"&$C$3)+SUMIFS(ExpTax1,ExpDocDate,"<="&$G$3,ExpDocDate,">"&$C$3),0)+IF($A28="BS-1710",-IF(IncTaxCount=2,SUMIFS(IncTax2,IncDocDate,"<="&$G$3,IncDocDate,">"&$C$3),0)+IF(ExpTaxCount=2,SUMIFS(ExpTax2,ExpDocDate,"<="&$G$3,ExpDocDate,">"&$C$3),0),0)) -> 0 | H28: Group
A29: BS-1300 | B29: Accruals | C29: 0 | E29: =IF(LEFT($A29,2)="IS",-SUMIFS(IncExcl,IncDocDate,"<="&$E$3,IncDocDate,">"&$E$2,IncAccount,$A29)+SUMIFS(IncCOS,IncDocDate,"<="&$E$3,IncDocDate,">"&$E$2,IncAccountCOS,$A29)+SUMIFS(ExpExcl,ExpDocDate,"<="&$E$3,ExpDocDate,">"&$E$2,ExpAccount,$A29),$C29-SUMIFS(IncExcl,IncDocDate,"<="&$E$3,IncDocDate,">"&$C$3,IncAccount,$A29)+SUMIFS(ExpExcl,ExpDocDate,"<="&$E$3,ExpDocDate,">"&$C$3,ExpAccount,$A29)+IF($A29="BS-1700",-SUMIFS(IncTax1,IncDocDate,"<="&$E$3,IncDocDate,">"&$C$3)+SUMIFS(ExpTax1,ExpDocDate,"<="&$E$3,ExpDocDate,">"&$C$3),0)+IF($A29="BS-1710",-IF(IncTaxCount=2,SUMIFS(IncTax2,IncDocDate,"<="&$E$3,IncDocDate,">"&$C$3),0)+IF(ExpTaxCount=2,SUMIFS(ExpTax2,ExpDocDate,"<="&$E$3,ExpDocDate,">"&$C$3),0),0)) -> 0 | F29: 0 | G29: =IF(LEFT($A29,2)="IS",-SUMIFS(IncExcl,IncDocDate,"<="&$G$3,IncDocDate,">"&$G$2,IncAccount,$A29)+SUMIFS(IncCOS,IncDocDate,"<="&$G$3,IncDocDate,">"&$G$2,IncAccountCOS,$A29)+SUMIFS(ExpExcl,ExpDocDate,"<="&$G$3,ExpDocDate,">"&$G$2,ExpAccount,$A29),$C29-SUMIFS(IncExcl,IncDocDate,"<="&$G$3,IncDocDate,">"&$C$3,IncAccount,$A29)+SUMIFS(ExpExcl,ExpDocDate,"<="&$G$3,ExpDocDate,">"&$C$3,ExpAccount,$A29)+IF($A29="BS-1700",-SUMIFS(IncTax1,IncDocDate,"<="&$G$3,IncDocDate,">"&$C$3)+SUMIFS(ExpTax1,ExpDocDate,"<="&$G$3,ExpDocDate,">"&$C$3),0)+IF($A29="BS-1710",-IF(IncTaxCount=2,SUMIFS(IncTax2,IncDocDate,"<="&$G$3,IncDocDate,">"&$C$3),0)+IF(ExpTaxCount=2,SUMIFS(ExpTax2,ExpDocDate,"<="&$G$3,ExpDocDate,">"&$C$3),0),0)) -> 0 | H29: Group
A30: BS-1305 | B30: Payroll Accruals | C30: 0 | E30: =IF(LEFT($A30,2)="IS",-SUMIFS(IncExcl,IncDocDate,"<="&$E$3,IncDocDate,">"&$E$2,IncAccount,$A30)+SUMIFS(IncCOS,IncDocDate,"<="&$E$3,IncDocDate,">"&$E$2,IncAccountCOS,$A30)+SUMIFS(ExpExcl,ExpDocDate,"<="&$E$3,ExpDocDate,">"&$E$2,ExpAccount,$A30),$C30-SUMIFS(IncExcl,IncDocDate,"<="&$E$3,IncDocDate,">"&$C$3,IncAccount,$A30)+SUMIFS(ExpExcl,ExpDocDate,"<="&$E$3,ExpDocDate,">"&$C$3,ExpAccount,$A30)+IF($A30="BS-1700",-SUMIFS(IncTax1,IncDocDate,"<="&$E$3,IncDocDate,">"&$C$3)+SUMIFS(ExpTax1,ExpDocDate,"<="&$E$3,ExpDocDate,">"&$C$3),0)+IF($A30="BS-1710",-IF(IncTaxCount=2,SUMIFS(IncTax2,IncDocDate,"<="&$E$3,IncDocDate,">"&$C$3),0)+IF(ExpTaxCount=2,SUMIFS(ExpTax2,ExpDocDate,"<="&$E$3,ExpDocDate,">"&$C$3),0),0)) -> 0 | F30: 0 | G30: =IF(LEFT($A30,2)="IS",-SUMIFS(IncExcl,IncDocDate,"<="&$G$3,IncDocDate,">"&$G$2,IncAccount,$A30)+SUMIFS(IncCOS,IncDocDate,"<="&$G$3,IncDocDate,">"&$G$2,IncAccountCOS,$A30)+SUMIFS(ExpExcl,ExpDocDate,"<="&$G$3,ExpDocDate,">"&$G$2,ExpAccount,$A30),$C30-SUMIFS(IncExcl,IncDocDate,"<="&$G$3,IncDocDate,">"&$C$3,IncAccount,$A30)+SUMIFS(ExpExcl,ExpDocDate,"<="&$G$3,ExpDocDate,">"&$C$3,ExpAccount,$A30)+IF($A30="BS-1700",-SUMIFS(IncTax1,IncDocDate,"<="&$G$3,IncDocDate,">"&$C$3)+SUMIFS(ExpTax1,ExpDocDate,"<="&$G$3,ExpDocDate,">"&$C$3),0)+IF($A30="BS-1710",-IF(IncTaxCount=2,SUMIFS(IncTax2,IncDocDate,"<="&$G$3,IncDocDate,">"&$C$3),0)+IF(ExpTaxCount=2,SUMIFS(ExpTax2,ExpDocDate,"<="&$G$3,ExpDocDate,">"&$C$3),0),0)) -> 0 | H30: Group
A31: BS-1310 | B31: Interest Payable | C31: 0 | E31: =IF(LEFT($A31,2)="IS",-SUMIFS(IncExcl,IncDocDate,"<="&$E$3,IncDocDate,">"&$E$2,IncAccount,$A31)+SUMIFS(IncCOS,IncDocDate,"<="&$E$3,IncDocDate,">"&$E$2,IncAccountCOS,$A31)+SUMIFS(ExpExcl,ExpDocDate,"<="&$E$3,ExpDocDate,">"&$E$2,ExpAccount,$A31),$C31-SUMIFS(IncExcl,IncDocDate,"<="&$E$3,IncDocDate,">"&$C$3,IncAccount,$A31)+SUMIFS(ExpExcl,ExpDocDate,"<="&$E$3,ExpDocDate,">"&$C$3,ExpAccount,$A31)+IF($A31="BS-1700",-SUMIFS(IncTax1,IncDocDate,"<="&$E$3,IncDocDate,">"&$C$3)+SUMIFS(ExpTax1,ExpDocDate,"<="&$E$3,ExpDocDate,">"&$C$3),0)+IF($A31="BS-1710",-IF(IncTaxCount=2,SUMIFS(IncTax2,IncDocDate,"<="&$E$3,IncDocDate,">"&$C$3),0)+IF(ExpTaxCount=2,SUMIFS(ExpTax2,ExpDocDate,"<="&$E$3,ExpDocDate,">"&$C$3),0),0)) -> 0 | F31: 0 | G31: =IF(LEFT($A31,2)="IS",-SUMIFS(IncExcl,IncDocDate,"<="&$G$3,IncDocDate,">"&$G$2,IncAccount,$A31)+SUMIFS(IncCOS,IncDocDate,"<="&$G$3,IncDocDate,">"&$G$2,IncAccountCOS,$A31)+SUMIFS(ExpExcl,ExpDocDate,"<="&$G$3,ExpDocDate,">"&$G$2,ExpAccount,$A31),$C31-SUMIFS(IncExcl,IncDocDate,"<="&$G$3,IncDocDate,">"&$C$3,IncAccount,$A31)+SUMIFS(ExpExcl,ExpDocDate,"<="&$G$3,ExpDocDate,">"&$C$3,ExpAccount,$A31)+IF($A31="BS-1700",-SUMIFS(IncTax1,IncDocDate,"<="&$G$3,IncDocDate,">"&$C$3)+SUMIFS(ExpTax1,ExpDocDate,"<="&$G$3,ExpDocDate,">"&$C$3),0)+IF($A31="BS-1710",-IF(IncTaxCount=2,SUMIFS(IncTax2,IncDocDate,"<="&$G$3,IncDocDate,">"&$C$3),0)+IF(ExpTaxCount=2,SUMIFS(ExpTax2,ExpDocDate,"<="&$G$3,ExpDocDate,">"&$C$3),0),0)) -> 0 | H31: Group
A32: BS-1405 | B32: Dividends Payable | C32: 0 | E32: =IF(LEFT($A32,2)="IS",-SUMIFS(IncExcl,IncDocDate,"<="&$E$3,IncDocDate,">"&$E$2,IncAccount,$A32)+SUMIFS(IncCOS,IncDocDate,"<="&$E$3,IncDocDate,">"&$E$2,IncAccountCOS,$A32)+SUMIFS(ExpExcl,ExpDocDate,"<="&$E$3,ExpDocDate,">"&$E$2,ExpAccount,$A32),$C32-SUMIFS(IncExcl,IncDocDate,"<="&$E$3,IncDocDate,">"&$C$3,IncAccount,$A32)+SUMIFS(ExpExcl,ExpDocDate,"<="&$E$3,ExpDocDate,">"&$C$3,ExpAccount,$A32)+IF($A32="BS-1700",-SUMIFS(IncTax1,IncDocDate,"<="&$E$3,IncDocDate,">"&$C$3)+SUMIFS(ExpTax1,ExpDocDate,"<="&$E$3,ExpDocDate,">"&$C$3),0)+IF($A32="BS-1710",-IF(IncTaxCount=2,SUMIFS(IncTax2,IncDocDate,"<="&$E$3,IncDocDate,">"&$C$3),0)+IF(ExpTaxCount=2,SUMIFS(ExpTax2,ExpDocDate,"<="&$E$3,ExpDocDate,">"&$C$3),0),0)) -> 0 | F32: -78500 | G32: =IF(LEFT($A32,2)="IS",-SUMIFS(IncExcl,IncDocDate,"<="&$G$3,IncDocDate,">"&$G$2,IncAccount,$A32)+SUMIFS(IncCOS,IncDocDate,"<="&$G$3,IncDocDate,">"&$G$2,IncAccountCOS,$A32)+SUMIFS(ExpExcl,ExpDocDate,"<="&$G$3,ExpDocDate,">"&$G$2,ExpAccount,$A32),$C32-SUMIFS(IncExcl,IncDocDate,"<="&$G$3,IncDocDate,">"&$C$3,IncAccount,$A32)+SUMIFS(ExpExcl,ExpDocDate,"<="&$G$3,ExpDocDate,">"&$C$3,ExpAccount,$A32)+IF($A32="BS-1700",-SUMIFS(IncTax1,IncDocDate,"<="&$G$3,IncDocDate,">"&$C$3)+SUMIFS(ExpTax1,ExpDocDate,"<="&$G$3,ExpDocDate,">"&$C$3),0)+IF($A32="BS-1710",-IF(IncTaxCount=2,SUMIFS(IncTax2,IncDocDate,"<="&$G$3,IncDocDate,">"&$C$3),0)+IF(ExpTaxCount=2,SUMIFS(ExpTax2,ExpDocDate,"<="&$G$3,ExpDocDate,">"&$C$3),0),0)) -> -78500 | H32: Group
A33: BS-1505 | B33: Provision For Taxation | C33: 0 | E33: =IF(LEFT($A33,2)="IS",-SUMIFS(IncExcl,IncDocDate,"<="&$E$3,IncDocDate,">"&$E$2,IncAccount,$A33)+SUMIFS(IncCOS,IncDocDate,"<="&$E$3,IncDocDate,">"&$E$2,IncAccountCOS,$A33)+SUMIFS(ExpExcl,ExpDocDate,"<="&$E$3,ExpDocDate,">"&$E$2,ExpAccount,$A33),$C33-SUMIFS(IncExcl,IncDocDate,"<="&$E$3,IncDocDate,">"&$C$3,IncAccount,$A33)+SUMIFS(ExpExcl,ExpDocDate,"<="&$E$3,ExpDocDate,">"&$C$3,ExpAccount,$A33)+IF($A33="BS-1700",-SUMIFS(IncTax1,IncDocDate,"<="&$E$3,IncDocDate,">"&$C$3)+SUMIFS(ExpTax1,ExpDocDate,"<="&$E$3,ExpDocDate,">"&$C$3),0)+IF($A33="BS-1710",-IF(IncTaxCount=2,SUMIFS(IncTax2,IncDocDate,"<="&$E$3,IncDocDate,">"&$C$3),0)+IF(ExpTaxCount=2,SUMIFS(ExpTax2,ExpDocDate,"<="&$E$3,ExpDocDate,">"&$C$3),0),0)) -> 0 | F33: 0 | G33: =IF(LEFT($A33,2)="IS",-SUMIFS(IncExcl,IncDocDate,"<="&$G$3,IncDocDate,">"&$G$2,IncAccount,$A33)+SUMIFS(IncCOS,IncDocDate,"<="&$G$3,IncDocDate,">"&$G$2,IncAccountCOS,$A33)+SUMIFS(ExpExcl,ExpDocDate,"<="&$G$3,ExpDocDate,">"&$G$2,ExpAccount,$A33),$C33-SUMIFS(IncExcl,IncDocDate,"<="&$G$3,IncDocDate,">"&$C$3,IncAccount,$A33)+SUMIFS(ExpExcl,ExpDocDate,"<="&$G$3,ExpDocDate,">"&$C$3,ExpAccount,$A33)+IF($A33="BS-1700",-SUMIFS(IncTax1,IncDocDate,"<="&$G$3,IncDocDate,">"&$C$3)+SUMIFS(ExpTax1,ExpDocDate,"<="&$G$3,ExpDocDate,">"&$C$3),0)+IF($A33="BS-1710",-IF(IncTaxCount=2,SUMIFS(IncTax2,IncDocDate,"<="&$G$3,IncDocDate,">"&$C$3),0)+IF(ExpTaxCount=2,SUMIFS(ExpTax2,ExpDocDate,"<="&$G$3,ExpDocDate,">"&$C$3),0),0)) -> 0 | H33: Group
A34: BS-1610 | B34: Provision For Bonuses | C34: 0 | E34: =IF(LEFT($A34,2)="IS",-SUMIFS(IncExcl,IncDocDate,"<="&$E$3,IncDocDate,">"&$E$2,IncAccount,$A34)+SUMIFS(IncCOS,IncDocDate,"<="&$E$3,IncDocDate,">"&$E$2,IncAccountCOS,$A34)+SUMIFS(ExpExcl,ExpDocDate,"<="&$E$3,ExpDocDate,">"&$E$2,ExpAccount,$A34),$C34-SUMIFS(IncExcl,IncDocDate,"<="&$E$3,IncDocDate,">"&$C$3,IncAccount,$A34)+SUMIFS(ExpExcl,ExpDocDate,"<="&$E$3,ExpDocDate,">"&$C$3,ExpAccount,$A34)+IF($A34="BS-1700",-SUMIFS(IncTax1,IncDocDate,"<="&$E$3,IncDocDate,">"&$C$3)+SUMIFS(ExpTax1,ExpDocDate,"<="&$E$3,ExpDocDate,">"&$C$3),0)+IF($A34="BS-1710",-IF(IncTaxCount=2,SUMIFS(IncTax2,IncDocDate,"<="&$E$3,IncDocDate,">"&$C$3),0)+IF(ExpTaxCount=2,SUMIFS(ExpTax2,ExpDocDate,"<="&$E$3,ExpDocDate,">"&$C$3),0),0)) -> 0 | F34: 0 | G34: =IF(LEFT($A34,2)="IS",-SUMIFS(IncExcl,IncDocDate,"<="&$G$3,IncDocDate,">"&$G$2,IncAccount,$A34)+SUMIFS(IncCOS,IncDocDate,"<="&$G$3,IncDocDate,">"&$G$2,IncAccountCOS,$A34)+SUMIFS(ExpExcl,ExpDocDate,"<="&$G$3,ExpDocDate,">"&$G$2,ExpAccount,$A34),$C34-SUMIFS(IncExcl,IncDocDate,"<="&$G$3,IncDocDate,">"&$C$3,IncAccount,$A34)+SUMIFS(ExpExcl,ExpDocDate,"<="&$G$3,ExpDocDate,">"&$C$3,ExpAccount,$A34)+IF($A34="BS-1700",-SUMIFS(IncTax1,IncDocDate,"<="&$G$3,IncDocDate,">"&$C$3)+SUMIFS(ExpTax1,ExpDocDate,"<="&$G$3,ExpDocDate,">"&$C$3),0)+IF($A34="BS-1710",-IF(IncTaxCount=2,SUMIFS(IncTax2,IncDocDate,"<="&$G$3,IncDocDate,">"&$C$3),0)+IF(ExpTaxCount=2,SUMIFS(ExpTax2,ExpDocDate,"<="&$G$3,ExpDocDate,">"&$C$3),0),0)) -> 0 | H34: Group
A35: BS-1700 | B35: Sales Tax 1 Control - National / Federal | C35: -30240 | E35: =IF(LEFT($A35,2)="IS",-SUMIFS(IncExcl,IncDocDate,"<="&$E$3,IncDocDate,">"&$E$2,IncAccount,$A35)+SUMIFS(IncCOS,IncDocDate,"<="&$E$3,IncDocDate,">"&$E$2,IncAccountCOS,$A35)+SUMIFS(ExpExcl,ExpDocDate,"<="&$E$3,ExpDocDate,">"&$E$2,ExpAccount,$A35),$C35-SUMIFS(IncExcl,IncDocDate,"<="&$E$3,IncDocDate,">"&$C$3,IncAccount,$A35)+SUMIFS(ExpExcl,ExpDocDate,"<="&$E$3,ExpDocDate,">"&$C$3,ExpAccount,$A35)+IF($A35="BS-1700",-SUMIFS(IncTax1,IncDocDate,"<="&$E$3,IncDocDate,">"&$C$3)+SUMIFS(ExpTax1,ExpDocDate,"<="&$E$3,ExpDocDate,">"&$C$3),0)+IF($A35="BS-1710",-IF(IncTaxCount=2,SUMIFS(IncTax2,IncDocDate,"<="&$E$3,IncDocDate,">"&$C$3),0)+IF(ExpTaxCount=2,SUMIFS(ExpTax2,ExpDocDate,"<="&$E$3,ExpDocDate,">"&$C$3),0),0)) -> -30240 | F35: 6014.350217 | G35: =IF(LEFT($A35,2)="IS",-SUMIFS(IncExcl,IncDocDate,"<="&$G$3,IncDocDate,">"&$G$2,IncAccount,$A35)+SUMIFS(IncCOS,IncDocDate,"<="&$G$3,IncDocDate,">"&$G$2,IncAccountCOS,$A35)+SUMIFS(ExpExcl,ExpDocDate,"<="&$G$3,ExpDocDate,">"&$G$2,ExpAccount,$A35),$C35-SUMIFS(IncExcl,IncDocDate,"<="&$G$3,IncDocDate,">"&$C$3,IncAccount,$A35)+SUMIFS(ExpExcl,ExpDocDate,"<="&$G$3,ExpDocDate,">"&$C$3,ExpAccount,$A35)+IF($A35="BS-1700",-SUMIFS(IncTax1,IncDocDate,"<="&$G$3,IncDocDate,">"&$C$3)+SUMIFS(ExpTax1,ExpDocDate,"<="&$G$3,ExpDocDate,">"&$C$3),0)+IF($A35="BS-1710",-IF(IncTaxCount=2,SUMIFS(IncTax2,IncDocDate,"<="&$G$3,IncDocDate,">"&$C$3),0)+IF(ExpTaxCount=2,SUMIFS(ExpTax2,ExpDocDate,"<="&$G$3,ExpDocDate,">"&$C$3),0),0)) -> -24225.64978 | H35: Account
A36: BS-1710 | B36: Sales Tax 2 Control - State | C36: 0 | E36: =IF(LEFT($A36,2)="IS",-SUMIFS(IncExcl,IncDocDate,"<="&$E$3,IncDocDate,">"&$E$2,IncAccount,$A36)+SUMIFS(IncCOS,IncDocDate,"<="&$E$3,IncDocDate,">"&$E$2,IncAccountCOS,$A36)+SUMIFS(ExpExcl,ExpDocDate,"<="&$E$3,ExpDocDate,">"&$E$2,ExpAccount,$A36),$C36-SUMIFS(IncExcl,IncDocDate,"<="&$E$3,IncDocDate,">"&$C$3,IncAccount,$A36)+SUMIFS(ExpExcl,ExpDocDate,"<="&$E$3,ExpDocDate,">"&$C$3,ExpAccount,$A36)+IF($A36="BS-1700",-SUMIFS(IncTax1,IncDocDate,"<="&$E$3,IncDocDate,">"&$C$3)+SUMIFS(ExpTax1,ExpDocDate,"<="&$E$3,ExpDocDate,">"&$C$3),0)+IF($A36="BS-1710",-IF(IncTaxCount=2,SUMIFS(IncTax2,IncDocDate,"<="&$E$3,IncDocDate,">"&$C$3),0)+IF(ExpTaxCount=2,SUMIFS(ExpTax2,ExpDocDate,"<="&$E$3,ExpDocDate,">"&$C$3),0),0)) -> 0 | F36: =G36-E36 -> 0 | G36: =IF(LEFT($A36,2)="IS",-SUMIFS(IncExcl,IncDocDate,"<="&$G$3,IncDocDate,">"&$G$2,IncAccount,$A36)+SUMIFS(IncCOS,IncDocDate,"<="&$G$3,IncDocDate,">"&$G$2,IncAccountCOS,$A36)+SUMIFS(ExpExcl,ExpDocDate,"<="&$G$3,ExpDocDate,">"&$G$2,ExpAccount,$A36),$C36-SUMIFS(IncExcl,IncDocDate,"<="&$G$3,IncDocDate,">"&$C$3,IncAccount,$A36)+SUMIFS(ExpExcl,ExpDocDate,"<="&$G$3,ExpDocDate,">"&$C$3,ExpAccount,$A36)+IF($A36="BS-1700",-SUMIFS(IncTax1,IncDocDate,"<="&$G$3,IncDocDate,">"&$C$3)+SUMIFS(ExpTax1,ExpDocDate,"<="&$G$3,ExpDocDate,">"&$C$3),0)+IF($A36="BS-1710",-IF(IncTaxCount=2,SUMIFS(IncTax2,IncDocDate,"<="&$G$3,IncDocDate,">"&$C$3),0)+IF(ExpTaxCount=2,SUMIFS(ExpTax2,ExpDocDate,"<="&$G$3,ExpDocDate,">"&$C$3),0),0)) -> 0 | H36: Account
A37: BS-1805 | B37: Long Term Loans | C37: -200000 | E37: =IF(LEFT($A37,2)="IS",-SUMIFS(IncExcl,IncDocDate,"<="&$E$3,IncDocDate,">"&$E$2,IncAccount,$A37)+SUMIFS(IncCOS,IncDocDate,"<="&$E$3,IncDocDate,">"&$E$2,IncAccountCOS,$A37)+SUMIFS(ExpExcl,ExpDocDate,"<="&$E$3,ExpDocDate,">"&$E$2,ExpAccount,$A37),$C37-SUMIFS(IncExcl,IncDocDate,"<="&$E$3,IncDocDate,">"&$C$3,IncAccount,$A37)+SUMIFS(ExpExcl,ExpDocDate,"<="&$E$3,ExpDocDate,">"&$C$3,ExpAccount,$A37)+IF($A37="BS-1700",-SUMIFS(IncTax1,IncDocDate,"<="&$E$3,IncDocDate,">"&$C$3)+SUMIFS(ExpTax1,ExpDocDate,"<="&$E$3,ExpDocDate,">"&$C$3),0)+IF($A37="BS-1710",-IF(IncTaxCount=2,SUMIFS(IncTax2,IncDocDate,"<="&$E$3,IncDocDate,">"&$C$3),0)+IF(ExpTaxCount=2,SUMIFS(ExpTax2,ExpDocDate,"<="&$E$3,ExpDocDate,">"&$C$3),0),0)) -> -200000 | F37: -16249.61 | G37: =IF(LEFT($A37,2)="IS",-SUMIFS(IncExcl,IncDocDate,"<="&$G$3,IncDocDate,">"&$G$2,IncAccount,$A37)+SUMIFS(IncCOS,IncDocDate,"<="&$G$3,IncDocDate,">"&$G$2,IncAccountCOS,$A37)+SUMIFS(ExpExcl,ExpDocDate,"<="&$G$3,ExpDocDate,">"&$G$2,ExpAccount,$A37),$C37-SUMIFS(IncExcl,IncDocDate,"<="&$G$3,IncDocDate,">"&$C$3,IncAccount,$A37)+SUMIFS(ExpExcl,ExpDocDate,"<="&$G$3,ExpDocDate,">"&$C$3,ExpAccount,$A37)+IF($A37="BS-1700",-SUMIFS(IncTax1,IncDocDate,"<="&$G$3,IncDocDate,">"&$C$3)+SUMIFS(ExpTax1,ExpDocDate,"<="&$G$3,ExpDocDate,">"&$C$3),0)+IF($A37="BS-1710",-IF(IncTaxCount=2,SUMIFS(IncTax2,IncDocDate,"<="&$G$3,IncDocDate,">"&$C$3),0)+IF(ExpTaxCount=2,SUMIFS(ExpTax2,ExpDocDate,"<="&$G$3,ExpDocDate,">"&$C$3),0),0)) -> -216249.61 | H37: Group
A38: BS-1900 | B38: Reserves | C38: 0 | E38: =IF(LEFT($A38,2)="IS",-SUMIFS(IncExcl,IncDocDate,"<="&$E$3,IncDocDate,">"&$E$2,IncAccount,$A38)+SUMIFS(IncCOS,IncDocDate,"<="&$E$3,IncDocDate,">"&$E$2,IncAccountCOS,$A38)+SUMIFS(ExpExcl,ExpDocDate,"<="&$E$3,ExpDocDate,">"&$E$2,ExpAccount,$A38),$C38-SUMIFS(IncExcl,IncDocDate,"<="&$E$3,IncDocDate,">"&$C$3,IncAccount,$A38)+SUMIFS(ExpExcl,ExpDocDate,"<="&$E$3,ExpDocDate,">"&$C$3,ExpAccount,$A38)+IF($A38="BS-1700",-SUMIFS(IncTax1,IncDocDate,"<="&$E$3,IncDocDate,">"&$C$3)+SUMIFS(ExpTax1,ExpDocDate,"<="&$E$3,ExpDocDate,">"&$C$3),0)+IF($A38="BS-1710",-IF(IncTaxCount=2,SUMIFS(IncTax2,IncDocDate,"<="&$E$3,IncDocDate,">"&$C$3),0)+IF(ExpTaxCount=2,SUMIFS(ExpTax2,ExpDocDate,"<="&$E$3,ExpDocDate,">"&$C$3),0),0)) -> 0 | F38: 0 | G38: =IF(LEFT($A38,2)="IS",-SUMIFS(IncExcl,IncDocDate,"<="&$G$3,IncDocDate,">"&$G$2,IncAccount,$A38)+SUMIFS(IncCOS,IncDocDate,"<="&$G$3,IncDocDate,">"&$G$2,IncAccountCOS,$A38)+SUMIFS(ExpExcl,ExpDocDate,"<="&$G$3,ExpDocDate,">"&$G$2,ExpAccount,$A38),$C38-SUMIFS(IncExcl,IncDocDate,"<="&$G$3,IncDocDate,">"&$C$3,IncAccount,$A38)+SUMIFS(ExpExcl,ExpDocDate,"<="&$G$3,ExpDocDate,">"&$C$3,ExpAccount,$A38)+IF($A38="BS-1700",-SUMIFS(IncTax1,IncDocDate,"<="&$G$3,IncDocDate,">"&$C$3)+SUMIFS(ExpTax1,ExpDocDate,"<="&$G$3,ExpDocDate,">"&$C$3),0)+IF($A38="BS-1710",-IF(IncTaxCount=2,SUMIFS(IncTax2,IncDocDate,"<="&$G$3,IncDocDate,">"&$C$3),0)+IF(ExpTaxCount=2,SUMIFS(ExpTax2,ExpDocDate,"<="&$G$3,ExpDocDate,">"&$C$3),0),0)) -> 0 | H38: =IF(LEFT($A38,2)="BS",IF(ISNA(MATCH(LEFT($A38,5)&"G",KeyBS,0)),IF(ISNA(MATCH($A38,KeyBS,0)),"Error!","Account"),IF(ISNA(MATCH($A38,KeyBS,0)),"Group","Double!")),IF(ISNA(MATCH(LEFT($A38,5)&"G",KeyIS,0)),IF(ISNA(MATCH($A38,KeyIS,0)),"Error!","Account"),IF(ISNA(MATCH($A38,KeyIS,0)),"Group","Double!"))) -> Group
A39: BS-2000 | B39: Shareholders' Contributions | C39: -100 | E39: =IF(LEFT($A39,2)="IS",-SUMIFS(IncExcl,IncDocDate,"<="&$E$3,IncDocDate,">"&$E$2,IncAccount,$A39)+SUMIFS(IncCOS,IncDocDate,"<="&$E$3,IncDocDate,">"&$E$2,IncAccountCOS,$A39)+SUMIFS(ExpExcl,ExpDocDate,"<="&$E$3,ExpDocDate,">"&$E$2,ExpAccount,$A39),$C39-SUMIFS(IncExcl,IncDocDate,"<="&$E$3,IncDocDate,">"&$C$3,IncAccount,$A39)+SUMIFS(ExpExcl,ExpDocDate,"<="&$E$3,ExpDocDate,">"&$C$3,ExpAccount,$A39)+IF($A39="BS-1700",-SUMIFS(IncTax1,IncDocDate,"<="&$E$3,IncDocDate,">"&$C$3)+SUMIFS(ExpTax1,ExpDocDate,"<="&$E$3,ExpDocDate,">"&$C$3),0)+IF($A39="BS-1710",-IF(IncTaxCount=2,SUMIFS(IncTax2,IncDocDate,"<="&$E$3,IncDocDate,">"&$C$3),0)+IF(ExpTaxCount=2,SUMIFS(ExpTax2,ExpDocDate,"<="&$E$3,ExpDocDate,">"&$C$3),0),0)) -> -100 | F39: 0 | G39: =IF(LEFT($A39,2)="IS",-SUMIFS(IncExcl,IncDocDate,"<="&$G$3,IncDocDate,">"&$G$2,IncAccount,$A39)+SUMIFS(IncCOS,IncDocDate,"<="&$G$3,IncDocDate,">"&$G$2,IncAccountCOS,$A39)+SUMIFS(ExpExcl,ExpDocDate,"<="&$G$3,ExpDocDate,">"&$G$2,ExpAccount,$A39),$C39-SUMIFS(IncExcl,IncDocDate,"<="&$G$3,IncDocDate,">"&$C$3,IncAccount,$A39)+SUMIFS(ExpExcl,ExpDocDate,"<="&$G$3,ExpDocDate,">"&$C$3,ExpAccount,$A39)+IF($A39="BS-1700",-SUMIFS(IncTax1,IncDocDate,"<="&$G$3,IncDocDate,">"&$C$3)+SUMIFS(ExpTax1,ExpDocDate,"<="&$G$3,ExpDocDate,">"&$C$3),0)+IF($A39="BS-1710",-IF(IncTaxCount=2,SUMIFS(IncTax2,IncDocDate,"<="&$G$3,IncDocDate,">"&$C$3),0)+IF(ExpTaxCount=2,SUMIFS(ExpTax2,ExpDocDate,"<="&$G$3,ExpDocDate,">"&$C$3),0),0)) -> -100 | H39: Group
A40: IS-0105 | B40: Sales - Fruit Juice | E40: =IF(LEFT($A40,2)="IS",-SUMIFS(IncExcl,IncDocDate,"<="&$E$3,IncDocDate,">"&$E$2,IncAccount,$A40)+SUMIFS(IncCOS,IncDocDate,"<="&$E$3,IncDocDate,">"&$E$2,IncAccountCOS,$A40)+SUMIFS(ExpExcl,ExpDocDate,"<="&$E$3,ExpDocDate,">"&$E$2,ExpAccount,$A40),$C40-SUMIFS(IncExcl,IncDocDate,"<="&$E$3,IncDocDate,">"&$C$3,IncAccount,$A40)+SUMIFS(ExpExcl,ExpDocDate,"<="&$E$3,ExpDocDate,">"&$C$3,ExpAccount,$A40)+IF($A40="BS-1700",-SUMIFS(IncTax1,IncDocDate,"<="&$E$3,IncDocDate,">"&$C$3)+SUMIFS(ExpTax1,ExpDocDate,"<="&$E$3,ExpDocDate,">"&$C$3),0)+IF($A40="BS-1710",-IF(IncTaxCount=2,SUMIFS(IncTax2,IncDocDate,"<="&$E$3,IncDocDate,">"&$C$3),0)+IF(ExpTaxCount=2,SUMIFS(ExpTax2,ExpDocDate,"<="&$E$3,ExpDocDate,">"&$C$3),0),0)) -> 0 | F40: -2370245 | G40: =IF(LEFT($A40,2)="IS",-SUMIFS(IncExcl,IncDocDate,"<="&$G$3,IncDocDate,">"&$G$2,IncAccount,$A40)+SUMIFS(IncCOS,IncDocDate,"<="&$G$3,IncDocDate,">"&$G$2,IncAccountCOS,$A40)+SUMIFS(ExpExcl,ExpDocDate,"<="&$G$3,ExpDocDate,">"&$G$2,ExpAccount,$A40),$C40-SUMIFS(IncExcl,IncDocDate,"<="&$G$3,IncDocDate,">"&$C$3,IncAccount,$A40)+SUMIFS(ExpExcl,ExpDocDate,"<="&$G$3,ExpDocDate,">"&$C$3,ExpAccount,$A40)+IF($A40="BS-1700",-SUMIFS(IncTax1,IncDocDate,"<="&$G$3,IncDocDate,">"&$C$3)+SUMIFS(ExpTax1,ExpDocDate,"<="&$G$3,ExpDocDate,">"&$C$3),0)+IF($A40="BS-1710",-IF(IncTaxCount=2,SUMIFS(IncTax2,IncDocDate,"<="&$G$3,IncDocDate,">"&$C$3),0)+IF(ExpTaxCount=2,SUMIFS(ExpTax2,ExpDocDate,"<="&$G$3,ExpDocDate,">"&$C$3),0),0)) -> -2370245 | H40: Account
A41: IS-0110 | B41: Sales - Vegetable Juice | E41: =IF(LEFT($A41,2)="IS",-SUMIFS(IncExcl,IncDocDate,"<="&$E$3,IncDocDate,">"&$E$2,IncAccount,$A41)+SUMIFS(IncCOS,IncDocDate,"<="&$E$3,IncDocDate,">"&$E$2,IncAccountCOS,$A41)+SUMIFS(ExpExcl,ExpDocDate,"<="&$E$3,ExpDocDate,">"&$E$2,ExpAccount,$A41),$C41-SUMIFS(IncExcl,IncDocDate,"<="&$E$3,IncDocDate,">"&$C$3,IncAccount,$A41)+SUMIFS(ExpExcl,ExpDocDate,"<="&$E$3,ExpDocDate,">"&$C$3,ExpAccount,$A41)+IF($A41="BS-1700",-SUMIFS(IncTax1,IncDocDate,"<="&$E$3,IncDocDate,">"&$C$3)+SUMIFS(ExpTax1,ExpDocDate,"<="&$E$3,ExpDocDate,">"&$C$3),0)+IF($A41="BS-1710",-IF(IncTaxCount=2,SUMIFS(IncTax2,IncDocDate,"<="&$E$3,IncDocDate,">"&$C$3),0)+IF(ExpTaxCount=2,SUMIFS(ExpTax2,ExpDocDate,"<="&$E$3,ExpDocDate,">"&$C$3),0),0)) -> 0 | F41: -1541377.5 | G41: =IF(LEFT($A41,2)="IS",-SUMIFS(IncExcl,IncDocDate,"<="&$G$3,IncDocDate,">"&$G$2,IncAccount,$A41)+SUMIFS(IncCOS,IncDocDate,"<="&$G$3,IncDocDate,">"&$G$2,IncAccountCOS,$A41)+SUMIFS(ExpExcl,ExpDocDate,"<="&$G$3,ExpDocDate,">"&$G$2,ExpAccount,$A41),$C41-SUMIFS(IncExcl,IncDocDate,"<="&$G$3,IncDocDate,">"&$C$3,IncAccount,$A41)+SUMIFS(ExpExcl,ExpDocDate,"<="&$G$3,ExpDocDate,">"&$C$3,ExpAccount,$A41)+IF($A41="BS-1700",-SUMIFS(IncTax1,IncDocDate,"<="&$G$3,IncDocDate,">"&$C$3)+SUMIFS(ExpTax1,ExpDocDate,"<="&$G$3,ExpDocDate,">"&$C$3),0)+IF($A41="BS-1710",-IF(IncTaxCount=2,SUMIFS(IncTax2,IncDocDate,"<="&$G$3,IncDocDate,">"&$C$3),0)+IF(ExpTaxCount=2,SUMIFS(ExpTax2,ExpDocDate,"<="&$G$3,ExpDocDate,">"&$C$3),0),0)) -> -1541377.5 | H41: Account
A42: IS-0205 | B42: Cost of Sales - Fruit Juice | E42: =IF(LEFT($A42,2)="IS",-SUMIFS(IncExcl,IncDocDate,"<="&$E$3,IncDocDate,">"&$E$2,IncAccount,$A42)+SUMIFS(IncCOS,IncDocDate,"<="&$E$3,IncDocDate,">"&$E$2,IncAccountCOS,$A42)+SUMIFS(ExpExcl,ExpDocDate,"<="&$E$3,ExpDocDate,">"&$E$2,ExpAccount,$A42),$C42-SUMIFS(IncExcl,IncDocDate,"<="&$E$3,IncDocDate,">"&$C$3,IncAccount,$A42)+SUMIFS(ExpExcl,ExpDocDate,"<="&$E$3,ExpDocDate,">"&$C$3,ExpAccount,$A42)+IF($A42="BS-1700",-SUMIFS(IncTax1,IncDocDate,"<="&$E$3,IncDocDate,">"&$C$3)+SUMIFS(ExpTax1,ExpDocDate,"<="&$E$3,ExpDocDate,">"&$C$3),0)+IF($A42="BS-1710",-IF(IncTaxCount=2,SUMIFS(IncTax2,IncDocDate,"<="&$E$3,IncDocDate,">"&$C$3),0)+IF(ExpTaxCount=2,SUMIFS(ExpTax2,ExpDocDate,"<="&$E$3,ExpDocDate,">"&$C$3),0),0)) -> 0 | F42: =G42-E42 -> 1123093.848 | G42: =IF(LEFT($A42,2)="IS",-SUMIFS(IncExcl,IncDocDate,"<="&$G$3,IncDocDate,">"&$G$2,IncAccount,$A42)+SUMIFS(IncCOS,IncDocDate,"<="&$G$3,IncDocDate,">"&$G$2,IncAccountCOS,$A42)+SUMIFS(ExpExcl,ExpDocDate,"<="&$G$3,ExpDocDate,">"&$G$2,ExpAccount,$A42),$C42-SUMIFS(IncExcl,IncDocDate,"<="&$G$3,IncDocDate,">"&$C$3,IncAccount,$A42)+SUMIFS(ExpExcl,ExpDocDate,"<="&$G$3,ExpDocDate,">"&$C$3,ExpAccount,$A42)+IF($A42="BS-1700",-SUMIFS(IncTax1,IncDocDate,"<="&$G$3,IncDocDate,">"&$C$3)+SUMIFS(ExpTax1,ExpDocDate,"<="&$G$3,ExpDocDate,">"&$C$3),0)+IF($A42="BS-1710",-IF(IncTaxCount=2,SUMIFS(IncTax2,IncDocDate,"<="&$G$3,IncDocDate,">"&$C$3),0)+IF(ExpTaxCount=2,SUMIFS(ExpTax2,ExpDocDate,"<="&$G$3,ExpDocDate,">"&$C$3),0),0)) -> 1123093.848 | H42: Account
A43: IS-0210 | B43: Cost of Sales - Vegetable Juice | E43: =IF(LEFT($A43,2)="IS",-SUMIFS(IncExcl,IncDocDate,"<="&$E$3,IncDocDate,">"&$E$2,IncAccount,$A43)+SUMIFS(IncCOS,IncDocDate,"<="&$E$3,IncDocDate,">"&$E$2,IncAccountCOS,$A43)+SUMIFS(ExpExcl,ExpDocDate,"<="&$E$3,ExpDocDate,">"&$E$2,ExpAccount,$A43),$C43-SUMIFS(IncExcl,IncDocDate,"<="&$E$3,IncDocDate,">"&$C$3,IncAccount,$A43)+SUMIFS(ExpExcl,ExpDocDate,"<="&$E$3,ExpDocDate,">"&$C$3,ExpAccount,$A43)+IF($A43="BS-1700",-SUMIFS(IncTax1,IncDocDate,"<="&$E$3,IncDocDate,">"&$C$3)+SUMIFS(ExpTax1,ExpDocDate,"<="&$E$3,ExpDocDate,">"&$C$3),0)+IF($A43="BS-1710",-IF(IncTaxCount=2,SUMIFS(IncTax2,IncDocDate,"<="&$E$3,IncDocDate,">"&$C$3),0)+IF(ExpTaxCount=2,SUMIFS(ExpTax2,ExpDocDate,"<="&$E$3,ExpDocDate,">"&$C$3),0),0)) -> 0 | F43: =G43-E43 -> 702757.8316 | G43: =IF(LEFT($A43,2)="IS",-SUMIFS(IncExcl,IncDocDate,"<="&$G$3,IncDocDate,">"&$G$2,IncAccount,$A43)+SUMIFS(IncCOS,IncDocDate,"<="&$G$3,IncDocDate,">"&$G$2,IncAccountCOS,$A43)+SUMIFS(ExpExcl,ExpDocDate,"<="&$G$3,ExpDocDate,">"&$G$2,ExpAccount,$A43),$C43-SUMIFS(IncExcl,IncDocDate,"<="&$G$3,IncDocDate,">"&$C$3,IncAccount,$A43)+SUMIFS(ExpExcl,ExpDocDate,"<="&$G$3,ExpDocDate,">"&$C$3,ExpAccount,$A43)+IF($A43="BS-1700",-SUMIFS(IncTax1,IncDocDate,"<="&$G$3,IncDocDate,">"&$C$3)+SUMIFS(ExpTax1,ExpDocDate,"<="&$G$3,ExpDocDate,">"&$C$3),0)+IF($A43="BS-1710",-IF(IncTaxCount=2,SUMIFS(IncTax2,IncDocDate,"<="&$G$3,IncDocDate,">"&$C$3),0)+IF(ExpTaxCount=2,SUMIFS(ExpTax2,ExpDocDate,"<="&$G$3,ExpDocDate,">"&$C$3),0),0)) -> 702757.8316 | H43: Account
A44: IS-0299 | B44: Cost of Sales - Direct Costs | E44: =IF(LEFT($A44,2)="IS",-SUMIFS(IncExcl,IncDocDate,"<="&$E$3,IncDocDate,">"&$E$2,IncAccount,$A44)+SUMIFS(IncCOS,IncDocDate,"<="&$E$3,IncDocDate,">"&$E$2,IncAccountCOS,$A44)+SUMIFS(ExpExcl,ExpDocDate,"<="&$E$3,ExpDocDate,">"&$E$2,ExpAccount,$A44),$C44-SUMIFS(IncExcl,IncDocDate,"<="&$E$3,IncDocDate,">"&$C$3,IncAccount,$A44)+SUMIFS(ExpExcl,ExpDocDate,"<="&$E$3,ExpDocDate,">"&$C$3,ExpAccount,$A44)+IF($A44="BS-1700",-SUMIFS(IncTax1,IncDocDate,"<="&$E$3,IncDocDate,">"&$C$3)+SUMIFS(ExpTax1,ExpDocDate,"<="&$E$3,ExpDocDate,">"&$C$3),0)+IF($A44="BS-1710",-IF(IncTaxCount=2,SUMIFS(IncTax2,IncDocDate,"<="&$E$3,IncDocDate,">"&$C$3),0)+IF(ExpTaxCount=2,SUMIFS(ExpTax2,ExpDocDate,"<="&$E$3,ExpDocDate,">"&$C$3),0),0)) -> 0 | F44: =G44-E44 -> 0 | G44: =IF(LEFT($A44,2)="IS",-SUMIFS(IncExcl,IncDocDate,"<="&$G$3,IncDocDate,">"&$G$2,IncAccount,$A44)+SUMIFS(IncCOS,IncDocDate,"<="&$G$3,IncDocDate,">"&$G$2,IncAccountCOS,$A44)+SUMIFS(ExpExcl,ExpDocDate,"<="&$G$3,ExpDocDate,">"&$G$2,ExpAccount,$A44),$C44-SUMIFS(IncExcl,IncDocDate,"<="&$G$3,IncDocDate,">"&$C$3,IncAccount,$A44)+SUMIFS(ExpExcl,ExpDocDate,"<="&$G$3,ExpDocDate,">"&$C$3,ExpAccount,$A44)+IF($A44="BS-1700",-SUMIFS(IncTax1,IncDocDate,"<="&$G$3,IncDocDate,">"&$C$3)+SUMIFS(ExpTax1,ExpDocDate,"<="&$G$3,ExpDocDate,">"&$C$3),0)+IF($A44="BS-1710",-IF(IncTaxCount=2,SUMIFS(IncTax2,IncDocDate,"<="&$G$3,IncDocDate,">"&$C$3),0)+IF(ExpTaxCount=2,SUMIFS(ExpTax2,ExpDocDate,"<="&$G$3,ExpDocDate,">"&$C$3),0),0)) -> 0 | H44: Account
A45: IS-0305 | B45: Accounting Fees | E45: =IF(LEFT($A45,2)="IS",-SUMIFS(IncExcl,IncDocDate,"<="&$E$3,IncDocDate,">"&$E$2,IncAccount,$A45)+SUMIFS(IncCOS,IncDocDate,"<="&$E$3,IncDocDate,">"&$E$2,IncAccountCOS,$A45)+SUMIFS(ExpExcl,ExpDocDate,"<="&$E$3,ExpDocDate,">"&$E$2,ExpAccount,$A45),$C45-SUMIFS(IncExcl,IncDocDate,"<="&$E$3,IncDocDate,">"&$C$3,IncAccount,$A45)+SUMIFS(ExpExcl,ExpDocDate,"<="&$E$3,ExpDocDate,">"&$C$3,ExpAccount,$A45)+IF($A45="BS-1700",-SUMIFS(IncTax1,IncDocDate,"<="&$E$3,IncDocDate,">"&$C$3)+SUMIFS(ExpTax1,ExpDocDate,"<="&$E$3,ExpDocDate,">"&$C$3),0)+IF($A45="BS-1710",-IF(IncTaxCount=2,SUMIFS(IncTax2,IncDocDate,"<="&$E$3,IncDocDate,">"&$C$3),0)+IF(ExpTaxCount=2,SUMIFS(ExpTax2,ExpDocDate,"<="&$E$3,ExpDocDate,">"&$C$3),0),0)) -> 0 | F45: 23982.6087 | G45: =IF(LEFT($A45,2)="IS",-SUMIFS(IncExcl,IncDocDate,"<="&$G$3,IncDocDate,">"&$G$2,IncAccount,$A45)+SUMIFS(IncCOS,IncDocDate,"<="&$G$3,IncDocDate,">"&$G$2,IncAccountCOS,$A45)+SUMIFS(ExpExcl,ExpDocDate,"<="&$G$3,ExpDocDate,">"&$G$2,ExpAccount,$A45),$C45-SUMIFS(IncExcl,IncDocDate,"<="&$G$3,IncDocDate,">"&$C$3,IncAccount,$A45)+SUMIFS(ExpExcl,ExpDocDate,"<="&$G$3,ExpDocDate,">"&$C$3,ExpAccount,$A45)+IF($A45="BS-1700",-SUMIFS(IncTax1,IncDocDate,"<="&$G$3,IncDocDate,">"&$C$3)+SUMIFS(ExpTax1,ExpDocDate,"<="&$G$3,ExpDocDate,">"&$C$3),0)+IF($A45="BS-1710",-IF(IncTaxCount=2,SUMIFS(IncTax2,IncDocDate,"<="&$G$3,IncDocDate,">"&$C$3),0)+IF(ExpTaxCount=2,SUMIFS(ExpTax2,ExpDocDate,"<="&$G$3,ExpDocDate,">"&$C$3),0),0)) -> 23982.6087 | H45: Account
A46: IS-0310 | B46: Advertising & Marketing | E46: =IF(LEFT($A46,2)="IS",-SUMIFS(IncExcl,IncDocDate,"<="&$E$3,IncDocDate,">"&$E$2,IncAccount,$A46)+SUMIFS(IncCOS,IncDocDate,"<="&$E$3,IncDocDate,">"&$E$2,IncAccountCOS,$A46)+SUMIFS(ExpExcl,ExpDocDate,"<="&$E$3,ExpDocDate,">"&$E$2,ExpAccount,$A46),$C46-SUMIFS(IncExcl,IncDocDate,"<="&$E$3,IncDocDate,">"&$C$3,IncAccount,$A46)+SUMIFS(ExpExcl,ExpDocDate,"<="&$E$3,ExpDocDate,">"&$C$3,ExpAccount,$A46)+IF($A46="BS-1700",-SUMIFS(IncTax1,IncDocDate,"<="&$E$3,IncDocDate,">"&$C$3)+SUMIFS(ExpTax1,ExpDocDate,"<="&$E$3,ExpDocDate,">"&$C$3),0)+IF($A46="BS-1710",-IF(IncTaxCount=2,SUMIFS(IncTax2,IncDocDate,"<="&$E$3,IncDocDate,">"&$C$3),0)+IF(ExpTaxCount=2,SUMIFS(ExpTax2,ExpDocDate,"<="&$E$3,ExpDocDate,">"&$C$3),0),0)) -> 0 | F46: 143643 | G46: =IF(LEFT($A46,2)="IS",-SUMIFS(IncExcl,IncDocDate,"<="&$G$3,IncDocDate,">"&$G$2,IncAccount,$A46)+SUMIFS(IncCOS,IncDocDate,"<="&$G$3,IncDocDate,">"&$G$2,IncAccountCOS,$A46)+SUMIFS(ExpExcl,ExpDocDate,"<="&$G$3,ExpDocDate,">"&$G$2,ExpAccount,$A46),$C46-SUMIFS(IncExcl,IncDocDate,"<="&$G$3,IncDocDate,">"&$C$3,IncAccount,$A46)+SUMIFS(ExpExcl,ExpDocDate,"<="&$G$3,ExpDocDate,">"&$C$3,ExpAccount,$A46)+IF($A46="BS-1700",-SUMIFS(IncTax1,IncDocDate,"<="&$G$3,IncDocDate,">"&$C$3)+SUMIFS(ExpTax1,ExpDocDate,"<="&$G$3,ExpDocDate,">"&$C$3),0)+IF($A46="BS-1710",-IF(IncTaxCount=2,SUMIFS(IncTax2,IncDocDate,"<="&$G$3,IncDocDate,">"&$C$3),0)+IF(ExpTaxCount=2,SUMIFS(ExpTax2,ExpDocDate,"<="&$G$3,ExpDocDate,">"&$C$3),0),0)) -> 143643 | H46: Account
A47: IS-0315 | B47: Bank Charges | E47: =IF(LEFT($A47,2)="IS",-SUMIFS(IncExcl,IncDocDate,"<="&$E$3,IncDocDate,">"&$E$2,IncAccount,$A47)+SUMIFS(IncCOS,IncDocDate,"<="&$E$3,IncDocDate,">"&$E$2,IncAccountCOS,$A47)+SUMIFS(ExpExcl,ExpDocDate,"<="&$E$3,ExpDocDate,">"&$E$2,ExpAccount,$A47),$C47-SUMIFS(IncExcl,IncDocDate,"<="&$E$3,IncDocDate,">"&$C$3,IncAccount,$A47)+SUMIFS(ExpExcl,ExpDocDate,"<="&$E$3,ExpDocDate,">"&$C$3,ExpAccount,$A47)+IF($A47="BS-1700",-SUMIFS(IncTax1,IncDocDate,"<="&$E$3,IncDocDate,">"&$C$3)+SUMIFS(ExpTax1,ExpDocDate,"<="&$E$3,ExpDocDate,">"&$C$3),0)+IF($A47="BS-1710",-IF(IncTaxCount=2,SUMIFS(IncTax2,IncDocDate,"<="&$E$3,IncDocDate,">"&$C$3),0)+IF(ExpTaxCount=2,SUMIFS(ExpTax2,ExpDocDate,"<="&$E$3,ExpDocDate,">"&$C$3),0),0)) -> 0 | F47: 1179.304348 | G47: =IF(LEFT($A47,2)="IS",-SUMIFS(IncExcl,IncDocDate,"<="&$G$3,IncDocDate,">"&$G$2,IncAccount,$A47)+SUMIFS(IncCOS,IncDocDate,"<="&$G$3,IncDocDate,">"&$G$2,IncAccountCOS,$A47)+SUMIFS(ExpExcl,ExpDocDate,"<="&$G$3,ExpDocDate,">"&$G$2,ExpAccount,$A47),$C47-SUMIFS(IncExcl,IncDocDate,"<="&$G$3,IncDocDate,">"&$C$3,IncAccount,$A47)+SUMIFS(ExpExcl,ExpDocDate,"<="&$G$3,ExpDocDate,">"&$C$3,ExpAccount,$A47)+IF($A47="BS-1700",-SUMIFS(IncTax1,IncDocDate,"<="&$G$3,IncDocDate,">"&$C$3)+SUMIFS(ExpTax1,ExpDocDate,"<="&$G$3,ExpDocDate,">"&$C$3),0)+IF($A47="BS-1710",-IF(IncTaxCount=2,SUMIFS(IncTax2,IncDocDate,"<="&$G$3,IncDocDate,">"&$C$3),0)+IF(ExpTaxCount=2,SUMIFS(ExpTax2,ExpDocDate,"<="&$G$3,ExpDocDate,">"&$C$3),0),0)) -> 1179.304348 | H47: Account
A48: IS-0320 | B48: Commission | E48: =IF(LEFT($A48,2)="IS",-SUMIFS(IncExcl,IncDocDate,"<="&$E$3,IncDocDate,">"&$E$2,IncAccount,$A48)+SUMIFS(IncCOS,IncDocDate,"<="&$E$3,IncDocDate,">"&$E$2,IncAccountCOS,$A48)+SUMIFS(ExpExcl,ExpDocDate,"<="&$E$3,ExpDocDate,">"&$E$2,ExpAccount,$A48),$C48-SUMIFS(IncExcl,IncDocDate,"<="&$E$3,IncDocDate,">"&$C$3,IncAccount,$A48)+SUMIFS(ExpExcl,ExpDocDate,"<="&$E$3,ExpDocDate,">"&$C$3,ExpAccount,$A48)+IF($A48="BS-1700",-SUMIFS(IncTax1,IncDocDate,"<="&$E$3,IncDocDate,">"&$C$3)+SUMIFS(ExpTax1,ExpDocDate,"<="&$E$3,ExpDocDate,">"&$C$3),0)+IF($A48="BS-1710",-IF(IncTaxCount=2,SUMIFS(IncTax2,IncDocDate,"<="&$E$3,IncDocDate,">"&$C$3),0)+IF(ExpTaxCount=2,SUMIFS(ExpTax2,ExpDocDate,"<="&$E$3,ExpDocDate,">"&$C$3),0),0)) -> 0 | F48: 27850 | G48: =IF(LEFT($A48,2)="IS",-SUMIFS(IncExcl,IncDocDate,"<="&$G$3,IncDocDate,">"&$G$2,IncAccount,$A48)+SUMIFS(IncCOS,IncDocDate,"<="&$G$3,IncDocDate,">"&$G$2,IncAccountCOS,$A48)+SUMIFS(ExpExcl,ExpDocDate,"<="&$G$3,ExpDocDate,">"&$G$2,ExpAccount,$A48),$C48-SUMIFS(IncExcl,IncDocDate,"<="&$G$3,IncDocDate,">"&$C$3,IncAccount,$A48)+SUMIFS(ExpExcl,ExpDocDate,"<="&$G$3,ExpDocDate,">"&$C$3,ExpAccount,$A48)+IF($A48="BS-1700",-SUMIFS(IncTax1,IncDocDate,"<="&$G$3,IncDocDate,">"&$C$3)+SUMIFS(ExpTax1,ExpDocDate,"<="&$G$3,ExpDocDate,">"&$C$3),0)+IF($A48="BS-1710",-IF(IncTaxCount=2,SUMIFS(IncTax2,IncDocDate,"<="&$G$3,IncDocDate,">"&$C$3),0)+IF(ExpTaxCount=2,SUMIFS(ExpTax2,ExpDocDate,"<="&$G$3,ExpDocDate,">"&$C$3),0),0)) -> 27850 | H48: Account
A49: IS-0325 | B49: Computer Expenses | E49: =IF(LEFT($A49,2)="IS",-SUMIFS(IncExcl,IncDocDate,"<="&$E$3,IncDocDate,">"&$E$2,IncAccount,$A49)+SUMIFS(IncCOS,IncDocDate,"<="&$E$3,IncDocDate,">"&$E$2,IncAccountCOS,$A49)+SUMIFS(ExpExcl,ExpDocDate,"<="&$E$3,ExpDocDate,">"&$E$2,ExpAccount,$A49),$C49-SUMIFS(IncExcl,IncDocDate,"<="&$E$3,IncDocDate,">"&$C$3,IncAccount,$A49)+SUMIFS(ExpExcl,ExpDocDate,"<="&$E$3,ExpDocDate,">"&$C$3,ExpAccount,$A49)+IF($A49="BS-1700",-SUMIFS(IncTax1,IncDocDate,"<="&$E$3,IncDocDate,">"&$C$3)+SUMIFS(ExpTax1,ExpDocDate,"<="&$E$3,ExpDocDate,">"&$C$3),0)+IF($A49="BS-1710",-IF(IncTaxCount=2,SUMIFS(IncTax2,IncDocDate,"<="&$E$3,IncDocDate,">"&$C$3),0)+IF(ExpTaxCount=2,SUMIFS(ExpTax2,ExpDocDate,"<="&$E$3,ExpDocDate,">"&$C$3),0),0)) -> 0 | F49: 3476.521739 | G49: =IF(LEFT($A49,2)="IS",-SUMIFS(IncExcl,IncDocDate,"<="&$G$3,IncDocDate,">"&$G$2,IncAccount,$A49)+SUMIFS(IncCOS,IncDocDate,"<="&$G$3,IncDocDate,">"&$G$2,IncAccountCOS,$A49)+SUMIFS(ExpExcl,ExpDocDate,"<="&$G$3,ExpDocDate,">"&$G$2,ExpAccount,$A49),$C49-SUMIFS(IncExcl,IncDocDate,"<="&$G$3,IncDocDate,">"&$C$3,IncAccount,$A49)+SUMIFS(ExpExcl,ExpDocDate,"<="&$G$3,ExpDocDate,">"&$C$3,ExpAccount,$A49)+IF($A49="BS-1700",-SUMIFS(IncTax1,IncDocDate,"<="&$G$3,IncDocDate,">"&$C$3)+SUMIFS(ExpTax1,ExpDocDate,"<="&$G$3,ExpDocDate,">"&$C$3),0)+IF($A49="BS-1710",-IF(IncTaxCount=2,SUMIFS(IncTax2,IncDocDate,"<="&$G$3,IncDocDate,">"&$C$3),0)+IF(ExpTaxCount=2,SUMIFS(ExpTax2,ExpDocDate,"<="&$G$3,ExpDocDate,">"&$C$3),0),0)) -> 3476.521739 | H49: Account
A50: IS-0330 | B50: Consumables & Cleaning | E50: =IF(LEFT($A50,2)="IS",-SUMIFS(IncExcl,IncDocDate,"<="&$E$3,IncDocDate,">"&$E$2,IncAccount,$A50)+SUMIFS(IncCOS,IncDocDate,"<="&$E$3,IncDocDate,">"&$E$2,IncAccountCOS,$A50)+SUMIFS(ExpExcl,ExpDocDate,"<="&$E$3,ExpDocDate,">"&$E$2,ExpAccount,$A50),$C50-SUMIFS(IncExcl,IncDocDate,"<="&$E$3,IncDocDate,">"&$C$3,IncAccount,$A50)+SUMIFS(ExpExcl,ExpDocDate,"<="&$E$3,ExpDocDate,">"&$C$3,ExpAccount,$A50)+IF($A50="BS-1700",-SUMIFS(IncTax1,IncDocDate,"<="&$E$3,IncDocDate,">"&$C$3)+SUMIFS(ExpTax1,ExpDocDate,"<="&$E$3,ExpDocDate,">"&$C$3),0)+IF($A50="BS-1710",-IF(IncTaxCount=2,SUMIFS(IncTax2,IncDocDate,"<="&$E$3,IncDocDate,">"&$C$3),0)+IF(ExpTaxCount=2,SUMIFS(ExpTax2,ExpDocDate,"<="&$E$3,ExpDocDate,">"&$C$3),0),0)) -> 0 | F50: 2500 | G50: =IF(LEFT($A50,2)="IS",-SUMIFS(IncExcl,IncDocDate,"<="&$G$3,IncDocDate,">"&$G$2,IncAccount,$A50)+SUMIFS(IncCOS,IncDocDate,"<="&$G$3,IncDocDate,">"&$G$2,IncAccountCOS,$A50)+SUMIFS(ExpExcl,ExpDocDate,"<="&$G$3,ExpDocDate,">"&$G$2,ExpAccount,$A50),$C50-SUMIFS(IncExcl,IncDocDate,"<="&$G$3,IncDocDate,">"&$C$3,IncAccount,$A50)+SUMIFS(ExpExcl,ExpDocDate,"<="&$G$3,ExpDocDate,">"&$C$3,ExpAccount,$A50)+IF($A50="BS-1700",-SUMIFS(IncTax1,IncDocDate,"<="&$G$3,IncDocDate,">"&$C$3)+SUMIFS(ExpTax1,ExpDocDate,"<="&$G$3,ExpDocDate,">"&$C$3),0)+IF($A50="BS-1710",-IF(IncTaxCount=2,SUMIFS(IncTax2,IncDocDate,"<="&$G$3,IncDocDate,">"&$C$3),0)+IF(ExpTaxCount=2,SUMIFS(ExpTax2,ExpDocDate,"<="&$G$3,ExpDocDate,">"&$C$3),0),0)) -> 2500 | H50: Account
A51: IS-0335 | B51: Entertainment | E51: =IF(LEFT($A51,2)="IS",-SUMIFS(IncExcl,IncDocDate,"<="&$E$3,IncDocDate,">"&$E$2,IncAccount,$A51)+SUMIFS(IncCOS,IncDocDate,"<="&$E$3,IncDocDate,">"&$E$2,IncAccountCOS,$A51)+SUMIFS(ExpExcl,ExpDocDate,"<="&$E$3,ExpDocDate,">"&$E$2,ExpAccount,$A51),$C51-SUMIFS(IncExcl,IncDocDate,"<="&$E$3,IncDocDate,">"&$C$3,IncAccount,$A51)+SUMIFS(ExpExcl,ExpDocDate,"<="&$E$3,ExpDocDate,">"&$C$3,ExpAccount,$A51)+IF($A51="BS-1700",-SUMIFS(IncTax1,IncDocDate,"<="&$E$3,IncDocDate,">"&$C$3)+SUMIFS(ExpTax1,ExpDocDate,"<="&$E$3,ExpDocDate,">"&$C$3),0)+IF($A51="BS-1710",-IF(IncTaxCount=2,SUMIFS(IncTax2,IncDocDate,"<="&$E$3,IncDocDate,">"&$C$3),0)+IF(ExpTaxCount=2,SUMIFS(ExpTax2,ExpDocDate,"<="&$E$3,ExpDocDate,">"&$C$3),0),0)) -> 0 | F51: 0 | G51: =IF(LEFT($A51,2)="IS",-SUMIFS(IncExcl,IncDocDate,"<="&$G$3,IncDocDate,">"&$G$2,IncAccount,$A51)+SUMIFS(IncCOS,IncDocDate,"<="&$G$3,IncDocDate,">"&$G$2,IncAccountCOS,$A51)+SUMIFS(ExpExcl,ExpDocDate,"<="&$G$3,ExpDocDate,">"&$G$2,ExpAccount,$A51),$C51-SUMIFS(IncExcl,IncDocDate,"<="&$G$3,IncDocDate,">"&$C$3,IncAccount,$A51)+SUMIFS(ExpExcl,ExpDocDate,"<="&$G$3,ExpDocDate,">"&$C$3,ExpAccount,$A51)+IF($A51="BS-1700",-SUMIFS(IncTax1,IncDocDate,"<="&$G$3,IncDocDate,">"&$C$3)+SUMIFS(ExpTax1,ExpDocDate,"<="&$G$3,ExpDocDate,">"&$C$3),0)+IF($A51="BS-1710",-IF(IncTaxCount=2,SUMIFS(IncTax2,IncDocDate,"<="&$G$3,IncDocDate,">"&$C$3),0)+IF(ExpTaxCount=2,SUMIFS(ExpTax2,ExpDocDate,"<="&$G$3,ExpDocDate,">"&$C$3),0),0)) -> 0 | H51: Account
A52: IS-0340 | B52: Insurance | E52: =IF(LEFT($A52,2)="IS",-SUMIFS(IncExcl,IncDocDate,"<="&$E$3,IncDocDate,">"&$E$2,IncAccount,$A52)+SUMIFS(IncCOS,IncDocDate,"<="&$E$3,IncDocDate,">"&$E$2,IncAccountCOS,$A52)+SUMIFS(ExpExcl,ExpDocDate,"<="&$E$3,ExpDocDate,">"&$E$2,ExpAccount,$A52),$C52-SUMIFS(IncExcl,IncDocDate,"<="&$E$3,IncDocDate,">"&$C$3,IncAccount,$A52)+SUMIFS(ExpExcl,ExpDocDate,"<="&$E$3,ExpDocDate,">"&$C$3,ExpAccount,$A52)+IF($A52="BS-1700",-SUMIFS(IncTax1,IncDocDate,"<="&$E$3,IncDocDate,">"&$C$3)+SUMIFS(ExpTax1,ExpDocDate,"<="&$E$3,ExpDocDate,">"&$C$3),0)+IF($A52="BS-1710",-IF(IncTaxCount=2,SUMIFS(IncTax2,IncDocDate,"<="&$E$3,IncDocDate,">"&$C$3),0)+IF(ExpTaxCount=2,SUMIFS(ExpTax2,ExpDocDate,"<="&$E$3,ExpDocDate,">"&$C$3),0),0)) -> 0 | F52: 3837.217391 | G52: =IF(LEFT($A52,2)="IS",-SUMIFS(IncExcl,IncDocDate,"<="&$G$3,IncDocDate,">"&$G$2,IncAccount,$A52)+SUMIFS(IncCOS,IncDocDate,"<="&$G$3,IncDocDate,">"&$G$2,IncAccountCOS,$A52)+SUMIFS(ExpExcl,ExpDocDate,"<="&$G$3,ExpDocDate,">"&$G$2,ExpAccount,$A52),$C52-SUMIFS(IncExcl,IncDocDate,"<="&$G$3,IncDocDate,">"&$C$3,IncAccount,$A52)+SUMIFS(ExpExcl,ExpDocDate,"<="&$G$3,ExpDocDate,">"&$C$3,ExpAccount,$A52)+IF($A52="BS-1700",-SUMIFS(IncTax1,IncDocDate,"<="&$G$3,IncDocDate,">"&$C$3)+SUMIFS(ExpTax1,ExpDocDate,"<="&$G$3,ExpDocDate,">"&$C$3),0)+IF($A52="BS-1710",-IF(IncTaxCount=2,SUMIFS(IncTax2,IncDocDate,"<="&$G$3,IncDocDate,">"&$C$3),0)+IF(ExpTaxCount=2,SUMIFS(ExpTax2,ExpDocDate,"<="&$G$3,ExpDocDate,">"&$C$3),0),0)) -> 3837.217391 | H52: Account
A53: IS-0345 | B53: Office Expenses | E53: =IF(LEFT($A53,2)="IS",-SUMIFS(IncExcl,IncDocDate,"<="&$E$3,IncDocDate,">"&$E$2,IncAccount,$A53)+SUMIFS(IncCOS,IncDocDate,"<="&$E$3,IncDocDate,">"&$E$2,IncAccountCOS,$A53)+SUMIFS(ExpExcl,ExpDocDate,"<="&$E$3,ExpDocDate,">"&$E$2,ExpAccount,$A53),$C53-SUMIFS(IncExcl,IncDocDate,"<="&$E$3,IncDocDate,">"&$C$3,IncAccount,$A53)+SUMIFS(ExpExcl,ExpDocDate,"<="&$E$3,ExpDocDate,">"&$C$3,ExpAccount,$A53)+IF($A53="BS-1700",-SUMIFS(IncTax1,IncDocDate,"<="&$E$3,IncDocDate,">"&$C$3)+SUMIFS(ExpTax1,ExpDocDate,"<="&$E$3,ExpDocDate,">"&$C$3),0)+IF($A53="BS-1710",-IF(IncTaxCount=2,SUMIFS(IncTax2,IncDocDate,"<="&$E$3,IncDocDate,">"&$C$3),0)+IF(ExpTaxCount=2,SUMIFS(ExpTax2,ExpDocDate,"<="&$E$3,ExpDocDate,">"&$C$3),0),0)) -> 0 | F53: 995.6521739 | G53: =IF(LEFT($A53,2)="IS",-SUMIFS(IncExcl,IncDocDate,"<="&$G$3,IncDocDate,">"&$G$2,IncAccount,$A53)+SUMIFS(IncCOS,IncDocDate,"<="&$G$3,IncDocDate,">"&$G$2,IncAccountCOS,$A53)+SUMIFS(ExpExcl,ExpDocDate,"<="&$G$3,ExpDocDate,">"&$G$2,ExpAccount,$A53),$C53-SUMIFS(IncExcl,IncDocDate,"<="&$G$3,IncDocDate,">"&$C$3,IncAccount,$A53)+SUMIFS(ExpExcl,ExpDocDate,"<="&$G$3,ExpDocDate,">"&$C$3,ExpAccount,$A53)+IF($A53="BS-1700",-SUMIFS(IncTax1,IncDocDate,"<="&$G$3,IncDocDate,">"&$C$3)+SUMIFS(ExpTax1,ExpDocDate,"<="&$G$3,ExpDocDate,">"&$C$3),0)+IF($A53="BS-1710",-IF(IncTaxCount=2,SUMIFS(IncTax2,IncDocDate,"<="&$G$3,IncDocDate,">"&$C$3),0)+IF(ExpTaxCount=2,SUMIFS(ExpTax2,ExpDocDate,"<="&$G$3,ExpDocDate,">"&$C$3),0),0)) -> 995.6521739 | H53: Account
A54: IS-0350 | B54: Office Rent | E54: =IF(LEFT($A54,2)="IS",-SUMIFS(IncExcl,IncDocDate,"<="&$E$3,IncDocDate,">"&$E$2,IncAccount,$A54)+SUMIFS(IncCOS,IncDocDate,"<="&$E$3,IncDocDate,">"&$E$2,IncAccountCOS,$A54)+SUMIFS(ExpExcl,ExpDocDate,"<="&$E$3,ExpDocDate,">"&$E$2,ExpAccount,$A54),$C54-SUMIFS(IncExcl,IncDocDate,"<="&$E$3,IncDocDate,">"&$C$3,IncAccount,$A54)+SUMIFS(ExpExcl,ExpDocDate,"<="&$E$3,ExpDocDate,">"&$C$3,ExpAccount,$A54)+IF($A54="BS-1700",-SUMIFS(IncTax1,IncDocDate,"<="&$E$3,IncDocDate,">"&$C$3)+SUMIFS(ExpTax1,ExpDocDate,"<="&$E$3,ExpDocDate,">"&$C$3),0)+IF($A54="BS-1710",-IF(IncTaxCount=2,SUMIFS(IncTax2,IncDocDate,"<="&$E$3,IncDocDate,">"&$C$3),0)+IF(ExpTaxCount=2,SUMIFS(ExpTax2,ExpDocDate,"<="&$E$3,ExpDocDate,">"&$C$3),0),0)) -> 0 | F54: 143895.6522 | G54: =IF(LEFT($A54,2)="IS",-SUMIFS(IncExcl,IncDocDate,"<="&$G$3,IncDocDate,">"&$G$2,IncAccount,$A54)+SUMIFS(IncCOS,IncDocDate,"<="&$G$3,IncDocDate,">"&$G$2,IncAccountCOS,$A54)+SUMIFS(ExpExcl,ExpDocDate,"<="&$G$3,ExpDocDate,">"&$G$2,ExpAccount,$A54),$C54-SUMIFS(IncExcl,IncDocDate,"<="&$G$3,IncDocDate,">"&$C$3,IncAccount,$A54)+SUMIFS(ExpExcl,ExpDocDate,"<="&$G$3,ExpDocDate,">"&$C$3,ExpAccount,$A54)+IF($A54="BS-1700",-SUMIFS(IncTax1,IncDocDate,"<="&$G$3,IncDocDate,">"&$C$3)+SUMIFS(ExpTax1,ExpDocDate,"<="&$G$3,ExpDocDate,">"&$C$3),0)+IF($A54="BS-1710",-IF(IncTaxCount=2,SUMIFS(IncTax2,IncDocDate,"<="&$G$3,IncDocDate,">"&$C$3),0)+IF(ExpTaxCount=2,SUMIFS(ExpTax2,ExpDocDate,"<="&$G$3,ExpDocDate,">"&$C$3),0),0)) -> 143895.6522 | H54: Account
A55: IS-0355 | B55: Postage | E55: =IF(LEFT($A55,2)="IS",-SUMIFS(IncExcl,IncDocDate,"<="&$E$3,IncDocDate,">"&$E$2,IncAccount,$A55)+SUMIFS(IncCOS,IncDocDate,"<="&$E$3,IncDocDate,">"&$E$2,IncAccountCOS,$A55)+SUMIFS(ExpExcl,ExpDocDate,"<="&$E$3,ExpDocDate,">"&$E$2,ExpAccount,$A55),$C55-SUMIFS(IncExcl,IncDocDate,"<="&$E$3,IncDocDate,">"&$C$3,IncAccount,$A55)+SUMIFS(ExpExcl,ExpDocDate,"<="&$E$3,ExpDocDate,">"&$C$3,ExpAccount,$A55)+IF($A55="BS-1700",-SUMIFS(IncTax1,IncDocDate,"<="&$E$3,IncDocDate,">"&$C$3)+SUMIFS(ExpTax1,ExpDocDate,"<="&$E$3,ExpDocDate,">"&$C$3),0)+IF($A55="BS-1710",-IF(IncTaxCount=2,SUMIFS(IncTax2,IncDocDate,"<="&$E$3,IncDocDate,">"&$C$3),0)+IF(ExpTaxCount=2,SUMIFS(ExpTax2,ExpDocDate,"<="&$E$3,ExpDocDate,">"&$C$3),0),0)) -> 0 | F55: 520 | G55: =IF(LEFT($A55,2)="IS",-SUMIFS(IncExcl,IncDocDate,"<="&$G$3,IncDocDate,">"&$G$2,IncAccount,$A55)+SUMIFS(IncCOS,IncDocDate,"<="&$G$3,IncDocDate,">"&$G$2,IncAccountCOS,$A55)+SUMIFS(ExpExcl,ExpDocDate,"<="&$G$3,ExpDocDate,">"&$G$2,ExpAccount,$A55),$C55-SUMIFS(IncExcl,IncDocDate,"<="&$G$3,IncDocDate,">"&$C$3,IncAccount,$A55)+SUMIFS(ExpExcl,ExpDocDate,"<="&$G$3,ExpDocDate,">"&$C$3,ExpAccount,$A55)+IF($A55="BS-1700",-SUMIFS(IncTax1,IncDocDate,"<="&$G$3,IncDocDate,">"&$C$3)+SUMIFS(ExpTax1,ExpDocDate,"<="&$G$3,ExpDocDate,">"&$C$3),0)+IF($A55="BS-1710",-IF(IncTaxCount=2,SUMIFS(IncTax2,IncDocDate,"<="&$G$3,IncDocDate,">"&$C$3),0)+IF(ExpTaxCount=2,SUMIFS(ExpTax2,ExpDocDate,"<="&$G$3,ExpDocDate,">"&$C$3),0),0)) -> 520 | H55: Account
A56: IS-0360 | B56: Professional & Legal Fees | E56: =IF(LEFT($A56,2)="IS",-SUMIFS(IncExcl,IncDocDate,"<="&$E$3,IncDocDate,">"&$E$2,IncAccount,$A56)+SUMIFS(IncCOS,IncDocDate,"<="&$E$3,IncDocDate,">"&$E$2,IncAccountCOS,$A56)+SUMIFS(ExpExcl,ExpDocDate,"<="&$E$3,ExpDocDate,">"&$E$2,ExpAccount,$A56),$C56-SUMIFS(IncExcl,IncDocDate,"<="&$E$3,IncDocDate,">"&$C$3,IncAccount,$A56)+SUMIFS(ExpExcl,ExpDocDate,"<="&$E$3,ExpDocDate,">"&$C$3,ExpAccount,$A56)+IF($A56="BS-1700",-SUMIFS(IncTax1,IncDocDate,"<="&$E$3,IncDocDate,">"&$C$3)+SUMIFS(ExpTax1,ExpDocDate,"<="&$E$3,ExpDocDate,">"&$C$3),0)+IF($A56="BS-1710",-IF(IncTaxCount=2,SUMIFS(IncTax2,IncDocDate,"<="&$E$3,IncDocDate,">"&$C$3),0)+IF(ExpTaxCount=2,SUMIFS(ExpTax2,ExpDocDate,"<="&$E$3,ExpDocDate,">"&$C$3),0),0)) -> 0 | F56: 5652.173913 | G56: =IF(LEFT($A56,2)="IS",-SUMIFS(IncExcl,IncDocDate,"<="&$G$3,IncDocDate,">"&$G$2,IncAccount,$A56)+SUMIFS(IncCOS,IncDocDate,"<="&$G$3,IncDocDate,">"&$G$2,IncAccountCOS,$A56)+SUMIFS(ExpExcl,ExpDocDate,"<="&$G$3,ExpDocDate,">"&$G$2,ExpAccount,$A56),$C56-SUMIFS(IncExcl,IncDocDate,"<="&$G$3,IncDocDate,">"&$C$3,IncAccount,$A56)+SUMIFS(ExpExcl,ExpDocDate,"<="&$G$3,ExpDocDate,">"&$C$3,ExpAccount,$A56)+IF($A56="BS-1700",-SUMIFS(IncTax1,IncDocDate,"<="&$G$3,IncDocDate,">"&$C$3)+SUMIFS(ExpTax1,ExpDocDate,"<="&$G$3,ExpDocDate,">"&$C$3),0)+IF($A56="BS-1710",-IF(IncTaxCount=2,SUMIFS(IncTax2,IncDocDate,"<="&$G$3,IncDocDate,">"&$C$3),0)+IF(ExpTaxCount=2,SUMIFS(ExpTax2,ExpDocDate,"<="&$G$3,ExpDocDate,">"&$C$3),0),0)) -> 5652.173913 | H56: Account
A57: IS-0365 | B57: Stationery | E57: =IF(LEFT($A57,2)="IS",-SUMIFS(IncExcl,IncDocDate,"<="&$E$3,IncDocDate,">"&$E$2,IncAccount,$A57)+SUMIFS(IncCOS,IncDocDate,"<="&$E$3,IncDocDate,">"&$E$2,IncAccountCOS,$A57)+SUMIFS(ExpExcl,ExpDocDate,"<="&$E$3,ExpDocDate,">"&$E$2,ExpAccount,$A57),$C57-SUMIFS(IncExcl,IncDocDate,"<="&$E$3,IncDocDate,">"&$C$3,IncAccount,$A57)+SUMIFS(ExpExcl,ExpDocDate,"<="&$E$3,ExpDocDate,">"&$C$3,ExpAccount,$A57)+IF($A57="BS-1700",-SUMIFS(IncTax1,IncDocDate,"<="&$E$3,IncDocDate,">"&$C$3)+SUMIFS(ExpTax1,ExpDocDate,"<="&$E$3,ExpDocDate,">"&$C$3),0)+IF($A57="BS-1710",-IF(IncTaxCount=2,SUMIFS(IncTax2,IncDocDate,"<="&$E$3,IncDocDate,">"&$C$3),0)+IF(ExpTaxCount=2,SUMIFS(ExpTax2,ExpDocDate,"<="&$E$3,ExpDocDate,">"&$C$3),0),0)) -> 0 | F57: 2491.304348 | G57: =IF(LEFT($A57,2)="IS",-SUMIFS(IncExcl,IncDocDate,"<="&$G$3,IncDocDate,">"&$G$2,IncAccount,$A57)+SUMIFS(IncCOS,IncDocDate,"<="&$G$3,IncDocDate,">"&$G$2,IncAccountCOS,$A57)+SUMIFS(ExpExcl,ExpDocDate,"<="&$G$3,ExpDocDate,">"&$G$2,ExpAccount,$A57),$C57-SUMIFS(IncExcl,IncDocDate,"<="&$G$3,IncDocDate,">"&$C$3,IncAccount,$A57)+SUMIFS(ExpExcl,ExpDocDate,"<="&$G$3,ExpDocDate,">"&$C$3,ExpAccount,$A57)+IF($A57="BS-1700",-SUMIFS(IncTax1,IncDocDate,"<="&$G$3,IncDocDate,">"&$C$3)+SUMIFS(ExpTax1,ExpDocDate,"<="&$G$3,ExpDocDate,">"&$C$3),0)+IF($A57="BS-1710",-IF(IncTaxCount=2,SUMIFS(IncTax2,IncDocDate,"<="&$G$3,IncDocDate,">"&$C$3),0)+IF(ExpTaxCount=2,SUMIFS(ExpTax2,ExpDocDate,"<="&$G$3,ExpDocDate,">"&$C$3),0),0)) -> 2491.304348 | H57: Account
A58: IS-0370 | B58: Subscriptions & Memberships | E58: =IF(LEFT($A58,2)="IS",-SUMIFS(IncExcl,IncDocDate,"<="&$E$3,IncDocDate,">"&$E$2,IncAccount,$A58)+SUMIFS(IncCOS,IncDocDate,"<="&$E$3,IncDocDate,">"&$E$2,IncAccountCOS,$A58)+SUMIFS(ExpExcl,ExpDocDate,"<="&$E$3,ExpDocDate,">"&$E$2,ExpAccount,$A58),$C58-SUMIFS(IncExcl,IncDocDate,"<="&$E$3,IncDocDate,">"&$C$3,IncAccount,$A58)+SUMIFS(ExpExcl,ExpDocDate,"<="&$E$3,ExpDocDate,">"&$C$3,ExpAccount,$A58)+IF($A58="BS-1700",-SUMIFS(IncTax1,IncDocDate,"<="&$E$3,IncDocDate,">"&$C$3)+SUMIFS(ExpTax1,ExpDocDate,"<="&$E$3,ExpDocDate,">"&$C$3),0)+IF($A58="BS-1710",-IF(IncTaxCount=2,SUMIFS(IncTax2,IncDocDate,"<="&$E$3,IncDocDate,">"&$C$3),0)+IF(ExpTaxCount=2,SUMIFS(ExpTax2,ExpDocDate,"<="&$E$3,ExpDocDate,">"&$C$3),0),0)) -> 0 | F58: 5200 | G58: =IF(LEFT($A58,2)="IS",-SUMIFS(IncExcl,IncDocDate,"<="&$G$3,IncDocDate,">"&$G$2,IncAccount,$A58)+SUMIFS(IncCOS,IncDocDate,"<="&$G$3,IncDocDate,">"&$G$2,IncAccountCOS,$A58)+SUMIFS(ExpExcl,ExpDocDate,"<="&$G$3,ExpDocDate,">"&$G$2,ExpAccount,$A58),$C58-SUMIFS(IncExcl,IncDocDate,"<="&$G$3,IncDocDate,">"&$C$3,IncAccount,$A58)+SUMIFS(ExpExcl,ExpDocDate,"<="&$G$3,ExpDocDate,">"&$C$3,ExpAccount,$A58)+IF($A58="BS-1700",-SUMIFS(IncTax1,IncDocDate,"<="&$G$3,IncDocDate,">"&$C$3)+SUMIFS(ExpTax1,ExpDocDate,"<="&$G$3,ExpDocDate,">"&$C$3),0)+IF($A58="BS-1710",-IF(IncTaxCount=2,SUMIFS(IncTax2,IncDocDate,"<="&$G$3,IncDocDate,">"&$C$3),0)+IF(ExpTaxCount=2,SUMIFS(ExpTax2,ExpDocDate,"<="&$G$3,ExpDocDate,">"&$C$3),0),0)) -> 5200 | H58: Account
A59: IS-0375 | B59: Telephone & Internet | E59: =IF(LEFT($A59,2)="IS",-SUMIFS(IncExcl,IncDocDate,"<="&$E$3,IncDocDate,">"&$E$2,IncAccount,$A59)+SUMIFS(IncCOS,IncDocDate,"<="&$E$3,IncDocDate,">"&$E$2,IncAccountCOS,$A59)+SUMIFS(ExpExcl,ExpDocDate,"<="&$E$3,ExpDocDate,">"&$E$2,ExpAccount,$A59),$C59-SUMIFS(IncExcl,IncDocDate,"<="&$E$3,IncDocDate,">"&$C$3,IncAccount,$A59)+SUMIFS(ExpExcl,ExpDocDate,"<="&$E$3,ExpDocDate,">"&$C$3,ExpAccount,$A59)+IF($A59="BS-1700",-SUMIFS(IncTax1,IncDocDate,"<="&$E$3,IncDocDate,">"&$C$3)+SUMIFS(ExpTax1,ExpDocDate,"<="&$E$3,ExpDocDate,">"&$C$3),0)+IF($A59="BS-1710",-IF(IncTaxCount=2,SUMIFS(IncTax2,IncDocDate,"<="&$E$3,IncDocDate,">"&$C$3),0)+IF(ExpTaxCount=2,SUMIFS(ExpTax2,ExpDocDate,"<="&$E$3,ExpDocDate,">"&$C$3),0),0)) -> 0 | F59: 8860.869565 | G59: =IF(LEFT($A59,2)="IS",-SUMIFS(IncExcl,IncDocDate,"<="&$G$3,IncDocDate,">"&$G$2,IncAccount,$A59)+SUMIFS(IncCOS,IncDocDate,"<="&$G$3,IncDocDate,">"&$G$2,IncAccountCOS,$A59)+SUMIFS(ExpExcl,ExpDocDate,"<="&$G$3,ExpDocDate,">"&$G$2,ExpAccount,$A59),$C59-SUMIFS(IncExcl,IncDocDate,"<="&$G$3,IncDocDate,">"&$C$3,IncAccount,$A59)+SUMIFS(ExpExcl,ExpDocDate,"<="&$G$3,ExpDocDate,">"&$C$3,ExpAccount,$A59)+IF($A59="BS-1700",-SUMIFS(IncTax1,IncDocDate,"<="&$G$3,IncDocDate,">"&$C$3)+SUMIFS(ExpTax1,ExpDocDate,"<="&$G$3,ExpDocDate,">"&$C$3),0)+IF($A59="BS-1710",-IF(IncTaxCount=2,SUMIFS(IncTax2,IncDocDate,"<="&$G$3,IncDocDate,">"&$C$3),0)+IF(ExpTaxCount=2,SUMIFS(ExpTax2,ExpDocDate,"<="&$G$3,ExpDocDate,">"&$C$3),0),0)) -> 8860.869565 | H59: Account
A60: IS-0380 | B60: Training | E60: =IF(LEFT($A60,2)="IS",-SUMIFS(IncExcl,IncDocDate,"<="&$E$3,IncDocDate,">"&$E$2,IncAccount,$A60)+SUMIFS(IncCOS,IncDocDate,"<="&$E$3,IncDocDate,">"&$E$2,IncAccountCOS,$A60)+SUMIFS(ExpExcl,ExpDocDate,"<="&$E$3,ExpDocDate,">"&$E$2,ExpAccount,$A60),$C60-SUMIFS(IncExcl,IncDocDate,"<="&$E$3,IncDocDate,">"&$C$3,IncAccount,$A60)+SUMIFS(ExpExcl,ExpDocDate,"<="&$E$3,ExpDocDate,">"&$C$3,ExpAccount,$A60)+IF($A60="BS-1700",-SUMIFS(IncTax1,IncDocDate,"<="&$E$3,IncDocDate,">"&$C$3)+SUMIFS(ExpTax1,ExpDocDate,"<="&$E$3,ExpDocDate,">"&$C$3),0)+IF($A60="BS-1710",-IF(IncTaxCount=2,SUMIFS(IncTax2,IncDocDate,"<="&$E$3,IncDocDate,">"&$C$3),0)+IF(ExpTaxCount=2,SUMIFS(ExpTax2,ExpDocDate,"<="&$E$3,ExpDocDate,">"&$C$3),0),0)) -> 0 | F60: 4043.478261 | G60: =IF(LEFT($A60,2)="IS",-SUMIFS(IncExcl,IncDocDate,"<="&$G$3,IncDocDate,">"&$G$2,IncAccount,$A60)+SUMIFS(IncCOS,IncDocDate,"<="&$G$3,IncDocDate,">"&$G$2,IncAccountCOS,$A60)+SUMIFS(ExpExcl,ExpDocDate,"<="&$G$3,ExpDocDate,">"&$G$2,ExpAccount,$A60),$C60-SUMIFS(IncExcl,IncDocDate,"<="&$G$3,IncDocDate,">"&$C$3,IncAccount,$A60)+SUMIFS(ExpExcl,ExpDocDate,"<="&$G$3,ExpDocDate,">"&$C$3,ExpAccount,$A60)+IF($A60="BS-1700",-SUMIFS(IncTax1,IncDocDate,"<="&$G$3,IncDocDate,">"&$C$3)+SUMIFS(ExpTax1,ExpDocDate,"<="&$G$3,ExpDocDate,">"&$C$3),0)+IF($A60="BS-1710",-IF(IncTaxCount=2,SUMIFS(IncTax2,IncDocDate,"<="&$G$3,IncDocDate,">"&$C$3),0)+IF(ExpTaxCount=2,SUMIFS(ExpTax2,ExpDocDate,"<="&$G$3,ExpDocDate,">"&$C$3),0),0)) -> 4043.478261 | H60: Account
A61: IS-0385 | B61: Travelling & Accommodation | E61: =IF(LEFT($A61,2)="IS",-SUMIFS(IncExcl,IncDocDate,"<="&$E$3,IncDocDate,">"&$E$2,IncAccount,$A61)+SUMIFS(IncCOS,IncDocDate,"<="&$E$3,IncDocDate,">"&$E$2,IncAccountCOS,$A61)+SUMIFS(ExpExcl,ExpDocDate,"<="&$E$3,ExpDocDate,">"&$E$2,ExpAccount,$A61),$C61-SUMIFS(IncExcl,IncDocDate,"<="&$E$3,IncDocDate,">"&$C$3,IncAccount,$A61)+SUMIFS(ExpExcl,ExpDocDate,"<="&$E$3,ExpDocDate,">"&$C$3,ExpAccount,$A61)+IF($A61="BS-1700",-SUMIFS(IncTax1,IncDocDate,"<="&$E$3,IncDocDate,">"&$C$3)+SUMIFS(ExpTax1,ExpDocDate,"<="&$E$3,ExpDocDate,">"&$C$3),0)+IF($A61="BS-1710",-IF(IncTaxCount=2,SUMIFS(IncTax2,IncDocDate,"<="&$E$3,IncDocDate,">"&$C$3),0)+IF(ExpTaxCount=2,SUMIFS(ExpTax2,ExpDocDate,"<="&$E$3,ExpDocDate,">"&$C$3),0),0)) -> 0 | F61: 13704.34783 | G61: =IF(LEFT($A61,2)="IS",-SUMIFS(IncExcl,IncDocDate,"<="&$G$3,IncDocDate,">"&$G$2,IncAccount,$A61)+SUMIFS(IncCOS,IncDocDate,"<="&$G$3,IncDocDate,">"&$G$2,IncAccountCOS,$A61)+SUMIFS(ExpExcl,ExpDocDate,"<="&$G$3,ExpDocDate,">"&$G$2,ExpAccount,$A61),$C61-SUMIFS(IncExcl,IncDocDate,"<="&$G$3,IncDocDate,">"&$C$3,IncAccount,$A61)+SUMIFS(ExpExcl,ExpDocDate,"<="&$G$3,ExpDocDate,">"&$C$3,ExpAccount,$A61)+IF($A61="BS-1700",-SUMIFS(IncTax1,IncDocDate,"<="&$G$3,IncDocDate,">"&$C$3)+SUMIFS(ExpTax1,ExpDocDate,"<="&$G$3,ExpDocDate,">"&$C$3),0)+IF($A61="BS-1710",-IF(IncTaxCount=2,SUMIFS(IncTax2,IncDocDate,"<="&$G$3,IncDocDate,">"&$C$3),0)+IF(ExpTaxCount=2,SUMIFS(ExpTax2,ExpDocDate,"<="&$G$3,ExpDocDate,">"&$C$3),0),0)) -> 13704.34783 | H61: Account
A62: IS-0390 | B62: Utilities | E62: =IF(LEFT($A62,2)="IS",-SUMIFS(IncExcl,IncDocDate,"<="&$E$3,IncDocDate,">"&$E$2,IncAccount,$A62)+SUMIFS(IncCOS,IncDocDate,"<="&$E$3,IncDocDate,">"&$E$2,IncAccountCOS,$A62)+SUMIFS(ExpExcl,ExpDocDate,"<="&$E$3,ExpDocDate,">"&$E$2,ExpAccount,$A62),$C62-SUMIFS(IncExcl,IncDocDate,"<="&$E$3,IncDocDate,">"&$C$3,IncAccount,$A62)+SUMIFS(ExpExcl,ExpDocDate,"<="&$E$3,ExpDocDate,">"&$C$3,ExpAccount,$A62)+IF($A62="BS-1700",-SUMIFS(IncTax1,IncDocDate,"<="&$E$3,IncDocDate,">"&$C$3)+SUMIFS(ExpTax1,ExpDocDate,"<="&$E$3,ExpDocDate,">"&$C$3),0)+IF($A62="BS-1710",-IF(IncTaxCount=2,SUMIFS(IncTax2,IncDocDate,"<="&$E$3,IncDocDate,">"&$C$3),0)+IF(ExpTaxCount=2,SUMIFS(ExpTax2,ExpDocDate,"<="&$E$3,ExpDocDate,">"&$C$3),0),0)) -> 0 | F62: 0 | G62: =IF(LEFT($A62,2)="IS",-SUMIFS(IncExcl,IncDocDate,"<="&$G$3,IncDocDate,">"&$G$2,IncAccount,$A62)+SUMIFS(IncCOS,IncDocDate,"<="&$G$3,IncDocDate,">"&$G$2,IncAccountCOS,$A62)+SUMIFS(ExpExcl,ExpDocDate,"<="&$G$3,ExpDocDate,">"&$G$2,ExpAccount,$A62),$C62-SUMIFS(IncExcl,IncDocDate,"<="&$G$3,IncDocDate,">"&$C$3,IncAccount,$A62)+SUMIFS(ExpExcl,ExpDocDate,"<="&$G$3,ExpDocDate,">"&$C$3,ExpAccount,$A62)+IF($A62="BS-1700",-SUMIFS(IncTax1,IncDocDate,"<="&$G$3,IncDocDate,">"&$C$3)+SUMIFS(ExpTax1,ExpDocDate,"<="&$G$3,ExpDocDate,">"&$C$3),0)+IF($A62="BS-1710",-IF(IncTaxCount=2,SUMIFS(IncTax2,IncDocDate,"<="&$G$3,IncDocDate,">"&$C$3),0)+IF(ExpTaxCount=2,SUMIFS(ExpTax2,ExpDocDate,"<="&$G$3,ExpDocDate,">"&$C$3),0),0)) -> 0 | H62: Account
A63: IS-0405 | B63: Salaries & Wages - Staff | E63: =IF(LEFT($A63,2)="IS",-SUMIFS(IncExcl,IncDocDate,"<="&$E$3,IncDocDate,">"&$E$2,IncAccount,$A63)+SUMIFS(IncCOS,IncDocDate,"<="&$E$3,IncDocDate,">"&$E$2,IncAccountCOS,$A63)+SUMIFS(ExpExcl,ExpDocDate,"<="&$E$3,ExpDocDate,">"&$E$2,ExpAccount,$A63),$C63-SUMIFS(IncExcl,IncDocDate,"<="&$E$3,IncDocDate,">"&$C$3,IncAccount,$A63)+SUMIFS(ExpExcl,ExpDocDate,"<="&$E$3,ExpDocDate,">"&$C$3,ExpAccount,$A63)+IF($A63="BS-1700",-SUMIFS(IncTax1,IncDocDate,"<="&$E$3,IncDocDate,">"&$C$3)+SUMIFS(ExpTax1,ExpDocDate,"<="&$E$3,ExpDocDate,">"&$C$3),0)+IF($A63="BS-1710",-IF(IncTaxCount=2,SUMIFS(IncTax2,IncDocDate,"<="&$E$3,IncDocDate,">"&$C$3),0)+IF(ExpTaxCount=2,SUMIFS(ExpTax2,ExpDocDate,"<="&$E$3,ExpDocDate,">"&$C$3),0),0)) -> 0 | F63: 548600 | G63: =IF(LEFT($A63,2)="IS",-SUMIFS(IncExcl,IncDocDate,"<="&$G$3,IncDocDate,">"&$G$2,IncAccount,$A63)+SUMIFS(IncCOS,IncDocDate,"<="&$G$3,IncDocDate,">"&$G$2,IncAccountCOS,$A63)+SUMIFS(ExpExcl,ExpDocDate,"<="&$G$3,ExpDocDate,">"&$G$2,ExpAccount,$A63),$C63-SUMIFS(IncExcl,IncDocDate,"<="&$G$3,IncDocDate,">"&$C$3,IncAccount,$A63)+SUMIFS(ExpExcl,ExpDocDate,"<="&$G$3,ExpDocDate,">"&$C$3,ExpAccount,$A63)+IF($A63="BS-1700",-SUMIFS(IncTax1,IncDocDate,"<="&$G$3,IncDocDate,">"&$C$3)+SUMIFS(ExpTax1,ExpDocDate,"<="&$G$3,ExpDocDate,">"&$C$3),0)+IF($A63="BS-1710",-IF(IncTaxCount=2,SUMIFS(IncTax2,IncDocDate,"<="&$G$3,IncDocDate,">"&$C$3),0)+IF(ExpTaxCount=2,SUMIFS(ExpTax2,ExpDocDate,"<="&$G$3,ExpDocDate,">"&$C$3),0),0)) -> 548600 | H63: Account
A64: IS-0410 | B64: Salaries & Wages - Management | E64: =IF(LEFT($A64,2)="IS",-SUMIFS(IncExcl,IncDocDate,"<="&$E$3,IncDocDate,">"&$E$2,IncAccount,$A64)+SUMIFS(IncCOS,IncDocDate,"<="&$E$3,IncDocDate,">"&$E$2,IncAccountCOS,$A64)+SUMIFS(ExpExcl,ExpDocDate,"<="&$E$3,ExpDocDate,">"&$E$2,ExpAccount,$A64),$C64-SUMIFS(IncExcl,IncDocDate,"<="&$E$3,IncDocDate,">"&$C$3,IncAccount,$A64)+SUMIFS(ExpExcl,ExpDocDate,"<="&$E$3,ExpDocDate,">"&$C$3,ExpAccount,$A64)+IF($A64="BS-1700",-SUMIFS(IncTax1,IncDocDate,"<="&$E$3,IncDocDate,">"&$C$3)+SUMIFS(ExpTax1,ExpDocDate,"<="&$E$3,ExpDocDate,">"&$C$3),0)+IF($A64="BS-1710",-IF(IncTaxCount=2,SUMIFS(IncTax2,IncDocDate,"<="&$E$3,IncDocDate,">"&$C$3),0)+IF(ExpTaxCount=2,SUMIFS(ExpTax2,ExpDocDate,"<="&$E$3,ExpDocDate,">"&$C$3),0),0)) -> 0 | F64: 685720 | G64: =IF(LEFT($A64,2)="IS",-SUMIFS(IncExcl,IncDocDate,"<="&$G$3,IncDocDate,">"&$G$2,IncAccount,$A64)+SUMIFS(IncCOS,IncDocDate,"<="&$G$3,IncDocDate,">"&$G$2,IncAccountCOS,$A64)+SUMIFS(ExpExcl,ExpDocDate,"<="&$G$3,ExpDocDate,">"&$G$2,ExpAccount,$A64),$C64-SUMIFS(IncExcl,IncDocDate,"<="&$G$3,IncDocDate,">"&$C$3,IncAccount,$A64)+SUMIFS(ExpExcl,ExpDocDate,"<="&$G$3,ExpDocDate,">"&$C$3,ExpAccount,$A64)+IF($A64="BS-1700",-SUMIFS(IncTax1,IncDocDate,"<="&$G$3,IncDocDate,">"&$C$3)+SUMIFS(ExpTax1,ExpDocDate,"<="&$G$3,ExpDocDate,">"&$C$3),0)+IF($A64="BS-1710",-IF(IncTaxCount=2,SUMIFS(IncTax2,IncDocDate,"<="&$G$3,IncDocDate,">"&$C$3),0)+IF(ExpTaxCount=2,SUMIFS(ExpTax2,ExpDocDate,"<="&$G$3,ExpDocDate,">"&$C$3),0),0)) -> 685720 | H64: Account
A65: IS-0505 | B65: Depreciation | E65: =IF(LEFT($A65,2)="IS",-SUMIFS(IncExcl,IncDocDate,"<="&$E$3,IncDocDate,">"&$E$2,IncAccount,$A65)+SUMIFS(IncCOS,IncDocDate,"<="&$E$3,IncDocDate,">"&$E$2,IncAccountCOS,$A65)+SUMIFS(ExpExcl,ExpDocDate,"<="&$E$3,ExpDocDate,">"&$E$2,ExpAccount,$A65),$C65-SUMIFS(IncExcl,IncDocDate,"<="&$E$3,IncDocDate,">"&$C$3,IncAccount,$A65)+SUMIFS(ExpExcl,ExpDocDate,"<="&$E$3,ExpDocDate,">"&$C$3,ExpAccount,$A65)+IF($A65="BS-1700",-SUMIFS(IncTax1,IncDocDate,"<="&$E$3,IncDocDate,">"&$C$3)+SUMIFS(ExpTax1,ExpDocDate,"<="&$E$3,ExpDocDate,">"&$C$3),0)+IF($A65="BS-1710",-IF(IncTaxCount=2,SUMIFS(IncTax2,IncDocDate,"<="&$E$3,IncDocDate,">"&$C$3),0)+IF(ExpTaxCount=2,SUMIFS(ExpTax2,ExpDocDate,"<="&$E$3,ExpDocDate,">"&$C$3),0),0)) -> 0 | F65: 30422 | G65: =IF(LEFT($A65,2)="IS",-SUMIFS(IncExcl,IncDocDate,"<="&$G$3,IncDocDate,">"&$G$2,IncAccount,$A65)+SUMIFS(IncCOS,IncDocDate,"<="&$G$3,IncDocDate,">"&$G$2,IncAccountCOS,$A65)+SUMIFS(ExpExcl,ExpDocDate,"<="&$G$3,ExpDocDate,">"&$G$2,ExpAccount,$A65),$C65-SUMIFS(IncExcl,IncDocDate,"<="&$G$3,IncDocDate,">"&$C$3,IncAccount,$A65)+SUMIFS(ExpExcl,ExpDocDate,"<="&$G$3,ExpDocDate,">"&$C$3,ExpAccount,$A65)+IF($A65="BS-1700",-SUMIFS(IncTax1,IncDocDate,"<="&$G$3,IncDocDate,">"&$C$3)+SUMIFS(ExpTax1,ExpDocDate,"<="&$G$3,ExpDocDate,">"&$C$3),0)+IF($A65="BS-1710",-IF(IncTaxCount=2,SUMIFS(IncTax2,IncDocDate,"<="&$G$3,IncDocDate,">"&$C$3),0)+IF(ExpTaxCount=2,SUMIFS(ExpTax2,ExpDocDate,"<="&$G$3,ExpDocDate,">"&$C$3),0),0)) -> 30422 | H65: Account
A66: IS-0510 | B66: Amortization | E66: =IF(LEFT($A66,2)="IS",-SUMIFS(IncExcl,IncDocDate,"<="&$E$3,IncDocDate,">"&$E$2,IncAccount,$A66)+SUMIFS(IncCOS,IncDocDate,"<="&$E$3,IncDocDate,">"&$E$2,IncAccountCOS,$A66)+SUMIFS(ExpExcl,ExpDocDate,"<="&$E$3,ExpDocDate,">"&$E$2,ExpAccount,$A66),$C66-SUMIFS(IncExcl,IncDocDate,"<="&$E$3,IncDocDate,">"&$C$3,IncAccount,$A66)+SUMIFS(ExpExcl,ExpDocDate,"<="&$E$3,ExpDocDate,">"&$C$3,ExpAccount,$A66)+IF($A66="BS-1700",-SUMIFS(IncTax1,IncDocDate,"<="&$E$3,IncDocDate,">"&$C$3)+SUMIFS(ExpTax1,ExpDocDate,"<="&$E$3,ExpDocDate,">"&$C$3),0)+IF($A66="BS-1710",-IF(IncTaxCount=2,SUMIFS(IncTax2,IncDocDate,"<="&$E$3,IncDocDate,">"&$C$3),0)+IF(ExpTaxCount=2,SUMIFS(ExpTax2,ExpDocDate,"<="&$E$3,ExpDocDate,">"&$C$3),0),0)) -> 0 | F66: 0 | G66: =IF(LEFT($A66,2)="IS",-SUMIFS(IncExcl,IncDocDate,"<="&$G$3,IncDocDate,">"&$G$2,IncAccount,$A66)+SUMIFS(IncCOS,IncDocDate,"<="&$G$3,IncDocDate,">"&$G$2,IncAccountCOS,$A66)+SUMIFS(ExpExcl,ExpDocDate,"<="&$G$3,ExpDocDate,">"&$G$2,ExpAccount,$A66),$C66-SUMIFS(IncExcl,IncDocDate,"<="&$G$3,IncDocDate,">"&$C$3,IncAccount,$A66)+SUMIFS(ExpExcl,ExpDocDate,"<="&$G$3,ExpDocDate,">"&$C$3,ExpAccount,$A66)+IF($A66="BS-1700",-SUMIFS(IncTax1,IncDocDate,"<="&$G$3,IncDocDate,">"&$C$3)+SUMIFS(ExpTax1,ExpDocDate,"<="&$G$3,ExpDocDate,">"&$C$3),0)+IF($A66="BS-1710",-IF(IncTaxCount=2,SUMIFS(IncTax2,IncDocDate,"<="&$G$3,IncDocDate,">"&$C$3),0)+IF(ExpTaxCount=2,SUMIFS(ExpTax2,ExpDocDate,"<="&$G$3,ExpDocDate,">"&$C$3),0),0)) -> 0 | H66: Account
A67: IS-0600 | B67: Interest Paid | E67: =IF(LEFT($A67,2)="IS",-SUMIFS(IncExcl,IncDocDate,"<="&$E$3,IncDocDate,">"&$E$2,IncAccount,$A67)+SUMIFS(IncCOS,IncDocDate,"<="&$E$3,IncDocDate,">"&$E$2,IncAccountCOS,$A67)+SUMIFS(ExpExcl,ExpDocDate,"<="&$E$3,ExpDocDate,">"&$E$2,ExpAccount,$A67),$C67-SUMIFS(IncExcl,IncDocDate,"<="&$E$3,IncDocDate,">"&$C$3,IncAccount,$A67)+SUMIFS(ExpExcl,ExpDocDate,"<="&$E$3,ExpDocDate,">"&$C$3,ExpAccount,$A67)+IF($A67="BS-1700",-SUMIFS(IncTax1,IncDocDate,"<="&$E$3,IncDocDate,">"&$C$3)+SUMIFS(ExpTax1,ExpDocDate,"<="&$E$3,ExpDocDate,">"&$C$3),0)+IF($A67="BS-1710",-IF(IncTaxCount=2,SUMIFS(IncTax2,IncDocDate,"<="&$E$3,IncDocDate,">"&$C$3),0)+IF(ExpTaxCount=2,SUMIFS(ExpTax2,ExpDocDate,"<="&$E$3,ExpDocDate,">"&$C$3),0),0)) -> 0 | F67: 19367.24 | G67: =IF(LEFT($A67,2)="IS",-SUMIFS(IncExcl,IncDocDate,"<="&$G$3,IncDocDate,">"&$G$2,IncAccount,$A67)+SUMIFS(IncCOS,IncDocDate,"<="&$G$3,IncDocDate,">"&$G$2,IncAccountCOS,$A67)+SUMIFS(ExpExcl,ExpDocDate,"<="&$G$3,ExpDocDate,">"&$G$2,ExpAccount,$A67),$C67-SUMIFS(IncExcl,IncDocDate,"<="&$G$3,IncDocDate,">"&$C$3,IncAccount,$A67)+SUMIFS(ExpExcl,ExpDocDate,"<="&$G$3,ExpDocDate,">"&$C$3,ExpAccount,$A67)+IF($A67="BS-1700",-SUMIFS(IncTax1,IncDocDate,"<="&$G$3,IncDocDate,">"&$C$3)+SUMIFS(ExpTax1,ExpDocDate,"<="&$G$3,ExpDocDate,">"&$C$3),0)+IF($A67="BS-1710",-IF(IncTaxCount=2,SUMIFS(IncTax2,IncDocDate,"<="&$G$3,IncDocDate,">"&$C$3),0)+IF(ExpTaxCount=2,SUMIFS(ExpTax2,ExpDocDate,"<="&$G$3,ExpDocDate,">"&$C$3),0),0)) -> 19367.24 | H67: Group
A68: IS-0700 | B68: Taxation | E68: =IF(LEFT($A68,2)="IS",-SUMIFS(IncExcl,IncDocDate,"<="&$E$3,IncDocDate,">"&$E$2,IncAccount,$A68)+SUMIFS(IncCOS,IncDocDate,"<="&$E$3,IncDocDate,">"&$E$2,IncAccountCOS,$A68)+SUMIFS(ExpExcl,ExpDocDate,"<="&$E$3,ExpDocDate,">"&$E$2,ExpAccount,$A68),$C68-SUMIFS(IncExcl,IncDocDate,"<="&$E$3,IncDocDate,">"&$C$3,IncAccount,$A68)+SUMIFS(ExpExcl,ExpDocDate,"<="&$E$3,ExpDocDate,">"&$C$3,ExpAccount,$A68)+IF($A68="BS-1700",-SUMIFS(IncTax1,IncDocDate,"<="&$E$3,IncDocDate,">"&$C$3)+SUMIFS(ExpTax1,ExpDocDate,"<="&$E$3,ExpDocDate,">"&$C$3),0)+IF($A68="BS-1710",-IF(IncTaxCount=2,SUMIFS(IncTax2,IncDocDate,"<="&$E$3,IncDocDate,">"&$C$3),0)+IF(ExpTaxCount=2,SUMIFS(ExpTax2,ExpDocDate,"<="&$E$3,ExpDocDate,">"&$C$3),0),0)) -> 0 | F68: 122135.72 | G68: =IF(LEFT($A68,2)="IS",-SUMIFS(IncExcl,IncDocDate,"<="&$G$3,IncDocDate,">"&$G$2,IncAccount,$A68)+SUMIFS(IncCOS,IncDocDate,"<="&$G$3,IncDocDate,">"&$G$2,IncAccountCOS,$A68)+SUMIFS(ExpExcl,ExpDocDate,"<="&$G$3,ExpDocDate,">"&$G$2,ExpAccount,$A68),$C68-SUMIFS(IncExcl,IncDocDate,"<="&$G$3,IncDocDate,">"&$C$3,IncAccount,$A68)+SUMIFS(ExpExcl,ExpDocDate,"<="&$G$3,ExpDocDate,">"&$C$3,ExpAccount,$A68)+IF($A68="BS-1700",-SUMIFS(IncTax1,IncDocDate,"<="&$G$3,IncDocDate,">"&$C$3)+SUMIFS(ExpTax1,ExpDocDate,"<="&$G$3,ExpDocDate,">"&$C$3),0)+IF($A68="BS-1710",-IF(IncTaxCount=2,SUMIFS(IncTax2,IncDocDate,"<="&$G$3,IncDocDate,">"&$C$3),0)+IF(ExpTaxCount=2,SUMIFS(ExpTax2,ExpDocDate,"<="&$G$3,ExpDocDate,">"&$C$3),0),0)) -> 122135.72 | H68: Group
A69: IS-0800 | B69: Other Expenses | E69: =IF(LEFT($A69,2)="IS",-SUMIFS(IncExcl,IncDocDate,"<="&$E$3,IncDocDate,">"&$E$2,IncAccount,$A69)+SUMIFS(IncCOS,IncDocDate,"<="&$E$3,IncDocDate,">"&$E$2,IncAccountCOS,$A69)+SUMIFS(ExpExcl,ExpDocDate,"<="&$E$3,ExpDocDate,">"&$E$2,ExpAccount,$A69),$C69-SUMIFS(IncExcl,IncDocDate,"<="&$E$3,IncDocDate,">"&$C$3,IncAccount,$A69)+SUMIFS(ExpExcl,ExpDocDate,"<="&$E$3,ExpDocDate,">"&$C$3,ExpAccount,$A69)+IF($A69="BS-1700",-SUMIFS(IncTax1,IncDocDate,"<="&$E$3,IncDocDate,">"&$C$3)+SUMIFS(ExpTax1,ExpDocDate,"<="&$E$3,ExpDocDate,">"&$C$3),0)+IF($A69="BS-1710",-IF(IncTaxCount=2,SUMIFS(IncTax2,IncDocDate,"<="&$E$3,IncDocDate,">"&$C$3),0)+IF(ExpTaxCount=2,SUMIFS(ExpTax2,ExpDocDate,"<="&$E$3,ExpDocDate,">"&$C$3),0),0)) -> 0 | F69: 0 | G69: =IF(LEFT($A69,2)="IS",-SUMIFS(IncExcl,IncDocDate,"<="&$G$3,IncDocDate,">"&$G$2,IncAccount,$A69)+SUMIFS(IncCOS,IncDocDate,"<="&$G$3,IncDocDate,">"&$G$2,IncAccountCOS,$A69)+SUMIFS(ExpExcl,ExpDocDate,"<="&$G$3,ExpDocDate,">"&$G$2,ExpAccount,$A69),$C69-SUMIFS(IncExcl,IncDocDate,"<="&$G$3,IncDocDate,">"&$C$3,IncAccount,$A69)+SUMIFS(ExpExcl,ExpDocDate,"<="&$G$3,ExpDocDate,">"&$C$3,ExpAccount,$A69)+IF($A69="BS-1700",-SUMIFS(IncTax1,IncDocDate,"<="&$G$3,IncDocDate,">"&$C$3)+SUMIFS(ExpTax1,ExpDocDate,"<="&$G$3,ExpDocDate,">"&$C$3),0)+IF($A69="BS-1710",-IF(IncTaxCount=2,SUMIFS(IncTax2,IncDocDate,"<="&$G$3,IncDocDate,">"&$C$3),0)+IF(ExpTaxCount=2,SUMIFS(ExpTax2,ExpDocDate,"<="&$G$3,ExpDocDate,">"&$C$3),0),0)) -> 0 | H69: Group
A70: IS-0805 | B70: Foreign Exchange Loss | E70: =IF(LEFT($A70,2)="IS",-SUMIFS(IncExcl,IncDocDate,"<="&$E$3,IncDocDate,">"&$E$2,IncAccount,$A70)+SUMIFS(IncCOS,IncDocDate,"<="&$E$3,IncDocDate,">"&$E$2,IncAccountCOS,$A70)+SUMIFS(ExpExcl,ExpDocDate,"<="&$E$3,ExpDocDate,">"&$E$2,ExpAccount,$A70),$C70-SUMIFS(IncExcl,IncDocDate,"<="&$E$3,IncDocDate,">"&$C$3,IncAccount,$A70)+SUMIFS(ExpExcl,ExpDocDate,"<="&$E$3,ExpDocDate,">"&$C$3,ExpAccount,$A70)+IF($A70="BS-1700",-SUMIFS(IncTax1,IncDocDate,"<="&$E$3,IncDocDate,">"&$C$3)+SUMIFS(ExpTax1,ExpDocDate,"<="&$E$3,ExpDocDate,">"&$C$3),0)+IF($A70="BS-1710",-IF(IncTaxCount=2,SUMIFS(IncTax2,IncDocDate,"<="&$E$3,IncDocDate,">"&$C$3),0)+IF(ExpTaxCount=2,SUMIFS(ExpTax2,ExpDocDate,"<="&$E$3,ExpDocDate,">"&$C$3),0),0)) -> 0 | F70: 0 | G70: =IF(LEFT($A70,2)="IS",-SUMIFS(IncExcl,IncDocDate,"<="&$G$3,IncDocDate,">"&$G$2,IncAccount,$A70)+SUMIFS(IncCOS,IncDocDate,"<="&$G$3,IncDocDate,">"&$G$2,IncAccountCOS,$A70)+SUMIFS(ExpExcl,ExpDocDate,"<="&$G$3,ExpDocDate,">"&$G$2,ExpAccount,$A70),$C70-SUMIFS(IncExcl,IncDocDate,"<="&$G$3,IncDocDate,">"&$C$3,IncAccount,$A70)+SUMIFS(ExpExcl,ExpDocDate,"<="&$G$3,ExpDocDate,">"&$C$3,ExpAccount,$A70)+IF($A70="BS-1700",-SUMIFS(IncTax1,IncDocDate,"<="&$G$3,IncDocDate,">"&$C$3)+SUMIFS(ExpTax1,ExpDocDate,"<="&$G$3,ExpDocDate,">"&$C$3),0)+IF($A70="BS-1710",-IF(IncTaxCount=2,SUMIFS(IncTax2,IncDocDate,"<="&$G$3,IncDocDate,">"&$C$3),0)+IF(ExpTaxCount=2,SUMIFS(ExpTax2,ExpDocDate,"<="&$G$3,ExpDocDate,">"&$C$3),0),0)) -> 0 | H70: Group
A71: IS-0810 | B71: Loss on Disposal of Assets | E71: =IF(LEFT($A71,2)="IS",-SUMIFS(IncExcl,IncDocDate,"<="&$E$3,IncDocDate,">"&$E$2,IncAccount,$A71)+SUMIFS(IncCOS,IncDocDate,"<="&$E$3,IncDocDate,">"&$E$2,IncAccountCOS,$A71)+SUMIFS(ExpExcl,ExpDocDate,"<="&$E$3,ExpDocDate,">"&$E$2,ExpAccount,$A71),$C71-SUMIFS(IncExcl,IncDocDate,"<="&$E$3,IncDocDate,">"&$C$3,IncAccount,$A71)+SUMIFS(ExpExcl,ExpDocDate,"<="&$E$3,ExpDocDate,">"&$C$3,ExpAccount,$A71)+IF($A71="BS-1700",-SUMIFS(IncTax1,IncDocDate,"<="&$E$3,IncDocDate,">"&$C$3)+SUMIFS(ExpTax1,ExpDocDate,"<="&$E$3,ExpDocDate,">"&$C$3),0)+IF($A71="BS-1710",-IF(IncTaxCount=2,SUMIFS(IncTax2,IncDocDate,"<="&$E$3,IncDocDate,">"&$C$3),0)+IF(ExpTaxCount=2,SUMIFS(ExpTax2,ExpDocDate,"<="&$E$3,ExpDocDate,">"&$C$3),0),0)) -> 0 | F71: 0 | G71: =IF(LEFT($A71,2)="IS",-SUMIFS(IncExcl,IncDocDate,"<="&$G$3,IncDocDate,">"&$G$2,IncAccount,$A71)+SUMIFS(IncCOS,IncDocDate,"<="&$G$3,IncDocDate,">"&$G$2,IncAccountCOS,$A71)+SUMIFS(ExpExcl,ExpDocDate,"<="&$G$3,ExpDocDate,">"&$G$2,ExpAccount,$A71),$C71-SUMIFS(IncExcl,IncDocDate,"<="&$G$3,IncDocDate,">"&$C$3,IncAccount,$A71)+SUMIFS(ExpExcl,ExpDocDate,"<="&$G$3,ExpDocDate,">"&$C$3,ExpAccount,$A71)+IF($A71="BS-1700",-SUMIFS(IncTax1,IncDocDate,"<="&$G$3,IncDocDate,">"&$C$3)+SUMIFS(ExpTax1,ExpDocDate,"<="&$G$3,ExpDocDate,">"&$C$3),0)+IF($A71="BS-1710",-IF(IncTaxCount=2,SUMIFS(IncTax2,IncDocDate,"<="&$G$3,IncDocDate,">"&$C$3),0)+IF(ExpTaxCount=2,SUMIFS(ExpTax2,ExpDocDate,"<="&$G$3,ExpDocDate,">"&$C$3),0),0)) -> 0 | H71: Group
A72: IS-0900 | B72: Other Income | E72: =IF(LEFT($A72,2)="IS",-SUMIFS(IncExcl,IncDocDate,"<="&$E$3,IncDocDate,">"&$E$2,IncAccount,$A72)+SUMIFS(IncCOS,IncDocDate,"<="&$E$3,IncDocDate,">"&$E$2,IncAccountCOS,$A72)+SUMIFS(ExpExcl,ExpDocDate,"<="&$E$3,ExpDocDate,">"&$E$2,ExpAccount,$A72),$C72-SUMIFS(IncExcl,IncDocDate,"<="&$E$3,IncDocDate,">"&$C$3,IncAccount,$A72)+SUMIFS(ExpExcl,ExpDocDate,"<="&$E$3,ExpDocDate,">"&$C$3,ExpAccount,$A72)+IF($A72="BS-1700",-SUMIFS(IncTax1,IncDocDate,"<="&$E$3,IncDocDate,">"&$C$3)+SUMIFS(ExpTax1,ExpDocDate,"<="&$E$3,ExpDocDate,">"&$C$3),0)+IF($A72="BS-1710",-IF(IncTaxCount=2,SUMIFS(IncTax2,IncDocDate,"<="&$E$3,IncDocDate,">"&$C$3),0)+IF(ExpTaxCount=2,SUMIFS(ExpTax2,ExpDocDate,"<="&$E$3,ExpDocDate,">"&$C$3),0),0)) -> 0 | F72: -27605.85 | G72: =IF(LEFT($A72,2)="IS",-SUMIFS(IncExcl,IncDocDate,"<="&$G$3,IncDocDate,">"&$G$2,IncAccount,$A72)+SUMIFS(IncCOS,IncDocDate,"<="&$G$3,IncDocDate,">"&$G$2,IncAccountCOS,$A72)+SUMIFS(ExpExcl,ExpDocDate,"<="&$G$3,ExpDocDate,">"&$G$2,ExpAccount,$A72),$C72-SUMIFS(IncExcl,IncDocDate,"<="&$G$3,IncDocDate,">"&$C$3,IncAccount,$A72)+SUMIFS(ExpExcl,ExpDocDate,"<="&$G$3,ExpDocDate,">"&$C$3,ExpAccount,$A72)+IF($A72="BS-1700",-SUMIFS(IncTax1,IncDocDate,"<="&$G$3,IncDocDate,">"&$C$3)+SUMIFS(ExpTax1,ExpDocDate,"<="&$G$3,ExpDocDate,">"&$C$3),0)+IF($A72="BS-1710",-IF(IncTaxCount=2,SUMIFS(IncTax2,IncDocDate,"<="&$G$3,IncDocDate,">"&$C$3),0)+IF(ExpTaxCount=2,SUMIFS(ExpTax2,ExpDocDate,"<="&$G$3,ExpDocDate,">"&$C$3),0),0)) -> -27605.85 | H72: Group
A73: IS-1000 | B73: Dividends | E73: =IF(LEFT($A73,2)="IS",-SUMIFS(IncExcl,IncDocDate,"<="&$E$3,IncDocDate,">"&$E$2,IncAccount,$A73)+SUMIFS(IncCOS,IncDocDate,"<="&$E$3,IncDocDate,">"&$E$2,IncAccountCOS,$A73)+SUMIFS(ExpExcl,ExpDocDate,"<="&$E$3,ExpDocDate,">"&$E$2,ExpAccount,$A73),$C73-SUMIFS(IncExcl,IncDocDate,"<="&$E$3,IncDocDate,">"&$C$3,IncAccount,$A73)+SUMIFS(ExpExcl,ExpDocDate,"<="&$E$3,ExpDocDate,">"&$C$3,ExpAccount,$A73)+IF($A73="BS-1700",-SUMIFS(IncTax1,IncDocDate,"<="&$E$3,IncDocDate,">"&$C$3)+SUMIFS(ExpTax1,ExpDocDate,"<="&$E$3,ExpDocDate,">"&$C$3),0)+IF($A73="BS-1710",-IF(IncTaxCount=2,SUMIFS(IncTax2,IncDocDate,"<="&$E$3,IncDocDate,">"&$C$3),0)+IF(ExpTaxCount=2,SUMIFS(ExpTax2,ExpDocDate,"<="&$E$3,ExpDocDate,">"&$C$3),0),0)) -> 0 | F73: =G73-E73 -> 78500 | G73: =IF(LEFT($A73,2)="IS",-SUMIFS(IncExcl,IncDocDate,"<="&$G$3,IncDocDate,">"&$G$2,IncAccount,$A73)+SUMIFS(IncCOS,IncDocDate,"<="&$G$3,IncDocDate,">"&$G$2,IncAccountCOS,$A73)+SUMIFS(ExpExcl,ExpDocDate,"<="&$G$3,ExpDocDate,">"&$G$2,ExpAccount,$A73),$C73-SUMIFS(IncExcl,IncDocDate,"<="&$G$3,IncDocDate,">"&$C$3,IncAccount,$A73)+SUMIFS(ExpExcl,ExpDocDate,"<="&$G$3,ExpDocDate,">"&$C$3,ExpAccount,$A73)+IF($A73="BS-1700",-SUMIFS(IncTax1,IncDocDate,"<="&$G$3,IncDocDate,">"&$C$3)+SUMIFS(ExpTax1,ExpDocDate,"<="&$G$3,ExpDocDate,">"&$C$3),0)+IF($A73="BS-1710",-IF(IncTaxCount=2,SUMIFS(IncTax2,IncDocDate,"<="&$G$3,IncDocDate,">"&$C$3),0)+IF(ExpTaxCount=2,SUMIFS(ExpTax2,ExpDocDate,"<="&$G$3,ExpDocDate,">"&$C$3),0),0)) -> 78500 | H73: Group
A74: End of list - add accounts above this row
A76: Control Accounts
A77: ="BS-B"&H77 -> BS-BB1 | B77: =IF(ISNA(VLOOKUP($H77,BankAll,2,0))=TRUE,"Bank Account",VLOOKUP($H77,BankAll,2,0)) -> B1 Bank Account | C77: =SUMIFS(IncPayAmount,IncPayDate,"<"&Setup!$D$16,IncPayDate,"<>""",IncBank,$H77)-SUMIFS(ExpIncl,ExpPayDate,"<"&Setup!$D$16,ExpPayDate,"<>""",ExpBank,$H77) -> 45250.5 | E77: =SUMIFS(IncPayAmount,IncPayDate,"<="&$E$3,IncPayDate,"<>""",IncBank,$H77)-SUMIFS(ExpIncl,ExpPayDate,"<="&$E$3,ExpPayDate,"<>""",ExpBank,$H77) -> 45250.5 | F77: =G77-E77 -> 214266.315 | G77: =SUMIFS(IncPayAmount,IncPayDate,"<="&$G$3,IncPayDate,"<>""",IncBank,$H77)-SUMIFS(ExpIncl,ExpPayDate,"<="&$G$3,ExpPayDate,"<>""",ExpBank,$H77) -> 259516.815 | H77: =OFFSET(Setup!$A$34,1+ROW($A77)-ROW($A$77),0,1,1) -> B1
A78: ="BS-B"&H78 -> BS-BB2 | B78: =IF(ISNA(VLOOKUP($H78,BankAll,2,0))=TRUE,"Bank Account",VLOOKUP($H78,BankAll,2,0)) -> B2 Bank Account | C78: =SUMIFS(IncPayAmount,IncPayDate,"<"&Setup!$D$16,IncPayDate,"<>""",IncBank,$H78)-SUMIFS(ExpIncl,ExpPayDate,"<"&Setup!$D$16,ExpPayDate,"<>""",ExpBank,$H78) -> 61500 | E78: =SUMIFS(IncPayAmount,IncPayDate,"<="&$E$3,IncPayDate,"<>""",IncBank,$H78)-SUMIFS(ExpIncl,ExpPayDate,"<="&$E$3,ExpPayDate,"<>""",ExpBank,$H78) -> 61500 | F78: =G78-E78 -> -20809.35 | G78: =SUMIFS(IncPayAmount,IncPayDate,"<="&$G$3,IncPayDate,"<>""",IncBank,$H78)-SUMIFS(ExpIncl,ExpPayDate,"<="&$G$3,ExpPayDate,"<>""",ExpBank,$H78) -> 40690.65 | H78: =OFFSET(Setup!$A$34,1+ROW($A78)-ROW($A$77),0,1,1) -> B2
A79: ="BS-B"&H79 -> BS-BB3 | B79: =IF(ISNA(VLOOKUP($H79,BankAll,2,0))=TRUE,"Bank Account",VLOOKUP($H79,BankAll,2,0)) -> B3 Bank Account | C79: =SUMIFS(IncPayAmount,IncPayDate,"<"&Setup!$D$16,IncPayDate,"<>""",IncBank,$H79)-SUMIFS(ExpIncl,ExpPayDate,"<"&Setup!$D$16,ExpPayDate,"<>""",ExpBank,$H79) -> 0 | E79: =SUMIFS(IncPayAmount,IncPayDate,"<="&$E$3,IncPayDate,"<>""",IncBank,$H79)-SUMIFS(ExpIncl,ExpPayDate,"<="&$E$3,ExpPayDate,"<>""",ExpBank,$H79) -> 0 | F79: =G79-E79 -> 9457 | G79: =SUMIFS(IncPayAmount,IncPayDate,"<="&$G$3,IncPayDate,"<>""",IncBank,$H79)-SUMIFS(ExpIncl,ExpPayDate,"<="&$G$3,ExpPayDate,"<>""",ExpBank,$H79) -> 9457 | H79: =OFFSET(Setup!$A$34,1+ROW($A79)-ROW($A$77),0,1,1) -> B3
A80: ="BS-B"&H80 -> BS-BPC | B80: =IF(ISNA(VLOOKUP($H80,BankAll,2,0))=TRUE,"Bank Account",VLOOKUP($H80,BankAll,2,0)) -> PC Petty Cash | C80: =SUMIFS(IncPayAmount,IncPayDate,"<"&Setup!$D$16,IncPayDate,"<>""",IncBank,$H80)-SUMIFS(ExpIncl,ExpPayDate,"<"&Setup!$D$16,ExpPayDate,"<>""",ExpBank,$H80) -> 1000 | E80: =SUMIFS(IncPayAmount,IncPayDate,"<="&$E$3,IncPayDate,"<>""",IncBank,$H80)-SUMIFS(ExpIncl,ExpPayDate,"<="&$E$3,ExpPayDate,"<>""",ExpBank,$H80) -> 1000 | F80: =G80-E80 -> -5 | G80: =SUMIFS(IncPayAmount,IncPayDate,"<="&$G$3,IncPayDate,"<>""",IncBank,$H80)-SUMIFS(ExpIncl,ExpPayDate,"<="&$G$3,ExpPayDate,"<>""",ExpBank,$H80) -> 995 | H80: =OFFSET(Setup!$A$34,1+ROW($A80)-ROW($A$77),0,1,1) -> PC
A81: ="BS-B"&H81 -> BS-BJC | B81: =IF(ISNA(VLOOKUP($H81,BankAll,2,0))=TRUE,"Bank Account",VLOOKUP($H81,BankAll,2,0)) -> GL Journal Control | C81: =SUMIFS(IncPayAmount,IncPayDate,"<"&Setup!$D$16,IncPayDate,"<>""",IncBank,$H81)-SUMIFS(ExpIncl,ExpPayDate,"<"&Setup!$D$16,ExpPayDate,"<>""",ExpBank,$H81) -> 0 | E81: =SUMIFS(IncPayAmount,IncPayDate,"<="&$E$3,IncPayDate,"<>""",IncBank,$H81)-SUMIFS(ExpIncl,ExpPayDate,"<="&$E$3,ExpPayDate,"<>""",ExpBank,$H81) -> 0 | F81: =G81-E81 -> 0 | G81: =SUMIFS(IncPayAmount,IncPayDate,"<="&$G$3,IncPayDate,"<>""",IncBank,$H81)-SUMIFS(ExpIncl,ExpPayDate,"<="&$G$3,ExpPayDate,"<>""",ExpBank,$H81) -> 0 | H81: =OFFSET(Setup!$A$34,1+ROW($A81)-ROW($A$77),0,1,1) -> JC
A82: BS-STG | B82: Inventory | C82: =SUMIFS(StockOpen,StockCodeOnly,"<>NONSTOCK") -> 270692 | E82: =$C$82+SUMIFS(ExpExcl,ExpDocDate,"<="&$E$3,ExpType,"STOCK")-SUMIFS(IncCOS,IncDocDate,"<="&$E$3,IncType,"STOCK") -> 270692 | F82: 70887.62427 | G82: =$C$82+SUMIFS(ExpExcl,ExpDocDate,"<="&$G$3,ExpType,"STOCK")-SUMIFS(IncCOS,IncDocDate,"<="&$G$3,IncType,"STOCK") -> 341579.6243
A83: BS-RCG | B83: Trade Debtors | C83: =SUMIFS(IncIncl,IncDocDate,"<"&Setup!$D$16)-SUMIFS(IncPayAmount,IncDocDate,"<"&Setup!$D$16,IncPayDate,"<"&Setup!$D$16) -> 159160 | E83: =SUMIFS(IncIncl,IncDocDate,"<="&$E$3)-SUMIFS(IncPayAmount,IncDocDate,"<="&$E$3,IncPayDate,"<="&$E$3) -> 159160 | F83: =G83-E83 -> 118977.25 | G83: =SUMIFS(IncIncl,IncDocDate,"<="&$G$3)-SUMIFS(IncPayAmount,IncDocDate,"<="&$G$3,IncPayDate,"<="&$G$3) -> 278137.25
A84: BS-PAG | B84: Trade Creditors | C84: =-SUMIFS(ExpIncl,ExpDocDate,"<"&Setup!$D$16,ExpPayDate,">="&Setup!$D$16)-SUMIFS(ExpIncl,ExpDocDate,"<"&Setup!$D$16,ExpPayDate,"") -> -88340 | E84: =-SUMIFS(ExpIncl,ExpDocDate,"<="&$E$3,ExpPayDate,">"&$E$3)-SUMIFS(ExpIncl,ExpDocDate,"<="&$E$3,ExpPayDate,"") -> -88340 | F84: =G84-E84 -> -66217 | G84: =-SUMIFS(ExpIncl,ExpDocDate,"<="&$G$3,ExpPayDate,">"&$G$3)-SUMIFS(ExpIncl,ExpDocDate,"<="&$G$3,ExpPayDate,"") -> -154557
A85: BS-RTG | B85: Retained Earnings | C85: -545172.5 | E85: =$C$85-SUMIFS(IncExcl,IncDocDate,"<="&$E$2,IncDocDate,">"&$C$3,IncAccount,">=IS-0000",IncAccount,"<=IS-9999")+SUMIFS(IncCOS,IncDocDate,"<="&$E$2,IncDocDate,">"&$C$3,IncAccountCOS,">=IS-0000",IncAccountCOS,"<=IS-9999")+SUMIFS(ExpExcl,ExpDocDate,"<="&$E$2,ExpDocDate,">"&$C$3,ExpAccount,">=IS-0000",ExpAccount,"<=IS-9999") -> -545172.5 | F85: =G85-E85 -> 0 | G85: =$C$85-SUMIFS(IncExcl,IncDocDate,"<="&$G$2,IncDocDate,">"&$C$3,IncAccount,">=IS-0000",IncAccount,"<=IS-9999")+SUMIFS(IncCOS,IncDocDate,"<="&$G$2,IncDocDate,">"&$C$3,IncAccountCOS,">=IS-0000",IncAccountCOS,"<=IS-9999")+SUMIFS(ExpExcl,ExpDocDate,"<="&$G$2,ExpDocDate,">"&$C$3,ExpAccount,">=IS-0000",ExpAccount,"<=IS-9999") -> -545172.5
C87: =ROUND(SUM(C5:C86),2) -> 0 | E87: =ROUND(SUM(E5:E86),2) -> 0 | F87: =ROUND(SUM(F5:F86),2) -> 0 | G87: =ROUND(SUM(G5:G86),2) -> 0
A89: Recording of opening balances
A90: Assets are debit balances and should be entered as positive values.
A91: Liabilities are credit balances and should be entered as negative values.
A92: Equity items are credit balances and should be entered as negative values.
A93: Bank and trade debtor balances should be entered on the Income sheet.
A94: Trade creditor balances should be entered on the Expenses sheet.
A95: Opening stock quantities & costs should be entered on the Stock sheet.
A96: The total in column C should be nil if all opening balances have been entered correctly.
A97: Use a trial balance as at the end of the period which is reflected at the top of the sheet in column C for entering opening balances.

Sheet Customers (hidden)
A1: =IF(ISBLANK(Setup!$C$5),"Example Limited",Setup!$C$5) -> Example (Pty) Limited | E1: Balance Date | F1: =DATE(YEAR(F2),MONTH(F2),0) -> 2021-01-31 | G1: =DATE(YEAR(G2),MONTH(G2),0) -> 2020-12-31 | H1: 2020-11-30 | I1: 2020-10-31 | J1: 2020-09-30 | K1: 2020-08-31
A2: Customers | E2: 2021-02-28 | F2: =IF(ISBLANK(E2),TODAY(),E2) -> 2021-02-28 | G2: =DATE(YEAR(F2),MONTH(F2),0) -> 2021-01-31 | H2: =DATE(YEAR(G2),MONTH(G2),0) -> 2020-12-31 | I2: 2020-11-30 | J2: 2020-10-31 | K2: 2020-09-30
A3: © www.excel-skills.com | E3: =SUBTOTAL(109,Customer[[#Data],[Outstanding Balance]]) -> 278137.25 | F3: =SUBTOTAL(109,Customer[[#Data],[Current]]) -> 244415.25 | G3: =SUBTOTAL(109,Customer[[#Data],[30 Days]]) -> 33722 | H3: =SUBTOTAL(109,Customer[[#Data],[60 Days]]) -> 0 | I3: =SUBTOTAL(109,Customer[[#Data],[90 Days]]) -> 0 | J3: =SUBTOTAL(109,Customer[[#Data],[120 Days]]) -> 0 | K3: =SUBTOTAL(109,Customer[[#Data],[120+ Days]]) -> 0
A4: Code | B4: Billing Name | C4: Billing Address | D4: Sales Tax Number | E4: Outstanding Balance | F4: Current | G4: 30 Days | H4: 60 Days | I4: 90 Days | J4: 120 Days | K4: 120+ Days
A5: ABC01 | B5: ABC Bank | C5: 52 Adderley Crescent, Rivionia, Johannesburg, 1000 | D5: 452 079 2090 | E5: =SUMIFS(IncIncl,IncDocDate,"<="&$F$2,IncCus,$A5)-SUMIFS(IncPayAmount,IncDocDate,"<="&$F$2,IncPayDate,"<="&$F$2,IncCus,$A5) -> 0 | F5: =SUMIFS(IncIncl,IncDocDate,"<="&F$2,IncDocDate,">"&F$1,IncCus,$A5)-SUMIFS(IncPayAmount,IncDocDate,"<="&F$2,IncDocDate,">"&F$1,IncPayDate,"<="&$F$2,IncCus,$A5) -> 0 | G5: 0 | H5: 0 | I5: 0 | J5: 0 | K5: =SUMIFS(IncIncl,IncDocDate,"<="&K$2,IncCus,$A5)-SUMIFS(IncPayAmount,IncDocDate,"<="&K$2,IncPayDate,"<="&$F$2,IncCus,$A5) -> 0
A6: FCT01 | B6: Fruit Commodity Traders | C6: 20 Strand Street, Cape Town, 7000 | E6: 0 | F6: 0 | G6: 0 | H6: 0 | I6: 0 | J6: 0 | K6: 0
A7: FRE01 | B7: Freshmark | C7: 39 Bay Avenue, Waverley, Bloemfontein, 9300 | D7: 402 899 3000 | E7: 0 | F7: 0 | G7: 0 | H7: 0 | I7: 0 | J7: 0 | K7: 0
A8: FRV01 | B8: Fruit & Veg | C8: 20 Cross Street, Gardens, Cape Town, 7005 | D8: 411 250 4005 | E8: 171428.75 | F8: 137706.75 | G8: 33722 | H8: 0 | I8: 0 | J8: 0 | K8: 0
A9: FTR01 | B9: Fresh Trade | C9: 112 Elizabeth Avenue, Notting Hill, London, United Kingdom, EC5 3PW | E9: 0 | F9: 0 | G9: 0 | H9: 0 | I9: 0 | J9: 0 | K9: 0
A10: GGR01 | B10: Green Grocer | C10: 105 Newmarket Street, City Bowl, Cape Town, 7200 | D10: 499 888 2000 | E10: 0 | F10: 0 | G10: 0 | H10: 0 | I10: 0 | J10: 0 | K10: 0
A11: MIM01 | B11: Mini Market | C11: 55A Broad Street, Umhlanga, Durban, 3250 | D11: 423 090 3400 | E11: 0 | F11: 0 | G11: 0 | H11: 0 | I11: 0 | J11: 0 | K11: 0
A12: TPS01 | B12: TPS Exports | C12: 115 Main Street, Houtbay, Cape Town, 7100 | D12: 432 998 7273 | E12: 0 | F12: 0 | G12: 0 | H12: 0 | I12: 0 | J12: 0 | K12: 0
A13: TRF01 | B13: TRF Trading | C13: 290 York Crescent, Northcliff, Johannesburg, 1020 | D13: 463 556 2880 | E13: 47092.5 | F13: 47092.5 | G13: 0 | H13: 0 | I13: 0 | J13: 0 | K13: 0
A14: WCM01 | B14: WC Market | C14: 15 Strand Street, Walmer, Port Elizabeth, 4320 | D14: 412 998 0020 | E14: 0 | F14: 0 | G14: 0 | H14: 0 | I14: 0 | J14: 0 | K14: 0
A15: WWF01 | B15: WW Fresh Produce | C15: 22 Upper Boulevard, Fourways, Johannesburg, 1080 | E15: 59616 | F15: 59616 | G15: 0 | H15: 0 | I15: 0 | J15: 0 | K15: 0
A16: XXX01 | B16: General Customer Code | E16: 0 | F16: 0 | G16: 0 | H16: 0 | I16: 0 | J16: 0 | K16: 0
A17: XXX99 | B17: No Customer | E17: 0 | F17: 0 | G17: 0 | H17: 0 | I17: 0 | J17: 0 | K17: 0

Sheet Stock (hidden)
A1: =IF(ISBLANK(Setup!$C$5),"Example Limited",Setup!$C$5) -> Example (Pty) Limited | G1: From Date | H1: To Date | I1: =IF(ISBLANK($G$2),MIN(MIN(IncDocDate),MIN(ExpDocDate)),$G$2) -> 2020-03-01
A2: Stock | G2: 2020-03-01 | H2: 2021-02-28 | I2: =IF(ISBLANK($H$2),TODAY(),$H$2) -> 2021-02-28
A3: © www.excel-skills.com | G3: =SUBTOTAL(109,Inventory[[#Data],[Inventory Valuation]]) -> 341579.6243 | J3: =SUBTOTAL(109,Inventory[[#Data],[Startup Valuation]]) -> 270692 | O3: =SUBTOTAL(109,Inventory[[#Data],[Opening Valuation]]) -> 270692 | P3: =SUBTOTAL(109,Inventory[[#Data],[Total Purchase Value]]) -> 1896739.304 | Q3: =SUBTOTAL(109,Inventory[[#Data],[Total Cost of Sales Value]]) -> -1825851.68 | R3: =SUBTOTAL(109,Inventory[[#Data],[Closing Valuation]]) -> 341579.6243 | S3: =SUBTOTAL(109,Inventory[[#Data],[Total Sales Value]]) -> 3911622.5 | T3: =SUBTOTAL(109,Inventory[[#Data],[Gross Profit Value]]) -> 2085770.82 | U3: =IF(S3=0,0,T3/S3) -> 0.533223955
A4: Stock Code | B4: Description | C4: UOM | D4: Cost of Sales Account | E4: Startup Quantity | F4: Startup Cost | G4: Inventory Valuation | H4: Unit Cost | I4: Quantity On Hand | J4: Startup Valuation | K4: Opening Quantity | L4: Purchase Quantity | M4: Invoiced Quantity | N4: Closing Quantity | O4: Opening Valuation | P4: Total Purchase Value | Q4: Total Cost of Sales Value | R4: Closing Valuation | S4: Total Sales Value | T4: Gross Profit Value | U4: Gross Profit %
A5: F0010 | B5: Apple Juice | C5: Units | D5: IS-0205 | E5: 13740 | F5: 3.1 | G5: =$J5+SUMIFS(ExpExcl,ExpDocDate,"<="&$I$2,ExpStock,$A5)-SUMIFS(IncCOS,IncDocDate,"<="&$I$2,IncStock,$A5) -> 36493.34585 | H5: =IF(I5=0,0,G5/I5) -> 3.203981198 | I5: =$E5+SUMIFS(ExpQty,ExpDocDate,"<="&$I$2,ExpStock,$A5)-SUMIFS(IncQty,IncDocDate,"<="&$I$2,IncStock,$A5) -> 11390 | J5: =E5*F5 -> 42594 | K5: =$E5+SUMIFS(ExpQty,ExpDocDate,"<"&$I$1,ExpStock,$A5)-SUMIFS(IncQty,IncDocDate,"<"&$I$1,IncStock,$A5) -> 13740 | L5: =SUMIFS(ExpQty,ExpDocDate,">="&$I$1,ExpDocDate,"<="&$I$2,ExpStock,$A5) -> 158600 | M5: =-SUMIFS(IncQty,IncDocDate,">="&$I$1,IncDocDate,"<="&$I$2,IncStock,$A5) -> -160950 | N5: =$E5+SUMIFS(ExpQty,ExpDocDate,"<="&$I$2,ExpStock,$A5)-SUMIFS(IncQty,IncDocDate,"<="&$I$2,IncStock,$A5) -> 11390 | O5: =$J5+SUMIFS(ExpExcl,ExpDocDate,"<"&$I$1,ExpStock,$A5)-SUMIFS(IncCOS,IncDocDate,"<"&$I$1,IncStock,$A5) -> 42594 | P5: =SUMIFS(ExpExcl,ExpDocDate,">="&$I$1,ExpDocDate,"<="&$I$2,ExpStock,$A5) -> 508473.087 | Q5: =-SUMIFS(IncCOS,IncDocDate,">="&$I$1,IncDocDate,"<="&$I$2,IncStock,$A5) -> -514573.7411 | R5: =$J5+SUMIFS(ExpExcl,ExpDocDate,"<="&$I$2,ExpStock,$A5)-SUMIFS(IncCOS,IncDocDate,"<="&$I$2,IncStock,$A5) -> 36493.34585 | S5: =SUMIFS(IncExcl,IncDocDate,">="&$I$1,IncDocDate,"<="&$I$2,IncStock,$A5) -> 1149290 | T5: =S5+Q5 -> 634716.2589 | U5: 0.5522681472
A6: F0015 | B6: Orange Juice | C6: Units | D6: IS-0205 | E6: 7260 | F6: 5 | G6: 54797.28398 | H6: 5.823303292 | I6: 9410 | J6: 36300 | K6: 7260 | L6: 78100 | M6: -75950 | N6: 9410 | O6: 36300 | P6: 418217.3913 | Q6: -399720.1073 | R6: 54797.28398 | S6: 685215 | T6: 285494.8927 | U6: 0.4166500918
A7: F0020 | B7: Strawberry Juice | C7: Units | D7: IS-0205 | E7: 5270 | F7: 24 | G7: 169680 | H7: 28 | I7: 6060 | J7: 126480 | K7: 5270 | L7: 9000 | M7: -8210 | N7: 6060 | O7: 126480 | P7: 252000 | Q7: -208800 | R7: 169680 | S7: 535740 | T7: 326940 | U7: 0.6102587076
A8: V0010 | B8: Tomato Juice | C8: Units | D8: IS-0210 | E8: 9220 | F8: 3.2 | G8: 31550.95933 | H8: 3.321153614 | I8: 9500 | J8: 29504 | K8: 9220 | L8: 80980 | M8: -80700 | N8: 9500 | O8: 29504 | P8: 264592.1304 | Q8: -262545.1711 | R8: 31550.95933 | S8: 662850 | T8: 400304.8289 | U8: 0.6039146547
A9: V0015 | B9: Beetroot Juice | C9: Units | D9: IS-0210 | E9: 5890 | F9: 3.6 | G9: 31183.03511 | H9: 3.580141804 | I9: 8710 | J9: 21204 | K9: 5890 | L9: 76570 | M9: -73750 | N9: 8710 | O9: 21204 | P9: 270518.4348 | Q9: -260539.3997 | R9: 31183.03511 | S9: 452175 | T9: 191635.6003 | U9: 0.423808482
A10: V0020 | B10: Carrot Juice | C10: Units | D10: IS-0210 | E10: 7305 | F10: 2 | G10: 17875 | H10: 2.5 | I10: 7150 | J10: 14610 | K10: 7305 | L10: 80650 | M10: -80805 | N10: 7150 | O10: 14610 | P10: 182938.2609 | Q10: -179673.2609 | R10: 17875 | S10: 426352.5 | T10: 246679.2391 | U10: 0.5785804918

Sheet Income (hidden)
A1: =IF(ISBLANK(Setup!$C$5),"Example Limited",Setup!$C$5) -> Example (Pty) Limited | R1: Balance Date | AC1: =Statement!$H$16 -> FRV01
A2: Income & Other Receipts | R2: 2021-02-28 | S2: =IF(ISBLANK(R2),TODAY(),R2) -> 2021-02-28 | AC2: =Statement!$H$17 -> 2021-02-28
A3: © www.excel-skills.com | L3: =SUBTOTAL(109,Income[[#Data],[Payment Amount]]) -> 4813011.625 | N3: =SUBTOTAL(109,Income[[#Data],[Inclusive Amount]]) -> 4846733.625 | O3: =SUBTOTAL(109,Income[[#Data],[Sales Tax 1 Amount]]) -> 611354.775 | P3: =SUBTOTAL(109,Income[[#Data],[Sales Tax 2 Amount]]) -> 0 | Q3: =SUBTOTAL(109,Income[[#Data],[Exclusive Amount]]) -> 4235378.85 | R3: =SUBTOTAL(109,Income[[#Data],[Outstanding Balance]]) -> 278137.25 | W3: =SUBTOTAL(109,Income[[#Data],[Cost of Sales Amount]]) -> 1825851.68 | X3: =SUBTOTAL(109,Income[[#Data],[Gross Profit Amount]]) -> 2085770.82 | Y3: =IF(O3=0,0,X3/O3) -> 3.411719194
A4: Invoice Number | B4: Invoice Date | C4: Customer | D4: Stock Code | E4: Description | F4: Quantity | G4: Selling Price | H4: Tax 1 Code | I4: Tax 2 Code | J4: Bank Code | K4: Account Number | L4: Payment Amount | M4: Payment Date | N4: Inclusive Amount | O4: Sales Tax 1 Amount | P4: Sales Tax 2 Amount | Q4: Exclusive Amount | R4: Outstanding Balance | S4: Transaction Type | T4: Previous Quantity | U4: Previous Cost | V4: Transaction Cost | W4: Cost of Sales Amount | X4: Gross Profit Amount | Y4: Gross Profit Percentage | Z4: Cost of Sales Account | AA4: Unique Invoice Date | AB4: Unique INV | AC4: ST1 | AD4: Error Code
A5: IN0051 | B5: 2020-02-15 | C5: FRV01 | E5: Sales - Apple Juice | F5: 5800 | G5: 8.5 | H5: A | I5: E | J5: B1 | K5: BS-0799 | L5: 117760 | M5: 2020-03-15 | N5: =IF(Setup!$D$31="Exclusive",IF(F5=0,G5,F5*G5)*(1+IF(ISNA(MATCH($H5,TaxCode,0)),0,OFFSET(Setup!$D$23,MATCH($H5,TaxCode,0),0,1,1))),IF(F5=0,G5,F5*G5)) -> 56695 | O5: =$N5/(1+IF(ISERROR($H5),0,IF(ISNA(MATCH($H5,TaxCode,0)),0,OFFSET(Setup!$D$23,MATCH($H5,TaxCode,0),0,1,1)))+IF(ISERROR($I5),0,IF(ISNA(MATCH($I5,TaxCode,0)),0,OFFSET(Setup!$D$23,MATCH($I5,TaxCode,0),0,1,1))))*IF(ISERROR($H5),0,IF(ISNA(MATCH($H5,TaxCode,0)),0,OFFSET(Setup!$D$23,MATCH($H5,TaxCode,0),0,1,1))) -> 7395 | P5: =$N5/(1+IF(ISERROR($H5),0,IF(ISNA(MATCH($H5,TaxCode,0)),0,OFFSET(Setup!$D$23,MATCH($H5,TaxCode,0),0,1,1)))+IF(ISERROR($I5),0,IF(ISNA(MATCH($I5,TaxCode,0)),0,OFFSET(Setup!$D$23,MATCH($I5,TaxCode,0),0,1,1))))*IF(ISERROR($I5),0,IF(ISNA(MATCH($I5,TaxCode,0)),0,OFFSET(Setup!$D$23,MATCH($I5,TaxCode,0),0,1,1))) -> 0 | Q5: =N5-IF(IncTaxCount=2,SUM(O5:P5),SUM(O5:O5)) -> 49300 | R5: =IF($AB5="N",0,ROUND(SUMIFS(IncIncl,IncDocDate,"<="&$S$2,IncInvoice,$A5)-SUMIFS(IncPayAmount,IncDocDate,"<="&$S$2,IncPayDate,"<="&$S$2,IncInvoice,$A5),2)) -> 0 | S5: =IF(Z5<>"-","STOCK","-") -> - | T5: =SUMIFS(StockOpenQty,StockCodeOnly,$D5)+SUMIFS(ExpQty,ExpDocDate,"<="&$B5,ExpStock,$D5)-SUMIFS(IncQty,IncUDate,"<"&$AA5,IncStock,$D5) -> 0 | U5: =IF(T5=0,0,(SUMIFS(StockOpen,StockCodeOnly,$D5)+SUMIFS(ExpExcl,ExpDocDate,"<="&$B5,ExpStock,$D5)-SUMIFS(IncTransCost,IncUDate,"<"&$AA5,IncStock,$D5))/T5) -> 0 | V5: =F5*U5 -> 0 | W5: =F5*U5 -> 0 | X5: =IF(Z5="-",0,Q5-W5) -> 0 | Y5: =IF(Z5="-",0,IF(Q5=0,0,X5/Q5)) -> 0 | Z5: =IF(ISNA(VLOOKUP(D5,StockAll,COLUMN(Stock!$D$4),0)),"-",IF(OR(VLOOKUP(D5,StockAll,COLUMN(Stock!$D$4),0)=0,LEFT(VLOOKUP(D5,StockAll,COLUMN(Stock!$D$4),0),5)<>"IS-02"),"IS-0299",VLOOKUP(D5,StockAll,COLUMN(Stock!$D$4),0))) -> - | AA5: =IF(ISBLANK($B5)=TRUE,TODAY()+(ROW($B5)/86400),$B5+(ROW($B5)/86400)) -> 2020-02-15T00:00:05 | AB5: =IF(ISNA(MATCH($A5,IncInvoice,0)),"N",IF(MATCH($A5,IncInvoice,0)=ROW($A5)-4,"Y","N")) -> Y | AC5: =IF($AB5="N",0,IF(ROUND(SUMIFS(IncIncl,IncDocDate,"<="&$AC$2,IncInvoice,$A5,IncCus,$AC$1)-SUMIFS(IncPayAmount,IncDocDate,"<="&$AC$2,IncPayDate,"<="&$AC$2,IncInvoice,$A5,IncCus,$AC$1),2)=0,0,1)) -> 0 | AD5: =IF(AND(ISBLANK(M5)=FALSE,M5<B5),"E1",IF(AND(ISBLANK(K5)=FALSE,ISNA(MATCH($K5,AccountNo,0))),"E2",IF(AND(ISBLANK(J5)=FALSE,ISNA(MATCH($J5,BankCode,0))),"E3",IF(AND(ISBLANK(C5)=FALSE,ISNA(MATCH($C5,CustomerCode,0))),"E4",IF(AND(ISBLANK(D5)=FALSE,Z5="-"),"E5",IF(AND(Z5<>"-",T5-F5<0),"E6","-")))))) -> -
A6: IN0051 | B6: 2020-02-15 | C6: FRV01 | E6: Sales - Orange Juice | F6: 5900 | G6: 9 | H6: A | I6: E | J6: B1 | K6: BS-0799 | L6: 0 | M6: 2020-03-15 | N6: =IF(Setup!$D$31="Exclusive",IF(F6=0,G6,F6*G6)*(1+IF(ISNA(MATCH($H6,TaxCode,0)),0,OFFSET(Setup!$D$23,MATCH($H6,TaxCode,0),0,1,1))),IF(F6=0,G6,F6*G6)) -> 61065 | O6: =$N6/(1+IF(ISERROR($H6),0,IF(ISNA(MATCH($H6,TaxCode,0)),0,OFFSET(Setup!$D$23,MATCH($H6,TaxCode,0),0,1,1)))+IF(ISERROR($I6),0,IF(ISNA(MATCH($I6,TaxCode,0)),0,OFFSET(Setup!$D$23,MATCH($I6,TaxCode,0),0,1,1))))*IF(ISERROR($H6),0,IF(ISNA(MATCH($H6,TaxCode,0)),0,OFFSET(Setup!$D$23,MATCH($H6,TaxCode,0),0,1,1))) -> 7965 | P6: =$N6/(1+IF(ISERROR($H6),0,IF(ISNA(MATCH($H6,TaxCode,0)),0,OFFSET(Setup!$D$23,MATCH($H6,TaxCode,0),0,1,1)))+IF(ISERROR($I6),0,IF(ISNA(MATCH($I6,TaxCode,0)),0,OFFSET(Setup!$D$23,MATCH($I6,TaxCode,0),0,1,1))))*IF(ISERROR($I6),0,IF(ISNA(MATCH($I6,TaxCode,0)),0,OFFSET(Setup!$D$23,MATCH($I6,TaxCode,0),0,1,1))) -> 0 | Q6: =N6-IF(IncTaxCount=2,SUM(O6:P6),SUM(O6:O6)) -> 53100 | R6: =IF($AB6="N",0,ROUND(SUMIFS(IncIncl,IncDocDate,"<="&$S$2,IncInvoice,$A6)-SUMIFS(IncPayAmount,IncDocDate,"<="&$S$2,IncPayDate,"<="&$S$2,IncInvoice,$A6),2)) -> 0 | S6: - | T6: 0 | U6: =IF(T6=0,0,(SUMIFS(StockOpen,StockCodeOnly,$D6)+SUMIFS(ExpExcl,ExpDocDate,"<="&$B6,ExpStock,$D6)-SUMIFS(IncTransCost,IncUDate,"<"&$AA6,IncStock,$D6))/T6) -> 0 | V6: 0 | W6: 0 | X6: 0 | Y6: 0 | Z6: =IF(ISNA(VLOOKUP(D6,StockAll,COLUMN(Stock!$D$4),0)),"-",IF(OR(VLOOKUP(D6,StockAll,COLUMN(Stock!$D$4),0)=0,LEFT(VLOOKUP(D6,StockAll,COLUMN(Stock!$D$4),0),5)<>"IS-02"),"IS-0299",VLOOKUP(D6,StockAll,COLUMN(Stock!$D$4),0))) -> - | AA6: 2020-02-15T00:00:06 | AB6: N | AC6: =IF($AB6="N",0,IF(ROUND(SUMIFS(IncIncl,IncDocDate,"<="&$AC$2,IncInvoice,$A6,IncCus,$AC$1)-SUMIFS(IncPayAmount,IncDocDate,"<="&$AC$2,IncPayDate,"<="&$AC$2,IncInvoice,$A6,IncCus,$AC$1),2)=0,0,1)) -> 0 | AD6: -
A7: IN0052 | B7: 2020-02-25 | C7: TRF01 | E7: Sales - Beetroot Juice | F7: 6000 | G7: 6 | H7: A | I7: E | J7: B1 | K7: BS-0799 | L7: 41400 | M7: 2020-03-25 | N7: =IF(Setup!$D$31="Exclusive",IF(F7=0,G7,F7*G7)*(1+IF(ISNA(MATCH($H7,TaxCode,0)),0,OFFSET(Setup!$D$23,MATCH($H7,TaxCode,0),0,1,1))),IF(F7=0,G7,F7*G7)) -> 41400 | O7: =$N7/(1+IF(ISERROR($H7),0,IF(ISNA(MATCH($H7,TaxCode,0)),0,OFFSET(Setup!$D$23,MATCH($H7,TaxCode,0),0,1,1)))+IF(ISERROR($I7),0,IF(ISNA(MATCH($I7,TaxCode,0)),0,OFFSET(Setup!$D$23,MATCH($I7,TaxCode,0),0,1,1))))*IF(ISERROR($H7),0,IF(ISNA(MATCH($H7,TaxCode,0)),0,OFFSET(Setup!$D$23,MATCH($H7,TaxCode,0),0,1,1))) -> 5400 | P7: =$N7/(1+IF(ISERROR($H7),0,IF(ISNA(MATCH($H7,TaxCode,0)),0,OFFSET(Setup!$D$23,MATCH($H7,TaxCode,0),0,1,1)))+IF(ISERROR($I7),0,IF(ISNA(MATCH($I7,TaxCode,0)),0,OFFSET(Setup!$D$23,MATCH($I7,TaxCode,0),0,1,1))))*IF(ISERROR($I7),0,IF(ISNA(MATCH($I7,TaxCode,0)),0,OFFSET(Setup!$D$23,MATCH($I7,TaxCode,0),0,1,1))) -> 0 | Q7: =N7-IF(IncTaxCount=2,SUM(O7:P7),SUM(O7:O7)) -> 36000 | R7: =IF($AB7="N",0,ROUND(SUMIFS(IncIncl,IncDocDate,"<="&$S$2,IncInvoice,$A7)-SUMIFS(IncPayAmount,IncDocDate,"<="&$S$2,IncPayDate,"<="&$S$2,IncInvoice,$A7),2)) -> 0 | S7: - | T7: 0 | U7: =IF(T7=0,0,(SUMIFS(StockOpen,StockCodeOnly,$D7)+SUMIFS(ExpExcl,ExpDocDate,"<="&$B7,ExpStock,$D7)-SUMIFS(IncTransCost,IncUDate,"<"&$AA7,IncStock,$D7))/T7) -> 0 | V7: 0 | W7: 0 | X7: 0 | Y7: 0 | Z7: =IF(ISNA(VLOOKUP(D7,StockAll,COLUMN(Stock!$D$4),0)),"-",IF(OR(VLOOKUP(D7,StockAll,COLUMN(Stock!$D$4),0)=0,LEFT(VLOOKUP(D7,StockAll,COLUMN(Stock!$D$4),0),5)<>"IS-02"),"IS-0299",VLOOKUP(D7,StockAll,COLUMN(Stock!$D$4),0))) -> - | AA7: 2020-02-25T00:00:07 | AB7: Y | AC7: =IF($AB7="N",0,IF(ROUND(SUMIFS(IncIncl,IncDocDate,"<="&$AC$2,IncInvoice,$A7,IncCus,$AC$1)-SUMIFS(IncPayAmount,IncDocDate,"<="&$AC$2,IncPayDate,"<="&$AC$2,IncInvoice,$A7,IncCus,$AC$1),2)=0,0,1)) -> 0 | AD7: -
A8: OB | B8: 2020-02-28 | C8: XXX99 | E8: Opening Bank Balance | F8: 0 | G8: 45250.5 | H8: E | I8: E | J8: B1 | K8: BS-0799 | L8: 45250.5 | M8: 2020-02-28 | N8: =IF(Setup!$D$31="Exclusive",IF(F8=0,G8,F8*G8)*(1+IF(ISNA(MATCH($H8,TaxCode,0)),0,OFFSET(Setup!$D$23,MATCH($H8,TaxCode,0),0,1,1))),IF(F8=0,G8,F8*G8)) -> 45250.5 | O8: =$N8/(1+IF(ISERROR($H8),0,IF(ISNA(MATCH($H8,TaxCode,0)),0,OFFSET(Setup!$D$23,MATCH($H8,TaxCode,0),0,1,1)))+IF(ISERROR($I8),0,IF(ISNA(MATCH($I8,TaxCode,0)),0,OFFSET(Setup!$D$23,MATCH($I8,TaxCode,0),0,1,1))))*IF(ISERROR($H8),0,IF(ISNA(MATCH($H8,TaxCode,0)),0,OFFSET(Setup!$D$23,MATCH($H8,TaxCode,0),0,1,1))) -> 0 | P8: =$N8/(1+IF(ISERROR($H8),0,IF(ISNA(MATCH($H8,TaxCode,0)),0,OFFSET(Setup!$D$23,MATCH($H8,TaxCode,0),0,1,1)))+IF(ISERROR($I8),0,IF(ISNA(MATCH($I8,TaxCode,0)),0,OFFSET(Setup!$D$23,MATCH($I8,TaxCode,0),0,1,1))))*IF(ISERROR($I8),0,IF(ISNA(MATCH($I8,TaxCode,0)),0,OFFSET(Setup!$D$23,MATCH($I8,TaxCode,0),0,1,1))) -> 0 | Q8: =N8-IF(IncTaxCount=2,SUM(O8:P8),SUM(O8:O8)) -> 45250.5 | R8: =IF($AB8="N",0,ROUND(SUMIFS(IncIncl,IncDocDate,"<="&$S$2,IncInvoice,$A8)-SUMIFS(IncPayAmount,IncDocDate,"<="&$S$2,IncPayDate,"<="&$S$2,IncInvoice,$A8),2)) -> 0 | S8: - | T8: 0 | U8: =IF(T8=0,0,(SUMIFS(StockOpen,StockCodeOnly,$D8)+SUMIFS(ExpExcl,ExpDocDate,"<="&$B8,ExpStock,$D8)-SUMIFS(IncTransCost,IncUDate,"<"&$AA8,IncStock,$D8))/T8) -> 0 | V8: 0 | W8: 0 | X8: 0 | Y8: 0 | Z8: =IF(ISNA(VLOOKUP(D8,StockAll,COLUMN(Stock!$D$4),0)),"-",IF(OR(VLOOKUP(D8,StockAll,COLUMN(Stock!$D$4),0)=0,LEFT(VLOOKUP(D8,StockAll,COLUMN(Stock!$D$4),0),5)<>"IS-02"),"IS-0299",VLOOKUP(D8,StockAll,COLUMN(Stock!$D$4),0))) -> - | AA8: 2020-02-28T00:00:08 | AB8: Y | AC8: =IF($AB8="N",0,IF(ROUND(SUMIFS(IncIncl,IncDocDate,"<="&$AC$2,IncInvoice,$A8,IncCus,$AC$1)-SUMIFS(IncPayAmount,IncDocDate,"<="&$AC$2,IncPayDate,"<="&$AC$2,IncInvoice,$A8,IncCus,$AC$1),2)=0,0,1)) -> 0 | AD8: -
A9: OB | B9: 2020-02-28 | C9: XXX99 | E9: Opening Bank Balance | F9: 0 | G9: 61500 | H9: E | I9: E | J9: B2 | K9: BS-0799 | L9: 61500 | M9: 2020-02-28 | N9: =IF(Setup!$D$31="Exclusive",IF(F9=0,G9,F9*G9)*(1+IF(ISNA(MATCH($H9,TaxCode,0)),0,OFFSET(Setup!$D$23,MATCH($H9,TaxCode,0),0,1,1))),IF(F9=0,G9,F9*G9)) -> 61500 | O9: =$N9/(1+IF(ISERROR($H9),0,IF(ISNA(MATCH($H9,TaxCode,0)),0,OFFSET(Setup!$D$23,MATCH($H9,TaxCode,0),0,1,1)))+IF(ISERROR($I9),0,IF(ISNA(MATCH($I9,TaxCode,0)),0,OFFSET(Setup!$D$23,MATCH($I9,TaxCode,0),0,1,1))))*IF(ISERROR($H9),0,IF(ISNA(MATCH($H9,TaxCode,0)),0,OFFSET(Setup!$D$23,MATCH($H9,TaxCode,0),0,1,1))) -> 0 | P9: =$N9/(1+IF(ISERROR($H9),0,IF(ISNA(MATCH($H9,TaxCode,0)),0,OFFSET(Setup!$D$23,MATCH($H9,TaxCode,0),0,1,1)))+IF(ISERROR($I9),0,IF(ISNA(MATCH($I9,TaxCode,0)),0,OFFSET(Setup!$D$23,MATCH($I9,TaxCode,0),0,1,1))))*IF(ISERROR($I9),0,IF(ISNA(MATCH($I9,TaxCode,0)),0,OFFSET(Setup!$D$23,MATCH($I9,TaxCode,0),0,1,1))) -> 0 | Q9: =N9-IF(IncTaxCount=2,SUM(O9:P9),SUM(O9:O9)) -> 61500 | R9: =IF($AB9="N",0,ROUND(SUMIFS(IncIncl,IncDocDate,"<="&$S$2,IncInvoice,$A9)-SUMIFS(IncPayAmount,IncDocDate,"<="&$S$2,IncPayDate,"<="&$S$2,IncInvoice,$A9),2)) -> 0 | S9: - | T9: 0 | U9: =IF(T9=0,0,(SUMIFS(StockOpen,StockCodeOnly,$D9)+SUMIFS(ExpExcl,ExpDocDate,"<="&$B9,ExpStock,$D9)-SUMIFS(IncTransCost,IncUDate,"<"&$AA9,IncStock,$D9))/T9) -> 0 | V9: 0 | W9: 0 | X9: 0 | Y9: 0 | Z9: =IF(ISNA(VLOOKUP(D9,StockAll,COLUMN(Stock!$D$4),0)),"-",IF(OR(VLOOKUP(D9,StockAll,COLUMN(Stock!$D$4),0)=0,LEFT(VLOOKUP(D9,StockAll,COLUMN(Stock!$D$4),0),5)<>"IS-02"),"IS-0299",VLOOKUP(D9,StockAll,COLUMN(Stock!$D$4),0))) -> - | AA9: 2020-02-28T00:00:09 | AB9: N | AC9: =IF($AB9="N",0,IF(ROUND(SUMIFS(IncIncl,IncDocDate,"<="&$AC$2,IncInvoice,$A9,IncCus,$AC$1)-SUMIFS(IncPayAmount,IncDocDate,"<="&$AC$2,IncPayDate,"<="&$AC$2,IncInvoice,$A9,IncCus,$AC$1),2)=0,0,1)) -> 0 | AD9: -
A10: OB | B10: 2020-02-28 | C10: XXX99 | E10: Opening Bank Balance | F10: 0 | G10: 0 | H10: E | I10: E | J10: B3 | K10: BS-0799 | L10: 0 | M10: 2020-02-28 | N10: =IF(Setup!$D$31="Exclusive",IF(F10=0,G10,F10*G10)*(1+IF(ISNA(MATCH($H10,TaxCode,0)),0,OFFSET(Setup!$D$23,MATCH($H10,TaxCode,0),0,1,1))),IF(F10=0,G10,F10*G10)) -> 0 | O10: =$N10/(1+IF(ISERROR($H10),0,IF(ISNA(MATCH($H10,TaxCode,0)),0,OFFSET(Setup!$D$23,MATCH($H10,TaxCode,0),0,1,1)))+IF(ISERROR($I10),0,IF(ISNA(MATCH($I10,TaxCode,0)),0,OFFSET(Setup!$D$23,MATCH($I10,TaxCode,0),0,1,1))))*IF(ISERROR($H10),0,IF(ISNA(MATCH($H10,TaxCode,0)),0,OFFSET(Setup!$D$23,MATCH($H10,TaxCode,0),0,1,1))) -> 0 | P10: =$N10/(1+IF(ISERROR($H10),0,IF(ISNA(MATCH($H10,TaxCode,0)),0,OFFSET(Setup!$D$23,MATCH($H10,TaxCode,0),0,1,1)))+IF(ISERROR($I10),0,IF(ISNA(MATCH($I10,TaxCode,0)),0,OFFSET(Setup!$D$23,MATCH($I10,TaxCode,0),0,1,1))))*IF(ISERROR($I10),0,IF(ISNA(MATCH($I10,TaxCode,0)),0,OFFSET(Setup!$D$23,MATCH($I10,TaxCode,0),0,1,1))) -> 0 | Q10: =N10-IF(IncTaxCount=2,SUM(O10:P10),SUM(O10:O10)) -> 0 | R10: =IF($AB10="N",0,ROUND(SUMIFS(IncIncl,IncDocDate,"<="&$S$2,IncInvoice,$A10)-SUMIFS(IncPayAmount,IncDocDate,"<="&$S$2,IncPayDate,"<="&$S$2,IncInvoice,$A10),2)) -> 0 | S10: - | T10: 0 | U10: =IF(T10=0,0,(SUMIFS(StockOpen,StockCodeOnly,$D10)+SUMIFS(ExpExcl,ExpDocDate,"<="&$B10,ExpStock,$D10)-SUMIFS(IncTransCost,IncUDate,"<"&$AA10,IncStock,$D10))/T10) -> 0 | V10: 0 | W10: 0 | X10: 0 | Y10: 0 | Z10: =IF(ISNA(VLOOKUP(D10,StockAll,COLUMN(Stock!$D$4),0)),"-",IF(OR(VLOOKUP(D10,StockAll,COLUMN(Stock!$D$4),0)=0,LEFT(VLOOKUP(D10,StockAll,COLUMN(Stock!$D$4),0),5)<>"IS-02"),"IS-0299",VLOOKUP(D10,StockAll,COLUMN(Stock!$D$4),0))) -> - | AA10: 2020-02-28T00:00:10 | AB10: N | AC10: =IF($AB10="N",0,IF(ROUND(SUMIFS(IncIncl,IncDocDate,"<="&$AC$2,IncInvoice,$A10,IncCus,$AC$1)-SUMIFS(IncPayAmount,IncDocDate,"<="&$AC$2,IncPayDate,"<="&$AC$2,IncInvoice,$A10,IncCus,$AC$1),2)=0,0,1)) -> 0 | AD10: -
A11: OB | B11: 2020-02-28 | C11: XXX99 | E11: Opening Bank Balance | F11: 0 | G11: 1000 | H11: E | I11: E | J11: PC | K11: BS-0799 | L11: 1000 | M11: 2020-02-28 | N11: =IF(Setup!$D$31="Exclusive",IF(F11=0,G11,F11*G11)*(1+IF(ISNA(MATCH($H11,TaxCode,0)),0,OFFSET(Setup!$D$23,MATCH($H11,TaxCode,0),0,1,1))),IF(F11=0,G11,F11*G11)) -> 1000 | O11: =$N11/(1+IF(ISERROR($H11),0,IF(ISNA(MATCH($H11,TaxCode,0)),0,OFFSET(Setup!$D$23,MATCH($H11,TaxCode,0),0,1,1)))+IF(ISERROR($I11),0,IF(ISNA(MATCH($I11,TaxCode,0)),0,OFFSET(Setup!$D$23,MATCH($I11,TaxCode,0),0,1,1))))*IF(ISERROR($H11),0,IF(ISNA(MATCH($H11,TaxCode,0)),0,OFFSET(Setup!$D$23,MATCH($H11,TaxCode,0),0,1,1))) -> 0 | P11: =$N11/(1+IF(ISERROR($H11),0,IF(ISNA(MATCH($H11,TaxCode,0)),0,OFFSET(Setup!$D$23,MATCH($H11,TaxCode,0),0,1,1)))+IF(ISERROR($I11),0,IF(ISNA(MATCH($I11,TaxCode,0)),0,OFFSET(Setup!$D$23,MATCH($I11,TaxCode,0),0,1,1))))*IF(ISERROR($I11),0,IF(ISNA(MATCH($I11,TaxCode,0)),0,OFFSET(Setup!$D$23,MATCH($I11,TaxCode,0),0,1,1))) -> 0 | Q11: =N11-IF(IncTaxCount=2,SUM(O11:P11),SUM(O11:O11)) -> 1000 | R11: =IF($AB11="N",0,ROUND(SUMIFS(IncIncl,IncDocDate,"<="&$S$2,IncInvoice,$A11)-SUMIFS(IncPayAmount,IncDocDate,"<="&$S$2,IncPayDate,"<="&$S$2,IncInvoice,$A11),2)) -> 0 | S11: - | T11: 0 | U11: =IF(T11=0,0,(SUMIFS(StockOpen,StockCodeOnly,$D11)+SUMIFS(ExpExcl,ExpDocDate,"<="&$B11,ExpStock,$D11)-SUMIFS(IncTransCost,IncUDate,"<"&$AA11,IncStock,$D11))/T11) -> 0 | V11: 0 | W11: 0 | X11: 0 | Y11: 0 | Z11: =IF(ISNA(VLOOKUP(D11,StockAll,COLUMN(Stock!$D$4),0)),"-",IF(OR(VLOOKUP(D11,StockAll,COLUMN(Stock!$D$4),0)=0,LEFT(VLOOKUP(D11,StockAll,COLUMN(Stock!$D$4),0),5)<>"IS-02"),"IS-0299",VLOOKUP(D11,StockAll,COLUMN(Stock!$D$4),0))) -> - | AA11: 2020-02-28T00:00:11 | AB11: N | AC11: =IF($AB11="N",0,IF(ROUND(SUMIFS(IncIncl,IncDocDate,"<="&$AC$2,IncInvoice,$A11,IncCus,$AC$1)-SUMIFS(IncPayAmount,IncDocDate,"<="&$AC$2,IncPayDate,"<="&$AC$2,IncInvoice,$A11,IncCus,$AC$1),2)=0,0,1)) -> 0 | AD11: -
A12: REC0020 | B12: 2020-03-01 | C12: ABC01 | E12: Interest Received | F12: 0 | G12: 150.01 | H12: E | I12: E | J12: B2 | K12: IS-0900 | L12: 150.01 | M12: 2020-03-01 | N12: =IF(Setup!$D$31="Exclusive",IF(F12=0,G12,F12*G12)*(1+IF(ISNA(MATCH($H12,TaxCode,0)),0,OFFSET(Setup!$D$23,MATCH($H12,TaxCode,0),0,1,1))),IF(F12=0,G12,F12*G12)) -> 150.01 | O12: =$N12/(1+IF(ISERROR($H12),0,IF(ISNA(MATCH($H12,TaxCode,0)),0,OFFSET(Setup!$D$23,MATCH($H12,TaxCode,0),0,1,1)))+IF(ISERROR($I12),0,IF(ISNA(MATCH($I12,TaxCode,0)),0,OFFSET(Setup!$D$23,MATCH($I12,TaxCode,0),0,1,1))))*IF(ISERROR($H12),0,IF(ISNA(MATCH($H12,TaxCode,0)),0,OFFSET(Setup!$D$23,MATCH($H12,TaxCode,0),0,1,1))) -> 0 | P12: =$N12/(1+IF(ISERROR($H12),0,IF(ISNA(MATCH($H12,TaxCode,0)),0,OFFSET(Setup!$D$23,MATCH($H12,TaxCode,0),0,1,1)))+IF(ISERROR($I12),0,IF(ISNA(MATCH($I12,TaxCode,0)),0,OFFSET(Setup!$D$23,MATCH($I12,TaxCode,0),0,1,1))))*IF(ISERROR($I12),0,IF(ISNA(MATCH($I12,TaxCode,0)),0,OFFSET(Setup!$D$23,MATCH($I12,TaxCode,0),0,1,1))) -> 0 | Q12: =N12-IF(IncTaxCount=2,SUM(O12:P12),SUM(O12:O12)) -> 150.01 | R12: =IF($AB12="N",0,ROUND(SUMIFS(IncIncl,IncDocDate,"<="&$S$2,IncInvoice,$A12)-SUMIFS(IncPayAmount,IncDocDate,"<="&$S$2,IncPayDate,"<="&$S$2,IncInvoice,$A12),2)) -> 0 | S12: - | T12: 0 | U12: =IF(T12=0,0,(SUMIFS(StockOpen,StockCodeOnly,$D12)+SUMIFS(ExpExcl,ExpDocDate,"<="&$B12,ExpStock,$D12)-SUMIFS(IncTransCost,IncUDate,"<"&$AA12,IncStock,$D12))/T12) -> 0 | V12: 0 | W12: 0 | X12: 0 | Y12: 0 | Z12: =IF(ISNA(VLOOKUP(D12,StockAll,COLUMN(Stock!$D$4),0)),"-",IF(OR(VLOOKUP(D12,StockAll,COLUMN(Stock!$D$4),0)=0,LEFT(VLOOKUP(D12,StockAll,COLUMN(Stock!$D$4),0),5)<>"IS-02"),"IS-0299",VLOOKUP(D12,StockAll,COLUMN(Stock!$D$4),0))) -> - | AA12: 2020-03-01T00:00:12 | AB12: Y | AC12: =IF($AB12="N",0,IF(ROUND(SUMIFS(IncIncl,IncDocDate,"<="&$AC$2,IncInvoice,$A12,IncCus,$AC$1)-SUMIFS(IncPayAmount,IncDocDate,"<="&$AC$2,IncPayDate,"<="&$AC$2,IncInvoice,$A12,IncCus,$AC$1),2)=0,0,1)) -> 0 | AD12: -
A13: REC0021 | B13: 2020-03-07 | C13: FCT01 | E13: Commission Received | F13: 0 | G13: 1710 | H13: A | I13: E | J13: B1 | K13: IS-0900 | L13: 1966.5 | M13: 2020-03-07 | N13: =IF(Setup!$D$31="Exclusive",IF(F13=0,G13,F13*G13)*(1+IF(ISNA(MATCH($H13,TaxCode,0)),0,OFFSET(Setup!$D$23,MATCH($H13,TaxCode,0),0,1,1))),IF(F13=0,G13,F13*G13)) -> 1966.5 | O13: =$N13/(1+IF(ISERROR($H13),0,IF(ISNA(MATCH($H13,TaxCode,0)),0,OFFSET(Setup!$D$23,MATCH($H13,TaxCode,0),0,1,1)))+IF(ISERROR($I13),0,IF(ISNA(MATCH($I13,TaxCode,0)),0,OFFSET(Setup!$D$23,MATCH($I13,TaxCode,0),0,1,1))))*IF(ISERROR($H13),0,IF(ISNA(MATCH($H13,TaxCode,0)),0,OFFSET(Setup!$D$23,MATCH($H13,TaxCode,0),0,1,1))) -> 256.5 | P13: =$N13/(1+IF(ISERROR($H13),0,IF(ISNA(MATCH($H13,TaxCode,0)),0,OFFSET(Setup!$D$23,MATCH($H13,TaxCode,0),0,1,1)))+IF(ISERROR($I13),0,IF(ISNA(MATCH($I13,TaxCode,0)),0,OFFSET(Setup!$D$23,MATCH($I13,TaxCode,0),0,1,1))))*IF(ISERROR($I13),0,IF(ISNA(MATCH($I13,TaxCode,0)),0,OFFSET(Setup!$D$23,MATCH($I13,TaxCode,0),0,1,1))) -> 0 | Q13: =N13-IF(IncTaxCount=2,SUM(O13:P13),SUM(O13:O13)) -> 1710 | R13: =IF($AB13="N",0,ROUND(SUMIFS(IncIncl,IncDocDate,"<="&$S$2,IncInvoice,$A13)-SUMIFS(IncPayAmount,IncDocDate,"<="&$S$2,IncPayDate,"<="&$S$2,IncInvoice,$A13),2)) -> 0 | S13: - | T13: 0 | U13: =IF(T13=0,0,(SUMIFS(StockOpen,StockCodeOnly,$D13)+SUMIFS(ExpExcl,ExpDocDate,"<="&$B13,ExpStock,$D13)-SUMIFS(IncTransCost,IncUDate,"<"&$AA13,IncStock,$D13))/T13) -> 0 | V13: 0 | W13: 0 | X13: 0 | Y13: 0 | Z13: =IF(ISNA(VLOOKUP(D13,StockAll,COLUMN(Stock!$D$4),0)),"-",IF(OR(VLOOKUP(D13,StockAll,COLUMN(Stock!$D$4),0)=0,LEFT(VLOOKUP(D13,StockAll,COLUMN(Stock!$D$4),0),5)<>"IS-02"),"IS-0299",VLOOKUP(D13,StockAll,COLUMN(Stock!$D$4),0))) -> - | AA13: 2020-03-07T00:00:13 | AB13: Y | AC13: =IF($AB13="N",0,IF(ROUND(SUMIFS(IncIncl,IncDocDate,"<="&$AC$2,IncInvoice,$A13,IncCus,$AC$1)-SUMIFS(IncPayAmount,IncDocDate,"<="&$AC$2,IncPayDate,"<="&$AC$2,IncInvoice,$A13,IncCus,$AC$1),2)=0,0,1)) -> 0 | AD13: -
A14: IN0053 | B14: 2020-03-10 | C14: WCM01 | D14: V0010 | E14: Sales - Tomato Juice | F14: 6000 | G14: 7.9 | H14: A | I14: E | J14: B1 | K14: IS-0110 | L14: 54510 | M14: 2020-03-25 | N14: =IF(Setup!$D$31="Exclusive",IF(F14=0,G14,F14*G14)*(1+IF(ISNA(MATCH($H14,TaxCode,0)),0,OFFSET(Setup!$D$23,MATCH($H14,TaxCode,0),0,1,1))),IF(F14=0,G14,F14*G14)) -> 54510 | O14: =$N14/(1+IF(ISERROR($H14),0,IF(ISNA(MATCH($H14,TaxCode,0)),0,OFFSET(Setup!$D$23,MATCH($H14,TaxCode,0),0,1,1)))+IF(ISERROR($I14),0,IF(ISNA(MATCH($I14,TaxCode,0)),0,OFFSET(Setup!$D$23,MATCH($I14,TaxCode,0),0,1,1))))*IF(ISERROR($H14),0,IF(ISNA(MATCH($H14,TaxCode,0)),0,OFFSET(Setup!$D$23,MATCH($H14,TaxCode,0),0,1,1))) -> 7110 | P14: =$N14/(1+IF(ISERROR($H14),0,IF(ISNA(MATCH($H14,TaxCode,0)),0,OFFSET(Setup!$D$23,MATCH($H14,TaxCode,0),0,1,1)))+IF(ISERROR($I14),0,IF(ISNA(MATCH($I14,TaxCode,0)),0,OFFSET(Setup!$D$23,MATCH($I14,TaxCode,0),0,1,1))))*IF(ISERROR($I14),0,IF(ISNA(MATCH($I14,TaxCode,0)),0,OFFSET(Setup!$D$23,MATCH($I14,TaxCode,0),0,1,1))) -> 0 | Q14: =N14-IF(IncTaxCount=2,SUM(O14:P14),SUM(O14:O14)) -> 47400 | R14: =IF($AB14="N",0,ROUND(SUMIFS(IncIncl,IncDocDate,"<="&$S$2,IncInvoice,$A14)-SUMIFS(IncPayAmount,IncDocDate,"<="&$S$2,IncPayDate,"<="&$S$2,IncInvoice,$A14),2)) -> 0 | S14: STOCK | T14: 15720 | U14: =IF(T14=0,0,(SUMIFS(StockOpen,StockCodeOnly,$D14)+SUMIFS(ExpExcl,ExpDocDate,"<="&$B14,ExpStock,$D14)-SUMIFS(IncTransCost,IncUDate,"<"&$AA14,IncStock,$D14))/T14) -> 3.188494302 | V14: 19130.96581 | W14: 19130.96581 | X14: 28269.03419 | Y14: 0.5963931263 | Z14: =IF(ISNA(VLOOKUP(D14,StockAll,COLUMN(Stock!$D$4),0)),"-",IF(OR(VLOOKUP(D14,StockAll,COLUMN(Stock!$D$4),0)=0,LEFT(VLOOKUP(D14,StockAll,COLUMN(Stock!$D$4),0),5)<>"IS-02"),"IS-0299",VLOOKUP(D14,StockAll,COLUMN(Stock!$D$4),0))) -> IS-0210 | AA14: 2020-03-10T00:00:14 | AB14: Y | AC14: =IF($AB14="N",0,IF(ROUND(SUMIFS(IncIncl,IncDocDate,"<="&$AC$2,IncInvoice,$A14,IncCus,$AC$1)-SUMIFS(IncPayAmount,IncDocDate,"<="&$AC$2,IncPayDate,"<="&$AC$2,IncInvoice,$A14,IncCus,$AC$1),2)=0,0,1)) -> 0 | AD14: -
A15: IN0054 | B15: 2020-03-10 | C15: WWF01 | D15: F0010 | E15: Sales - Apple Juice | F15: 7000 | G15: 7 | H15: A | I15: E | J15: B1 | K15: IS-0105 | L15: 56350 | M15: 2020-03-30 | N15: =IF(Setup!$D$31="Exclusive",IF(F15=0,G15,F15*G15)*(1+IF(ISNA(MATCH($H15,TaxCode,0)),0,OFFSET(Setup!$D$23,MATCH($H15,TaxCode,0),0,1,1))),IF(F15=0,G15,F15*G15)) -> 56350 | O15: =$N15/(1+IF(ISERROR($H15),0,IF(ISNA(MATCH($H15,TaxCode,0)),0,OFFSET(Setup!$D$23,MATCH($H15,TaxCode,0),0,1,1)))+IF(ISERROR($I15),0,IF(ISNA(MATCH($I15,TaxCode,0)),0,OFFSET(Setup!$D$23,MATCH($I15,TaxCode,0),0,1,1))))*IF(ISERROR($H15),0,IF(ISNA(MATCH($H15,TaxCode,0)),0,OFFSET(Setup!$D$23,MATCH($H15,TaxCode,0),0,1,1))) -> 7350 | P15: =$N15/(1+IF(ISERROR($H15),0,IF(ISNA(MATCH($H15,TaxCode,0)),0,OFFSET(Setup!$D$23,MATCH($H15,TaxCode,0),0,1,1)))+IF(ISERROR($I15),0,IF(ISNA(MATCH($I15,TaxCode,0)),0,OFFSET(Setup!$D$23,MATCH($I15,TaxCode,0),0,1,1))))*IF(ISERROR($I15),0,IF(ISNA(MATCH($I15,TaxCode,0)),0,OFFSET(Setup!$D$23,MATCH($I15,TaxCode,0),0,1,1))) -> 0 | Q15: =N15-IF(IncTaxCount=2,SUM(O15:P15),SUM(O15:O15)) -> 49000 | R15: =IF($AB15="N",0,ROUND(SUMIFS(IncIncl,IncDocDate,"<="&$S$2,IncInvoice,$A15)-SUMIFS(IncPayAmount,IncDocDate,"<="&$S$2,IncPayDate,"<="&$S$2,IncInvoice,$A15),2)) -> 0 | S15: STOCK | T15: 25740 | U15: =IF(T15=0,0,(SUMIFS(StockOpen,StockCodeOnly,$D15)+SUMIFS(ExpExcl,ExpDocDate,"<="&$B15,ExpStock,$D15)-SUMIFS(IncTransCost,IncUDate,"<"&$AA15,IncStock,$D15))/T15) -> 3.133647512 | V15: 21935.53258 | W15: 21935.53258 | X15: 27064.46742 | Y15: 0.5523360697 | Z15: =IF(ISNA(VLOOKUP(D15,StockAll,COLUMN(Stock!$D$4),0)),"-",IF(OR(VLOOKUP(D15,StockAll,COLUMN(Stock!$D$4),0)=0,LEFT(VLOOKUP(D15,StockAll,COLUMN(Stock!$D$4),0),5)<>"IS-02"),"IS-0299",VLOOKUP(D15,StockAll,COLUMN(Stock!$D$4),0))) -> IS-0205 | AA15: 2020-03-10T00:00:15 | AB15: Y | AC15: =IF($AB15="N",0,IF(ROUND(SUMIFS(IncIncl,IncDocDate,"<="&$AC$2,IncInvoice,$A15,IncCus,$AC$1)-SUMIFS(IncPayAmount,IncDocDate,"<="&$AC$2,IncPayDate,"<="&$AC$2,IncInvoice,$A15,IncCus,$AC$1),2)=0,0,1)) -> 0 | AD15: -
A16: IN0055 | B16: 2020-03-15 | C16: FRV01 | D16: F0010 | E16: Sales - Apple Juice | F16: 6200 | G16: 7 | H16: A | I16: E | J16: B1 | K16: IS-0105 | L16: 112010 | M16: 2020-04-15 | N16: =IF(Setup!$D$31="Exclusive",IF(F16=0,G16,F16*G16)*(1+IF(ISNA(MATCH($H16,TaxCode,0)),0,OFFSET(Setup!$D$23,MATCH($H16,TaxCode,0),0,1,1))),IF(F16=0,G16,F16*G16)) -> 49910 | O16: =$N16/(1+IF(ISERROR($H16),0,IF(ISNA(MATCH($H16,TaxCode,0)),0,OFFSET(Setup!$D$23,MATCH($H16,TaxCode,0),0,1,1)))+IF(ISERROR($I16),0,IF(ISNA(MATCH($I16,TaxCode,0)),0,OFFSET(Setup!$D$23,MATCH($I16,TaxCode,0),0,1,1))))*IF(ISERROR($H16),0,IF(ISNA(MATCH($H16,TaxCode,0)),0,OFFSET(Setup!$D$23,MATCH($H16,TaxCode,0),0,1,1))) -> 6510 | P16: =$N16/(1+IF(ISERROR($H16),0,IF(ISNA(MATCH($H16,TaxCode,0)),0,OFFSET(Setup!$D$23,MATCH($H16,TaxCode,0),0,1,1)))+IF(ISERROR($I16),0,IF(ISNA(MATCH($I16,TaxCode,0)),0,OFFSET(Setup!$D$23,MATCH($I16,TaxCode,0),0,1,1))))*IF(ISERROR($I16),0,IF(ISNA(MATCH($I16,TaxCode,0)),0,OFFSET(Setup!$D$23,MATCH($I16,TaxCode,0),0,1,1))) -> 0 | Q16: =N16-IF(IncTaxCount=2,SUM(O16:P16),SUM(O16:O16)) -> 43400 | R16: =IF($AB16="N",0,ROUND(SUMIFS(IncIncl,IncDocDate,"<="&$S$2,IncInvoice,$A16)-SUMIFS(IncPayAmount,IncDocDate,"<="&$S$2,IncPayDate,"<="&$S$2,IncInvoice,$A16),2)) -> 0 | S16: STOCK | T16: 18740 | U16: =IF(T16=0,0,(SUMIFS(StockOpen,StockCodeOnly,$D16)+SUMIFS(ExpExcl,ExpDocDate,"<="&$B16,ExpStock,$D16)-SUMIFS(IncTransCost,IncUDate,"<"&$AA16,IncStock,$D16))/T16) -> 3.133647512 | V16: 19428.61457 | W16: 19428.61457 | X16: 23971.38543 | Y16: 0.5523360697 | Z16: =IF(ISNA(VLOOKUP(D16,StockAll,COLUMN(Stock!$D$4),0)),"-",IF(OR(VLOOKUP(D16,StockAll,COLUMN(Stock!$D$4),0)=0,LEFT(VLOOKUP(D16,StockAll,COLUMN(Stock!$D$4),0),5)<>"IS-02"),"IS-0299",VLOOKUP(D16,StockAll,COLUMN(Stock!$D$4),0))) -> IS-0205 | AA16: 2020-03-15T00:00:16 | AB16: Y | AC16: =IF($AB16="N",0,IF(ROUND(SUMIFS(IncIncl,IncDocDate,"<="&$AC$2,IncInvoice,$A16,IncCus,$AC$1)-SUMIFS(IncPayAmount,IncDocDate,"<="&$AC$2,IncPayDate,"<="&$AC$2,IncInvoice,$A16,IncCus,$AC$1),2)=0,0,1)) -> 0 | AD16: -
A17: IN0055 | B17: 2020-03-15 | C17: FRV01 | D17: F0015 | E17: Sales - Orange Juice | F17: 6000 | G17: 9 | H17: A | I17: E | J17: B1 | K17: IS-0105 | L17: 0 | M17: 2020-04-15 | N17: =IF(Setup!$D$31="Exclusive",IF(F17=0,G17,F17*G17)*(1+IF(ISNA(MATCH($H17,TaxCode,0)),0,OFFSET(Setup!$D$23,MATCH($H17,TaxCode,0),0,1,1))),IF(F17=0,G17,F17*G17)) -> 62100 | O17: =$N17/(1+IF(ISERROR($H17),0,IF(ISNA(MATCH($H17,TaxCode,0)),0,OFFSET(Setup!$D$23,MATCH($H17,TaxCode,0),0,1,1)))+IF(ISERROR($I17),0,IF(ISNA(MATCH($I17,TaxCode,0)),0,OFFSET(Setup!$D$23,MATCH($I17,TaxCode,0),0,1,1))))*IF(ISERROR($H17),0,IF(ISNA(MATCH($H17,TaxCode,0)),0,OFFSET(Setup!$D$23,MATCH($H17,TaxCode,0),0,1,1))) -> 8100 | P17: =$N17/(1+IF(ISERROR($H17),0,IF(ISNA(MATCH($H17,TaxCode,0)),0,OFFSET(Setup!$D$23,MATCH($H17,TaxCode,0),0,1,1)))+IF(ISERROR($I17),0,IF(ISNA(MATCH($I17,TaxCode,0)),0,OFFSET(Setup!$D$23,MATCH($I17,TaxCode,0),0,1,1))))*IF(ISERROR($I17),0,IF(ISNA(MATCH($I17,TaxCode,0)),0,OFFSET(Setup!$D$23,MATCH($I17,TaxCode,0),0,1,1))) -> 0 | Q17: =N17-IF(IncTaxCount=2,SUM(O17:P17),SUM(O17:O17)) -> 54000 | R17: =IF($AB17="N",0,ROUND(SUMIFS(IncIncl,IncDocDate,"<="&$S$2,IncInvoice,$A17)-SUMIFS(IncPayAmount,IncDocDate,"<="&$S$2,IncPayDate,"<="&$S$2,IncInvoice,$A17),2)) -> 0 | S17: STOCK | T17: 13760 | U17: =IF(T17=0,0,(SUMIFS(StockOpen,StockCodeOnly,$D17)+SUMIFS(ExpExcl,ExpDocDate,"<="&$B17,ExpStock,$D17)-SUMIFS(IncTransCost,IncUDate,"<"&$AA17,IncStock,$D17))/T17) -> 4.979461577 | V17: 29876.76946 | W17: 29876.76946 | X17: 24123.23054 | Y17: 0.4467264914 | Z17: =IF(ISNA(VLOOKUP(D17,StockAll,COLUMN(Stock!$D$4),0)),"-",IF(OR(VLOOKUP(D17,StockAll,COLUMN(Stock!$D$4),0)=0,LEFT(VLOOKUP(D17,StockAll,COLUMN(Stock!$D$4),0),5)<>"IS-02"),"IS-0299",VLOOKUP(D17,StockAll,COLUMN(Stock!$D$4),0))) -> IS-0205 | AA17: 2020-03-15T00:00:17 | AB17: N | AC17: =IF($AB17="N",0,IF(ROUND(SUMIFS(IncIncl,IncDocDate,"<="&$AC$2,IncInvoice,$A17,IncCus,$AC$1)-SUMIFS(IncPayAmount,IncDocDate,"<="&$AC$2,IncPayDate,"<="&$AC$2,IncInvoice,$A17,IncCus,$AC$1),2)=0,0,1)) -> 0 | AD17: -
A18: IN0056 | B18: 2020-03-20 | C18: MIM01 | D18: F0020 | E18: Sales - Strawberry Juice | F18: 600 | G18: 60 | H18: A | I18: E | J18: B1 | K18: IS-0105 | L18: 41400 | M18: 2020-03-20 | N18: =IF(Setup!$D$31="Exclusive",IF(F18=0,G18,F18*G18)*(1+IF(ISNA(MATCH($H18,TaxCode,0)),0,OFFSET(Setup!$D$23,MATCH($H18,TaxCode,0),0,1,1))),IF(F18=0,G18,F18*G18)) -> 41400 | O18: =$N18/(1+IF(ISERROR($H18),0,IF(ISNA(MATCH($H18,TaxCode,0)),0,OFFSET(Setup!$D$23,MATCH($H18,TaxCode,0),0,1,1)))+IF(ISERROR($I18),0,IF(ISNA(MATCH($I18,TaxCode,0)),0,OFFSET(Setup!$D$23,MATCH($I18,TaxCode,0),0,1,1))))*IF(ISERROR($H18),0,IF(ISNA(MATCH($H18,TaxCode,0)),0,OFFSET(Setup!$D$23,MATCH($H18,TaxCode,0),0,1,1))) -> 5400 | P18: =$N18/(1+IF(ISERROR($H18),0,IF(ISNA(MATCH($H18,TaxCode,0)),0,OFFSET(Setup!$D$23,MATCH($H18,TaxCode,0),0,1,1)))+IF(ISERROR($I18),0,IF(ISNA(MATCH($I18,TaxCode,0)),0,OFFSET(Setup!$D$23,MATCH($I18,TaxCode,0),0,1,1))))*IF(ISERROR($I18),0,IF(ISNA(MATCH($I18,TaxCode,0)),0,OFFSET(Setup!$D$23,MATCH($I18,TaxCode,0),0,1,1))) -> 0 | Q18: =N18-IF(IncTaxCount=2,SUM(O18:P18),SUM(O18:O18)) -> 36000 | R18: =IF($AB18="N",0,ROUND(SUMIFS(IncIncl,IncDocDate,"<="&$S$2,IncInvoice,$A18)-SUMIFS(IncPayAmount,IncDocDate,"<="&$S$2,IncPayDate,"<="&$S$2,IncInvoice,$A18),2)) -> 0 | S18: STOCK | T18: 5270 | U18: =IF(T18=0,0,(SUMIFS(StockOpen,StockCodeOnly,$D18)+SUMIFS(ExpExcl,ExpDocDate,"<="&$B18,ExpStock,$D18)-SUMIFS(IncTransCost,IncUDate,"<"&$AA18,IncStock,$D18))/T18) -> 24 | V18: 14400 | W18: 14400 | X18: 21600 | Y18: 0.6 | Z18: =IF(ISNA(VLOOKUP(D18,StockAll,COLUMN(Stock!$D$4),0)),"-",IF(OR(VLOOKUP(D18,StockAll,COLUMN(Stock!$D$4),0)=0,LEFT(VLOOKUP(D18,StockAll,COLUMN(Stock!$D$4),0),5)<>"IS-02"),"IS-0299",VLOOKUP(D18,StockAll,COLUMN(Stock!$D$4),0))) -> IS-0205 | AA18: 2020-03-20T00:00:18 | AB18: Y | AC18: =IF($AB18="N",0,IF(ROUND(SUMIFS(IncIncl,IncDocDate,"<="&$AC$2,IncInvoice,$A18,IncCus,$AC$1)-SUMIFS(IncPayAmount,IncDocDate,"<="&$AC$2,IncPayDate,"<="&$AC$2,IncInvoice,$A18,IncCus,$AC$1),2)=0,0,1)) -> 0 | AD18: -
A19: IN0057 | B19: 2020-03-25 | C19: GGR01 | D19: V0020 | E19: Sales - Carrot Juice | F19: 7200 | G19: 5 | H19: A | I19: E | J19: B1 | K19: IS-0110 | L19: 41400 | M19: 2020-03-25 | N19: =IF(Setup!$D$31="Exclusive",IF(F19=0,G19,F19*G19)*(1+IF(ISNA(MATCH($H19,TaxCode,0)),0,OFFSET(Setup!$D$23,MATCH($H19,TaxCode,0),0,1,1))),IF(F19=0,G19,F19*G19)) -> 41400 | O19: =$N19/(1+IF(ISERROR($H19),0,IF(ISNA(MATCH($H19,TaxCode,0)),0,OFFSET(Setup!$D$23,MATCH($H19,TaxCode,0),0,1,1)))+IF(ISERROR($I19),0,IF(ISNA(MATCH($I19,TaxCode,0)),0,OFFSET(Setup!$D$23,MATCH($I19,TaxCode,0),0,1,1))))*IF(ISERROR($H19),0,IF(ISNA(MATCH($H19,TaxCode,0)),0,OFFSET(Setup!$D$23,MATCH($H19,TaxCode,0),0,1,1))) -> 5400 | P19: =$N19/(1+IF(ISERROR($H19),0,IF(ISNA(MATCH($H19,TaxCode,0)),0,OFFSET(Setup!$D$23,MATCH($H19,TaxCode,0),0,1,1)))+IF(ISERROR($I19),0,IF(ISNA(MATCH($I19,TaxCode,0)),0,OFFSET(Setup!$D$23,MATCH($I19,TaxCode,0),0,1,1))))*IF(ISERROR($I19),0,IF(ISNA(MATCH($I19,TaxCode,0)),0,OFFSET(Setup!$D$23,MATCH($I19,TaxCode,0),0,1,1))) -> 0 | Q19: =N19-IF(IncTaxCount=2,SUM(O19:P19),SUM(O19:O19)) -> 36000 | R19: =IF($AB19="N",0,ROUND(SUMIFS(IncIncl,IncDocDate,"<="&$S$2,IncInvoice,$A19)-SUMIFS(IncPayAmount,IncDocDate,"<="&$S$2,IncPayDate,"<="&$S$2,IncInvoice,$A19),2)) -> 0 | S19: STOCK | T19: 14305 | U19: =IF(T19=0,0,(SUMIFS(StockOpen,StockCodeOnly,$D19)+SUMIFS(ExpExcl,ExpDocDate,"<="&$B19,ExpStock,$D19)-SUMIFS(IncTransCost,IncUDate,"<"&$AA19,IncStock,$D19))/T19) -> 1.99148975 | V19: 14338.7262 | W19: 14338.7262 | X19: 21661.2738 | Y19: 0.6017020501 | Z19: =IF(ISNA(VLOOKUP(D19,StockAll,COLUMN(Stock!$D$4),0)),"-",IF(OR(VLOOKUP(D19,StockAll,COLUMN(Stock!$D$4),0)=0,LEFT(VLOOKUP(D19,StockAll,COLUMN(Stock!$D$4),0),5)<>"IS-02"),"IS-0299",VLOOKUP(D19,StockAll,COLUMN(Stock!$D$4),0))) -> IS-0210 | AA19: 2020-03-25T00:00:19 | AB19: Y | AC19: =IF($AB19="N",0,IF(ROUND(SUMIFS(IncIncl,IncDocDate,"<="&$AC$2,IncInvoice,$A19,IncCus,$AC$1)-SUMIFS(IncPayAmount,IncDocDate,"<="&$AC$2,IncPayDate,"<="&$AC$2,IncInvoice,$A19,IncCus,$AC$1),2)=0,0,1)) -> 0 | AD19: -
A20: IN0058 | B20: 2020-03-25 | C20: TRF01 | D20: V0015 | E20: Sales - Beetroot Juice | F20: 5800 | G20: 6 | H20: A | I20: E | J20: B1 | K20: IS-0110 | L20: 40020 | M20: 2020-04-25 | N20: =IF(Setup!$D$31="Exclusive",IF(F20=0,G20,F20*G20)*(1+IF(ISNA(MATCH($H20,TaxCode,0)),0,OFFSET(Setup!$D$23,MATCH($H20,TaxCode,0),0,1,1))),IF(F20=0,G20,F20*G20)) -> 40020 | O20: =$N20/(1+IF(ISERROR($H20),0,IF(ISNA(MATCH($H20,TaxCode,0)),0,OFFSET(Setup!$D$23,MATCH($H20,TaxCode,0),0,1,1)))+IF(ISERROR($I20),0,IF(ISNA(MATCH($I20,TaxCode,0)),0,OFFSET(Setup!$D$23,MATCH($I20,TaxCode,0),0,1,1))))*IF(ISERROR($H20),0,IF(ISNA(MATCH($H20,TaxCode,0)),0,OFFSET(Setup!$D$23,MATCH($H20,TaxCode,0),0,1,1))) -> 5220 | P20: =$N20/(1+IF(ISERROR($H20),0,IF(ISNA(MATCH($H20,TaxCode,0)),0,OFFSET(Setup!$D$23,MATCH($H20,TaxCode,0),0,1,1)))+IF(ISERROR($I20),0,IF(ISNA(MATCH($I20,TaxCode,0)),0,OFFSET(Setup!$D$23,MATCH($I20,TaxCode,0),0,1,1))))*IF(ISERROR($I20),0,IF(ISNA(MATCH($I20,TaxCode,0)),0,OFFSET(Setup!$D$23,MATCH($I20,TaxCode,0),0,1,1))) -> 0 | Q20: =N20-IF(IncTaxCount=2,SUM(O20:P20),SUM(O20:O20)) -> 34800 | R20: =IF($AB20="N",0,ROUND(SUMIFS(IncIncl,IncDocDate,"<="&$S$2,IncInvoice,$A20)-SUMIFS(IncPayAmount,IncDocDate,"<="&$S$2,IncPayDate,"<="&$S$2,IncInvoice,$A20),2)) -> 0 | S20: STOCK | T20: 11690 | U20: =IF(T20=0,0,(SUMIFS(StockOpen,StockCodeOnly,$D20)+SUMIFS(ExpExcl,ExpDocDate,"<="&$B20,ExpStock,$D20)-SUMIFS(IncTransCost,IncUDate,"<"&$AA20,IncStock,$D20))/T20) -> 3.58446833 | V20: 20789.91632 | W20: 20789.91632 | X20: 14010.08368 | Y20: 0.4025886116 | Z20: =IF(ISNA(VLOOKUP(D20,StockAll,COLUMN(Stock!$D$4),0)),"-",IF(OR(VLOOKUP(D20,StockAll,COLUMN(Stock!$D$4),0)=0,LEFT(VLOOKUP(D20,StockAll,COLUMN(Stock!$D$4),0),5)<>"IS-02"),"IS-0299",VLOOKUP(D20,StockAll,COLUMN(Stock!$D$4),0))) -> IS-0210 | AA20: 2020-03-25T00:00:20 | AB20: Y | AC20: =IF($AB20="N",0,IF(ROUND(SUMIFS(IncIncl,IncDocDate,"<="&$AC$2,IncInvoice,$A20,IncCus,$AC$1)-SUMIFS(IncPayAmount,IncDocDate,"<="&$AC$2,IncPayDate,"<="&$AC$2,IncInvoice,$A20,IncCus,$AC$1),2)=0,0,1)) -> 0 | AD20: -
A21: REC0023 | B21: 2020-04-01 | C21: ABC01 | E21: Interest Received | F21: 0 | G21: 120.65 | H21: E | I21: E | J21: B2 | K21: IS-0900 | L21: 120.65 | M21: 2020-04-01 | N21: =IF(Setup!$D$31="Exclusive",IF(F21=0,G21,F21*G21)*(1+IF(ISNA(MATCH($H21,TaxCode,0)),0,OFFSET(Setup!$D$23,MATCH($H21,TaxCode,0),0,1,1))),IF(F21=0,G21,F21*G21)) -> 120.65 | O21: =$N21/(1+IF(ISERROR($H21),0,IF(ISNA(MATCH($H21,TaxCode,0)),0,OFFSET(Setup!$D$23,MATCH($H21,TaxCode,0),0,1,1)))+IF(ISERROR($I21),0,IF(ISNA(MATCH($I21,TaxCode,0)),0,OFFSET(Setup!$D$23,MATCH($I21,TaxCode,0),0,1,1))))*IF(ISERROR($H21),0,IF(ISNA(MATCH($H21,TaxCode,0)),0,OFFSET(Setup!$D$23,MATCH($H21,TaxCode,0),0,1,1))) -> 0 | P21: =$N21/(1+IF(ISERROR($H21),0,IF(ISNA(MATCH($H21,TaxCode,0)),0,OFFSET(Setup!$D$23,MATCH($H21,TaxCode,0),0,1,1)))+IF(ISERROR($I21),0,IF(ISNA(MATCH($I21,TaxCode,0)),0,OFFSET(Setup!$D$23,MATCH($I21,TaxCode,0),0,1,1))))*IF(ISERROR($I21),0,IF(ISNA(MATCH($I21,TaxCode,0)),0,OFFSET(Setup!$D$23,MATCH($I21,TaxCode,0),0,1,1))) -> 0 | Q21: =N21-IF(IncTaxCount=2,SUM(O21:P21),SUM(O21:O21)) -> 120.65 | R21: =IF($AB21="N",0,ROUND(SUMIFS(IncIncl,IncDocDate,"<="&$S$2,IncInvoice,$A21)-SUMIFS(IncPayAmount,IncDocDate,"<="&$S$2,IncPayDate,"<="&$S$2,IncInvoice,$A21),2)) -> 0 | S21: - | T21: 0 | U21: =IF(T21=0,0,(SUMIFS(StockOpen,StockCodeOnly,$D21)+SUMIFS(ExpExcl,ExpDocDate,"<="&$B21,ExpStock,$D21)-SUMIFS(IncTransCost,IncUDate,"<"&$AA21,IncStock,$D21))/T21) -> 0 | V21: 0 | W21: 0 | X21: 0 | Y21: 0 | Z21: =IF(ISNA(VLOOKUP(D21,StockAll,COLUMN(Stock!$D$4),0)),"-",IF(OR(VLOOKUP(D21,StockAll,COLUMN(Stock!$D$4),0)=0,LEFT(VLOOKUP(D21,StockAll,COLUMN(Stock!$D$4),0),5)<>"IS-02"),"IS-0299",VLOOKUP(D21,StockAll,COLUMN(Stock!$D$4),0))) -> - | AA21: 2020-04-01T00:00:21 | AB21: Y | AC21: =IF($AB21="N",0,IF(ROUND(SUMIFS(IncIncl,IncDocDate,"<="&$AC$2,IncInvoice,$A21,IncCus,$AC$1)-SUMIFS(IncPayAmount,IncDocDate,"<="&$AC$2,IncPayDate,"<="&$AC$2,IncInvoice,$A21,IncCus,$AC$1),2)=0,0,1)) -> 0 | AD21: -
A22: REC0024 | B22: 2020-04-07 | C22: FCT01 | E22: Commission Received | F22: 0 | G22: 1380 | H22: A | I22: E | J22: B1 | K22: IS-0900 | L22: 1587 | M22: 2020-04-07 | N22: =IF(Setup!$D$31="Exclusive",IF(F22=0,G22,F22*G22)*(1+IF(ISNA(MATCH($H22,TaxCode,0)),0,OFFSET(Setup!$D$23,MATCH($H22,TaxCode,0),0,1,1))),IF(F22=0,G22,F22*G22)) -> 1587 | O22: =$N22/(1+IF(ISERROR($H22),0,IF(ISNA(MATCH($H22,TaxCode,0)),0,OFFSET(Setup!$D$23,MATCH($H22,TaxCode,0),0,1,1)))+IF(ISERROR($I22),0,IF(ISNA(MATCH($I22,TaxCode,0)),0,OFFSET(Setup!$D$23,MATCH($I22,TaxCode,0),0,1,1))))*IF(ISERROR($H22),0,IF(ISNA(MATCH($H22,TaxCode,0)),0,OFFSET(Setup!$D$23,MATCH($H22,TaxCode,0),0,1,1))) -> 207 | P22: =$N22/(1+IF(ISERROR($H22),0,IF(ISNA(MATCH($H22,TaxCode,0)),0,OFFSET(Setup!$D$23,MATCH($H22,TaxCode,0),0,1,1)))+IF(ISERROR($I22),0,IF(ISNA(MATCH($I22,TaxCode,0)),0,OFFSET(Setup!$D$23,MATCH($I22,TaxCode,0),0,1,1))))*IF(ISERROR($I22),0,IF(ISNA(MATCH($I22,TaxCode,0)),0,OFFSET(Setup!$D$23,MATCH($I22,TaxCode,0),0,1,1))) -> 0 | Q22: =N22-IF(IncTaxCount=2,SUM(O22:P22),SUM(O22:O22)) -> 1380 | R22: =IF($AB22="N",0,ROUND(SUMIFS(IncIncl,IncDocDate,"<="&$S$2,IncInvoice,$A22)-SUMIFS(IncPayAmount,IncDocDate,"<="&$S$2,IncPayDate,"<="&$S$2,IncInvoice,$A22),2)) -> 0 | S22: - | T22: 0 | U22: =IF(T22=0,0,(SUMIFS(StockOpen,StockCodeOnly,$D22)+SUMIFS(ExpExcl,ExpDocDate,"<="&$B22,ExpStock,$D22)-SUMIFS(IncTransCost,IncUDate,"<"&$AA22,IncStock,$D22))/T22) -> 0 | V22: 0 | W22: 0 | X22: 0 | Y22: 0 | Z22: =IF(ISNA(VLOOKUP(D22,StockAll,COLUMN(Stock!$D$4),0)),"-",IF(OR(VLOOKUP(D22,StockAll,COLUMN(Stock!$D$4),0)=0,LEFT(VLOOKUP(D22,StockAll,COLUMN(Stock!$D$4),0),5)<>"IS-02"),"IS-0299",VLOOKUP(D22,StockAll,COLUMN(Stock!$D$4),0))) -> - | AA22: 2020-04-07T00:00:22 | AB22: Y | AC22: =IF($AB22="N",0,IF(ROUND(SUMIFS(IncIncl,IncDocDate,"<="&$AC$2,IncInvoice,$A22,IncCus,$AC$1)-SUMIFS(IncPayAmount,IncDocDate,"<="&$AC$2,IncPayDate,"<="&$AC$2,IncInvoice,$A22,IncCus,$AC$1),2)=0,0,1)) -> 0 | AD22: -
A23: IN0059 | B23: 2020-04-10 | C23: WCM01 | D23: V0010 | E23: Sales - Tomato Juice | F23: 6200 | G23: 8 | H23: A | I23: E | J23: B1 | K23: IS-0110 | L23: 57040 | M23: 2020-04-25 | N23: =IF(Setup!$D$31="Exclusive",IF(F23=0,G23,F23*G23)*(1+IF(ISNA(MATCH($H23,TaxCode,0)),0,OFFSET(Setup!$D$23,MATCH($H23,TaxCode,0),0,1,1))),IF(F23=0,G23,F23*G23)) -> 57040 | O23: =$N23/(1+IF(ISERROR($H23),0,IF(ISNA(MATCH($H23,TaxCode,0)),0,OFFSET(Setup!$D$23,MATCH($H23,TaxCode,0),0,1,1)))+IF(ISERROR($I23),0,IF(ISNA(MATCH($I23,TaxCode,0)),0,OFFSET(Setup!$D$23,MATCH($I23,TaxCode,0),0,1,1))))*IF(ISERROR($H23),0,IF(ISNA(MATCH($H23,TaxCode,0)),0,OFFSET(Setup!$D$23,MATCH($H23,TaxCode,0),0,1,1))) -> 7440 | P23: =$N23/(1+IF(ISERROR($H23),0,IF(ISNA(MATCH($H23,TaxCode,0)),0,OFFSET(Setup!$D$23,MATCH($H23,TaxCode,0),0,1,1)))+IF(ISERROR($I23),0,IF(ISNA(MATCH($I23,TaxCode,0)),0,OFFSET(Setup!$D$23,MATCH($I23,TaxCode,0),0,1,1))))*IF(ISERROR($I23),0,IF(ISNA(MATCH($I23,TaxCode,0)),0,OFFSET(Setup!$D$23,MATCH($I23,TaxCode,0),0,1,1))) -> 0 | Q23: =N23-IF(IncTaxCount=2,SUM(O23:P23),SUM(O23:O23)) -> 49600 | R23: =IF($AB23="N",0,ROUND(SUMIFS(IncIncl,IncDocDate,"<="&$S$2,IncInvoice,$A23)-SUMIFS(IncPayAmount,IncDocDate,"<="&$S$2,IncPayDate,"<="&$S$2,IncInvoice,$A23),2)) -> 0 | S23: STOCK | T23: 15720 | U23: =IF(T23=0,0,(SUMIFS(StockOpen,StockCodeOnly,$D23)+SUMIFS(ExpExcl,ExpDocDate,"<="&$B23,ExpStock,$D23)-SUMIFS(IncTransCost,IncUDate,"<"&$AA23,IncStock,$D23))/T23) -> 3.19288579 | V23: 19795.8919 | W23: 19795.8919 | X23: 29804.1081 | Y23: 0.6008892762 | Z23: =IF(ISNA(VLOOKUP(D23,StockAll,COLUMN(Stock!$D$4),0)),"-",IF(OR(VLOOKUP(D23,StockAll,COLUMN(Stock!$D$4),0)=0,LEFT(VLOOKUP(D23,StockAll,COLUMN(Stock!$D$4),0),5)<>"IS-02"),"IS-0299",VLOOKUP(D23,StockAll,COLUMN(Stock!$D$4),0))) -> IS-0210 | AA23: 2020-04-10T00:00:23 | AB23: Y | AC23: =IF($AB23="N",0,IF(ROUND(SUMIFS(IncIncl,IncDocDate,"<="&$AC$2,IncInvoice,$A23,IncCus,$AC$1)-SUMIFS(IncPayAmount,IncDocDate,"<="&$AC$2,IncPayDate,"<="&$AC$2,IncInvoice,$A23,IncCus,$AC$1),2)=0,0,1)) -> 0 | AD23: -
A24: IN0060 | B24: 2020-04-10 | C24: WWF01 | D24: F0010 | E24: Sales - Apple Juice | F24: 6800 | G24: 7.1 | H24: A | I24: E | J24: B1 | K24: IS-0105 | L24: 55522 | M24: 2020-04-30 | N24: =IF(Setup!$D$31="Exclusive",IF(F24=0,G24,F24*G24)*(1+IF(ISNA(MATCH($H24,TaxCode,0)),0,OFFSET(Setup!$D$23,MATCH($H24,TaxCode,0),0,1,1))),IF(F24=0,G24,F24*G24)) -> 55522 | O24: =$N24/(1+IF(ISERROR($H24),0,IF(ISNA(MATCH($H24,TaxCode,0)),0,OFFSET(Setup!$D$23,MATCH($H24,TaxCode,0),0,1,1)))+IF(ISERROR($I24),0,IF(ISNA(MATCH($I24,TaxCode,0)),0,OFFSET(Setup!$D$23,MATCH($I24,TaxCode,0),0,1,1))))*IF(ISERROR($H24),0,IF(ISNA(MATCH($H24,TaxCode,0)),0,OFFSET(Setup!$D$23,MATCH($H24,TaxCode,0),0,1,1))) -> 7242 | P24: =$N24/(1+IF(ISERROR($H24),0,IF(ISNA(MATCH($H24,TaxCode,0)),0,OFFSET(Setup!$D$23,MATCH($H24,TaxCode,0),0,1,1)))+IF(ISERROR($I24),0,IF(ISNA(MATCH($I24,TaxCode,0)),0,OFFSET(Setup!$D$23,MATCH($I24,TaxCode,0),0,1,1))))*IF(ISERROR($I24),0,IF(ISNA(MATCH($I24,TaxCode,0)),0,OFFSET(Setup!$D$23,MATCH($I24,TaxCode,0),0,1,1))) -> 0 | Q24: =N24-IF(IncTaxCount=2,SUM(O24:P24),SUM(O24:O24)) -> 48280 | R24: =IF($AB24="N",0,ROUND(SUMIFS(IncIncl,IncDocDate,"<="&$S$2,IncInvoice,$A24)-SUMIFS(IncPayAmount,IncDocDate,"<="&$S$2,IncPayDate,"<="&$S$2,IncInvoice,$A24),2)) -> 0 | S24: STOCK | T24: 24040 | U24: =IF(T24=0,0,(SUMIFS(StockOpen,StockCodeOnly,$D24)+SUMIFS(ExpExcl,ExpDocDate,"<="&$B24,ExpStock,$D24)-SUMIFS(IncTransCost,IncUDate,"<"&$AA24,IncStock,$D24))/T24) -> 3.165388511 | V24: 21524.64187 | W24: 21524.64187 | X24: 26755.35813 | Y24: 0.5541706323 | Z24: =IF(ISNA(VLOOKUP(D24,StockAll,COLUMN(Stock!$D$4),0)),"-",IF(OR(VLOOKUP(D24,StockAll,COLUMN(Stock!$D$4),0)=0,LEFT(VLOOKUP(D24,StockAll,COLUMN(Stock!$D$4),0),5)<>"IS-02"),"IS-0299",VLOOKUP(D24,StockAll,COLUMN(Stock!$D$4),0))) -> IS-0205 | AA24: 2020-04-10T00:00:24 | AB24: Y | AC24: =IF($AB24="N",0,IF(ROUND(SUMIFS(IncIncl,IncDocDate,"<="&$AC$2,IncInvoice,$A24,IncCus,$AC$1)-SUMIFS(IncPayAmount,IncDocDate,"<="&$AC$2,IncPayDate,"<="&$AC$2,IncInvoice,$A24,IncCus,$AC$1),2)=0,0,1)) -> 0 | AD24: -
A25: IN0061 | B25: 2020-04-15 | C25: FRV01 | D25: F0010 | E25: Sales - Apple Juice | F25: 6200 | G25: 7.1 | H25: A | I25: E | J25: B1 | K25: IS-0105 | L25: 101223 | M25: 2020-05-15 | N25: =IF(Setup!$D$31="Exclusive",IF(F25=0,G25,F25*G25)*(1+IF(ISNA(MATCH($H25,TaxCode,0)),0,OFFSET(Setup!$D$23,MATCH($H25,TaxCode,0),0,1,1))),IF(F25=0,G25,F25*G25)) -> 50623 | O25: =$N25/(1+IF(ISERROR($H25),0,IF(ISNA(MATCH($H25,TaxCode,0)),0,OFFSET(Setup!$D$23,MATCH($H25,TaxCode,0),0,1,1)))+IF(ISERROR($I25),0,IF(ISNA(MATCH($I25,TaxCode,0)),0,OFFSET(Setup!$D$23,MATCH($I25,TaxCode,0),0,1,1))))*IF(ISERROR($H25),0,IF(ISNA(MATCH($H25,TaxCode,0)),0,OFFSET(Setup!$D$23,MATCH($H25,TaxCode,0),0,1,1))) -> 6603 | P25: =$N25/(1+IF(ISERROR($H25),0,IF(ISNA(MATCH($H25,TaxCode,0)),0,OFFSET(Setup!$D$23,MATCH($H25,TaxCode,0),0,1,1)))+IF(ISERROR($I25),0,IF(ISNA(MATCH($I25,TaxCode,0)),0,OFFSET(Setup!$D$23,MATCH($I25,TaxCode,0),0,1,1))))*IF(ISERROR($I25),0,IF(ISNA(MATCH($I25,TaxCode,0)),0,OFFSET(Setup!$D$23,MATCH($I25,TaxCode,0),0,1,1))) -> 0 | Q25: =N25-IF(IncTaxCount=2,SUM(O25:P25),SUM(O25:O25)) -> 44020 | R25: =IF($AB25="N",0,ROUND(SUMIFS(IncIncl,IncDocDate,"<="&$S$2,IncInvoice,$A25)-SUMIFS(IncPayAmount,IncDocDate,"<="&$S$2,IncPayDate,"<="&$S$2,IncInvoice,$A25),2)) -> 0 | S25: STOCK | T25: 17240 | U25: =IF(T25=0,0,(SUMIFS(StockOpen,StockCodeOnly,$D25)+SUMIFS(ExpExcl,ExpDocDate,"<="&$B25,ExpStock,$D25)-SUMIFS(IncTransCost,IncUDate,"<"&$AA25,IncStock,$D25))/T25) -> 3.165388511 | V25: 19625.40877 | W25: 19625.40877 | X25: 24394.59123 | Y25: 0.5541706323 | Z25: =IF(ISNA(VLOOKUP(D25,StockAll,COLUMN(Stock!$D$4),0)),"-",IF(OR(VLOOKUP(D25,StockAll,COLUMN(Stock!$D$4),0)=0,LEFT(VLOOKUP(D25,StockAll,COLUMN(Stock!$D$4),0),5)<>"IS-02"),"IS-0299",VLOOKUP(D25,StockAll,COLUMN(Stock!$D$4),0))) -> IS-0205 | AA25: 2020-04-15T00:00:25 | AB25: Y | AC25: =IF($AB25="N",0,IF(ROUND(SUMIFS(IncIncl,IncDocDate,"<="&$AC$2,IncInvoice,$A25,IncCus,$AC$1)-SUMIFS(IncPayAmount,IncDocDate,"<="&$AC$2,IncPayDate,"<="&$AC$2,IncInvoice,$A25,IncCus,$AC$1),2)=0,0,1)) -> 0 | AD25: -
A26: IN0061 | B26: 2020-04-15 | C26: FRV01 | D26: F0015 | E26: Sales - Orange Juice | F26: 5000 | G26: 8.8 | H26: A | I26: E | J26: B1 | K26: IS-0105 | L26: 0 | M26: 2020-05-15 | N26: =IF(Setup!$D$31="Exclusive",IF(F26=0,G26,F26*G26)*(1+IF(ISNA(MATCH($H26,TaxCode,0)),0,OFFSET(Setup!$D$23,MATCH($H26,TaxCode,0),0,1,1))),IF(F26=0,G26,F26*G26)) -> 50600 | O26: =$N26/(1+IF(ISERROR($H26),0,IF(ISNA(MATCH($H26,TaxCode,0)),0,OFFSET(Setup!$D$23,MATCH($H26,TaxCode,0),0,1,1)))+IF(ISERROR($I26),0,IF(ISNA(MATCH($I26,TaxCode,0)),0,OFFSET(Setup!$D$23,MATCH($I26,TaxCode,0),0,1,1))))*IF(ISERROR($H26),0,IF(ISNA(MATCH($H26,TaxCode,0)),0,OFFSET(Setup!$D$23,MATCH($H26,TaxCode,0),0,1,1))) -> 6600 | P26: =$N26/(1+IF(ISERROR($H26),0,IF(ISNA(MATCH($H26,TaxCode,0)),0,OFFSET(Setup!$D$23,MATCH($H26,TaxCode,0),0,1,1)))+IF(ISERROR($I26),0,IF(ISNA(MATCH($I26,TaxCode,0)),0,OFFSET(Setup!$D$23,MATCH($I26,TaxCode,0),0,1,1))))*IF(ISERROR($I26),0,IF(ISNA(MATCH($I26,TaxCode,0)),0,OFFSET(Setup!$D$23,MATCH($I26,TaxCode,0),0,1,1))) -> 0 | Q26: =N26-IF(IncTaxCount=2,SUM(O26:P26),SUM(O26:O26)) -> 44000 | R26: =IF($AB26="N",0,ROUND(SUMIFS(IncIncl,IncDocDate,"<="&$S$2,IncInvoice,$A26)-SUMIFS(IncPayAmount,IncDocDate,"<="&$S$2,IncPayDate,"<="&$S$2,IncInvoice,$A26),2)) -> 0 | S26: STOCK | T26: 13760 | U26: =IF(T26=0,0,(SUMIFS(StockOpen,StockCodeOnly,$D26)+SUMIFS(ExpExcl,ExpDocDate,"<="&$B26,ExpStock,$D26)-SUMIFS(IncTransCost,IncUDate,"<"&$AA26,IncStock,$D26))/T26) -> 4.988417285 | V26: 24942.08642 | W26: 24942.08642 | X26: 19057.91358 | Y26: 0.4331343994 | Z26: =IF(ISNA(VLOOKUP(D26,StockAll,COLUMN(Stock!$D$4),0)),"-",IF(OR(VLOOKUP(D26,StockAll,COLUMN(Stock!$D$4),0)=0,LEFT(VLOOKUP(D26,StockAll,COLUMN(Stock!$D$4),0),5)<>"IS-02"),"IS-0299",VLOOKUP(D26,StockAll,COLUMN(Stock!$D$4),0))) -> IS-0205 | AA26: 2020-04-15T00:00:26 | AB26: N | AC26: =IF($AB26="N",0,IF(ROUND(SUMIFS(IncIncl,IncDocDate,"<="&$AC$2,IncInvoice,$A26,IncCus,$AC$1)-SUMIFS(IncPayAmount,IncDocDate,"<="&$AC$2,IncPayDate,"<="&$AC$2,IncInvoice,$A26,IncCus,$AC$1),2)=0,0,1)) -> 0 | AD26: -
A27: IN0062 | B27: 2020-04-20 | C27: MIM01 | D27: F0020 | E27: Sales - Strawberry Juice | F27: 650 | G27: 58 | H27: A | I27: E | J27: B1 | K27: IS-0105 | L27: 43355 | M27: 2020-04-20 | N27: =IF(Setup!$D$31="Exclusive",IF(F27=0,G27,F27*G27)*(1+IF(ISNA(MATCH($H27,TaxCode,0)),0,OFFSET(Setup!$D$23,MATCH($H27,TaxCode,0),0,1,1))),IF(F27=0,G27,F27*G27)) -> 43355 | O27: =$N27/(1+IF(ISERROR($H27),0,IF(ISNA(MATCH($H27,TaxCode,0)),0,OFFSET(Setup!$D$23,MATCH($H27,TaxCode,0),0,1,1)))+IF(ISERROR($I27),0,IF(ISNA(MATCH($I27,TaxCode,0)),0,OFFSET(Setup!$D$23,MATCH($I27,TaxCode,0),0,1,1))))*IF(ISERROR($H27),0,IF(ISNA(MATCH($H27,TaxCode,0)),0,OFFSET(Setup!$D$23,MATCH($H27,TaxCode,0),0,1,1))) -> 5655 | P27: =$N27/(1+IF(ISERROR($H27),0,IF(ISNA(MATCH($H27,TaxCode,0)),0,OFFSET(Setup!$D$23,MATCH($H27,TaxCode,0),0,1,1)))+IF(ISERROR($I27),0,IF(ISNA(MATCH($I27,TaxCode,0)),0,OFFSET(Setup!$D$23,MATCH($I27,TaxCode,0),0,1,1))))*IF(ISERROR($I27),0,IF(ISNA(MATCH($I27,TaxCode,0)),0,OFFSET(Setup!$D$23,MATCH($I27,TaxCode,0),0,1,1))) -> 0 | Q27: =N27-IF(IncTaxCount=2,SUM(O27:P27),SUM(O27:O27)) -> 37700 | R27: =IF($AB27="N",0,ROUND(SUMIFS(IncIncl,IncDocDate,"<="&$S$2,IncInvoice,$A27)-SUMIFS(IncPayAmount,IncDocDate,"<="&$S$2,IncPayDate,"<="&$S$2,IncInvoice,$A27),2)) -> 0 | S27: STOCK | T27: 4670 | U27: =IF(T27=0,0,(SUMIFS(StockOpen,StockCodeOnly,$D27)+SUMIFS(ExpExcl,ExpDocDate,"<="&$B27,ExpStock,$D27)-SUMIFS(IncTransCost,IncUDate,"<"&$AA27,IncStock,$D27))/T27) -> 24 | V27: 15600 | W27: 15600 | X27: 22100 | Y27: 0.5862068966 | Z27: =IF(ISNA(VLOOKUP(D27,StockAll,COLUMN(Stock!$D$4),0)),"-",IF(OR(VLOOKUP(D27,StockAll,COLUMN(Stock!$D$4),0)=0,LEFT(VLOOKUP(D27,StockAll,COLUMN(Stock!$D$4),0),5)<>"IS-02"),"IS-0299",VLOOKUP(D27,StockAll,COLUMN(Stock!$D$4),0))) -> IS-0205 | AA27: 2020-04-20T00:00:27 | AB27: Y | AC27: =IF($AB27="N",0,IF(ROUND(SUMIFS(IncIncl,IncDocDate,"<="&$AC$2,IncInvoice,$A27,IncCus,$AC$1)-SUMIFS(IncPayAmount,IncDocDate,"<="&$AC$2,IncPayDate,"<="&$AC$2,IncInvoice,$A27,IncCus,$AC$1),2)=0,0,1)) -> 0 | AD27: -
A28: IN0063 | B28: 2020-04-25 | C28: GGR01 | D28: V0020 | E28: Sales - Carrot Juice | F28: 7100 | G28: 5 | H28: A | I28: E | J28: B1 | K28: IS-0110 | L28: 40825 | M28: 2020-04-25 | N28: =IF(Setup!$D$31="Exclusive",IF(F28=0,G28,F28*G28)*(1+IF(ISNA(MATCH($H28,TaxCode,0)),0,OFFSET(Setup!$D$23,MATCH($H28,TaxCode,0),0,1,1))),IF(F28=0,G28,F28*G28)) -> 40825 | O28: =$N28/(1+IF(ISERROR($H28),0,IF(ISNA(MATCH($H28,TaxCode,0)),0,OFFSET(Setup!$D$23,MATCH($H28,TaxCode,0),0,1,1)))+IF(ISERROR($I28),0,IF(ISNA(MATCH($I28,TaxCode,0)),0,OFFSET(Setup!$D$23,MATCH($I28,TaxCode,0),0,1,1))))*IF(ISERROR($H28),0,IF(ISNA(MATCH($H28,TaxCode,0)),0,OFFSET(Setup!$D$23,MATCH($H28,TaxCode,0),0,1,1))) -> 5325 | P28: =$N28/(1+IF(ISERROR($H28),0,IF(ISNA(MATCH($H28,TaxCode,0)),0,OFFSET(Setup!$D$23,MATCH($H28,TaxCode,0),0,1,1)))+IF(ISERROR($I28),0,IF(ISNA(MATCH($I28,TaxCode,0)),0,OFFSET(Setup!$D$23,MATCH($I28,TaxCode,0),0,1,1))))*IF(ISERROR($I28),0,IF(ISNA(MATCH($I28,TaxCode,0)),0,OFFSET(Setup!$D$23,MATCH($I28,TaxCode,0),0,1,1))) -> 0 | Q28: =N28-IF(IncTaxCount=2,SUM(O28:P28),SUM(O28:O28)) -> 35500 | R28: =IF($AB28="N",0,ROUND(SUMIFS(IncIncl,IncDocDate,"<="&$S$2,IncInvoice,$A28)-SUMIFS(IncPayAmount,IncDocDate,"<="&$S$2,IncPayDate,"<="&$S$2,IncInvoice,$A28),2)) -> 0 | S28: STOCK | T28: 13855 | U28: =IF(T28=0,0,(SUMIFS(StockOpen,StockCodeOnly,$D28)+SUMIFS(ExpExcl,ExpDocDate,"<="&$B28,ExpStock,$D28)-SUMIFS(IncTransCost,IncUDate,"<"&$AA28,IncStock,$D28))/T28) -> 2.093073596 | V28: 14860.82253 | W28: 14860.82253 | X28: 20639.17747 | Y28: 0.5813852808 | Z28: =IF(ISNA(VLOOKUP(D28,StockAll,COLUMN(Stock!$D$4),0)),"-",IF(OR(VLOOKUP(D28,StockAll,COLUMN(Stock!$D$4),0)=0,LEFT(VLOOKUP(D28,StockAll,COLUMN(Stock!$D$4),0),5)<>"IS-02"),"IS-0299",VLOOKUP(D28,StockAll,COLUMN(Stock!$D$4),0))) -> IS-0210 | AA28: 2020-04-25T00:00:28 | AB28: Y | AC28: =IF($AB28="N",0,IF(ROUND(SUMIFS(IncIncl,IncDocDate,"<="&$AC$2,IncInvoice,$A28,IncCus,$AC$1)-SUMIFS(IncPayAmount,IncDocDate,"<="&$AC$2,IncPayDate,"<="&$AC$2,IncInvoice,$A28,IncCus,$AC$1),2)=0,0,1)) -> 0 | AD28: -
A29: IN0064 | B29: 2020-04-25 | C29: TRF01 | D29: V0015 | E29: Sales - Beetroot Juice | F29: 5750 | G29: 6 | H29: A | I29: E | J29: B1 | K29: IS-0110 | L29: 39675 | M29: 2020-05-25 | N29: =IF(Setup!$D$31="Exclusive",IF(F29=0,G29,F29*G29)*(1+IF(ISNA(MATCH($H29,TaxCode,0)),0,OFFSET(Setup!$D$23,MATCH($H29,TaxCode,0),0,1,1))),IF(F29=0,G29,F29*G29)) -> 39675 | O29: =$N29/(1+IF(ISERROR($H29),0,IF(ISNA(MATCH($H29,TaxCode,0)),0,OFFSET(Setup!$D$23,MATCH($H29,TaxCode,0),0,1,1)))+IF(ISERROR($I29),0,IF(ISNA(MATCH($I29,TaxCode,0)),0,OFFSET(Setup!$D$23,MATCH($I29,TaxCode,0),0,1,1))))*IF(ISERROR($H29),0,IF(ISNA(MATCH($H29,TaxCode,0)),0,OFFSET(Setup!$D$23,MATCH($H29,TaxCode,0),0,1,1))) -> 5175 | P29: =$N29/(1+IF(ISERROR($H29),0,IF(ISNA(MATCH($H29,TaxCode,0)),0,OFFSET(Setup!$D$23,MATCH($H29,TaxCode,0),0,1,1)))+IF(ISERROR($I29),0,IF(ISNA(MATCH($I29,TaxCode,0)),0,OFFSET(Setup!$D$23,MATCH($I29,TaxCode,0),0,1,1))))*IF(ISERROR($I29),0,IF(ISNA(MATCH($I29,TaxCode,0)),0,OFFSET(Setup!$D$23,MATCH($I29,TaxCode,0),0,1,1))) -> 0 | Q29: =N29-IF(IncTaxCount=2,SUM(O29:P29),SUM(O29:O29)) -> 34500 | R29: =IF($AB29="N",0,ROUND(SUMIFS(IncIncl,IncDocDate,"<="&$S$2,IncInvoice,$A29)-SUMIFS(IncPayAmount,IncDocDate,"<="&$S$2,IncPayDate,"<="&$S$2,IncInvoice,$A29),2)) -> 0 | S29: STOCK | T29: 11890 | U29: =IF(T29=0,0,(SUMIFS(StockOpen,StockCodeOnly,$D29)+SUMIFS(ExpExcl,ExpDocDate,"<="&$B29,ExpStock,$D29)-SUMIFS(IncTransCost,IncUDate,"<"&$AA29,IncStock,$D29))/T29) -> 3.541843437 | V29: 20365.59976 | W29: 20365.59976 | X29: 14134.40024 | Y29: 0.4096927605 | Z29: =IF(ISNA(VLOOKUP(D29,StockAll,COLUMN(Stock!$D$4),0)),"-",IF(OR(VLOOKUP(D29,StockAll,COLUMN(Stock!$D$4),0)=0,LEFT(VLOOKUP(D29,StockAll,COLUMN(Stock!$D$4),0),5)<>"IS-02"),"IS-0299",VLOOKUP(D29,StockAll,COLUMN(Stock!$D$4),0))) -> IS-0210 | AA29: 2020-04-25T00:00:29 | AB29: Y | AC29: =IF($AB29="N",0,IF(ROUND(SUMIFS(IncIncl,IncDocDate,"<="&$AC$2,IncInvoice,$A29,IncCus,$AC$1)-SUMIFS(IncPayAmount,IncDocDate,"<="&$AC$2,IncPayDate,"<="&$AC$2,IncInvoice,$A29,IncCus,$AC$1),2)=0,0,1)) -> 0 | AD29: -
A30: REC0026 | B30: 2020-05-01 | C30: ABC01 | E30: Interest Received | F30: 0 | G30: 160.23 | H30: E | I30: E | J30: B2 | K30: IS-0900 | L30: 160.23 | M30: 2020-05-01 | N30: =IF(Setup!$D$31="Exclusive",IF(F30=0,G30,F30*G30)*(1+IF(ISNA(MATCH($H30,TaxCode,0)),0,OFFSET(Setup!$D$23,MATCH($H30,TaxCode,0),0,1,1))),IF(F30=0,G30,F30*G30)) -> 160.23 | O30: =$N30/(1+IF(ISERROR($H30),0,IF(ISNA(MATCH($H30,TaxCode,0)),0,OFFSET(Setup!$D$23,MATCH($H30,TaxCode,0),0,1,1)))+IF(ISERROR($I30),0,IF(ISNA(MATCH($I30,TaxCode,0)),0,OFFSET(Setup!$D$23,MATCH($I30,TaxCode,0),0,1,1))))*IF(ISERROR($H30),0,IF(ISNA(MATCH($H30,TaxCode,0)),0,OFFSET(Setup!$D$23,MATCH($H30,TaxCode,0),0,1,1))) -> 0 | P30: =$N30/(1+IF(ISERROR($H30),0,IF(ISNA(MATCH($H30,TaxCode,0)),0,OFFSET(Setup!$D$23,MATCH($H30,TaxCode,0),0,1,1)))+IF(ISERROR($I30),0,IF(ISNA(MATCH($I30,TaxCode,0)),0,OFFSET(Setup!$D$23,MATCH($I30,TaxCode,0),0,1,1))))*IF(ISERROR($I30),0,IF(ISNA(MATCH($I30,TaxCode,0)),0,OFFSET(Setup!$D$23,MATCH($I30,TaxCode,0),0,1,1))) -> 0 | Q30: =N30-IF(IncTaxCount=2,SUM(O30:P30),SUM(O30:O30)) -> 160.23 | R30: =IF($AB30="N",0,ROUND(SUMIFS(IncIncl,IncDocDate,"<="&$S$2,IncInvoice,$A30)-SUMIFS(IncPayAmount,IncDocDate,"<="&$S$2,IncPayDate,"<="&$S$2,IncInvoice,$A30),2)) -> 0 | S30: - | T30: 0 | U30: =IF(T30=0,0,(SUMIFS(StockOpen,StockCodeOnly,$D30)+SUMIFS(ExpExcl,ExpDocDate,"<="&$B30,ExpStock,$D30)-SUMIFS(IncTransCost,IncUDate,"<"&$AA30,IncStock,$D30))/T30) -> 0 | V30: 0 | W30: 0 | X30: 0 | Y30: 0 | Z30: =IF(ISNA(VLOOKUP(D30,StockAll,COLUMN(Stock!$D$4),0)),"-",IF(OR(VLOOKUP(D30,StockAll,COLUMN(Stock!$D$4),0)=0,LEFT(VLOOKUP(D30,StockAll,COLUMN(Stock!$D$4),0),5)<>"IS-02"),"IS-0299",VLOOKUP(D30,StockAll,COLUMN(Stock!$D$4),0))) -> - | AA30: 2020-05-01T00:00:30 | AB30: Y | AC30: =IF($AB30="N",0,IF(ROUND(SUMIFS(IncIncl,IncDocDate,"<="&$AC$2,IncInvoice,$A30,IncCus,$AC$1)-SUMIFS(IncPayAmount,IncDocDate,"<="&$AC$2,IncPayDate,"<="&$AC$2,IncInvoice,$A30,IncCus,$AC$1),2)=0,0,1)) -> 0 | AD30: -
A31: REC0027 | B31: 2020-05-07 | C31: FCT01 | E31: Commission Received | F31: 0 | G31: 1610 | H31: A | I31: E | J31: B1 | K31: IS-0900 | L31: 1851.5 | M31: 2020-05-07 | N31: =IF(Setup!$D$31="Exclusive",IF(F31=0,G31,F31*G31)*(1+IF(ISNA(MATCH($H31,TaxCode,0)),0,OFFSET(Setup!$D$23,MATCH($H31,TaxCode,0),0,1,1))),IF(F31=0,G31,F31*G31)) -> 1851.5 | O31: =$N31/(1+IF(ISERROR($H31),0,IF(ISNA(MATCH($H31,TaxCode,0)),0,OFFSET(Setup!$D$23,MATCH($H31,TaxCode,0),0,1,1)))+IF(ISERROR($I31),0,IF(ISNA(MATCH($I31,TaxCode,0)),0,OFFSET(Setup!$D$23,MATCH($I31,TaxCode,0),0,1,1))))*IF(ISERROR($H31),0,IF(ISNA(MATCH($H31,TaxCode,0)),0,OFFSET(Setup!$D$23,MATCH($H31,TaxCode,0),0,1,1))) -> 241.5 | P31: =$N31/(1+IF(ISERROR($H31),0,IF(ISNA(MATCH($H31,TaxCode,0)),0,OFFSET(Setup!$D$23,MATCH($H31,TaxCode,0),0,1,1)))+IF(ISERROR($I31),0,IF(ISNA(MATCH($I31,TaxCode,0)),0,OFFSET(Setup!$D$23,MATCH($I31,TaxCode,0),0,1,1))))*IF(ISERROR($I31),0,IF(ISNA(MATCH($I31,TaxCode,0)),0,OFFSET(Setup!$D$23,MATCH($I31,TaxCode,0),0,1,1))) -> 0 | Q31: =N31-IF(IncTaxCount=2,SUM(O31:P31),SUM(O31:O31)) -> 1610 | R31: =IF($AB31="N",0,ROUND(SUMIFS(IncIncl,IncDocDate,"<="&$S$2,IncInvoice,$A31)-SUMIFS(IncPayAmount,IncDocDate,"<="&$S$2,IncPayDate,"<="&$S$2,IncInvoice,$A31),2)) -> 0 | S31: - | T31: 0 | U31: =IF(T31=0,0,(SUMIFS(StockOpen,StockCodeOnly,$D31)+SUMIFS(ExpExcl,ExpDocDate,"<="&$B31,ExpStock,$D31)-SUMIFS(IncTransCost,IncUDate,"<"&$AA31,IncStock,$D31))/T31) -> 0 | V31: 0 | W31: 0 | X31: 0 | Y31: 0 | Z31: =IF(ISNA(VLOOKUP(D31,StockAll,COLUMN(Stock!$D$4),0)),"-",IF(OR(VLOOKUP(D31,StockAll,COLUMN(Stock!$D$4),0)=0,LEFT(VLOOKUP(D31,StockAll,COLUMN(Stock!$D$4),0),5)<>"IS-02"),"IS-0299",VLOOKUP(D31,StockAll,COLUMN(Stock!$D$4),0))) -> - | AA31: 2020-05-07T00:00:31 | AB31: Y | AC31: =IF($AB31="N",0,IF(ROUND(SUMIFS(IncIncl,IncDocDate,"<="&$AC$2,IncInvoice,$A31,IncCus,$AC$1)-SUMIFS(IncPayAmount,IncDocDate,"<="&$AC$2,IncPayDate,"<="&$AC$2,IncInvoice,$A31,IncCus,$AC$1),2)=0,0,1)) -> 0 | AD31: -
A32: IN0065 | B32: 2020-05-10 | C32: WCM01 | D32: V0010 | E32: Sales - Tomato Juice | F32: 6500 | G32: 8 | H32: A | I32: E | J32: B1 | K32: IS-0110 | L32: 59800 | M32: 2020-05-25 | N32: =IF(Setup!$D$31="Exclusive",IF(F32=0,G32,F32*G32)*(1+IF(ISNA(MATCH($H32,TaxCode,0)),0,OFFSET(Setup!$D$23,MATCH($H32,TaxCode,0),0,1,1))),IF(F32=0,G32,F32*G32)) -> 59800 | O32: =$N32/(1+IF(ISERROR($H32),0,IF(ISNA(MATCH($H32,TaxCode,0)),0,OFFSET(Setup!$D$23,MATCH($H32,TaxCode,0),0,1,1)))+IF(ISERROR($I32),0,IF(ISNA(MATCH($I32,TaxCode,0)),0,OFFSET(Setup!$D$23,MATCH($I32,TaxCode,0),0,1,1))))*IF(ISERROR($H32),0,IF(ISNA(MATCH($H32,TaxCode,0)),0,OFFSET(Setup!$D$23,MATCH($H32,TaxCode,0),0,1,1))) -> 7800 | P32: =$N32/(1+IF(ISERROR($H32),0,IF(ISNA(MATCH($H32,TaxCode,0)),0,OFFSET(Setup!$D$23,MATCH($H32,TaxCode,0),0,1,1)))+IF(ISERROR($I32),0,IF(ISNA(MATCH($I32,TaxCode,0)),0,OFFSET(Setup!$D$23,MATCH($I32,TaxCode,0),0,1,1))))*IF(ISERROR($I32),0,IF(ISNA(MATCH($I32,TaxCode,0)),0,OFFSET(Setup!$D$23,MATCH($I32,TaxCode,0),0,1,1))) -> 0 | Q32: =N32-IF(IncTaxCount=2,SUM(O32:P32),SUM(O32:O32)) -> 52000 | R32: =IF($AB32="N",0,ROUND(SUMIFS(IncIncl,IncDocDate,"<="&$S$2,IncInvoice,$A32)-SUMIFS(IncPayAmount,IncDocDate,"<="&$S$2,IncPayDate,"<="&$S$2,IncInvoice,$A32),2)) -> 0 | S32: STOCK | T32: 15520 | U32: =IF(T32=0,0,(SUMIFS(StockOpen,StockCodeOnly,$D32)+SUMIFS(ExpExcl,ExpDocDate,"<="&$B32,ExpStock,$D32)-SUMIFS(IncTransCost,IncUDate,"<"&$AA32,IncStock,$D32))/T32) -> 3.195636129 | V32: 20771.63484 | W32: 20771.63484 | X32: 31228.36516 | Y32: 0.6005454839 | Z32: =IF(ISNA(VLOOKUP(D32,StockAll,COLUMN(Stock!$D$4),0)),"-",IF(OR(VLOOKUP(D32,StockAll,COLUMN(Stock!$D$4),0)=0,LEFT(VLOOKUP(D32,StockAll,COLUMN(Stock!$D$4),0),5)<>"IS-02"),"IS-0299",VLOOKUP(D32,StockAll,COLUMN(Stock!$D$4),0))) -> IS-0210 | AA32: 2020-05-10T00:00:32 | AB32: Y | AC32: =IF($AB32="N",0,IF(ROUND(SUMIFS(IncIncl,IncDocDate,"<="&$AC$2,IncInvoice,$A32,IncCus,$AC$1)-SUMIFS(IncPayAmount,IncDocDate,"<="&$AC$2,IncPayDate,"<="&$AC$2,IncInvoice,$A32,IncCus,$AC$1),2)=0,0,1)) -> 0 | AD32: -
A33: IN0066 | B33: 2020-05-10 | C33: WWF01 | D33: F0010 | E33: Sales - Apple Juice | F33: 6500 | G33: 7 | H33: A | I33: E | J33: B1 | K33: IS-0105 | L33: 52325 | M33: 2020-05-30 | N33: =IF(Setup!$D$31="Exclusive",IF(F33=0,G33,F33*G33)*(1+IF(ISNA(MATCH($H33,TaxCode,0)),0,OFFSET(Setup!$D$23,MATCH($H33,TaxCode,0),0,1,1))),IF(F33=0,G33,F33*G33)) -> 52325 | O33: =$N33/(1+IF(ISERROR($H33),0,IF(ISNA(MATCH($H33,TaxCode,0)),0,OFFSET(Setup!$D$23,MATCH($H33,TaxCode,0),0,1,1)))+IF(ISERROR($I33),0,IF(ISNA(MATCH($I33,TaxCode,0)),0,OFFSET(Setup!$D$23,MATCH($I33,TaxCode,0),0,1,1))))*IF(ISERROR($H33),0,IF(ISNA(MATCH($H33,TaxCode,0)),0,OFFSET(Setup!$D$23,MATCH($H33,TaxCode,0),0,1,1))) -> 6825 | P33: =$N33/(1+IF(ISERROR($H33),0,IF(ISNA(MATCH($H33,TaxCode,0)),0,OFFSET(Setup!$D$23,MATCH($H33,TaxCode,0),0,1,1)))+IF(ISERROR($I33),0,IF(ISNA(MATCH($I33,TaxCode,0)),0,OFFSET(Setup!$D$23,MATCH($I33,TaxCode,0),0,1,1))))*IF(ISERROR($I33),0,IF(ISNA(MATCH($I33,TaxCode,0)),0,OFFSET(Setup!$D$23,MATCH($I33,TaxCode,0),0,1,1))) -> 0 | Q33: =N33-IF(IncTaxCount=2,SUM(O33:P33),SUM(O33:O33)) -> 45500 | R33: =IF($AB33="N",0,ROUND(SUMIFS(IncIncl,IncDocDate,"<="&$S$2,IncInvoice,$A33)-SUMIFS(IncPayAmount,IncDocDate,"<="&$S$2,IncPayDate,"<="&$S$2,IncInvoice,$A33),2)) -> 0 | S33: STOCK | T33: 23260 | U33: =IF(T33=0,0,(SUMIFS(StockOpen,StockCodeOnly,$D33)+SUMIFS(ExpExcl,ExpDocDate,"<="&$B33,ExpStock,$D33)-SUMIFS(IncTransCost,IncUDate,"<"&$AA33,IncStock,$D33))/T33) -> 3.183572191 | V33: 20693.21924 | W33: 20693.21924 | X33: 24806.78076 | Y33: 0.5452039727 | Z33: =IF(ISNA(VLOOKUP(D33,StockAll,COLUMN(Stock!$D$4),0)),"-",IF(OR(VLOOKUP(D33,StockAll,COLUMN(Stock!$D$4),0)=0,LEFT(VLOOKUP(D33,StockAll,COLUMN(Stock!$D$4),0),5)<>"IS-02"),"IS-0299",VLOOKUP(D33,StockAll,COLUMN(Stock!$D$4),0))) -> IS-0205 | AA33: 2020-05-10T00:00:33 | AB33: Y | AC33: =IF($AB33="N",0,IF(ROUND(SUMIFS(IncIncl,IncDocDate,"<="&$AC$2,IncInvoice,$A33,IncCus,$AC$1)-SUMIFS(IncPayAmount,IncDocDate,"<="&$AC$2,IncPayDate,"<="&$AC$2,IncInvoice,$A33,IncCus,$AC$1),2)=0,0,1)) -> 0 | AD33: -
A34: IN0067 | B34: 2020-05-15 | C34: FRV01 | D34: F0010 | E34: Sales - Apple Juice | F34: 6100 | G34: 6.9 | H34: A | I34: E | J34: B1 | K34: IS-0105 | L34: 109468.5 | M34: 2020-06-15 | N34: =IF(Setup!$D$31="Exclusive",IF(F34=0,G34,F34*G34)*(1+IF(ISNA(MATCH($H34,TaxCode,0)),0,OFFSET(Setup!$D$23,MATCH($H34,TaxCode,0),0,1,1))),IF(F34=0,G34,F34*G34)) -> 48403.5 | O34: =$N34/(1+IF(ISERROR($H34),0,IF(ISNA(MATCH($H34,TaxCode,0)),0,OFFSET(Setup!$D$23,MATCH($H34,TaxCode,0),0,1,1)))+IF(ISERROR($I34),0,IF(ISNA(MATCH($I34,TaxCode,0)),0,OFFSET(Setup!$D$23,MATCH($I34,TaxCode,0),0,1,1))))*IF(ISERROR($H34),0,IF(ISNA(MATCH($H34,TaxCode,0)),0,OFFSET(Setup!$D$23,MATCH($H34,TaxCode,0),0,1,1))) -> 6313.5 | P34: =$N34/(1+IF(ISERROR($H34),0,IF(ISNA(MATCH($H34,TaxCode,0)),0,OFFSET(Setup!$D$23,MATCH($H34,TaxCode,0),0,1,1)))+IF(ISERROR($I34),0,IF(ISNA(MATCH($I34,TaxCode,0)),0,OFFSET(Setup!$D$23,MATCH($I34,TaxCode,0),0,1,1))))*IF(ISERROR($I34),0,IF(ISNA(MATCH($I34,TaxCode,0)),0,OFFSET(Setup!$D$23,MATCH($I34,TaxCode,0),0,1,1))) -> 0 | Q34: =N34-IF(IncTaxCount=2,SUM(O34:P34),SUM(O34:O34)) -> 42090 | R34: =IF($AB34="N",0,ROUND(SUMIFS(IncIncl,IncDocDate,"<="&$S$2,IncInvoice,$A34)-SUMIFS(IncPayAmount,IncDocDate,"<="&$S$2,IncPayDate,"<="&$S$2,IncInvoice,$A34),2)) -> 0 | S34: STOCK | T34: 16760 | U34: =IF(T34=0,0,(SUMIFS(StockOpen,StockCodeOnly,$D34)+SUMIFS(ExpExcl,ExpDocDate,"<="&$B34,ExpStock,$D34)-SUMIFS(IncTransCost,IncUDate,"<"&$AA34,IncStock,$D34))/T34) -> 3.183572191 | V34: 19419.79036 | W34: 19419.79036 | X34: 22670.20964 | Y34: 0.538612726 | Z34: =IF(ISNA(VLOOKUP(D34,StockAll,COLUMN(Stock!$D$4),0)),"-",IF(OR(VLOOKUP(D34,StockAll,COLUMN(Stock!$D$4),0)=0,LEFT(VLOOKUP(D34,StockAll,COLUMN(Stock!$D$4),0),5)<>"IS-02"),"IS-0299",VLOOKUP(D34,StockAll,COLUMN(Stock!$D$4),0))) -> IS-0205 | AA34: 2020-05-15T00:00:34 | AB34: Y | AC34: =IF($AB34="N",0,IF(ROUND(SUMIFS(IncIncl,IncDocDate,"<="&$AC$2,IncInvoice,$A34,IncCus,$AC$1)-SUMIFS(IncPayAmount,IncDocDate,"<="&$AC$2,IncPayDate,"<="&$AC$2,IncInvoice,$A34,IncCus,$AC$1),2)=0,0,1)) -> 0 | AD34: -
A35: IN0067 | B35: 2020-05-15 | C35: FRV01 | D35: F0015 | E35: Sales - Orange Juice | F35: 5900 | G35: 9 | H35: A | I35: E | J35: B1 | K35: IS-0105 | L35: 0 | M35: 2020-06-15 | N35: =IF(Setup!$D$31="Exclusive",IF(F35=0,G35,F35*G35)*(1+IF(ISNA(MATCH($H35,TaxCode,0)),0,OFFSET(Setup!$D$23,MATCH($H35,TaxCode,0),0,1,1))),IF(F35=0,G35,F35*G35)) -> 61065 | O35: =$N35/(1+IF(ISERROR($H35),0,IF(ISNA(MATCH($H35,TaxCode,0)),0,OFFSET(Setup!$D$23,MATCH($H35,TaxCode,0),0,1,1)))+IF(ISERROR($I35),0,IF(ISNA(MATCH($I35,TaxCode,0)),0,OFFSET(Setup!$D$23,MATCH($I35,TaxCode,0),0,1,1))))*IF(ISERROR($H35),0,IF(ISNA(MATCH($H35,TaxCode,0)),0,OFFSET(Setup!$D$23,MATCH($H35,TaxCode,0),0,1,1))) -> 7965 | P35: =$N35/(1+IF(ISERROR($H35),0,IF(ISNA(MATCH($H35,TaxCode,0)),0,OFFSET(Setup!$D$23,MATCH($H35,TaxCode,0),0,1,1)))+IF(ISERROR($I35),0,IF(ISNA(MATCH($I35,TaxCode,0)),0,OFFSET(Setup!$D$23,MATCH($I35,TaxCode,0),0,1,1))))*IF(ISERROR($I35),0,IF(ISNA(MATCH($I35,TaxCode,0)),0,OFFSET(Setup!$D$23,MATCH($I35,TaxCode,0),0,1,1))) -> 0 | Q35: =N35-IF(IncTaxCount=2,SUM(O35:P35),SUM(O35:O35)) -> 53100 | R35: =IF($AB35="N",0,ROUND(SUMIFS(IncIncl,IncDocDate,"<="&$S$2,IncInvoice,$A35)-SUMIFS(IncPayAmount,IncDocDate,"<="&$S$2,IncPayDate,"<="&$S$2,IncInvoice,$A35),2)) -> 0 | S35: STOCK | T35: 15760 | U35: =IF(T35=0,0,(SUMIFS(StockOpen,StockCodeOnly,$D35)+SUMIFS(ExpExcl,ExpDocDate,"<="&$B35,ExpStock,$D35)-SUMIFS(IncTransCost,IncUDate,"<"&$AA35,IncStock,$D35))/T35) -> 4.993561892 | V35: 29462.01516 | W35: 29462.01516 | X35: 23637.98484 | Y35: 0.4451597898 | Z35: =IF(ISNA(VLOOKUP(D35,StockAll,COLUMN(Stock!$D$4),0)),"-",IF(OR(VLOOKUP(D35,StockAll,COLUMN(Stock!$D$4),0)=0,LEFT(VLOOKUP(D35,StockAll,COLUMN(Stock!$D$4),0),5)<>"IS-02"),"IS-0299",VLOOKUP(D35,StockAll,COLUMN(Stock!$D$4),0))) -> IS-0205 | AA35: 2020-05-15T00:00:35 | AB35: N | AC35: =IF($AB35="N",0,IF(ROUND(SUMIFS(IncIncl,IncDocDate,"<="&$AC$2,IncInvoice,$A35,IncCus,$AC$1)-SUMIFS(IncPayAmount,IncDocDate,"<="&$AC$2,IncPayDate,"<="&$AC$2,IncInvoice,$A35,IncCus,$AC$1),2)=0,0,1)) -> 0 | AD35: -
A36: IN0068 | B36: 2020-05-20 | C36: MIM01 | D36: F0020 | E36: Sales - Strawberry Juice | F36: 700 | G36: 65 | H36: A | I36: E | J36: B1 | K36: IS-0105 | L36: 52325 | M36: 2020-05-20 | N36: =IF(Setup!$D$31="Exclusive",IF(F36=0,G36,F36*G36)*(1+IF(ISNA(MATCH($H36,TaxCode,0)),0,OFFSET(Setup!$D$23,MATCH($H36,TaxCode,0),0,1,1))),IF(F36=0,G36,F36*G36)) -> 52325 | O36: =$N36/(1+IF(ISERROR($H36),0,IF(ISNA(MATCH($H36,TaxCode,0)),0,OFFSET(Setup!$D$23,MATCH($H36,TaxCode,0),0,1,1)))+IF(ISERROR($I36),0,IF(ISNA(MATCH($I36,TaxCode,0)),0,OFFSET(Setup!$D$23,MATCH($I36,TaxCode,0),0,1,1))))*IF(ISERROR($H36),0,IF(ISNA(MATCH($H36,TaxCode,0)),0,OFFSET(Setup!$D$23,MATCH($H36,TaxCode,0),0,1,1))) -> 6825 | P36: =$N36/(1+IF(ISERROR($H36),0,IF(ISNA(MATCH($H36,TaxCode,0)),0,OFFSET(Setup!$D$23,MATCH($H36,TaxCode,0),0,1,1)))+IF(ISERROR($I36),0,IF(ISNA(MATCH($I36,TaxCode,0)),0,OFFSET(Setup!$D$23,MATCH($I36,TaxCode,0),0,1,1))))*IF(ISERROR($I36),0,IF(ISNA(MATCH($I36,TaxCode,0)),0,OFFSET(Setup!$D$23,MATCH($I36,TaxCode,0),0,1,1))) -> 0 | Q36: =N36-IF(IncTaxCount=2,SUM(O36:P36),SUM(O36:O36)) -> 45500 | R36: =IF($AB36="N",0,ROUND(SUMIFS(IncIncl,IncDocDate,"<="&$S$2,IncInvoice,$A36)-SUMIFS(IncPayAmount,IncDocDate,"<="&$S$2,IncPayDate,"<="&$S$2,IncInvoice,$A36),2)) -> 0 | S36: STOCK | T36: 4020 | U36: =IF(T36=0,0,(SUMIFS(StockOpen,StockCodeOnly,$D36)+SUMIFS(ExpExcl,ExpDocDate,"<="&$B36,ExpStock,$D36)-SUMIFS(IncTransCost,IncUDate,"<"&$AA36,IncStock,$D36))/T36) -> 24 | V36: 16800 | W36: 16800 | X36: 28700 | Y36: 0.6307692308 | Z36: =IF(ISNA(VLOOKUP(D36,StockAll,COLUMN(Stock!$D$4),0)),"-",IF(OR(VLOOKUP(D36,StockAll,COLUMN(Stock!$D$4),0)=0,LEFT(VLOOKUP(D36,StockAll,COLUMN(Stock!$D$4),0),5)<>"IS-02"),"IS-0299",VLOOKUP(D36,StockAll,COLUMN(Stock!$D$4),0))) -> IS-0205 | AA36: 2020-05-20T00:00:36 | AB36: Y | AC36: =IF($AB36="N",0,IF(ROUND(SUMIFS(IncIncl,IncDocDate,"<="&$AC$2,IncInvoice,$A36,IncCus,$AC$1)-SUMIFS(IncPayAmount,IncDocDate,"<="&$AC$2,IncPayDate,"<="&$AC$2,IncInvoice,$A36,IncCus,$AC$1),2)=0,0,1)) -> 0 | AD36: -
A37: IN0069 | B37: 2020-05-25 | C37: GGR01 | D37: V0020 | E37: Sales - Carrot Juice | F37: 7000 | G37: 5 | H37: A | I37: E | J37: B1 | K37: IS-0110 | L37: 40250 | M37: 2020-05-25 | N37: =IF(Setup!$D$31="Exclusive",IF(F37=0,G37,F37*G37)*(1+IF(ISNA(MATCH($H37,TaxCode,0)),0,OFFSET(Setup!$D$23,MATCH($H37,TaxCode,0),0,1,1))),IF(F37=0,G37,F37*G37)) -> 40250 | O37: =$N37/(1+IF(ISERROR($H37),0,IF(ISNA(MATCH($H37,TaxCode,0)),0,OFFSET(Setup!$D$23,MATCH($H37,TaxCode,0),0,1,1)))+IF(ISERROR($I37),0,IF(ISNA(MATCH($I37,TaxCode,0)),0,OFFSET(Setup!$D$23,MATCH($I37,TaxCode,0),0,1,1))))*IF(ISERROR($H37),0,IF(ISNA(MATCH($H37,TaxCode,0)),0,OFFSET(Setup!$D$23,MATCH($H37,TaxCode,0),0,1,1))) -> 5250 | P37: =$N37/(1+IF(ISERROR($H37),0,IF(ISNA(MATCH($H37,TaxCode,0)),0,OFFSET(Setup!$D$23,MATCH($H37,TaxCode,0),0,1,1)))+IF(ISERROR($I37),0,IF(ISNA(MATCH($I37,TaxCode,0)),0,OFFSET(Setup!$D$23,MATCH($I37,TaxCode,0),0,1,1))))*IF(ISERROR($I37),0,IF(ISNA(MATCH($I37,TaxCode,0)),0,OFFSET(Setup!$D$23,MATCH($I37,TaxCode,0),0,1,1))) -> 0 | Q37: =N37-IF(IncTaxCount=2,SUM(O37:P37),SUM(O37:O37)) -> 35000 | R37: =IF($AB37="N",0,ROUND(SUMIFS(IncIncl,IncDocDate,"<="&$S$2,IncInvoice,$A37)-SUMIFS(IncPayAmount,IncDocDate,"<="&$S$2,IncPayDate,"<="&$S$2,IncInvoice,$A37),2)) -> 0 | S37: =IF(Z37<>"-","STOCK","-") -> STOCK | T37: =SUMIFS(StockOpenQty,StockCodeOnly,$D37)+SUMIFS(ExpQty,ExpDocDate,"<="&$B37,ExpStock,$D37)-SUMIFS(IncQty,IncUDate,"<"&$AA37,IncStock,$D37) -> 13555 | U37: =IF(T37=0,0,(SUMIFS(StockOpen,StockCodeOnly,$D37)+SUMIFS(ExpExcl,ExpDocDate,"<="&$B37,ExpStock,$D37)-SUMIFS(IncTransCost,IncUDate,"<"&$AA37,IncStock,$D37))/T37) -> 2.146714286 | V37: =F37*U37 -> 15027 | W37: =F37*U37 -> 15027 | X37: =IF(Z37="-",0,Q37-W37) -> 19973 | Y37: =IF(Z37="-",0,IF(Q37=0,0,X37/Q37)) -> 0.5706571429 | Z37: =IF(ISNA(VLOOKUP(D37,StockAll,COLUMN(Stock!$D$4),0)),"-",IF(OR(VLOOKUP(D37,StockAll,COLUMN(Stock!$D$4),0)=0,LEFT(VLOOKUP(D37,StockAll,COLUMN(Stock!$D$4),0),5)<>"IS-02"),"IS-0299",VLOOKUP(D37,StockAll,COLUMN(Stock!$D$4),0))) -> IS-0210 | AA37: =IF(ISBLANK($B37)=TRUE,TODAY()+(ROW($B37)/86400),$B37+(ROW($B37)/86400)) -> 2020-05-25T00:00:37 | AB37: =IF(ISNA(MATCH($A37,IncInvoice,0)),"N",IF(MATCH($A37,IncInvoice,0)=ROW($A37)-4,"Y","N")) -> Y | AC37: =IF($AB37="N",0,IF(ROUND(SUMIFS(IncIncl,IncDocDate,"<="&$AC$2,IncInvoice,$A37,IncCus,$AC$1)-SUMIFS(IncPayAmount,IncDocDate,"<="&$AC$2,IncPayDate,"<="&$AC$2,IncInvoice,$A37,IncCus,$AC$1),2)=0,0,1)) -> 0 | AD37: =IF(AND(ISBLANK(M37)=FALSE,M37<B37),"E1",IF(AND(ISBLANK(K37)=FALSE,ISNA(MATCH($K37,AccountNo,0))),"E2",IF(AND(ISBLANK(J37)=FALSE,ISNA(MATCH($J37,BankCode,0))),"E3",IF(AND(ISBLANK(C37)=FALSE,ISNA(MATCH($C37,CustomerCode,0))),"E4",IF(AND(ISBLANK(D37)=FALSE,Z37="-"),"E5",IF(AND(Z37<>"-",T37-F37<0),"E6","-")))))) -> -
A38: IN0070 | B38: 2020-05-25 | C38: TRF01 | D38: V0015 | E38: Sales - Beetroot Juice | F38: 5500 | G38: 6 | H38: A | I38: E | J38: B1 | K38: IS-0110 | L38: 37950 | M38: 2020-06-25 | N38: =IF(Setup!$D$31="Exclusive",IF(F38=0,G38,F38*G38)*(1+IF(ISNA(MATCH($H38,TaxCode,0)),0,OFFSET(Setup!$D$23,MATCH($H38,TaxCode,0),0,1,1))),IF(F38=0,G38,F38*G38)) -> 37950 | O38: =$N38/(1+IF(ISERROR($H38),0,IF(ISNA(MATCH($H38,TaxCode,0)),0,OFFSET(Setup!$D$23,MATCH($H38,TaxCode,0),0,1,1)))+IF(ISERROR($I38),0,IF(ISNA(MATCH($I38,TaxCode,0)),0,OFFSET(Setup!$D$23,MATCH($I38,TaxCode,0),0,1,1))))*IF(ISERROR($H38),0,IF(ISNA(MATCH($H38,TaxCode,0)),0,OFFSET(Setup!$D$23,MATCH($H38,TaxCode,0),0,1,1))) -> 4950 | P38: =$N38/(1+IF(ISERROR($H38),0,IF(ISNA(MATCH($H38,TaxCode,0)),0,OFFSET(Setup!$D$23,MATCH($H38,TaxCode,0),0,1,1)))+IF(ISERROR($I38),0,IF(ISNA(MATCH($I38,TaxCode,0)),0,OFFSET(Setup!$D$23,MATCH($I38,TaxCode,0),0,1,1))))*IF(ISERROR($I38),0,IF(ISNA(MATCH($I38,TaxCode,0)),0,OFFSET(Setup!$D$23,MATCH($I38,TaxCode,0),0,1,1))) -> 0 | Q38: =N38-IF(IncTaxCount=2,SUM(O38:P38),SUM(O38:O38)) -> 33000 | R38: =IF($AB38="N",0,ROUND(SUMIFS(IncIncl,IncDocDate,"<="&$S$2,IncInvoice,$A38)-SUMIFS(IncPayAmount,IncDocDate,"<="&$S$2,IncPayDate,"<="&$S$2,IncInvoice,$A38),2)) -> 0 | S38: STOCK | T38: 12990 | U38: =IF(T38=0,0,(SUMIFS(StockOpen,StockCodeOnly,$D38)+SUMIFS(ExpExcl,ExpDocDate,"<="&$B38,ExpStock,$D38)-SUMIFS(IncTransCost,IncUDate,"<"&$AA38,IncStock,$D38))/T38) -> 3.519778191 | V38: 19358.78005 | W38: 19358.78005 | X38: 13641.21995 | Y38: 0.4133703015 | Z38: =IF(ISNA(VLOOKUP(D38,StockAll,COLUMN(Stock!$D$4),0)),"-",IF(OR(VLOOKUP(D38,StockAll,COLUMN(Stock!$D$4),0)=0,LEFT(VLOOKUP(D38,StockAll,COLUMN(Stock!$D$4),0),5)<>"IS-02"),"IS-0299",VLOOKUP(D38,StockAll,COLUMN(Stock!$D$4),0))) -> IS-0210 | AA38: 2020-05-25T00:00:38 | AB38: Y | AC38: =IF($AB38="N",0,IF(ROUND(SUMIFS(IncIncl,IncDocDate,"<="&$AC$2,IncInvoice,$A38,IncCus,$AC$1)-SUMIFS(IncPayAmount,IncDocDate,"<="&$AC$2,IncPayDate,"<="&$AC$2,IncInvoice,$A38,IncCus,$AC$1),2)=0,0,1)) -> 0 | AD38: -
A39: REC0029 | B39: 2020-06-01 | C39: ABC01 | E39: Interest Received | F39: 0 | G39: 170.21 | H39: E | I39: E | J39: B2 | K39: IS-0900 | L39: 170.21 | M39: 2020-06-01 | N39: =IF(Setup!$D$31="Exclusive",IF(F39=0,G39,F39*G39)*(1+IF(ISNA(MATCH($H39,TaxCode,0)),0,OFFSET(Setup!$D$23,MATCH($H39,TaxCode,0),0,1,1))),IF(F39=0,G39,F39*G39)) -> 170.21 | O39: =$N39/(1+IF(ISERROR($H39),0,IF(ISNA(MATCH($H39,TaxCode,0)),0,OFFSET(Setup!$D$23,MATCH($H39,TaxCode,0),0,1,1)))+IF(ISERROR($I39),0,IF(ISNA(MATCH($I39,TaxCode,0)),0,OFFSET(Setup!$D$23,MATCH($I39,TaxCode,0),0,1,1))))*IF(ISERROR($H39),0,IF(ISNA(MATCH($H39,TaxCode,0)),0,OFFSET(Setup!$D$23,MATCH($H39,TaxCode,0),0,1,1))) -> 0 | P39: =$N39/(1+IF(ISERROR($H39),0,IF(ISNA(MATCH($H39,TaxCode,0)),0,OFFSET(Setup!$D$23,MATCH($H39,TaxCode,0),0,1,1)))+IF(ISERROR($I39),0,IF(ISNA(MATCH($I39,TaxCode,0)),0,OFFSET(Setup!$D$23,MATCH($I39,TaxCode,0),0,1,1))))*IF(ISERROR($I39),0,IF(ISNA(MATCH($I39,TaxCode,0)),0,OFFSET(Setup!$D$23,MATCH($I39,TaxCode,0),0,1,1))) -> 0 | Q39: =N39-IF(IncTaxCount=2,SUM(O39:P39),SUM(O39:O39)) -> 170.21 | R39: =IF($AB39="N",0,ROUND(SUMIFS(IncIncl,IncDocDate,"<="&$S$2,IncInvoice,$A39)-SUMIFS(IncPayAmount,IncDocDate,"<="&$S$2,IncPayDate,"<="&$S$2,IncInvoice,$A39),2)) -> 0 | S39: - | T39: 0 | U39: =IF(T39=0,0,(SUMIFS(StockOpen,StockCodeOnly,$D39)+SUMIFS(ExpExcl,ExpDocDate,"<="&$B39,ExpStock,$D39)-SUMIFS(IncTransCost,IncUDate,"<"&$AA39,IncStock,$D39))/T39) -> 0 | V39: 0 | W39: 0 | X39: 0 | Y39: 0 | Z39: =IF(ISNA(VLOOKUP(D39,StockAll,COLUMN(Stock!$D$4),0)),"-",IF(OR(VLOOKUP(D39,StockAll,COLUMN(Stock!$D$4),0)=0,LEFT(VLOOKUP(D39,StockAll,COLUMN(Stock!$D$4),0),5)<>"IS-02"),"IS-0299",VLOOKUP(D39,StockAll,COLUMN(Stock!$D$4),0))) -> - | AA39: 2020-06-01T00:00:39 | AB39: Y | AC39: =IF($AB39="N",0,IF(ROUND(SUMIFS(IncIncl,IncDocDate,"<="&$AC$2,IncInvoice,$A39,IncCus,$AC$1)-SUMIFS(IncPayAmount,IncDocDate,"<="&$AC$2,IncPayDate,"<="&$AC$2,IncInvoice,$A39,IncCus,$AC$1),2)=0,0,1)) -> 0 | AD39: -
A40: REC0030 | B40: 2020-06-07 | C40: FCT01 | E40: Commission Received | F40: 0 | G40: 1840 | H40: A | I40: E | J40: B1 | K40: IS-0900 | L40: 2116 | M40: 2020-06-07 | N40: =IF(Setup!$D$31="Exclusive",IF(F40=0,G40,F40*G40)*(1+IF(ISNA(MATCH($H40,TaxCode,0)),0,OFFSET(Setup!$D$23,MATCH($H40,TaxCode,0),0,1,1))),IF(F40=0,G40,F40*G40)) -> 2116 | O40: =$N40/(1+IF(ISERROR($H40),0,IF(ISNA(MATCH($H40,TaxCode,0)),0,OFFSET(Setup!$D$23,MATCH($H40,TaxCode,0),0,1,1)))+IF(ISERROR($I40),0,IF(ISNA(MATCH($I40,TaxCode,0)),0,OFFSET(Setup!$D$23,MATCH($I40,TaxCode,0),0,1,1))))*IF(ISERROR($H40),0,IF(ISNA(MATCH($H40,TaxCode,0)),0,OFFSET(Setup!$D$23,MATCH($H40,TaxCode,0),0,1,1))) -> 276 | P40: =$N40/(1+IF(ISERROR($H40),0,IF(ISNA(MATCH($H40,TaxCode,0)),0,OFFSET(Setup!$D$23,MATCH($H40,TaxCode,0),0,1,1)))+IF(ISERROR($I40),0,IF(ISNA(MATCH($I40,TaxCode,0)),0,OFFSET(Setup!$D$23,MATCH($I40,TaxCode,0),0,1,1))))*IF(ISERROR($I40),0,IF(ISNA(MATCH($I40,TaxCode,0)),0,OFFSET(Setup!$D$23,MATCH($I40,TaxCode,0),0,1,1))) -> 0 | Q40: =N40-IF(IncTaxCount=2,SUM(O40:P40),SUM(O40:O40)) -> 1840 | R40: =IF($AB40="N",0,ROUND(SUMIFS(IncIncl,IncDocDate,"<="&$S$2,IncInvoice,$A40)-SUMIFS(IncPayAmount,IncDocDate,"<="&$S$2,IncPayDate,"<="&$S$2,IncInvoice,$A40),2)) -> 0 | S40: - | T40: 0 | U40: =IF(T40=0,0,(SUMIFS(StockOpen,StockCodeOnly,$D40)+SUMIFS(ExpExcl,ExpDocDate,"<="&$B40,ExpStock,$D40)-SUMIFS(IncTransCost,IncUDate,"<"&$AA40,IncStock,$D40))/T40) -> 0 | V40: 0 | W40: 0 | X40: 0 | Y40: 0 | Z40: =IF(ISNA(VLOOKUP(D40,StockAll,COLUMN(Stock!$D$4),0)),"-",IF(OR(VLOOKUP(D40,StockAll,COLUMN(Stock!$D$4),0)=0,LEFT(VLOOKUP(D40,StockAll,COLUMN(Stock!$D$4),0),5)<>"IS-02"),"IS-0299",VLOOKUP(D40,StockAll,COLUMN(Stock!$D$4),0))) -> - | AA40: 2020-06-07T00:00:40 | AB40: Y | AC40: =IF($AB40="N",0,IF(ROUND(SUMIFS(IncIncl,IncDocDate,"<="&$AC$2,IncInvoice,$A40,IncCus,$AC$1)-SUMIFS(IncPayAmount,IncDocDate,"<="&$AC$2,IncPayDate,"<="&$AC$2,IncInvoice,$A40,IncCus,$AC$1),2)=0,0,1)) -> 0 | AD40: -
A41: IN0071 | B41: 2020-06-10 | C41: WCM01 | D41: V0010 | E41: Sales - Tomato Juice | F41: 6100 | G41: 8 | H41: A | I41: E | J41: B1 | K41: IS-0110 | L41: 56120 | M41: 2020-06-25 | N41: =IF(Setup!$D$31="Exclusive",IF(F41=0,G41,F41*G41)*(1+IF(ISNA(MATCH($H41,TaxCode,0)),0,OFFSET(Setup!$D$23,MATCH($H41,TaxCode,0),0,1,1))),IF(F41=0,G41,F41*G41)) -> 56120 | O41: =$N41/(1+IF(ISERROR($H41),0,IF(ISNA(MATCH($H41,TaxCode,0)),0,OFFSET(Setup!$D$23,MATCH($H41,TaxCode,0),0,1,1)))+IF(ISERROR($I41),0,IF(ISNA(MATCH($I41,TaxCode,0)),0,OFFSET(Setup!$D$23,MATCH($I41,TaxCode,0),0,1,1))))*IF(ISERROR($H41),0,IF(ISNA(MATCH($H41,TaxCode,0)),0,OFFSET(Setup!$D$23,MATCH($H41,TaxCode,0),0,1,1))) -> 7320 | P41: =$N41/(1+IF(ISERROR($H41),0,IF(ISNA(MATCH($H41,TaxCode,0)),0,OFFSET(Setup!$D$23,MATCH($H41,TaxCode,0),0,1,1)))+IF(ISERROR($I41),0,IF(ISNA(MATCH($I41,TaxCode,0)),0,OFFSET(Setup!$D$23,MATCH($I41,TaxCode,0),0,1,1))))*IF(ISERROR($I41),0,IF(ISNA(MATCH($I41,TaxCode,0)),0,OFFSET(Setup!$D$23,MATCH($I41,TaxCode,0),0,1,1))) -> 0 | Q41: =N41-IF(IncTaxCount=2,SUM(O41:P41),SUM(O41:O41)) -> 48800 | R41: =IF($AB41="N",0,ROUND(SUMIFS(IncIncl,IncDocDate,"<="&$S$2,IncInvoice,$A41)-SUMIFS(IncPayAmount,IncDocDate,"<="&$S$2,IncPayDate,"<="&$S$2,IncInvoice,$A41),2)) -> 0 | S41: STOCK | T41: 15520 | U41: =IF(T41=0,0,(SUMIFS(StockOpen,StockCodeOnly,$D41)+SUMIFS(ExpExcl,ExpDocDate,"<="&$B41,ExpStock,$D41)-SUMIFS(IncTransCost,IncUDate,"<"&$AA41,IncStock,$D41))/T41) -> 3.197463781 | V41: 19504.52906 | W41: 19504.52906 | X41: 29295.47094 | Y41: 0.6003170274 | Z41: =IF(ISNA(VLOOKUP(D41,StockAll,COLUMN(Stock!$D$4),0)),"-",IF(OR(VLOOKUP(D41,StockAll,COLUMN(Stock!$D$4),0)=0,LEFT(VLOOKUP(D41,StockAll,COLUMN(Stock!$D$4),0),5)<>"IS-02"),"IS-0299",VLOOKUP(D41,StockAll,COLUMN(Stock!$D$4),0))) -> IS-0210 | AA41: 2020-06-10T00:00:41 | AB41: Y | AC41: =IF($AB41="N",0,IF(ROUND(SUMIFS(IncIncl,IncDocDate,"<="&$AC$2,IncInvoice,$A41,IncCus,$AC$1)-SUMIFS(IncPayAmount,IncDocDate,"<="&$AC$2,IncPayDate,"<="&$AC$2,IncInvoice,$A41,IncCus,$AC$1),2)=0,0,1)) -> 0 | AD41: -
A42: IN0072 | B42: 2020-06-10 | C42: WWF01 | D42: F0010 | E42: Sales - Apple Juice | F42: 7200 | G42: 7.2 | H42: A | I42: E | J42: B1 | K42: IS-0105 | L42: 59616 | M42: 2020-06-30 | N42: =IF(Setup!$D$31="Exclusive",IF(F42=0,G42,F42*G42)*(1+IF(ISNA(MATCH($H42,TaxCode,0)),0,OFFSET(Setup!$D$23,MATCH($H42,TaxCode,0),0,1,1))),IF(F42=0,G42,F42*G42)) -> 59616 | O42: =$N42/(1+IF(ISERROR($H42),0,IF(ISNA(MATCH($H42,TaxCode,0)),0,OFFSET(Setup!$D$23,MATCH($H42,TaxCode,0),0,1,1)))+IF(ISERROR($I42),0,IF(ISNA(MATCH($I42,TaxCode,0)),0,OFFSET(Setup!$D$23,MATCH($I42,TaxCode,0),0,1,1))))*IF(ISERROR($H42),0,IF(ISNA(MATCH($H42,TaxCode,0)),0,OFFSET(Setup!$D$23,MATCH($H42,TaxCode,0),0,1,1))) -> 7776 | P42: =$N42/(1+IF(ISERROR($H42),0,IF(ISNA(MATCH($H42,TaxCode,0)),0,OFFSET(Setup!$D$23,MATCH($H42,TaxCode,0),0,1,1)))+IF(ISERROR($I42),0,IF(ISNA(MATCH($I42,TaxCode,0)),0,OFFSET(Setup!$D$23,MATCH($I42,TaxCode,0),0,1,1))))*IF(ISERROR($I42),0,IF(ISNA(MATCH($I42,TaxCode,0)),0,OFFSET(Setup!$D$23,MATCH($I42,TaxCode,0),0,1,1))) -> 0 | Q42: =N42-IF(IncTaxCount=2,SUM(O42:P42),SUM(O42:O42)) -> 51840 | R42: =IF($AB42="N",0,ROUND(SUMIFS(IncIncl,IncDocDate,"<="&$S$2,IncInvoice,$A42)-SUMIFS(IncPayAmount,IncDocDate,"<="&$S$2,IncPayDate,"<="&$S$2,IncInvoice,$A42),2)) -> 0 | S42: STOCK | T42: 24160 | U42: =IF(T42=0,0,(SUMIFS(StockOpen,StockCodeOnly,$D42)+SUMIFS(ExpExcl,ExpDocDate,"<="&$B42,ExpStock,$D42)-SUMIFS(IncTransCost,IncUDate,"<"&$AA42,IncStock,$D42))/T42) -> 3.192751637 | V42: 22987.81179 | W42: 22987.81179 | X42: 28852.18821 | Y42: 0.5565622726 | Z42: =IF(ISNA(VLOOKUP(D42,StockAll,COLUMN(Stock!$D$4),0)),"-",IF(OR(VLOOKUP(D42,StockAll,COLUMN(Stock!$D$4),0)=0,LEFT(VLOOKUP(D42,StockAll,COLUMN(Stock!$D$4),0),5)<>"IS-02"),"IS-0299",VLOOKUP(D42,StockAll,COLUMN(Stock!$D$4),0))) -> IS-0205 | AA42: 2020-06-10T00:00:42 | AB42: Y | AC42: =IF($AB42="N",0,IF(ROUND(SUMIFS(IncIncl,IncDocDate,"<="&$AC$2,IncInvoice,$A42,IncCus,$AC$1)-SUMIFS(IncPayAmount,IncDocDate,"<="&$AC$2,IncPayDate,"<="&$AC$2,IncInvoice,$A42,IncCus,$AC$1),2)=0,0,1)) -> 0 | AD42: -
A43: IN0073 | B43: 2020-06-15 | C43: FRV01 | D43: F0010 | E43: Sales - Apple Juice | F43: 5900 | G43: 7.2 | H43: A | I43: E | J43: B1 | K43: IS-0105 | L43: 111987 | M43: 2020-07-15 | N43: =IF(Setup!$D$31="Exclusive",IF(F43=0,G43,F43*G43)*(1+IF(ISNA(MATCH($H43,TaxCode,0)),0,OFFSET(Setup!$D$23,MATCH($H43,TaxCode,0),0,1,1))),IF(F43=0,G43,F43*G43)) -> 48852 | O43: =$N43/(1+IF(ISERROR($H43),0,IF(ISNA(MATCH($H43,TaxCode,0)),0,OFFSET(Setup!$D$23,MATCH($H43,TaxCode,0),0,1,1)))+IF(ISERROR($I43),0,IF(ISNA(MATCH($I43,TaxCode,0)),0,OFFSET(Setup!$D$23,MATCH($I43,TaxCode,0),0,1,1))))*IF(ISERROR($H43),0,IF(ISNA(MATCH($H43,TaxCode,0)),0,OFFSET(Setup!$D$23,MATCH($H43,TaxCode,0),0,1,1))) -> 6372 | P43: =$N43/(1+IF(ISERROR($H43),0,IF(ISNA(MATCH($H43,TaxCode,0)),0,OFFSET(Setup!$D$23,MATCH($H43,TaxCode,0),0,1,1)))+IF(ISERROR($I43),0,IF(ISNA(MATCH($I43,TaxCode,0)),0,OFFSET(Setup!$D$23,MATCH($I43,TaxCode,0),0,1,1))))*IF(ISERROR($I43),0,IF(ISNA(MATCH($I43,TaxCode,0)),0,OFFSET(Setup!$D$23,MATCH($I43,TaxCode,0),0,1,1))) -> 0 | Q43: =N43-IF(IncTaxCount=2,SUM(O43:P43),SUM(O43:O43)) -> 42480 | R43: =IF($AB43="N",0,ROUND(SUMIFS(IncIncl,IncDocDate,"<="&$S$2,IncInvoice,$A43)-SUMIFS(IncPayAmount,IncDocDate,"<="&$S$2,IncPayDate,"<="&$S$2,IncInvoice,$A43),2)) -> 0 | S43: STOCK | T43: 16960 | U43: =IF(T43=0,0,(SUMIFS(StockOpen,StockCodeOnly,$D43)+SUMIFS(ExpExcl,ExpDocDate,"<="&$B43,ExpStock,$D43)-SUMIFS(IncTransCost,IncUDate,"<"&$AA43,IncStock,$D43))/T43) -> 3.192751637 | V43: 18837.23466 | W43: 18837.23466 | X43: 23642.76534 | Y43: 0.5565622726 | Z43: =IF(ISNA(VLOOKUP(D43,StockAll,COLUMN(Stock!$D$4),0)),"-",IF(OR(VLOOKUP(D43,StockAll,COLUMN(Stock!$D$4),0)=0,LEFT(VLOOKUP(D43,StockAll,COLUMN(Stock!$D$4),0),5)<>"IS-02"),"IS-0299",VLOOKUP(D43,StockAll,COLUMN(Stock!$D$4),0))) -> IS-0205 | AA43: 2020-06-15T00:00:43 | AB43: Y | AC43: =IF($AB43="N",0,IF(ROUND(SUMIFS(IncIncl,IncDocDate,"<="&$AC$2,IncInvoice,$A43,IncCus,$AC$1)-SUMIFS(IncPayAmount,IncDocDate,"<="&$AC$2,IncPayDate,"<="&$AC$2,IncInvoice,$A43,IncCus,$AC$1),2)=0,0,1)) -> 0 | AD43: -
A44: IN0073 | B44: 2020-06-15 | C44: FRV01 | D44: F0015 | E44: Sales - Orange Juice | F44: 6100 | G44: 9 | H44: A | I44: E | J44: B1 | K44: IS-0105 | L44: 0 | M44: 2020-07-15 | N44: =IF(Setup!$D$31="Exclusive",IF(F44=0,G44,F44*G44)*(1+IF(ISNA(MATCH($H44,TaxCode,0)),0,OFFSET(Setup!$D$23,MATCH($H44,TaxCode,0),0,1,1))),IF(F44=0,G44,F44*G44)) -> 63135 | O44: =$N44/(1+IF(ISERROR($H44),0,IF(ISNA(MATCH($H44,TaxCode,0)),0,OFFSET(Setup!$D$23,MATCH($H44,TaxCode,0),0,1,1)))+IF(ISERROR($I44),0,IF(ISNA(MATCH($I44,TaxCode,0)),0,OFFSET(Setup!$D$23,MATCH($I44,TaxCode,0),0,1,1))))*IF(ISERROR($H44),0,IF(ISNA(MATCH($H44,TaxCode,0)),0,OFFSET(Setup!$D$23,MATCH($H44,TaxCode,0),0,1,1))) -> 8235 | P44: =$N44/(1+IF(ISERROR($H44),0,IF(ISNA(MATCH($H44,TaxCode,0)),0,OFFSET(Setup!$D$23,MATCH($H44,TaxCode,0),0,1,1)))+IF(ISERROR($I44),0,IF(ISNA(MATCH($I44,TaxCode,0)),0,OFFSET(Setup!$D$23,MATCH($I44,TaxCode,0),0,1,1))))*IF(ISERROR($I44),0,IF(ISNA(MATCH($I44,TaxCode,0)),0,OFFSET(Setup!$D$23,MATCH($I44,TaxCode,0),0,1,1))) -> 0 | Q44: =N44-IF(IncTaxCount=2,SUM(O44:P44),SUM(O44:O44)) -> 54900 | R44: =IF($AB44="N",0,ROUND(SUMIFS(IncIncl,IncDocDate,"<="&$S$2,IncInvoice,$A44)-SUMIFS(IncPayAmount,IncDocDate,"<="&$S$2,IncPayDate,"<="&$S$2,IncInvoice,$A44),2)) -> 0 | S44: STOCK | T44: 16460 | U44: =IF(T44=0,0,(SUMIFS(StockOpen,StockCodeOnly,$D44)+SUMIFS(ExpExcl,ExpDocDate,"<="&$B44,ExpStock,$D44)-SUMIFS(IncTransCost,IncUDate,"<"&$AA44,IncStock,$D44))/T44) -> 4.996143393 | V44: 30476.4747 | W44: 30476.4747 | X44: 24423.5253 | Y44: 0.4448729563 | Z44: =IF(ISNA(VLOOKUP(D44,StockAll,COLUMN(Stock!$D$4),0)),"-",IF(OR(VLOOKUP(D44,StockAll,COLUMN(Stock!$D$4),0)=0,LEFT(VLOOKUP(D44,StockAll,COLUMN(Stock!$D$4),0),5)<>"IS-02"),"IS-0299",VLOOKUP(D44,StockAll,COLUMN(Stock!$D$4),0))) -> IS-0205 | AA44: 2020-06-15T00:00:44 | AB44: N | AC44: =IF($AB44="N",0,IF(ROUND(SUMIFS(IncIncl,IncDocDate,"<="&$AC$2,IncInvoice,$A44,IncCus,$AC$1)-SUMIFS(IncPayAmount,IncDocDate,"<="&$AC$2,IncPayDate,"<="&$AC$2,IncInvoice,$A44,IncCus,$AC$1),2)=0,0,1)) -> 0 | AD44: -
A45: IN0074 | B45: 2020-06-20 | C45: MIM01 | D45: F0020 | E45: Sales - Strawberry Juice | F45: 620 | G45: 60 | H45: A | I45: E | J45: B1 | K45: IS-0105 | L45: 42780 | M45: 2020-06-20 | N45: =IF(Setup!$D$31="Exclusive",IF(F45=0,G45,F45*G45)*(1+IF(ISNA(MATCH($H45,TaxCode,0)),0,OFFSET(Setup!$D$23,MATCH($H45,TaxCode,0),0,1,1))),IF(F45=0,G45,F45*G45)) -> 42780 | O45: =$N45/(1+IF(ISERROR($H45),0,IF(ISNA(MATCH($H45,TaxCode,0)),0,OFFSET(Setup!$D$23,MATCH($H45,TaxCode,0),0,1,1)))+IF(ISERROR($I45),0,IF(ISNA(MATCH($I45,TaxCode,0)),0,OFFSET(Setup!$D$23,MATCH($I45,TaxCode,0),0,1,1))))*IF(ISERROR($H45),0,IF(ISNA(MATCH($H45,TaxCode,0)),0,OFFSET(Setup!$D$23,MATCH($H45,TaxCode,0),0,1,1))) -> 5580 | P45: =$N45/(1+IF(ISERROR($H45),0,IF(ISNA(MATCH($H45,TaxCode,0)),0,OFFSET(Setup!$D$23,MATCH($H45,TaxCode,0),0,1,1)))+IF(ISERROR($I45),0,IF(ISNA(MATCH($I45,TaxCode,0)),0,OFFSET(Setup!$D$23,MATCH($I45,TaxCode,0),0,1,1))))*IF(ISERROR($I45),0,IF(ISNA(MATCH($I45,TaxCode,0)),0,OFFSET(Setup!$D$23,MATCH($I45,TaxCode,0),0,1,1))) -> 0 | Q45: =N45-IF(IncTaxCount=2,SUM(O45:P45),SUM(O45:O45)) -> 37200 | R45: =IF($AB45="N",0,ROUND(SUMIFS(IncIncl,IncDocDate,"<="&$S$2,IncInvoice,$A45)-SUMIFS(IncPayAmount,IncDocDate,"<="&$S$2,IncPayDate,"<="&$S$2,IncInvoice,$A45),2)) -> 0 | S45: STOCK | T45: 3320 | U45: =IF(T45=0,0,(SUMIFS(StockOpen,StockCodeOnly,$D45)+SUMIFS(ExpExcl,ExpDocDate,"<="&$B45,ExpStock,$D45)-SUMIFS(IncTransCost,IncUDate,"<"&$AA45,IncStock,$D45))/T45) -> 24 | V45: 14880 | W45: 14880 | X45: 22320 | Y45: 0.6 | Z45: =IF(ISNA(VLOOKUP(D45,StockAll,COLUMN(Stock!$D$4),0)),"-",IF(OR(VLOOKUP(D45,StockAll,COLUMN(Stock!$D$4),0)=0,LEFT(VLOOKUP(D45,StockAll,COLUMN(Stock!$D$4),0),5)<>"IS-02"),"IS-0299",VLOOKUP(D45,StockAll,COLUMN(Stock!$D$4),0))) -> IS-0205 | AA45: 2020-06-20T00:00:45 | AB45: Y | AC45: =IF($AB45="N",0,IF(ROUND(SUMIFS(IncIncl,IncDocDate,"<="&$AC$2,IncInvoice,$A45,IncCus,$AC$1)-SUMIFS(IncPayAmount,IncDocDate,"<="&$AC$2,IncPayDate,"<="&$AC$2,IncInvoice,$A45,IncCus,$AC$1),2)=0,0,1)) -> 0 | AD45: -
A46: IN0075 | B46: 2020-06-25 | C46: GGR01 | D46: V0020 | E46: Sales - Carrot Juice | F46: 7500 | G46: 5 | H46: A | I46: E | J46: B1 | K46: IS-0110 | L46: 43125 | M46: 2020-06-25 | N46: =IF(Setup!$D$31="Exclusive",IF(F46=0,G46,F46*G46)*(1+IF(ISNA(MATCH($H46,TaxCode,0)),0,OFFSET(Setup!$D$23,MATCH($H46,TaxCode,0),0,1,1))),IF(F46=0,G46,F46*G46)) -> 43125 | O46: =$N46/(1+IF(ISERROR($H46),0,IF(ISNA(MATCH($H46,TaxCode,0)),0,OFFSET(Setup!$D$23,MATCH($H46,TaxCode,0),0,1,1)))+IF(ISERROR($I46),0,IF(ISNA(MATCH($I46,TaxCode,0)),0,OFFSET(Setup!$D$23,MATCH($I46,TaxCode,0),0,1,1))))*IF(ISERROR($H46),0,IF(ISNA(MATCH($H46,TaxCode,0)),0,OFFSET(Setup!$D$23,MATCH($H46,TaxCode,0),0,1,1))) -> 5625 | P46: =$N46/(1+IF(ISERROR($H46),0,IF(ISNA(MATCH($H46,TaxCode,0)),0,OFFSET(Setup!$D$23,MATCH($H46,TaxCode,0),0,1,1)))+IF(ISERROR($I46),0,IF(ISNA(MATCH($I46,TaxCode,0)),0,OFFSET(Setup!$D$23,MATCH($I46,TaxCode,0),0,1,1))))*IF(ISERROR($I46),0,IF(ISNA(MATCH($I46,TaxCode,0)),0,OFFSET(Setup!$D$23,MATCH($I46,TaxCode,0),0,1,1))) -> 0 | Q46: =N46-IF(IncTaxCount=2,SUM(O46:P46),SUM(O46:O46)) -> 37500 | R46: =IF($AB46="N",0,ROUND(SUMIFS(IncIncl,IncDocDate,"<="&$S$2,IncInvoice,$A46)-SUMIFS(IncPayAmount,IncDocDate,"<="&$S$2,IncPayDate,"<="&$S$2,IncInvoice,$A46),2)) -> 0 | S46: STOCK | T46: 11755 | U46: =IF(T46=0,0,(SUMIFS(StockOpen,StockCodeOnly,$D46)+SUMIFS(ExpExcl,ExpDocDate,"<="&$B46,ExpStock,$D46)-SUMIFS(IncTransCost,IncUDate,"<"&$AA46,IncStock,$D46))/T46) -> 2.170286018 | V46: 16277.14514 | W46: 16277.14514 | X46: 21222.85486 | Y46: 0.5659427964 | Z46: =IF(ISNA(VLOOKUP(D46,StockAll,COLUMN(Stock!$D$4),0)),"-",IF(OR(VLOOKUP(D46,StockAll,COLUMN(Stock!$D$4),0)=0,LEFT(VLOOKUP(D46,StockAll,COLUMN(Stock!$D$4),0),5)<>"IS-02"),"IS-0299",VLOOKUP(D46,StockAll,COLUMN(Stock!$D$4),0))) -> IS-0210 | AA46: 2020-06-25T00:00:46 | AB46: Y | AC46: =IF($AB46="N",0,IF(ROUND(SUMIFS(IncIncl,IncDocDate,"<="&$AC$2,IncInvoice,$A46,IncCus,$AC$1)-SUMIFS(IncPayAmount,IncDocDate,"<="&$AC$2,IncPayDate,"<="&$AC$2,IncInvoice,$A46,IncCus,$AC$1),2)=0,0,1)) -> 0 | AD46: -
A47: IN0076 | B47: 2020-06-25 | C47: TRF01 | D47: V0015 | E47: Sales - Beetroot Juice | F47: 6000 | G47: 6 | H47: A | I47: E | J47: B1 | K47: IS-0110 | L47: 41400 | M47: 2020-07-25 | N47: =IF(Setup!$D$31="Exclusive",IF(F47=0,G47,F47*G47)*(1+IF(ISNA(MATCH($H47,TaxCode,0)),0,OFFSET(Setup!$D$23,MATCH($H47,TaxCode,0),0,1,1))),IF(F47=0,G47,F47*G47)) -> 41400 | O47: =$N47/(1+IF(ISERROR($H47),0,IF(ISNA(MATCH($H47,TaxCode,0)),0,OFFSET(Setup!$D$23,MATCH($H47,TaxCode,0),0,1,1)))+IF(ISERROR($I47),0,IF(ISNA(MATCH($I47,TaxCode,0)),0,OFFSET(Setup!$D$23,MATCH($I47,TaxCode,0),0,1,1))))*IF(ISERROR($H47),0,IF(ISNA(MATCH($H47,TaxCode,0)),0,OFFSET(Setup!$D$23,MATCH($H47,TaxCode,0),0,1,1))) -> 5400 | P47: =$N47/(1+IF(ISERROR($H47),0,IF(ISNA(MATCH($H47,TaxCode,0)),0,OFFSET(Setup!$D$23,MATCH($H47,TaxCode,0),0,1,1)))+IF(ISERROR($I47),0,IF(ISNA(MATCH($I47,TaxCode,0)),0,OFFSET(Setup!$D$23,MATCH($I47,TaxCode,0),0,1,1))))*IF(ISERROR($I47),0,IF(ISNA(MATCH($I47,TaxCode,0)),0,OFFSET(Setup!$D$23,MATCH($I47,TaxCode,0),0,1,1))) -> 0 | Q47: =N47-IF(IncTaxCount=2,SUM(O47:P47),SUM(O47:O47)) -> 36000 | R47: =IF($AB47="N",0,ROUND(SUMIFS(IncIncl,IncDocDate,"<="&$S$2,IncInvoice,$A47)-SUMIFS(IncPayAmount,IncDocDate,"<="&$S$2,IncPayDate,"<="&$S$2,IncInvoice,$A47),2)) -> 0 | S47: STOCK | T47: 13890 | U47: =IF(T47=0,0,(SUMIFS(StockOpen,StockCodeOnly,$D47)+SUMIFS(ExpExcl,ExpDocDate,"<="&$B47,ExpStock,$D47)-SUMIFS(IncTransCost,IncUDate,"<"&$AA47,IncStock,$D47))/T47) -> 3.51066513 | V47: 21063.99078 | W47: 21063.99078 | X47: 14936.00922 | Y47: 0.414889145 | Z47: =IF(ISNA(VLOOKUP(D47,StockAll,COLUMN(Stock!$D$4),0)),"-",IF(OR(VLOOKUP(D47,StockAll,COLUMN(Stock!$D$4),0)=0,LEFT(VLOOKUP(D47,StockAll,COLUMN(Stock!$D$4),0),5)<>"IS-02"),"IS-0299",VLOOKUP(D47,StockAll,COLUMN(Stock!$D$4),0))) -> IS-0210 | AA47: 2020-06-25T00:00:47 | AB47: Y | AC47: =IF($AB47="N",0,IF(ROUND(SUMIFS(IncIncl,IncDocDate,"<="&$AC$2,IncInvoice,$A47,IncCus,$AC$1)-SUMIFS(IncPayAmount,IncDocDate,"<="&$AC$2,IncPayDate,"<="&$AC$2,IncInvoice,$A47,IncCus,$AC$1),2)=0,0,1)) -> 0 | AD47: -
A48: REC0032 | B48: 2020-07-01 | C48: ABC01 | E48: Interest Received | F48: 0 | G48: 165.23 | H48: E | I48: E | J48: B2 | K48: IS-0900 | L48: 165.23 | M48: 2020-07-01 | N48: =IF(Setup!$D$31="Exclusive",IF(F48=0,G48,F48*G48)*(1+IF(ISNA(MATCH($H48,TaxCode,0)),0,OFFSET(Setup!$D$23,MATCH($H48,TaxCode,0),0,1,1))),IF(F48=0,G48,F48*G48)) -> 165.23 | O48: =$N48/(1+IF(ISERROR($H48),0,IF(ISNA(MATCH($H48,TaxCode,0)),0,OFFSET(Setup!$D$23,MATCH($H48,TaxCode,0),0,1,1)))+IF(ISERROR($I48),0,IF(ISNA(MATCH($I48,TaxCode,0)),0,OFFSET(Setup!$D$23,MATCH($I48,TaxCode,0),0,1,1))))*IF(ISERROR($H48),0,IF(ISNA(MATCH($H48,TaxCode,0)),0,OFFSET(Setup!$D$23,MATCH($H48,TaxCode,0),0,1,1))) -> 0 | P48: =$N48/(1+IF(ISERROR($H48),0,IF(ISNA(MATCH($H48,TaxCode,0)),0,OFFSET(Setup!$D$23,MATCH($H48,TaxCode,0),0,1,1)))+IF(ISERROR($I48),0,IF(ISNA(MATCH($I48,TaxCode,0)),0,OFFSET(Setup!$D$23,MATCH($I48,TaxCode,0),0,1,1))))*IF(ISERROR($I48),0,IF(ISNA(MATCH($I48,TaxCode,0)),0,OFFSET(Setup!$D$23,MATCH($I48,TaxCode,0),0,1,1))) -> 0 | Q48: =N48-IF(IncTaxCount=2,SUM(O48:P48),SUM(O48:O48)) -> 165.23 | R48: =IF($AB48="N",0,ROUND(SUMIFS(IncIncl,IncDocDate,"<="&$S$2,IncInvoice,$A48)-SUMIFS(IncPayAmount,IncDocDate,"<="&$S$2,IncPayDate,"<="&$S$2,IncInvoice,$A48),2)) -> 0 | S48: - | T48: 0 | U48: =IF(T48=0,0,(SUMIFS(StockOpen,StockCodeOnly,$D48)+SUMIFS(ExpExcl,ExpDocDate,"<="&$B48,ExpStock,$D48)-SUMIFS(IncTransCost,IncUDate,"<"&$AA48,IncStock,$D48))/T48) -> 0 | V48: 0 | W48: 0 | X48: 0 | Y48: 0 | Z48: =IF(ISNA(VLOOKUP(D48,StockAll,COLUMN(Stock!$D$4),0)),"-",IF(OR(VLOOKUP(D48,StockAll,COLUMN(Stock!$D$4),0)=0,LEFT(VLOOKUP(D48,StockAll,COLUMN(Stock!$D$4),0),5)<>"IS-02"),"IS-0299",VLOOKUP(D48,StockAll,COLUMN(Stock!$D$4),0))) -> - | AA48: 2020-07-01T00:00:48 | AB48: Y | AC48: =IF($AB48="N",0,IF(ROUND(SUMIFS(IncIncl,IncDocDate,"<="&$AC$2,IncInvoice,$A48,IncCus,$AC$1)-SUMIFS(IncPayAmount,IncDocDate,"<="&$AC$2,IncPayDate,"<="&$AC$2,IncInvoice,$A48,IncCus,$AC$1),2)=0,0,1)) -> 0 | AD48: -
A49: REC0033 | B49: 2020-07-07 | C49: FCT01 | E49: Commission Received | F49: 0 | G49: 2415 | H49: A | I49: E | J49: B1 | K49: IS-0900 | L49: 2777.25 | M49: 2020-07-07 | N49: =IF(Setup!$D$31="Exclusive",IF(F49=0,G49,F49*G49)*(1+IF(ISNA(MATCH($H49,TaxCode,0)),0,OFFSET(Setup!$D$23,MATCH($H49,TaxCode,0),0,1,1))),IF(F49=0,G49,F49*G49)) -> 2777.25 | O49: =$N49/(1+IF(ISERROR($H49),0,IF(ISNA(MATCH($H49,TaxCode,0)),0,OFFSET(Setup!$D$23,MATCH($H49,TaxCode,0),0,1,1)))+IF(ISERROR($I49),0,IF(ISNA(MATCH($I49,TaxCode,0)),0,OFFSET(Setup!$D$23,MATCH($I49,TaxCode,0),0,1,1))))*IF(ISERROR($H49),0,IF(ISNA(MATCH($H49,TaxCode,0)),0,OFFSET(Setup!$D$23,MATCH($H49,TaxCode,0),0,1,1))) -> 362.25 | P49: =$N49/(1+IF(ISERROR($H49),0,IF(ISNA(MATCH($H49,TaxCode,0)),0,OFFSET(Setup!$D$23,MATCH($H49,TaxCode,0),0,1,1)))+IF(ISERROR($I49),0,IF(ISNA(MATCH($I49,TaxCode,0)),0,OFFSET(Setup!$D$23,MATCH($I49,TaxCode,0),0,1,1))))*IF(ISERROR($I49),0,IF(ISNA(MATCH($I49,TaxCode,0)),0,OFFSET(Setup!$D$23,MATCH($I49,TaxCode,0),0,1,1))) -> 0 | Q49: =N49-IF(IncTaxCount=2,SUM(O49:P49),SUM(O49:O49)) -> 2415 | R49: =IF($AB49="N",0,ROUND(SUMIFS(IncIncl,IncDocDate,"<="&$S$2,IncInvoice,$A49)-SUMIFS(IncPayAmount,IncDocDate,"<="&$S$2,IncPayDate,"<="&$S$2,IncInvoice,$A49),2)) -> 0 | S49: - | T49: 0 | U49: =IF(T49=0,0,(SUMIFS(StockOpen,StockCodeOnly,$D49)+SUMIFS(ExpExcl,ExpDocDate,"<="&$B49,ExpStock,$D49)-SUMIFS(IncTransCost,IncUDate,"<"&$AA49,IncStock,$D49))/T49) -> 0 | V49: 0 | W49: 0 | X49: 0 | Y49: 0 | Z49: =IF(ISNA(VLOOKUP(D49,StockAll,COLUMN(Stock!$D$4),0)),"-",IF(OR(VLOOKUP(D49,StockAll,COLUMN(Stock!$D$4),0)=0,LEFT(VLOOKUP(D49,StockAll,COLUMN(Stock!$D$4),0),5)<>"IS-02"),"IS-0299",VLOOKUP(D49,StockAll,COLUMN(Stock!$D$4),0))) -> - | AA49: 2020-07-07T00:00:49 | AB49: Y | AC49: =IF($AB49="N",0,IF(ROUND(SUMIFS(IncIncl,IncDocDate,"<="&$AC$2,IncInvoice,$A49,IncCus,$AC$1)-SUMIFS(IncPayAmount,IncDocDate,"<="&$AC$2,IncPayDate,"<="&$AC$2,IncInvoice,$A49,IncCus,$AC$1),2)=0,0,1)) -> 0 | AD49: -
A50: IN0077 | B50: 2020-07-10 | C50: WCM01 | D50: V0010 | E50: Sales - Tomato Juice | F50: 6300 | G50: 8 | H50: A | I50: E | J50: B1 | K50: IS-0110 | L50: 57960 | M50: 2020-07-25 | N50: =IF(Setup!$D$31="Exclusive",IF(F50=0,G50,F50*G50)*(1+IF(ISNA(MATCH($H50,TaxCode,0)),0,OFFSET(Setup!$D$23,MATCH($H50,TaxCode,0),0,1,1))),IF(F50=0,G50,F50*G50)) -> 57960 | O50: =$N50/(1+IF(ISERROR($H50),0,IF(ISNA(MATCH($H50,TaxCode,0)),0,OFFSET(Setup!$D$23,MATCH($H50,TaxCode,0),0,1,1)))+IF(ISERROR($I50),0,IF(ISNA(MATCH($I50,TaxCode,0)),0,OFFSET(Setup!$D$23,MATCH($I50,TaxCode,0),0,1,1))))*IF(ISERROR($H50),0,IF(ISNA(MATCH($H50,TaxCode,0)),0,OFFSET(Setup!$D$23,MATCH($H50,TaxCode,0),0,1,1))) -> 7560 | P50: =$N50/(1+IF(ISERROR($H50),0,IF(ISNA(MATCH($H50,TaxCode,0)),0,OFFSET(Setup!$D$23,MATCH($H50,TaxCode,0),0,1,1)))+IF(ISERROR($I50),0,IF(ISNA(MATCH($I50,TaxCode,0)),0,OFFSET(Setup!$D$23,MATCH($I50,TaxCode,0),0,1,1))))*IF(ISERROR($I50),0,IF(ISNA(MATCH($I50,TaxCode,0)),0,OFFSET(Setup!$D$23,MATCH($I50,TaxCode,0),0,1,1))) -> 0 | Q50: =N50-IF(IncTaxCount=2,SUM(O50:P50),SUM(O50:O50)) -> 50400 | R50: =IF($AB50="N",0,ROUND(SUMIFS(IncIncl,IncDocDate,"<="&$S$2,IncInvoice,$A50)-SUMIFS(IncPayAmount,IncDocDate,"<="&$S$2,IncPayDate,"<="&$S$2,IncInvoice,$A50),2)) -> 0 | S50: STOCK | T50: 16470 | U50: =IF(T50=0,0,(SUMIFS(StockOpen,StockCodeOnly,$D50)+SUMIFS(ExpExcl,ExpDocDate,"<="&$B50,ExpStock,$D50)-SUMIFS(IncTransCost,IncUDate,"<"&$AA50,IncStock,$D50))/T50) -> 3.198549412 | V50: 20150.8613 | W50: 20150.8613 | X50: 30249.1387 | Y50: 0.6001813235 | Z50: =IF(ISNA(VLOOKUP(D50,StockAll,COLUMN(Stock!$D$4),0)),"-",IF(OR(VLOOKUP(D50,StockAll,COLUMN(Stock!$D$4),0)=0,LEFT(VLOOKUP(D50,StockAll,COLUMN(Stock!$D$4),0),5)<>"IS-02"),"IS-0299",VLOOKUP(D50,StockAll,COLUMN(Stock!$D$4),0))) -> IS-0210 | AA50: 2020-07-10T00:00:50 | AB50: Y | AC50: =IF($AB50="N",0,IF(ROUND(SUMIFS(IncIncl,IncDocDate,"<="&$AC$2,IncInvoice,$A50,IncCus,$AC$1)-SUMIFS(IncPayAmount,IncDocDate,"<="&$AC$2,IncPayDate,"<="&$AC$2,IncInvoice,$A50,IncCus,$AC$1),2)=0,0,1)) -> 0 | AD50: -
A51: IN0078 | B51: 2020-07-10 | C51: WWF01 | D51: F0010 | E51: Sales - Apple Juice | F51: 7100 | G51: 7 | H51: A | I51: E | J51: B1 | K51: IS-0105 | L51: 57155 | M51: 2020-07-30 | N51: =IF(Setup!$D$31="Exclusive",IF(F51=0,G51,F51*G51)*(1+IF(ISNA(MATCH($H51,TaxCode,0)),0,OFFSET(Setup!$D$23,MATCH($H51,TaxCode,0),0,1,1))),IF(F51=0,G51,F51*G51)) -> 57155 | O51: =$N51/(1+IF(ISERROR($H51),0,IF(ISNA(MATCH($H51,TaxCode,0)),0,OFFSET(Setup!$D$23,MATCH($H51,TaxCode,0),0,1,1)))+IF(ISERROR($I51),0,IF(ISNA(MATCH($I51,TaxCode,0)),0,OFFSET(Setup!$D$23,MATCH($I51,TaxCode,0),0,1,1))))*IF(ISERROR($H51),0,IF(ISNA(MATCH($H51,TaxCode,0)),0,OFFSET(Setup!$D$23,MATCH($H51,TaxCode,0),0,1,1))) -> 7455 | P51: =$N51/(1+IF(ISERROR($H51),0,IF(ISNA(MATCH($H51,TaxCode,0)),0,OFFSET(Setup!$D$23,MATCH($H51,TaxCode,0),0,1,1)))+IF(ISERROR($I51),0,IF(ISNA(MATCH($I51,TaxCode,0)),0,OFFSET(Setup!$D$23,MATCH($I51,TaxCode,0),0,1,1))))*IF(ISERROR($I51),0,IF(ISNA(MATCH($I51,TaxCode,0)),0,OFFSET(Setup!$D$23,MATCH($I51,TaxCode,0),0,1,1))) -> 0 | Q51: =N51-IF(IncTaxCount=2,SUM(O51:P51),SUM(O51:O51)) -> 49700 | R51: =IF($AB51="N",0,ROUND(SUMIFS(IncIncl,IncDocDate,"<="&$S$2,IncInvoice,$A51)-SUMIFS(IncPayAmount,IncDocDate,"<="&$S$2,IncPayDate,"<="&$S$2,IncInvoice,$A51),2)) -> 0 | S51: STOCK | T51: 23910 | U51: =IF(T51=0,0,(SUMIFS(StockOpen,StockCodeOnly,$D51)+SUMIFS(ExpExcl,ExpDocDate,"<="&$B51,ExpStock,$D51)-SUMIFS(IncTransCost,IncUDate,"<"&$AA51,IncStock,$D51))/T51) -> 3.19664714 | V51: 22696.19469 | W51: 22696.19469 | X51: 27003.80531 | Y51: 0.5433361229 | Z51: =IF(ISNA(VLOOKUP(D51,StockAll,COLUMN(Stock!$D$4),0)),"-",IF(OR(VLOOKUP(D51,StockAll,COLUMN(Stock!$D$4),0)=0,LEFT(VLOOKUP(D51,StockAll,COLUMN(Stock!$D$4),0),5)<>"IS-02"),"IS-0299",VLOOKUP(D51,StockAll,COLUMN(Stock!$D$4),0))) -> IS-0205 | AA51: 2020-07-10T00:00:51 | AB51: Y | AC51: =IF($AB51="N",0,IF(ROUND(SUMIFS(IncIncl,IncDocDate,"<="&$AC$2,IncInvoice,$A51,IncCus,$AC$1)-SUMIFS(IncPayAmount,IncDocDate,"<="&$AC$2,IncPayDate,"<="&$AC$2,IncInvoice,$A51,IncCus,$AC$1),2)=0,0,1)) -> 0 | AD51: -
A52: IN0079 | B52: 2020-07-15 | C52: FRV01 | D52: F0010 | E52: Sales - Apple Juice | F52: 5900 | G52: 7 | H52: A | I52: E | J52: B1 | K52: IS-0105 | L52: 110745 | M52: 2020-08-15 | N52: =IF(Setup!$D$31="Exclusive",IF(F52=0,G52,F52*G52)*(1+IF(ISNA(MATCH($H52,TaxCode,0)),0,OFFSET(Setup!$D$23,MATCH($H52,TaxCode,0),0,1,1))),IF(F52=0,G52,F52*G52)) -> 47495 | O52: =$N52/(1+IF(ISERROR($H52),0,IF(ISNA(MATCH($H52,TaxCode,0)),0,OFFSET(Setup!$D$23,MATCH($H52,TaxCode,0),0,1,1)))+IF(ISERROR($I52),0,IF(ISNA(MATCH($I52,TaxCode,0)),0,OFFSET(Setup!$D$23,MATCH($I52,TaxCode,0),0,1,1))))*IF(ISERROR($H52),0,IF(ISNA(MATCH($H52,TaxCode,0)),0,OFFSET(Setup!$D$23,MATCH($H52,TaxCode,0),0,1,1))) -> 6195 | P52: =$N52/(1+IF(ISERROR($H52),0,IF(ISNA(MATCH($H52,TaxCode,0)),0,OFFSET(Setup!$D$23,MATCH($H52,TaxCode,0),0,1,1)))+IF(ISERROR($I52),0,IF(ISNA(MATCH($I52,TaxCode,0)),0,OFFSET(Setup!$D$23,MATCH($I52,TaxCode,0),0,1,1))))*IF(ISERROR($I52),0,IF(ISNA(MATCH($I52,TaxCode,0)),0,OFFSET(Setup!$D$23,MATCH($I52,TaxCode,0),0,1,1))) -> 0 | Q52: =N52-IF(IncTaxCount=2,SUM(O52:P52),SUM(O52:O52)) -> 41300 | R52: =IF($AB52="N",0,ROUND(SUMIFS(IncIncl,IncDocDate,"<="&$S$2,IncInvoice,$A52)-SUMIFS(IncPayAmount,IncDocDate,"<="&$S$2,IncPayDate,"<="&$S$2,IncInvoice,$A52),2)) -> 0 | S52: STOCK | T52: 16810 | U52: =IF(T52=0,0,(SUMIFS(StockOpen,StockCodeOnly,$D52)+SUMIFS(ExpExcl,ExpDocDate,"<="&$B52,ExpStock,$D52)-SUMIFS(IncTransCost,IncUDate,"<"&$AA52,IncStock,$D52))/T52) -> 3.19664714 | V52: 18860.21812 | W52: 18860.21812 | X52: 22439.78188 | Y52: 0.5433361229 | Z52: =IF(ISNA(VLOOKUP(D52,StockAll,COLUMN(Stock!$D$4),0)),"-",IF(OR(VLOOKUP(D52,StockAll,COLUMN(Stock!$D$4),0)=0,LEFT(VLOOKUP(D52,StockAll,COLUMN(Stock!$D$4),0),5)<>"IS-02"),"IS-0299",VLOOKUP(D52,StockAll,COLUMN(Stock!$D$4),0))) -> IS-0205 | AA52: 2020-07-15T00:00:52 | AB52: Y | AC52: =IF($AB52="N",0,IF(ROUND(SUMIFS(IncIncl,IncDocDate,"<="&$AC$2,IncInvoice,$A52,IncCus,$AC$1)-SUMIFS(IncPayAmount,IncDocDate,"<="&$AC$2,IncPayDate,"<="&$AC$2,IncInvoice,$A52,IncCus,$AC$1),2)=0,0,1)) -> 0 | AD52: -
A53: IN0079 | B53: 2020-07-15 | C53: FRV01 | D53: F0015 | E53: Sales - Orange Juice | F53: 6250 | G53: 8.8 | H53: A | I53: E | J53: B1 | K53: IS-0105 | L53: 0 | M53: 2020-08-15 | N53: =IF(Setup!$D$31="Exclusive",IF(F53=0,G53,F53*G53)*(1+IF(ISNA(MATCH($H53,TaxCode,0)),0,OFFSET(Setup!$D$23,MATCH($H53,TaxCode,0),0,1,1))),IF(F53=0,G53,F53*G53)) -> 63250 | O53: =$N53/(1+IF(ISERROR($H53),0,IF(ISNA(MATCH($H53,TaxCode,0)),0,OFFSET(Setup!$D$23,MATCH($H53,TaxCode,0),0,1,1)))+IF(ISERROR($I53),0,IF(ISNA(MATCH($I53,TaxCode,0)),0,OFFSET(Setup!$D$23,MATCH($I53,TaxCode,0),0,1,1))))*IF(ISERROR($H53),0,IF(ISNA(MATCH($H53,TaxCode,0)),0,OFFSET(Setup!$D$23,MATCH($H53,TaxCode,0),0,1,1))) -> 8250 | P53: =$N53/(1+IF(ISERROR($H53),0,IF(ISNA(MATCH($H53,TaxCode,0)),0,OFFSET(Setup!$D$23,MATCH($H53,TaxCode,0),0,1,1)))+IF(ISERROR($I53),0,IF(ISNA(MATCH($I53,TaxCode,0)),0,OFFSET(Setup!$D$23,MATCH($I53,TaxCode,0),0,1,1))))*IF(ISERROR($I53),0,IF(ISNA(MATCH($I53,TaxCode,0)),0,OFFSET(Setup!$D$23,MATCH($I53,TaxCode,0),0,1,1))) -> 0 | Q53: =N53-IF(IncTaxCount=2,SUM(O53:P53),SUM(O53:O53)) -> 55000 | R53: =IF($AB53="N",0,ROUND(SUMIFS(IncIncl,IncDocDate,"<="&$S$2,IncInvoice,$A53)-SUMIFS(IncPayAmount,IncDocDate,"<="&$S$2,IncPayDate,"<="&$S$2,IncInvoice,$A53),2)) -> 0 | S53: STOCK | T53: 17860 | U53: =IF(T53=0,0,(SUMIFS(StockOpen,StockCodeOnly,$D53)+SUMIFS(ExpExcl,ExpDocDate,"<="&$B53,ExpStock,$D53)-SUMIFS(IncTransCost,IncUDate,"<"&$AA53,IncStock,$D53))/T53) -> 4.997762909 | V53: 31236.01818 | W53: 31236.01818 | X53: 23763.98182 | Y53: 0.4320723967 | Z53: =IF(ISNA(VLOOKUP(D53,StockAll,COLUMN(Stock!$D$4),0)),"-",IF(OR(VLOOKUP(D53,StockAll,COLUMN(Stock!$D$4),0)=0,LEFT(VLOOKUP(D53,StockAll,COLUMN(Stock!$D$4),0),5)<>"IS-02"),"IS-0299",VLOOKUP(D53,StockAll,COLUMN(Stock!$D$4),0))) -> IS-0205 | AA53: 2020-07-15T00:00:53 | AB53: N | AC53: =IF($AB53="N",0,IF(ROUND(SUMIFS(IncIncl,IncDocDate,"<="&$AC$2,IncInvoice,$A53,IncCus,$AC$1)-SUMIFS(IncPayAmount,IncDocDate,"<="&$AC$2,IncPayDate,"<="&$AC$2,IncInvoice,$A53,IncCus,$AC$1),2)=0,0,1)) -> 0 | AD53: -
A54: IN0080 | B54: 2020-07-20 | C54: MIM01 | D54: F0020 | E54: Sales - Strawberry Juice | F54: 640 | G54: 62 | H54: A | I54: E | J54: B1 | K54: IS-0105 | L54: 45632 | M54: 2020-07-20 | N54: =IF(Setup!$D$31="Exclusive",IF(F54=0,G54,F54*G54)*(1+IF(ISNA(MATCH($H54,TaxCode,0)),0,OFFSET(Setup!$D$23,MATCH($H54,TaxCode,0),0,1,1))),IF(F54=0,G54,F54*G54)) -> 45632 | O54: =$N54/(1+IF(ISERROR($H54),0,IF(ISNA(MATCH($H54,TaxCode,0)),0,OFFSET(Setup!$D$23,MATCH($H54,TaxCode,0),0,1,1)))+IF(ISERROR($I54),0,IF(ISNA(MATCH($I54,TaxCode,0)),0,OFFSET(Setup!$D$23,MATCH($I54,TaxCode,0),0,1,1))))*IF(ISERROR($H54),0,IF(ISNA(MATCH($H54,TaxCode,0)),0,OFFSET(Setup!$D$23,MATCH($H54,TaxCode,0),0,1,1))) -> 5952 | P54: =$N54/(1+IF(ISERROR($H54),0,IF(ISNA(MATCH($H54,TaxCode,0)),0,OFFSET(Setup!$D$23,MATCH($H54,TaxCode,0),0,1,1)))+IF(ISERROR($I54),0,IF(ISNA(MATCH($I54,TaxCode,0)),0,OFFSET(Setup!$D$23,MATCH($I54,TaxCode,0),0,1,1))))*IF(ISERROR($I54),0,IF(ISNA(MATCH($I54,TaxCode,0)),0,OFFSET(Setup!$D$23,MATCH($I54,TaxCode,0),0,1,1))) -> 0 | Q54: =N54-IF(IncTaxCount=2,SUM(O54:P54),SUM(O54:O54)) -> 39680 | R54: =IF($AB54="N",0,ROUND(SUMIFS(IncIncl,IncDocDate,"<="&$S$2,IncInvoice,$A54)-SUMIFS(IncPayAmount,IncDocDate,"<="&$S$2,IncPayDate,"<="&$S$2,IncInvoice,$A54),2)) -> 0 | S54: STOCK | T54: 2700 | U54: =IF(T54=0,0,(SUMIFS(StockOpen,StockCodeOnly,$D54)+SUMIFS(ExpExcl,ExpDocDate,"<="&$B54,ExpStock,$D54)-SUMIFS(IncTransCost,IncUDate,"<"&$AA54,IncStock,$D54))/T54) -> 24 | V54: 15360 | W54: 15360 | X54: 24320 | Y54: 0.6129032258 | Z54: =IF(ISNA(VLOOKUP(D54,StockAll,COLUMN(Stock!$D$4),0)),"-",IF(OR(VLOOKUP(D54,StockAll,COLUMN(Stock!$D$4),0)=0,LEFT(VLOOKUP(D54,StockAll,COLUMN(Stock!$D$4),0),5)<>"IS-02"),"IS-0299",VLOOKUP(D54,StockAll,COLUMN(Stock!$D$4),0))) -> IS-0205 | AA54: 2020-07-20T00:00:54 | AB54: Y | AC54: =IF($AB54="N",0,IF(ROUND(SUMIFS(IncIncl,IncDocDate,"<="&$AC$2,IncInvoice,$A54,IncCus,$AC$1)-SUMIFS(IncPayAmount,IncDocDate,"<="&$AC$2,IncPayDate,"<="&$AC$2,IncInvoice,$A54,IncCus,$AC$1),2)=0,0,1)) -> 0 | AD54: -
A55: IN0081 | B55: 2020-07-25 | C55: GGR01 | D55: V0020 | E55: Sales - Carrot Juice | F55: 7350 | G55: 5 | H55: A | I55: E | J55: B1 | K55: IS-0110 | L55: 42262.5 | M55: 2020-07-25 | N55: =IF(Setup!$D$31="Exclusive",IF(F55=0,G55,F55*G55)*(1+IF(ISNA(MATCH($H55,TaxCode,0)),0,OFFSET(Setup!$D$23,MATCH($H55,TaxCode,0),0,1,1))),IF(F55=0,G55,F55*G55)) -> 42262.5 | O55: =$N55/(1+IF(ISERROR($H55),0,IF(ISNA(MATCH($H55,TaxCode,0)),0,OFFSET(Setup!$D$23,MATCH($H55,TaxCode,0),0,1,1)))+IF(ISERROR($I55),0,IF(ISNA(MATCH($I55,TaxCode,0)),0,OFFSET(Setup!$D$23,MATCH($I55,TaxCode,0),0,1,1))))*IF(ISERROR($H55),0,IF(ISNA(MATCH($H55,TaxCode,0)),0,OFFSET(Setup!$D$23,MATCH($H55,TaxCode,0),0,1,1))) -> 5512.5 | P55: =$N55/(1+IF(ISERROR($H55),0,IF(ISNA(MATCH($H55,TaxCode,0)),0,OFFSET(Setup!$D$23,MATCH($H55,TaxCode,0),0,1,1)))+IF(ISERROR($I55),0,IF(ISNA(MATCH($I55,TaxCode,0)),0,OFFSET(Setup!$D$23,MATCH($I55,TaxCode,0),0,1,1))))*IF(ISERROR($I55),0,IF(ISNA(MATCH($I55,TaxCode,0)),0,OFFSET(Setup!$D$23,MATCH($I55,TaxCode,0),0,1,1))) -> 0 | Q55: =N55-IF(IncTaxCount=2,SUM(O55:P55),SUM(O55:O55)) -> 36750 | R55: =IF($AB55="N",0,ROUND(SUMIFS(IncIncl,IncDocDate,"<="&$S$2,IncInvoice,$A55)-SUMIFS(IncPayAmount,IncDocDate,"<="&$S$2,IncPayDate,"<="&$S$2,IncInvoice,$A55),2)) -> 0 | S55: STOCK | T55: 11455 | U55: =IF(T55=0,0,(SUMIFS(StockOpen,StockCodeOnly,$D55)+SUMIFS(ExpExcl,ExpDocDate,"<="&$B55,ExpStock,$D55)-SUMIFS(IncTransCost,IncUDate,"<"&$AA55,IncStock,$D55))/T55) -> 2.188962637 | V55: 16088.87538 | W55: 16088.87538 | X55: 20661.12462 | Y55: 0.5622074726 | Z55: =IF(ISNA(VLOOKUP(D55,StockAll,COLUMN(Stock!$D$4),0)),"-",IF(OR(VLOOKUP(D55,StockAll,COLUMN(Stock!$D$4),0)=0,LEFT(VLOOKUP(D55,StockAll,COLUMN(Stock!$D$4),0),5)<>"IS-02"),"IS-0299",VLOOKUP(D55,StockAll,COLUMN(Stock!$D$4),0))) -> IS-0210 | AA55: 2020-07-25T00:00:55 | AB55: Y | AC55: =IF($AB55="N",0,IF(ROUND(SUMIFS(IncIncl,IncDocDate,"<="&$AC$2,IncInvoice,$A55,IncCus,$AC$1)-SUMIFS(IncPayAmount,IncDocDate,"<="&$AC$2,IncPayDate,"<="&$AC$2,IncInvoice,$A55,IncCus,$AC$1),2)=0,0,1)) -> 0 | AD55: -
A56: IN0082 | B56: 2020-07-25 | C56: TRF01 | D56: V0015 | E56: Sales - Beetroot Juice | F56: 6200 | G56: 6 | H56: A | I56: E | J56: B1 | K56: IS-0110 | L56: 42780 | M56: 2020-08-25 | N56: =IF(Setup!$D$31="Exclusive",IF(F56=0,G56,F56*G56)*(1+IF(ISNA(MATCH($H56,TaxCode,0)),0,OFFSET(Setup!$D$23,MATCH($H56,TaxCode,0),0,1,1))),IF(F56=0,G56,F56*G56)) -> 42780 | O56: =$N56/(1+IF(ISERROR($H56),0,IF(ISNA(MATCH($H56,TaxCode,0)),0,OFFSET(Setup!$D$23,MATCH($H56,TaxCode,0),0,1,1)))+IF(ISERROR($I56),0,IF(ISNA(MATCH($I56,TaxCode,0)),0,OFFSET(Setup!$D$23,MATCH($I56,TaxCode,0),0,1,1))))*IF(ISERROR($H56),0,IF(ISNA(MATCH($H56,TaxCode,0)),0,OFFSET(Setup!$D$23,MATCH($H56,TaxCode,0),0,1,1))) -> 5580 | P56: =$N56/(1+IF(ISERROR($H56),0,IF(ISNA(MATCH($H56,TaxCode,0)),0,OFFSET(Setup!$D$23,MATCH($H56,TaxCode,0),0,1,1)))+IF(ISERROR($I56),0,IF(ISNA(MATCH($I56,TaxCode,0)),0,OFFSET(Setup!$D$23,MATCH($I56,TaxCode,0),0,1,1))))*IF(ISERROR($I56),0,IF(ISNA(MATCH($I56,TaxCode,0)),0,OFFSET(Setup!$D$23,MATCH($I56,TaxCode,0),0,1,1))) -> 0 | Q56: =N56-IF(IncTaxCount=2,SUM(O56:P56),SUM(O56:O56)) -> 37200 | R56: =IF($AB56="N",0,ROUND(SUMIFS(IncIncl,IncDocDate,"<="&$S$2,IncInvoice,$A56)-SUMIFS(IncPayAmount,IncDocDate,"<="&$S$2,IncPayDate,"<="&$S$2,IncInvoice,$A56),2)) -> 0 | S56: STOCK | T56: 15890 | U56: =IF(T56=0,0,(SUMIFS(StockOpen,StockCodeOnly,$D56)+SUMIFS(ExpExcl,ExpDocDate,"<="&$B56,ExpStock,$D56)-SUMIFS(IncTransCost,IncUDate,"<"&$AA56,IncStock,$D56))/T56) -> 3.50529565 | V56: 21732.83303 | W56: 21732.83303 | X56: 15467.16697 | Y56: 0.4157840584 | Z56: =IF(ISNA(VLOOKUP(D56,StockAll,COLUMN(Stock!$D$4),0)),"-",IF(OR(VLOOKUP(D56,StockAll,COLUMN(Stock!$D$4),0)=0,LEFT(VLOOKUP(D56,StockAll,COLUMN(Stock!$D$4),0),5)<>"IS-02"),"IS-0299",VLOOKUP(D56,StockAll,COLUMN(Stock!$D$4),0))) -> IS-0210 | AA56: 2020-07-25T00:00:56 | AB56: Y | AC56: =IF($AB56="N",0,IF(ROUND(SUMIFS(IncIncl,IncDocDate,"<="&$AC$2,IncInvoice,$A56,IncCus,$AC$1)-SUMIFS(IncPayAmount,IncDocDate,"<="&$AC$2,IncPayDate,"<="&$AC$2,IncInvoice,$A56,IncCus,$AC$1),2)=0,0,1)) -> 0 | AD56: -
